Workbook

Sheet Cover
B2: ELECTRICITY DETAILED PATHWAYS OUTPUTS
B3: CEC EPIC Long-Term Energy Scenarios
B6: Prepared by:
B11: 101 Montgomery Street, Suite 1600
B12: San Francisco, CA 94104
B13: (415) 391-5100
B15: 2018-02-06
B19: Table of Contents
B20: Tab Name | C20: Description
B21: Generation by Resource | C21: Displays the generation portfolio for a selected case
B22: Subsector Energy Demand by Year | C22: Electricity demand by subsector, can display for each scenario (note that fuel production loads are not included).
B23: Fuel Production Loads | C23: Electricity demand by fuel type associated with the production of hydrogen, the compression of natural gas to produce CNG, and the production of synthetic methane
B24: Electricity Load Graphs | C24: Electricity load chart with aggregated end-use categories: update data on previous two tabs for appropriate display.
B25: Installed Capacity | C25: Electricity generation capacity
B27: Guide to Cell Coloring
B28: Cell Color | C28: Description
B29: Drop-Down Menu | C29: The user can choose an input from a dropdown menu that appears when the cell is selected
B31: Scenario Key
B32: Model Case Name | C32: Scenario Name
B33: Main Scenarios
B34: Reference | C34: Reference: Pre-SB 350 Policy "Business As Usual" (Does not meet 2030 and 2050 targets)
B35: CEC 2050 | C35: High Electrification Scenario: Meets 2030 and 2050 targets
B36: Current Policy Reference | C36: SB 350 Scenario (2 x AAEE, 50% RPS, reductions in short-lived climate pollutants, ARB Mobile Source Strategy)
B37: Alternative Mitigation Scenarios (Each meets the 2030 and 2050 targets with alternative mitigation strategies)
B38: CEC 2050 1 x AAEE | C38: Reference Building EE
B39: CEC 2050 High Biofuels | C39: High Biofuels
B40: CEC 2050 Hydrogen In Plus | C40: High Hydrogen
B41: CEC 2050 In-State Biofuels | C41: In-State Biomass
B42: CEC 2050 No FCEVs Plus | C42: No Hydrogen
B43: CEC 2050 No Heat Pumps Plus | C43: No Building Electrification with Power-to-Gas
B44: CEC 2050 Ref Industry Plus | C44: Reference Industry EE
B45: CEC 2050 Ref LDV VMT Plus | C45: Reference Smart Growth
B46: High SLCPs Plus | C46: Reduced Methane Mitigation

Sheet Generation by Resource
B2: Active CSV Directory | D2: =outputDir -> S:\E3 Projects\CEC EPIC GHG Scenarios\PATHWAYS Model\Case Outputs\comb_outputs_20171017_1334 Full Scenarios + Current Policy Ref
B3: Charted Case | D3: CEC 2050
B4: Case 2 | D4: Current Policy Reference
B5: Case 3 | D5: Reference
C11: ="Total Electricity Generation including Rooftop PV, "&genActCase&" Case" -> Total Electricity Generation including Rooftop PV, CEC 2050 Case
B38: =genActCase -> CEC 2050
C40: 2015 | D40: =+C40+1 -> 2016 | E40: =+D40+1 -> 2017 | F40: 2018 | G40: 2019 | H40: 2020 | I40: 2021 | J40: 2022 | K40: 2023 | L40: 2024 | M40: 2025 | N40: 2026 | O40: 2027 | P40: 2028 | Q40: 2029 | R40: 2030 | S40: 2031 | T40: 2032 | U40: 2033 | V40: 2034 | W40: 2035 | X40: 2036 | Y40: 2037 | Z40: 2038 | AA40: 2039 | AB40: 2040 | AC40: 2041 | AD40: 2042 | AE40: 2043 | AF40: 2044 | AG40: 2045 | AH40: 2046 | AI40: 2047 | AJ40: 2048 | AK40: 2049 | AL40: 2050
B41: CHP | C41: =IFERROR(INDEX(Gen_by_Category_vals,MATCH(C$40&"#"&genActCase&"#"&$B41,Gen_by_Category_index,0))/1000000,0) -> 40.80131012 | D41: 36.66602483 | E41: 33.33505547 | F41: 30.39645302 | G41: 27.46608839 | H41: 24.34035102 | I41: 22.59560805 | J41: 20.90641512 | K41: 19.27277224 | L41: 17.6946794 | M41: =IFERROR(INDEX(Gen_by_Category_vals,MATCH(M$40&"#"&genActCase&"#"&$B41,Gen_by_Category_index,0))/1000000,0) -> 16.17213661 | N41: 14.70514386 | O41: 13.29370115 | P41: 11.93780849 | Q41: 10.63746587 | R41: 9.392673299 | S41: 8.039022795 | T41: 6.787038593 | U41: 5.63284287 | V41: 4.573118235 | W41: =IFERROR(INDEX(Gen_by_Category_vals,MATCH(W$40&"#"&genActCase&"#"&$B41,Gen_by_Category_index,0))/1000000,0) -> 3.604127386 | X41: 2.722593905 | Y41: 1.92496776 | Z41: 1.207636768 | AA41: 0.5671666673 | AB41: 1.60888e-16 | AC41: -8.6113e-17 | AD41: 1.58532e-16 | AE41: 6.2887e-17 | AF41: -6.086e-17 | AG41: =IFERROR(INDEX(Gen_by_Category_vals,MATCH(AG$40&"#"&genActCase&"#"&$B41,Gen_by_Category_index,0))/1000000,0) -> 1.56012e-16 | AH41: -1.3147e-17 | AI41: -8.874e-18 | AJ41: 1.8625e-17 | AK41: -3.0786e-17 | AL41: 3.6593e-17
B42: Nuclear | C42: 18.346068 | D42: 18.346068 | E42: 18.346068 | F42: 18.346068 | G42: 18.346068 | H42: 18.346068 | I42: 18.346068 | J42: 18.346068 | K42: 18.346068 | L42: 18.346068 | M42: 0 | N42: 0 | O42: 0 | P42: 0 | Q42: 0 | R42: 0 | S42: 0 | T42: 0 | U42: 0 | V42: 0 | W42: 0 | X42: 0 | Y42: 0 | Z42: 0 | AA42: 0 | AB42: 0 | AC42: 0 | AD42: 0 | AE42: 0 | AF42: 0 | AG42: 0 | AH42: 0 | AI42: 0 | AJ42: 0 | AK42: 0 | AL42: 0
B43: Coal | C43: 0.001196137088 | D43: 0.0003588411264 | E43: 0.002365727396 | F43: 0.003132874424 | G43: 0.4322763153 | H43: 0.5122516011 | I43: 0.4994097281 | J43: 0.4545568125 | K43: 0.4244258123 | L43: 0.3959131484 | M43: 0.3984278068 | N43: 0.3966335225 | O43: 0.3755721569 | P43: 0.1030487044 | Q43: 0.09955070135 | R43: 0 | S43: 0 | T43: 0 | U43: 0 | V43: 0 | W43: 0 | X43: 0 | Y43: 0 | Z43: 0 | AA43: 0 | AB43: 0 | AC43: 0 | AD43: 0 | AE43: 0 | AF43: 0 | AG43: 0 | AH43: 0 | AI43: 0 | AJ43: 0 | AK43: 0 | AL43: 0
B44: Natural Gas | C44: 54.05208697 | D44: 51.8367339 | E44: 49.22622395 | F44: 50.21677591 | G44: 50.82541411 | H44: 49.56569886 | I44: 45.86137856 | J44: 41.15956142 | K44: 36.8109067 | L44: 32.97086762 | M44: 39.60652182 | N44: 35.95386682 | O44: 32.49122461 | P44: 31.02615413 | Q44: 28.08477287 | R44: 26.1580912 | S44: 29.24352903 | T44: 28.39769279 | U44: 27.79475961 | V44: 27.23134224 | W44: 26.60528124 | X44: 25.93028833 | Y44: 25.0913718 | Z44: 24.05435487 | AA44: 22.98301561 | AB44: 22.01299105 | AC44: 20.68688503 | AD44: 19.19688651 | AE44: 17.69402108 | AF44: 16.13737033 | AG44: 14.32188318 | AH44: 12.59980738 | AI44: 17.81860979 | AJ44: 15.68965798 | AK44: 13.76345309 | AL44: 11.78589799
B45: Natural Gas with CCS | C45: 0 | D45: 0 | E45: 0 | F45: 0 | G45: 0 | H45: 0 | I45: 0 | J45: 0 | K45: 0 | L45: 0 | M45: 0 | N45: 0 | O45: 0 | P45: 0 | Q45: 0 | R45: 0 | S45: 0 | T45: 0 | U45: 0 | V45: 0 | W45: 0 | X45: 0 | Y45: 0 | Z45: 0 | AA45: 0 | AB45: 0 | AC45: 0 | AD45: 0 | AE45: 0 | AF45: 0 | AG45: 0 | AH45: 0 | AI45: 0 | AJ45: 0 | AK45: 0 | AL45: 0
B46: Hydro | C46: 31.50840918 | D46: 31.53854869 | E46: 31.4955989 | F46: 31.41106091 | G46: 31.32652292 | H46: 31.24198493 | I46: 31.15744694 | J46: 31.07290896 | K46: 30.98837097 | L46: 30.87074232 | M46: 30.78620433 | N46: 30.70166635 | O46: 30.61712836 | P46: 30.53259037 | Q46: 30.44805238 | R46: 30.36351439 | S46: 30.27509177 | T46: 30.18916337 | U46: 30.10462538 | V46: 30.02008301 | W46: 29.93394902 | X46: 29.83439189 | Y46: 29.76487305 | Z46: 29.68033506 | AA46: 29.59579707 | AB46: 29.51125908 | AC46: 29.4267211 | AD46: 29.34218311 | AE46: 29.25764512 | AF46: 29.17310713 | AG46: 29.08856914 | AH46: 29.00403115 | AI46: 28.91949317 | AJ46: 28.83495518 | AK46: 28.75041719 | AL46: 28.6658792
B47: Biomass | C47: 6.660692442 | D47: 6.90950969 | E47: 6.869285008 | F47: 6.869285007 | G47: 6.869285009 | H47: 6.869285008 | I47: 7.019376217 | J47: 6.702879102 | K47: 6.702879102 | L47: 6.702879102 | M47: 6.702879102 | N47: 6.702879102 | O47: 6.702879101 | P47: 6.702879102 | Q47: 6.702879102 | R47: 6.702879102 | S47: 0 | T47: 0 | U47: 0 | V47: 0 | W47: 0 | X47: 0 | Y47: 0 | Z47: 0 | AA47: 0 | AB47: 0 | AC47: 0 | AD47: 0 | AE47: 0 | AF47: 0 | AG47: 0 | AH47: 0 | AI47: 0 | AJ47: 0 | AK47: 0 | AL47: 0
B48: Geothermal | C48: 13.31921625 | D48: 13.60128807 | E48: 14.36662087 | F48: 15.63198878 | G48: 15.99804185 | H48: 16.79175674 | I48: 17.6314068 | J48: 19.7873134 | K48: 21.74267054 | L48: 23.64789032 | M48: 25.35256065 | N48: 26.60589596 | O48: 28.20780239 | P48: 29.91247272 | Q48: 31.61714305 | R48: 33.32181338 | S48: 33.32181338 | T48: 33.32181338 | U48: 33.32181338 | V48: 33.32181338 | W48: 33.32181338 | X48: 33.32181338 | Y48: 33.32181338 | Z48: 33.32181338 | AA48: 33.32181338 | AB48: 33.32181338 | AC48: 33.32181338 | AD48: 33.32181338 | AE48: 33.32181338 | AF48: 33.32181338 | AG48: 33.32181338 | AH48: 33.32181338 | AI48: 33.32181338 | AJ48: 33.32181338 | AK48: 33.32181338 | AL48: 33.32181338
B49: Solar | C49: 18.53986451 | D49: 23.32190393 | E49: 27.96148998 | F49: 28.26887871 | G49: 29.54289047 | H49: 32.90708622 | I49: 38.06591706 | J49: 43.97227578 | K49: 49.4203627 | L49: 54.87184915 | M49: 60.4115262 | N49: 66.0312504 | O49: 71.09866823 | P49: 75.68546492 | Q49: 80.6009198 | R49: 86.04431303 | S49: 92.08285008 | T49: 95.79926058 | U49: 100.3389264 | V49: 105.2726183 | W49: 110.9616918 | X49: 117.4635611 | Y49: 124.429007 | Z49: 131.9280254 | AA49: 139.2084019 | AB49: 145.8211123 | AC49: 151.6405047 | AD49: 157.1256299 | AE49: 162.3266874 | AF49: 167.2025216 | AG49: 171.9249452 | AH49: 176.3675085 | AI49: 179.4950645 | AJ49: 183.0233622 | AK49: 185.942091 | AL49: 188.2703678
B50: Wind | C50: 22.5370038 | D50: 24.56450932 | E50: 27.49415961 | F50: 28.68933299 | G50: 30.12614762 | H50: 31.02993896 | I50: 31.52959344 | J50: 31.9409127 | K50: 32.34126556 | L50: 32.49703781 | M50: 32.99860557 | N50: 33.40814922 | O50: 33.61978357 | P50: 33.96407707 | Q50: 34.29582313 | R50: 34.59819451 | S50: 42.05497521 | T50: 49.89784953 | U50: 57.46058487 | V50: 65.26901966 | W50: 73.08265929 | X50: 80.71106468 | Y50: 88.6247677 | Z50: 96.30645338 | AA50: 103.750391 | AB50: 110.9275615 | AC50: 117.8705067 | AD50: 124.7081642 | AE50: 131.3891752 | AF50: 137.9091028 | AG50: 144.2829458 | AH50: 150.5836118 | AI50: 156.3016107 | AJ50: 162.2027129 | AK50: 167.8749857 | AL50: 173.2769252
B51: Rooftop PV | C51: 7.308514533 | D51: 8.930848534 | E51: 9.998384365 | F51: 11.04589138 | G51: 12.12143874 | H51: 13.24705813 | I51: 14.61502618 | J51: 16.20531408 | K51: 18.00790742 | L51: 19.98274856 | M51: 22.15186921 | N51: 24.47120596 | O51: 27.03289138 | P51: 29.8649658 | Q51: 32.99146379 | R51: 36.44643435 | S51: 37.52799035 | T51: 38.61154924 | U51: 39.69310524 | V51: 40.77466124 | W51: 41.85621724 | X51: 42.93777324 | Y51: 44.01932924 | Z51: 45.10088524 | AA51: 46.18444412 | AB51: 47.26600013 | AC51: 48.34755613 | AD51: 49.42911213 | AE51: 50.51066813 | AF51: 51.59222413 | AG51: 52.67378013 | AH51: 53.75533613 | AI51: 54.83889501 | AJ51: 55.92045101 | AK51: 57.00200702 | AL51: 58.08356302
B52: Imports | C52: 94.06264449 | D52: 93.20200205 | E52: 91.68837582 | F52: 91.61361271 | G52: 91.26921044 | H52: 90.11219374 | I52: 87.09173208 | J52: 83.50635838 | K52: 79.83177474 | L52: 76.32513732 | M52: 78.01689945 | N52: 74.94340126 | O52: 72.32749178 | P52: 66.99939077 | Q52: 65.19936527 | R52: 63.53171811 | S52: 61.84223779 | T52: 59.90322641 | U52: 57.9157573 | V52: 55.73945378 | W52: 53.49890837 | X52: 51.0844568 | Y52: 48.54323198 | Z52: 45.99443642 | AA52: 43.68760539 | AB52: 41.66679945 | AC52: 39.5186226 | AD52: 37.57544839 | AE52: 35.55978156 | AF52: 33.54763255 | AG52: 31.62848131 | AH52: 29.5437179 | AI52: 22.63579386 | AJ52: 20.72763845 | AK52: 19.14161071 | AL52: 17.47725865
B53: Total Generation | C53: =SUM(C41:C52) -> 307.1370064 | D53: =SUM(D41:D52) -> 308.9177959 | E53: 310.7836277 | F53: 312.4924803 | G53: 314.3233839 | H53: 314.9636732 | I53: 314.4129631 | J53: 314.0545637 | K53: 313.8894038 | L53: 314.3058128 | M53: 312.5976308 | N53: 313.9200925 | O53: 315.7671427 | P53: 316.7288521 | Q53: 320.677436 | R53: 326.5596314 | S53: 334.3875104 | T53: 342.9075939 | U53: 352.2624151 | V53: 362.2021099 | W53: 372.8646478 | X53: 384.0059433 | Y53: 395.7193619 | Z53: 407.5939406 | AA53: 419.2986351 | AB53: 430.5275369 | AC53: 440.8126096 | AD53: 450.6992375 | AE53: 460.0597918 | AF53: 468.8837719 | AG53: 477.2424181 | AH53: 485.1758263 | AI53: 493.3312805 | AJ53: 499.7205911 | AK53: 505.7963781 | AL53: 510.8817052
B55: =genActCase2 -> Current Policy Reference
C57: 2015 | D57: =+C57+1 -> 2016 | E57: =+D57+1 -> 2017 | F57: =+E57+1 -> 2018 | G57: =+F57+1 -> 2019 | H57: =+G57+1 -> 2020 | I57: =+H57+1 -> 2021 | J57: =+I57+1 -> 2022 | K57: =+J57+1 -> 2023 | L57: =+K57+1 -> 2024 | M57: =+L57+1 -> 2025 | N57: =+M57+1 -> 2026 | O57: =+N57+1 -> 2027 | P57: =+O57+1 -> 2028 | Q57: =+P57+1 -> 2029 | R57: =+Q57+1 -> 2030 | S57: =+R57+1 -> 2031 | T57: =+S57+1 -> 2032 | U57: =+T57+1 -> 2033 | V57: =+U57+1 -> 2034 | W57: =+V57+1 -> 2035 | X57: =+W57+1 -> 2036 | Y57: =+X57+1 -> 2037 | Z57: =+Y57+1 -> 2038 | AA57: =+Z57+1 -> 2039 | AB57: =+AA57+1 -> 2040 | AC57: =+AB57+1 -> 2041 | AD57: =+AC57+1 -> 2042 | AE57: =+AD57+1 -> 2043 | AF57: =+AE57+1 -> 2044 | AG57: =+AF57+1 -> 2045 | AH57: =+AG57+1 -> 2046 | AI57: =+AH57+1 -> 2047 | AJ57: =+AI57+1 -> 2048 | AK57: =+AJ57+1 -> 2049 | AL57: =+AK57+1 -> 2050
B58: CHP | C58: =IFERROR(INDEX(Gen_by_Category_vals,MATCH(C$40&"#"&genActCase2&"#"&$B58,Gen_by_Category_index,0))/1000000,0) -> 40.80131012 | D58: 37.02807638 | E58: 33.96945614 | F58: 31.28528012 | G58: 28.59208395 | H58: 25.84017259 | I58: 26.12368039 | J58: 26.40516625 | K58: 26.685795 | L58: 26.96461705 | M58: =IFERROR(INDEX(Gen_by_Category_vals,MATCH(M$40&"#"&genActCase2&"#"&$B58,Gen_by_Category_index,0))/1000000,0) -> 27.26078329 | N58: 27.55813057 | O58: 27.85602612 | P58: 28.15359164 | Q58: 28.45021851 | R58: 28.74491262 | S58: 28.38497354 | T58: 28.02600642 | U58: 27.666412 | V58: 27.30741042 | W58: =IFERROR(INDEX(Gen_by_Category_vals,MATCH(W$40&"#"&genActCase2&"#"&$B58,Gen_by_Category_index,0))/1000000,0) -> 26.94747134 | X58: 26.58815957 | Y58: 26.2289098 | Z58: 25.86927403 | AA58: 25.5103138 | AB58: 25.15071249 | AC58: 24.79106295 | AD58: 24.43142717 | AE58: 24.0728116 | AF58: 23.71303796 | AG58: =IFERROR(INDEX(Gen_by_Category_vals,MATCH(AG$40&"#"&genActCase2&"#"&$B58,Gen_by_Category_index,0))/1000000,0) -> 23.35296102 | AH58: 22.99392497 | AI58: 22.63429609 | AJ58: 22.27494984 | AK58: 21.91563115 | AL58: 21.5565951
B59: Nuclear | C59: 18.346068 | D59: 18.346068 | E59: 18.346068 | F59: 18.346068 | G59: 18.346068 | H59: 18.346068 | I59: 18.346068 | J59: 18.346068 | K59: 18.346068 | L59: 18.346068 | M59: 0 | N59: 0 | O59: 0 | P59: 0 | Q59: 0 | R59: 0 | S59: 0 | T59: 0 | U59: 0 | V59: 0 | W59: 0 | X59: 0 | Y59: 0 | Z59: 0 | AA59: 0 | AB59: 0 | AC59: 0 | AD59: 0 | AE59: 0 | AF59: 0 | AG59: 0 | AH59: 0 | AI59: 0 | AJ59: 0 | AK59: 0 | AL59: 0
B60: Coal | C60: 0.001196137088 | D60: 0.0003588411264 | E60: 0.002511887885 | F60: 0.003050149574 | G60: 0.4519488126 | H60: 0.5163433912 | I60: 0.5103570209 | J60: 0.4851274943 | K60: 0.4723900809 | L60: 0.4564149972 | M60: 0.4662418709 | N60: 0.4735575889 | O60: 0.4574649008 | P60: 0.1267540771 | Q60: 0.1231624024 | R60: 0 | S60: 0 | T60: 0 | U60: 0 | V60: 0 | W60: 0 | X60: 0 | Y60: 0 | Z60: 0 | AA60: 0 | AB60: 0 | AC60: 0 | AD60: 0 | AE60: 0 | AF60: 0 | AG60: 0 | AH60: 0 | AI60: 0 | AJ60: 0 | AK60: 0 | AL60: 0
B61: Natural Gas | C61: 54.04212891 | D61: 52.65700867 | E61: 50.96430192 | F61: 52.66540595 | G61: 54.45860376 | H61: 54.55726236 | I61: 52.37888374 | J61: 49.54720793 | K61: 46.88986262 | L61: 44.35590782 | M61: 55.20934501 | N61: 52.90057486 | O61: 50.60965937 | P61: 49.33394197 | Q61: 47.02095734 | R61: 45.18720206 | S61: 46.0788908 | T61: 46.94848664 | U61: 48.02875607 | V61: 49.22672724 | W61: 50.52860993 | X61: 52.13498786 | Y61: 53.74101538 | Z61: 55.53821069 | AA61: 57.42691562 | AB61: 59.42063046 | AC61: 118.2747488 | AD61: 121.2548983 | AE61: 123.6915191 | AF61: 126.3639355 | AG61: 128.6889438 | AH61: 131.0607857 | AI61: 141.8742433 | AJ61: 144.2643441 | AK61: 146.9973312 | AL61: 149.7295059
B62: Natural Gas with CCS | C62: 0 | D62: 0 | E62: 0 | F62: 0 | G62: 0 | H62: 0 | I62: 0 | J62: 0 | K62: 0 | L62: 0 | M62: 0 | N62: 0 | O62: 0 | P62: 0 | Q62: 0 | R62: 0 | S62: 0 | T62: 0 | U62: 0 | V62: 0 | W62: 0 | X62: 0 | Y62: 0 | Z62: 0 | AA62: 0 | AB62: 0 | AC62: 0 | AD62: 0 | AE62: 0 | AF62: 0 | AG62: 0 | AH62: 0 | AI62: 0 | AJ62: 0 | AK62: 0 | AL62: 0
B63: Hydro | C63: 31.50840918 | D63: 31.53854869 | E63: 31.4955989 | F63: 31.41106091 | G63: 31.32652292 | H63: 31.24198493 | I63: 31.15744694 | J63: 31.07290896 | K63: 30.98837097 | L63: 30.87074232 | M63: 30.78620433 | N63: 30.70166634 | O63: 30.61712836 | P63: 30.53259037 | Q63: 30.44805238 | R63: 30.36351439 | S63: 30.27509176 | T63: 30.18916337 | U63: 30.10462538 | V63: 30.02008301 | W63: 29.93394902 | X63: 29.83439189 | Y63: 29.76487305 | Z63: 29.68033506 | AA63: 29.59579707 | AB63: 29.51125908 | AC63: 29.42672109 | AD63: 29.34218311 | AE63: 29.25764512 | AF63: 29.17310713 | AG63: 29.08856914 | AH63: 29.00403115 | AI63: 28.91949316 | AJ63: 28.83495518 | AK63: 28.75041719 | AL63: 28.6658792
B64: Biomass | C64: 6.660692442 | D64: 6.90950969 | E64: 6.869285008 | F64: 6.869285007 | G64: 6.869285009 | H64: 6.869285008 | I64: 7.019376217 | J64: 6.702879102 | K64: 6.702879102 | L64: 6.702879102 | M64: 6.702879102 | N64: 6.702879102 | O64: 6.702879101 | P64: 6.702879102 | Q64: 6.702879102 | R64: 6.702879102 | S64: 6.702879101 | T64: 6.702879102 | U64: 6.702879103 | V64: 6.702879102 | W64: 6.702879102 | X64: 6.702879102 | Y64: 6.702879103 | Z64: 6.702879103 | AA64: 6.702879102 | AB64: 6.702879103 | AC64: 6.66145141 | AD64: 6.702879103 | AE64: 6.702879103 | AF64: 6.702879103 | AG64: 6.702879102 | AH64: 6.702879103 | AI64: 6.702879103 | AJ64: 6.702879103 | AK64: 6.702879103 | AL64: 6.702879103
B65: Geothermal | C65: 13.31921625 | D65: 12.69881554 | E65: 12.56167581 | F65: 12.9245712 | G65: 12.38815174 | H65: 12.2793941 | I65: 12.21657164 | J65: 12.6678079 | K65: 12.91849472 | L65: 13.11904417 | M65: 13.11904417 | N65: 12.66770915 | O65: 12.56494525 | P65: 12.56494525 | Q65: 12.56494525 | R65: 12.56494525 | S65: 12.56494525 | T65: 12.56494525 | U65: 12.56494525 | V65: 12.56494525 | W65: 12.56494525 | X65: 12.56494525 | Y65: 12.56494525 | Z65: 12.56494525 | AA65: 12.56494525 | AB65: 12.56494525 | AC65: 12.56494525 | AD65: 12.56494525 | AE65: 12.56494525 | AF65: 12.56494525 | AG65: 12.56494525 | AH65: 12.56494525 | AI65: 12.56494525 | AJ65: 12.56494525 | AK65: 12.56494525 | AL65: 12.56494525
B66: Solar | C66: 18.53628294 | D66: 23.31832236 | E66: 27.95790841 | F66: 28.26529714 | G66: 29.5393089 | H66: 32.90350465 | I66: 34.83340546 | J66: 37.597035 | K66: 40.11839115 | L66: 42.7889555 | M66: 45.47341738 | N66: 48.3752798 | O66: 50.83596776 | P66: 52.80645583 | Q66: 54.48772785 | R66: 55.88220301 | S66: 56.34113451 | T66: 56.96990813 | U66: 58.06881931 | V66: 59.13251787 | W66: 60.39828279 | X66: 62.03531137 | Y66: 63.49694805 | Z66: 65.23548796 | AA66: 67.05455722 | AB66: 68.92575654 | AC66: 71.0411469 | AD66: 73.10707632 | AE66: 75.21962614 | AF66: 77.31931007 | AG66: 79.21849165 | AH66: 81.09987 | AI66: 82.88306215 | AJ66: 84.57241047 | AK66: 86.16552347 | AL66: 87.65215089
B67: Wind | C67: 22.5370038 | D67: 24.56450932 | E67: 27.49415961 | F67: 28.68933299 | G67: 30.12614762 | H67: 31.02993896 | I67: 31.53131258 | J67: 31.94613385 | K67: 32.35824218 | L67: 32.54970423 | M67: 33.0522895 | N67: 33.52620408 | O67: 33.80174713 | P67: 34.20865174 | Q67: 34.60167286 | R67: 34.95795677 | S67: 34.92149986 | T67: 34.88789541 | U67: 34.59105836 | V67: 34.56261027 | W67: 34.56615007 | X67: 34.40942259 | Y67: 34.57885815 | Z67: 34.58622492 | AA67: 34.59364629 | AB67: 34.60011355 | AC67: 34.60863059 | AD67: 34.61876971 | AE67: 34.62826075 | AF67: 34.63712443 | AG67: 34.64517 | AH67: 34.65264261 | AI67: 34.65702263 | AJ67: 34.65894926 | AK67: 34.65906606 | AL67: 34.65668698
B68: Rooftop PV | C68: 7.308514533 | D68: 8.930848534 | E68: 9.998384365 | F68: 11.04589138 | G68: 12.12143874 | H68: 13.24705813 | I68: 14.61502618 | J68: 16.20531408 | K68: 18.00790742 | L68: 19.98274856 | M68: 22.15186921 | N68: 24.47120596 | O68: 27.03289138 | P68: 29.8649658 | Q68: 32.99146379 | R68: 36.44643435 | S68: 37.52799035 | T68: 38.61154924 | U68: 39.69310524 | V68: 40.77466124 | W68: 41.85621724 | X68: 42.93777324 | Y68: 44.01932924 | Z68: 45.10088524 | AA68: 46.18444412 | AB68: 47.26600013 | AC68: 48.34755613 | AD68: 49.42911213 | AE68: 50.51066813 | AF68: 51.59222413 | AG68: 52.67378013 | AH68: 53.75533613 | AI68: 54.83889501 | AJ68: 55.92045101 | AK68: 57.00200702 | AL68: 58.08356302
B69: Imports | C69: 94.06335272 | D69: 93.30332404 | E69: 91.99155559 | F69: 92.44211376 | G69: 92.23085141 | H69: 91.34541275 | I69: 89.79806651 | J69: 88.07915898 | K69: 86.21567891 | L69: 84.27972638 | M69: 86.49429693 | N69: 84.47481383 | O69: 82.59116812 | P69: 79.46530328 | Q69: 77.87000071 | R69: 76.2764103 | S69: 75.92803994 | T69: 76.01783792 | U69: 76.17476604 | V69: 76.36230728 | W69: 76.65771723 | X69: 76.90248169 | Y69: 77.23190778 | Z69: 77.53029082 | AA69: 77.82429494 | AB69: 78.11052867 | AC69: 21.7375173 | AD69: 21.21825593 | AE69: 21.25822493 | AF69: 21.03559585 | AG69: 20.93603383 | AH69: 20.77299412 | AI69: 11.43208961 | AJ69: 11.13153168 | AK69: 10.41511587 | AL69: 9.620226878
B70: Total Generation | C70: =SUM(C58:C69) -> 307.124175 | D70: =SUM(D58:D69) -> 309.2953901 | E70: 311.6509056 | F70: 313.9473566 | G70: 316.4504109 | H70: 318.1764249 | I70: 318.5301947 | J70: 319.0548075 | K70: 319.7040801 | L70: 320.4168081 | M70: 320.7163708 | N70: 321.8520213 | O70: 323.0698775 | P70: 323.760079 | Q70: 325.2610802 | R70: 327.1264579 | S70: 328.7254451 | T70: 330.9186715 | U70: 333.5953668 | V70: 336.6541417 | W70: 340.156222 | X70: 344.1103526 | Y70: 348.3296658 | Z70: 352.8085331 | AA70: 357.4577934 | AB70: 362.2528253 | AC70: 367.4537805 | AD70: 372.669547 | AE70: 377.9065801 | AF70: 383.1021594 | AG70: 387.871774 | AH70: 392.607409 | AI70: 396.5069263 | AJ70: 400.9254159 | AK70: 405.1729163 | AL70: 409.2324323
B72: =genActCase3 -> Reference
C74: 2015 | D74: =+C74+1 -> 2016 | E74: =+D74+1 -> 2017 | F74: =+E74+1 -> 2018 | G74: =+F74+1 -> 2019 | H74: =+G74+1 -> 2020 | I74: =+H74+1 -> 2021 | J74: =+I74+1 -> 2022 | K74: =+J74+1 -> 2023 | L74: =+K74+1 -> 2024 | M74: =+L74+1 -> 2025 | N74: =+M74+1 -> 2026 | O74: =+N74+1 -> 2027 | P74: =+O74+1 -> 2028 | Q74: =+P74+1 -> 2029 | R74: =+Q74+1 -> 2030 | S74: =+R74+1 -> 2031 | T74: =+S74+1 -> 2032 | U74: =+T74+1 -> 2033 | V74: =+U74+1 -> 2034 | W74: =+V74+1 -> 2035 | X74: =+W74+1 -> 2036 | Y74: =+X74+1 -> 2037 | Z74: =+Y74+1 -> 2038 | AA74: =+Z74+1 -> 2039 | AB74: =+AA74+1 -> 2040 | AC74: =+AB74+1 -> 2041 | AD74: =+AC74+1 -> 2042 | AE74: =+AD74+1 -> 2043 | AF74: =+AE74+1 -> 2044 | AG74: =+AF74+1 -> 2045 | AH74: =+AG74+1 -> 2046 | AI74: =+AH74+1 -> 2047 | AJ74: =+AI74+1 -> 2048 | AK74: =+AJ74+1 -> 2049 | AL74: =+AK74+1 -> 2050
B75: CHP | C75: =IFERROR(INDEX(Gen_by_Category_vals,MATCH(C$40&"#"&genActCase3&"#"&$B75,Gen_by_Category_index,0))/1000000,0) -> 40.80131012 | D75: 37.02807638 | E75: 33.96945614 | F75: 31.28528012 | G75: 28.59208395 | H75: 25.88903913 | I75: 26.22141346 | J75: 26.55176585 | K75: 26.88126114 | L75: 27.20894972 | M75: =IFERROR(INDEX(Gen_by_Category_vals,MATCH(M$40&"#"&genActCase3&"#"&$B75,Gen_by_Category_index,0))/1000000,0) -> 27.5539825 | N75: 27.90019631 | O75: 28.2469584 | P75: 28.59339045 | Q75: 28.93888386 | R75: 29.2824445 | S75: 29.26011196 | T75: 29.23777942 | U75: 29.21544688 | V75: 29.19311434 | W75: =IFERROR(INDEX(Gen_by_Category_vals,MATCH(W$40&"#"&genActCase3&"#"&$B75,Gen_by_Category_index,0))/1000000,0) -> 29.1707818 | X75: 29.14844926 | Y75: 29.12611672 | Z75: 29.10378418 | AA75: 29.08145164 | AB75: 29.0591191 | AC75: 29.03678656 | AD75: 29.01445402 | AE75: 28.99212148 | AF75: 28.96978894 | AG75: =IFERROR(INDEX(Gen_by_Category_vals,MATCH(AG$40&"#"&genActCase3&"#"&$B75,Gen_by_Category_index,0))/1000000,0) -> 28.9474564 | AH75: 28.92512386 | AI75: 28.90279132 | AJ75: 28.88045878 | AK75: 28.85812625 | AL75: 28.83579371
B76: Nuclear | C76: 18.346068 | D76: 18.346068 | E76: 18.346068 | F76: 18.346068 | G76: 18.346068 | H76: 18.346068 | I76: 18.346068 | J76: 18.346068 | K76: 18.346068 | L76: 18.346068 | M76: 0 | N76: 0 | O76: 0 | P76: 0 | Q76: 0 | R76: 0 | S76: 0 | T76: 0 | U76: 0 | V76: 0 | W76: 0 | X76: 0 | Y76: 0 | Z76: 0 | AA76: 0 | AB76: 0 | AC76: 0 | AD76: 0 | AE76: 0 | AF76: 0 | AG76: 0 | AH76: 0 | AI76: 0 | AJ76: 0 | AK76: 0 | AL76: 0
B77: Coal | C77: 0.001263325982 | D77: 0.0003588411264 | E77: 0.003040826438 | F77: 0.004470931062 | G77: 0.52247268 | H77: 0.52247268 | I77: 0.52247268 | J77: 0.52247268 | K77: 0.52247268 | L77: 0.52247268 | M77: 0.52247268 | N77: 0.52247268 | O77: 0.52247268 | P77: 0.1449867601 | Q77: 0.1449867601 | R77: 0 | S77: 0 | T77: 0 | U77: 0 | V77: 0 | W77: 0 | X77: 0 | Y77: 0 | Z77: 0 | AA77: 0 | AB77: 0 | AC77: 0 | AD77: 0 | AE77: 0 | AF77: 0 | AG77: 0 | AH77: 0 | AI77: 0 | AJ77: 0 | AK77: 0 | AL77: 0
B78: Natural Gas | C78: 58.29437373 | D78: 58.52648023 | E78: 58.99176809 | F78: 61.74815632 | G78: 64.10899027 | H78: 65.95541873 | I78: 65.80453732 | J78: 65.79611053 | K78: 65.82050399 | L78: 66.22455532 | M78: 85.63530261 | N78: 86.80989968 | O78: 87.24574084 | P78: 88.21966178 | Q78: 88.40039459 | R78: 88.70331823 | S78: 90.1686279 | T78: 91.6954475 | U78: 93.42372755 | V78: 95.0473008 | W78: 96.42648709 | X78: 97.97261512 | Y78: 99.20135211 | Z78: 100.5209974 | AA78: 101.9045744 | AB78: 103.3542846 | AC78: 104.9012002 | AD78: 106.4444183 | AE78: 108.0488896 | AF78: 109.6947551 | AG78: 111.3778423 | AH78: 113.0981604 | AI78: 121.5138535 | AJ78: 123.2974321 | AK78: 125.1127225 | AL78: 126.9379037
B79: Natural Gas with CCS | C79: 0 | D79: 0 | E79: 0 | F79: 0 | G79: 0 | H79: 0 | I79: 0 | J79: 0 | K79: 0 | L79: 0 | M79: 0 | N79: 0 | O79: 0 | P79: 0 | Q79: 0 | R79: 0 | S79: 0 | T79: 0 | U79: 0 | V79: 0 | W79: 0 | X79: 0 | Y79: 0 | Z79: 0 | AA79: 0 | AB79: 0 | AC79: 0 | AD79: 0 | AE79: 0 | AF79: 0 | AG79: 0 | AH79: 0 | AI79: 0 | AJ79: 0 | AK79: 0 | AL79: 0
B80: Hydro | C80: 31.50840918 | D80: 31.53854869 | E80: 31.4955989 | F80: 31.41106091 | G80: 31.32652292 | H80: 31.24198493 | I80: 31.15744694 | J80: 31.07290896 | K80: 30.98837097 | L80: 30.87074232 | M80: 30.78620433 | N80: 30.70166634 | O80: 30.61712836 | P80: 30.53259037 | Q80: 30.44805238 | R80: 30.36351439 | S80: 30.27509176 | T80: 30.18916337 | U80: 30.10462538 | V80: 30.02008301 | W80: 29.93394902 | X80: 29.83439189 | Y80: 29.76487305 | Z80: 29.68033506 | AA80: 29.59579707 | AB80: 29.51125908 | AC80: 29.42672109 | AD80: 29.34218311 | AE80: 29.25764512 | AF80: 29.17310713 | AG80: 29.08856914 | AH80: 29.00403115 | AI80: 28.91949317 | AJ80: 28.83495518 | AK80: 28.75041719 | AL80: 28.6658792
B81: Biomass | C81: 6.660692442 | D81: 6.90950969 | E81: 6.869285008 | F81: 6.869285007 | G81: 6.869285009 | H81: 6.869285008 | I81: 7.019376217 | J81: 6.702879102 | K81: 6.702879102 | L81: 6.702879102 | M81: 6.702879102 | N81: 6.702879102 | O81: 6.702879101 | P81: 6.702879102 | Q81: 6.702879102 | R81: 6.702879102 | S81: 6.702879101 | T81: 6.702879102 | U81: 6.702879102 | V81: 6.702879102 | W81: 6.702879102 | X81: 6.702879102 | Y81: 6.702879102 | Z81: 6.702879102 | AA81: 6.702879102 | AB81: 6.702879102 | AC81: 6.66145141 | AD81: 6.702879102 | AE81: 6.702879103 | AF81: 6.702879103 | AG81: 6.702879102 | AH81: 6.702879103 | AI81: 6.702879103 | AJ81: 6.702879103 | AK81: 6.702879103 | AL81: 6.702879103
B82: Geothermal | C82: 13.31921625 | D82: 12.69881554 | E82: 12.56167581 | F82: 12.9245712 | G82: 12.38815174 | H82: 12.2793941 | I82: 12.21657164 | J82: 12.6678079 | K82: 12.91849472 | L82: 13.11904417 | M82: 13.11904417 | N82: 12.66770915 | O82: 12.56494525 | P82: 12.56494525 | Q82: 12.56494525 | R82: 12.56494525 | S82: 12.56494525 | T82: 12.56494525 | U82: 12.56494525 | V82: 12.56494525 | W82: 12.56494525 | X82: 12.56494525 | Y82: 12.56494525 | Z82: 12.56494525 | AA82: 12.56494525 | AB82: 12.56494525 | AC82: 12.56494525 | AD82: 12.56494525 | AE82: 12.56494525 | AF82: 12.56494525 | AG82: 12.56494525 | AH82: 12.56494525 | AI82: 12.56494525 | AJ82: 12.56494525 | AK82: 12.56494525 | AL82: 12.56494525
B83: Solar | C83: 18.61162486 | D83: 23.39366428 | E83: 28.03325033 | F83: 28.34063906 | G83: 29.61443077 | H83: 32.97645762 | I83: 33.1985509 | J83: 33.18737506 | K83: 33.17861676 | L83: 33.16320713 | M83: 33.14790404 | N83: 33.10228049 | O83: 33.04203725 | P83: 32.96473018 | Q83: 32.83462471 | R83: 32.62105774 | S83: 32.49384948 | T83: 32.06037473 | U83: 31.86197044 | V83: 31.55645389 | W83: 31.97396141 | X83: 32.60932515 | Y83: 32.81977852 | Z83: 33.17354538 | AA83: 33.54092468 | AB83: 33.90639812 | AC83: 34.3568983 | AD83: 34.74374246 | AE83: 35.17085833 | AF83: 35.60419969 | AG83: 36.03934541 | AH83: 36.47795327 | AI83: 36.91599112 | AJ83: 37.35828214 | AK83: 37.80068759 | AL83: 38.23775937
B84: Wind | C84: 22.5370038 | D84: 23.66203679 | E84: 24.78674203 | F84: 25.07944288 | G84: 25.61365016 | H84: 25.61379876 | I84: 25.6128614 | J84: 25.52648609 | K84: 25.43813342 | L84: 25.13295785 | M84: 25.12826596 | N84: 25.1131365 | O84: 24.92286908 | P84: 24.88164051 | Q84: 24.83958243 | R84: 24.77561204 | S84: 24.7345754 | T84: 24.69959899 | U84: 24.39847405 | V84: 24.35983028 | W84: 24.33416265 | X84: 24.14645997 | Y84: 24.28245755 | Z84: 24.25364176 | AA84: 24.22357845 | AB84: 24.19170804 | AC84: 24.15965 | AD84: 24.12853977 | AE84: 24.09560877 | AF84: 24.06188596 | AG84: 24.0272752 | AH84: 23.99189172 | AI84: 23.95582219 | AJ84: 23.91955482 | AK84: 23.88305562 | AL84: 23.84631107
B85: Rooftop PV | C85: 7.308514533 | D85: 8.930848534 | E85: 9.998384365 | F85: 11.04589138 | G85: 12.12143874 | H85: 13.24705813 | I85: 14.61502618 | J85: 16.20531408 | K85: 18.00790742 | L85: 19.98274856 | M85: 22.15186921 | N85: 24.47120596 | O85: 27.03289138 | P85: 29.8649658 | Q85: 32.99146379 | R85: 36.44643435 | S85: 37.52799035 | T85: 38.61154924 | U85: 39.69310524 | V85: 40.77466124 | W85: 41.85621724 | X85: 42.93777324 | Y85: 44.01932924 | Z85: 45.10088524 | AA85: 46.18444412 | AB85: 47.26600013 | AC85: 48.34755613 | AD85: 49.42911213 | AE85: 50.51066813 | AF85: 51.59222413 | AG85: 52.67378013 | AH85: 53.75533613 | AI85: 54.83889501 | AJ85: 55.92045101 | AK85: 57.00200702 | AL85: 58.08356302
B86: Imports | C86: 90.0322596 | D86: 88.9249843 | E86: 87.61682013 | F86: 88.24153266 | G86: 88.52224622 | H86: 87.87974026 | I86: 87.32731948 | J86: 86.77851925 | K86: 86.15092986 | L86: 85.58512063 | M86: 85.06010596 | N86: 84.54523003 | O86: 83.74499834 | P86: 81.88519142 | Q86: 80.68098163 | R86: 79.37446278 | S86: 78.99402299 | T86: 79.08439833 | U86: 79.13641754 | V86: 79.1748594 | W86: 78.86695167 | X86: 78.56857528 | Y86: 78.34778721 | Z86: 78.08307604 | AA86: 77.82012585 | AB86: 77.57240012 | AC86: 77.33343467 | AD86: 77.12929271 | AE86: 76.92526573 | AF86: 76.73004007 | AG86: 76.55931751 | AH86: 76.37693248 | AI86: 68.58866684 | AJ86: 68.38950003 | AK86: 68.19331094 | AL86: 68.00778612
B87: Total Generation | C87: =SUM(C75:C86) -> 307.4207358 | D87: =SUM(D75:D86) -> 309.9593913 | E87: 312.6720896 | F87: 315.2963985 | G87: 318.0253405 | H87: 320.8207173 | I87: 322.0416442 | J87: 323.3577075 | K87: 324.9556381 | L87: 326.8587455 | M87: 329.8080306 | N87: 332.5366763 | O87: 334.6429207 | P87: 336.3549816 | Q87: 338.5467945 | R87: 340.8346684 | S87: 342.7220942 | T87: 344.8461359 | U87: 347.1015914 | V87: 349.3941273 | W87: 351.8303352 | X87: 354.4854142 | Y87: 356.8295187 | Z87: 359.1840894 | AA87: 361.6187205 | AB87: 364.1289935 | AC87: 366.7886436 | AD87: 369.4995668 | AE87: 372.2688815 | AF87: 375.0938254 | AG87: 377.9814105 | AH87: 380.8972534 | AI87: 382.9033375 | AJ87: 385.8684585 | AK87: 388.8681514 | AL87: 391.8828205

Sheet Subsector Elect Demand by Year
A2: Active Case | C2: CEC 2050 | E2: <----- | F2: Update using these
C3: Electricity Demands in GWh
A6: Index | B6: Sector | C6: Subsector | D6: Subsector Plotting Category | E6: 2015 | F6: =+E6+1 -> 2016 | G6: =+F6+1 -> 2017 | H6: 2018 | I6: 2019 | J6: 2020 | K6: 2021 | L6: 2022 | M6: 2023 | N6: 2024 | O6: 2025 | P6: 2026 | Q6: 2027 | R6: 2028 | S6: 2029 | T6: 2030 | U6: =+T6+1 -> 2031 | V6: =+U6+1 -> 2032 | W6: =+V6+1 -> 2033 | X6: =+W6+1 -> 2034 | Y6: =+X6+1 -> 2035 | Z6: =+Y6+1 -> 2036 | AA6: =+Z6+1 -> 2037 | AB6: =+AA6+1 -> 2038 | AC6: =+AB6+1 -> 2039 | AD6: =+AC6+1 -> 2040 | AE6: =+AD6+1 -> 2041 | AF6: =+AE6+1 -> 2042 | AG6: =+AF6+1 -> 2043 | AH6: =+AG6+1 -> 2044 | AI6: =+AH6+1 -> 2045 | AJ6: =+AI6+1 -> 2046 | AK6: =+AJ6+1 -> 2047 | AL6: =+AK6+1 -> 2048 | AM6: =+AL6+1 -> 2049 | AN6: 2050
A7: 1 | B7: =IF(A7="","",INDEX(Lists!$R$2:$R$62,MATCH($A7,Lists!$S$2:$S$62,0))) -> Commercial | C7: =IF($A7="","",INDEX(Lists!$Q$2:$Q$62,MATCH($A7,Lists!$S$2:$S$62,0))) -> Commercial Air Conditioning | D7: Bldgs | E7: =IF($C7="","",SUMPRODUCT(($C7=Subsector_Energy_De1_index_3)*(Subsector_Energy_De1_index_2='Subsector Elect Demand by Year'!$C$2)*("Electricity--GWh"=Subsector_Energy_De1_index_4)*(E$6=Subsector_Energy_De1_index_1)*Subsector_Energy_De1_vals)) -> 23449.35133 | F7: =IF($C7="","",SUMPRODUCT(($C7=Subsector_Energy_De1_index_3)*(Subsector_Energy_De1_index_2='Subsector Elect Demand by Year'!$C$2)*("Electricity--GWh"=Subsector_Energy_De1_index_4)*(F$6=Subsector_Energy_De1_index_1)*Subsector_Energy_De1_vals)) -> 23675.86915 | G7: =IF($C7="","",SUMPRODUCT(($C7=Subsector_Energy_De1_index_3)*(Subsector_Energy_De1_index_2='Subsector Elect Demand by Year'!$C$2)*("Electricity--GWh"=Subsector_Energy_De1_index_4)*(G$6=Subsector_Energy_De1_index_1)*Subsector_Energy_De1_vals)) -> 23905.12709 | H7: =IF($C7="","",SUMPRODUCT(($C7=Subsector_Energy_De1_index_3)*(Subsector_Energy_De1_index_2='Subsector Elect Demand by Year'!$C$2)*("Electricity--GWh"=Subsector_Energy_De1_index_4)*(H$6=Subsector_Energy_De1_index_1)*Subsector_Energy_De1_vals)) -> 24103.78507 | I7: =IF($C7="","",SUMPRODUCT(($C7=Subsector_Energy_De1_index_3)*(Subsector_Energy_De1_index_2='Subsector Elect Demand by Year'!$C$2)*("Electricity--GWh"=Subsector_Energy_De1_index_4)*(I$6=Subsector_Energy_De1_index_1)*Subsector_Energy_De1_vals)) -> 24267.62521 | J7: =IF($C7="","",SUMPRODUCT(($C7=Subsector_Energy_De1_index_3)*(Subsector_Energy_De1_index_2='Subsector Elect Demand by Year'!$C$2)*("Electricity--GWh"=Subsector_Energy_De1_index_4)*(J$6=Subsector_Energy_De1_index_1)*Subsector_Energy_De1_vals)) -> 24396.83693 | K7: =IF($C7="","",SUMPRODUCT(($C7=Subsector_Energy_De1_index_3)*(Subsector_Energy_De1_index_2='Subsector Elect Demand by Year'!$C$2)*("Electricity--GWh"=Subsector_Energy_De1_index_4)*(K$6=Subsector_Energy_De1_index_1)*Subsector_Energy_De1_vals)) -> 24516.62461 | L7: =IF($C7="","",SUMPRODUCT(($C7=Subsector_Energy_De1_index_3)*(Subsector_Energy_De1_index_2='Subsector Elect Demand by Year'!$C$2)*("Electricity--GWh"=Subsector_Energy_De1_index_4)*(L$6=Subsector_Energy_De1_index_1)*Subsector_Energy_De1_vals)) -> 24634.06986 | M7: =IF($C7="","",SUMPRODUCT(($C7=Subsector_Energy_De1_index_3)*(Subsector_Energy_De1_index_2='Subsector Elect Demand by Year'!$C$2)*("Electricity--GWh"=Subsector_Energy_De1_index_4)*(M$6=Subsector_Energy_De1_index_1)*Subsector_Energy_De1_vals)) -> 24759.13348 | N7: =IF($C7="","",SUMPRODUCT(($C7=Subsector_Energy_De1_index_3)*(Subsector_Energy_De1_index_2='Subsector Elect Demand by Year'!$C$2)*("Electricity--GWh"=Subsector_Energy_De1_index_4)*(N$6=Subsector_Energy_De1_index_1)*Subsector_Energy_De1_vals)) -> 24893.82836 | O7: =IF($C7="","",SUMPRODUCT(($C7=Subsector_Energy_De1_index_3)*(Subsector_Energy_De1_index_2='Subsector Elect Demand by Year'!$C$2)*("Electricity--GWh"=Subsector_Energy_De1_index_4)*(O$6=Subsector_Energy_De1_index_1)*Subsector_Energy_De1_vals)) -> 25172.36753 | P7: =IF($C7="","",SUMPRODUCT(($C7=Subsector_Energy_De1_index_3)*(Subsector_Energy_De1_index_2='Subsector Elect Demand by Year'!$C$2)*("Electricity--GWh"=Subsector_Energy_De1_index_4)*(P$6=Subsector_Energy_De1_index_1)*Subsector_Energy_De1_vals)) -> 25464.17136 | Q7: =IF($C7="","",SUMPRODUCT(($C7=Subsector_Energy_De1_index_3)*(Subsector_Energy_De1_index_2='Subsector Elect Demand by Year'!$C$2)*("Electricity--GWh"=Subsector_Energy_De1_index_4)*(Q$6=Subsector_Energy_De1_index_1)*Subsector_Energy_De1_vals)) -> 25767.77282 | R7: =IF($C7="","",SUMPRODUCT(($C7=Subsector_Energy_De1_index_3)*(Subsector_Energy_De1_index_2='Subsector Elect Demand by Year'!$C$2)*("Electricity--GWh"=Subsector_Energy_De1_index_4)*(R$6=Subsector_Energy_De1_index_1)*Subsector_Energy_De1_vals)) -> 26081.25397 | S7: =IF($C7="","",SUMPRODUCT(($C7=Subsector_Energy_De1_index_3)*(Subsector_Energy_De1_index_2='Subsector Elect Demand by Year'!$C$2)*("Electricity--GWh"=Subsector_Energy_De1_index_4)*(S$6=Subsector_Energy_De1_index_1)*Subsector_Energy_De1_vals)) -> 26402.67323 | T7: =IF($C7="","",SUMPRODUCT(($C7=Subsector_Energy_De1_index_3)*(Subsector_Energy_De1_index_2='Subsector Elect Demand by Year'!$C$2)*("Electricity--GWh"=Subsector_Energy_De1_index_4)*(T$6=Subsector_Energy_De1_index_1)*Subsector_Energy_De1_vals)) -> 26731.24692 | U7: =IF($C7="","",SUMPRODUCT(($C7=Subsector_Energy_De1_index_3)*(Subsector_Energy_De1_index_2='Subsector Elect Demand by Year'!$C$2)*("Electricity--GWh"=Subsector_Energy_De1_index_4)*(U$6=Subsector_Energy_De1_index_1)*Subsector_Energy_De1_vals)) -> 27066.0975 | V7: =IF($C7="","",SUMPRODUCT(($C7=Subsector_Energy_De1_index_3)*(Subsector_Energy_De1_index_2='Subsector Elect Demand by Year'!$C$2)*("Electricity--GWh"=Subsector_Energy_De1_index_4)*(V$6=Subsector_Energy_De1_index_1)*Subsector_Energy_De1_vals)) -> 27407.06725 | W7: =IF($C7="","",SUMPRODUCT(($C7=Subsector_Energy_De1_index_3)*(Subsector_Energy_De1_index_2='Subsector Elect Demand by Year'!$C$2)*("Electricity--GWh"=Subsector_Energy_De1_index_4)*(W$6=Subsector_Energy_De1_index_1)*Subsector_Energy_De1_vals)) -> 27754.61976 | X7: =IF($C7="","",SUMPRODUCT(($C7=Subsector_Energy_De1_index_3)*(Subsector_Energy_De1_index_2='Subsector Elect Demand by Year'!$C$2)*("Electricity--GWh"=Subsector_Energy_De1_index_4)*(X$6=Subsector_Energy_De1_index_1)*Subsector_Energy_De1_vals)) -> 28109.57098 | Y7: =IF($C7="","",SUMPRODUCT(($C7=Subsector_Energy_De1_index_3)*(Subsector_Energy_De1_index_2='Subsector Elect Demand by Year'!$C$2)*("Electricity--GWh"=Subsector_Energy_De1_index_4)*(Y$6=Subsector_Energy_De1_index_1)*Subsector_Energy_De1_vals)) -> 28472.9115 | Z7: =IF($C7="","",SUMPRODUCT(($C7=Subsector_Energy_De1_index_3)*(Subsector_Energy_De1_index_2='Subsector Elect Demand by Year'!$C$2)*("Electricity--GWh"=Subsector_Energy_De1_index_4)*(Z$6=Subsector_Energy_De1_index_1)*Subsector_Energy_De1_vals)) -> 28845.55275 | AA7: =IF($C7="","",SUMPRODUCT(($C7=Subsector_Energy_De1_index_3)*(Subsector_Energy_De1_index_2='Subsector Elect Demand by Year'!$C$2)*("Electricity--GWh"=Subsector_Energy_De1_index_4)*(AA$6=Subsector_Energy_De1_index_1)*Subsector_Energy_De1_vals)) -> 29228.35131 | AB7: =IF($C7="","",SUMPRODUCT(($C7=Subsector_Energy_De1_index_3)*(Subsector_Energy_De1_index_2='Subsector Elect Demand by Year'!$C$2)*("Electricity--GWh"=Subsector_Energy_De1_index_4)*(AB$6=Subsector_Energy_De1_index_1)*Subsector_Energy_De1_vals)) -> 29622.03319 | AC7: =IF($C7="","",SUMPRODUCT(($C7=Subsector_Energy_De1_index_3)*(Subsector_Energy_De1_index_2='Subsector Elect Demand by Year'!$C$2)*("Electricity--GWh"=Subsector_Energy_De1_index_4)*(AC$6=Subsector_Energy_De1_index_1)*Subsector_Energy_De1_vals)) -> 30027.21768 | AD7: =IF($C7="","",SUMPRODUCT(($C7=Subsector_Energy_De1_index_3)*(Subsector_Energy_De1_index_2='Subsector Elect Demand by Year'!$C$2)*("Electricity--GWh"=Subsector_Energy_De1_index_4)*(AD$6=Subsector_Energy_De1_index_1)*Subsector_Energy_De1_vals)) -> 30444.41056 | AE7: =IF($C7="","",SUMPRODUCT(($C7=Subsector_Energy_De1_index_3)*(Subsector_Energy_De1_index_2='Subsector Elect Demand by Year'!$C$2)*("Electricity--GWh"=Subsector_Energy_De1_index_4)*(AE$6=Subsector_Energy_De1_index_1)*Subsector_Energy_De1_vals)) -> 30874.01308 | AF7: =IF($C7="","",SUMPRODUCT(($C7=Subsector_Energy_De1_index_3)*(Subsector_Energy_De1_index_2='Subsector Elect Demand by Year'!$C$2)*("Electricity--GWh"=Subsector_Energy_De1_index_4)*(AF$6=Subsector_Energy_De1_index_1)*Subsector_Energy_De1_vals)) -> 31316.31253 | AG7: =IF($C7="","",SUMPRODUCT(($C7=Subsector_Energy_De1_index_3)*(Subsector_Energy_De1_index_2='Subsector Elect Demand by Year'!$C$2)*("Electricity--GWh"=Subsector_Energy_De1_index_4)*(AG$6=Subsector_Energy_De1_index_1)*Subsector_Energy_De1_vals)) -> 31771.50707 | AH7: =IF($C7="","",SUMPRODUCT(($C7=Subsector_Energy_De1_index_3)*(Subsector_Energy_De1_index_2='Subsector Elect Demand by Year'!$C$2)*("Electricity--GWh"=Subsector_Energy_De1_index_4)*(AH$6=Subsector_Energy_De1_index_1)*Subsector_Energy_De1_vals)) -> 32239.67306 | AI7: =IF($C7="","",SUMPRODUCT(($C7=Subsector_Energy_De1_index_3)*(Subsector_Energy_De1_index_2='Subsector Elect Demand by Year'!$C$2)*("Electricity--GWh"=Subsector_Energy_De1_index_4)*(AI$6=Subsector_Energy_De1_index_1)*Subsector_Energy_De1_vals)) -> 32720.77245 | AJ7: =IF($C7="","",SUMPRODUCT(($C7=Subsector_Energy_De1_index_3)*(Subsector_Energy_De1_index_2='Subsector Elect Demand by Year'!$C$2)*("Electricity--GWh"=Subsector_Energy_De1_index_4)*(AJ$6=Subsector_Energy_De1_index_1)*Subsector_Energy_De1_vals)) -> 33214.62445 | AK7: =IF($C7="","",SUMPRODUCT(($C7=Subsector_Energy_De1_index_3)*(Subsector_Energy_De1_index_2='Subsector Elect Demand by Year'!$C$2)*("Electricity--GWh"=Subsector_Energy_De1_index_4)*(AK$6=Subsector_Energy_De1_index_1)*Subsector_Energy_De1_vals)) -> 33720.92256 | AL7: =IF($C7="","",SUMPRODUCT(($C7=Subsector_Energy_De1_index_3)*(Subsector_Energy_De1_index_2='Subsector Elect Demand by Year'!$C$2)*("Electricity--GWh"=Subsector_Energy_De1_index_4)*(AL$6=Subsector_Energy_De1_index_1)*Subsector_Energy_De1_vals)) -> 34239.20081 | AM7: =IF($C7="","",SUMPRODUCT(($C7=Subsector_Energy_De1_index_3)*(Subsector_Energy_De1_index_2='Subsector Elect Demand by Year'!$C$2)*("Electricity--GWh"=Subsector_Energy_De1_index_4)*(AM$6=Subsector_Energy_De1_index_1)*Subsector_Energy_De1_vals)) -> 34768.88971 | AN7: =IF($C7="","",SUMPRODUCT(($C7=Subsector_Energy_De1_index_3)*(Subsector_Energy_De1_index_2='Subsector Elect Demand by Year'!$C$2)*("Electricity--GWh"=Subsector_Energy_De1_index_4)*(AN$6=Subsector_Energy_De1_index_1)*Subsector_Energy_De1_vals)) -> 35309.31768
A8: =IF(A7>=MAX(Lists!$S$2:$S$61),"",A7+1) -> 2 | B8: =IF(A8="","",INDEX(Lists!$R$2:$R$62,MATCH($A8,Lists!$S$2:$S$62,0))) -> Commercial | C8: =IF($A8="","",INDEX(Lists!$Q$2:$Q$62,MATCH($A8,Lists!$S$2:$S$62,0))) -> Commercial Cooking | D8: Bldgs Misc. Electrification | E8: =IF($C8="","",SUMPRODUCT(($C8=Subsector_Energy_De1_index_3)*(Subsector_Energy_De1_index_2='Subsector Elect Demand by Year'!$C$2)*("Electricity--GWh"=Subsector_Energy_De1_index_4)*(E$6=Subsector_Energy_De1_index_1)*Subsector_Energy_De1_vals)) -> 1930.783646 | F8: =IF($C8="","",SUMPRODUCT(($C8=Subsector_Energy_De1_index_3)*(Subsector_Energy_De1_index_2='Subsector Elect Demand by Year'!$C$2)*("Electricity--GWh"=Subsector_Energy_De1_index_4)*(F$6=Subsector_Energy_De1_index_1)*Subsector_Energy_De1_vals)) -> 1962.144597 | G8: =IF($C8="","",SUMPRODUCT(($C8=Subsector_Energy_De1_index_3)*(Subsector_Energy_De1_index_2='Subsector Elect Demand by Year'!$C$2)*("Electricity--GWh"=Subsector_Energy_De1_index_4)*(G$6=Subsector_Energy_De1_index_1)*Subsector_Energy_De1_vals)) -> 1994.079592 | H8: =IF($C8="","",SUMPRODUCT(($C8=Subsector_Energy_De1_index_3)*(Subsector_Energy_De1_index_2='Subsector Elect Demand by Year'!$C$2)*("Electricity--GWh"=Subsector_Energy_De1_index_4)*(H$6=Subsector_Energy_De1_index_1)*Subsector_Energy_De1_vals)) -> 2022.631318 | I8: =IF($C8="","",SUMPRODUCT(($C8=Subsector_Energy_De1_index_3)*(Subsector_Energy_De1_index_2='Subsector Elect Demand by Year'!$C$2)*("Electricity--GWh"=Subsector_Energy_De1_index_4)*(I$6=Subsector_Energy_De1_index_1)*Subsector_Energy_De1_vals)) -> 2046.188166 | J8: =IF($C8="","",SUMPRODUCT(($C8=Subsector_Energy_De1_index_3)*(Subsector_Energy_De1_index_2='Subsector Elect Demand by Year'!$C$2)*("Electricity--GWh"=Subsector_Energy_De1_index_4)*(J$6=Subsector_Energy_De1_index_1)*Subsector_Energy_De1_vals)) -> 2062.651826 | K8: =IF($C8="","",SUMPRODUCT(($C8=Subsector_Energy_De1_index_3)*(Subsector_Energy_De1_index_2='Subsector Elect Demand by Year'!$C$2)*("Electricity--GWh"=Subsector_Energy_De1_index_4)*(K$6=Subsector_Energy_De1_index_1)*Subsector_Energy_De1_vals)) -> 2072.523934 | L8: =IF($C8="","",SUMPRODUCT(($C8=Subsector_Energy_De1_index_3)*(Subsector_Energy_De1_index_2='Subsector Elect Demand by Year'!$C$2)*("Electricity--GWh"=Subsector_Energy_De1_index_4)*(L$6=Subsector_Energy_De1_index_1)*Subsector_Energy_De1_vals)) -> 2077.387641 | M8: =IF($C8="","",SUMPRODUCT(($C8=Subsector_Energy_De1_index_3)*(Subsector_Energy_De1_index_2='Subsector Elect Demand by Year'!$C$2)*("Electricity--GWh"=Subsector_Energy_De1_index_4)*(M$6=Subsector_Energy_De1_index_1)*Subsector_Energy_De1_vals)) -> 2079.837542 | N8: =IF($C8="","",SUMPRODUCT(($C8=Subsector_Energy_De1_index_3)*(Subsector_Energy_De1_index_2='Subsector Elect Demand by Year'!$C$2)*("Electricity--GWh"=Subsector_Energy_De1_index_4)*(N$6=Subsector_Energy_De1_index_1)*Subsector_Energy_De1_vals)) -> 2081.292839 | O8: =IF($C8="","",SUMPRODUCT(($C8=Subsector_Energy_De1_index_3)*(Subsector_Energy_De1_index_2='Subsector Elect Demand by Year'!$C$2)*("Electricity--GWh"=Subsector_Energy_De1_index_4)*(O$6=Subsector_Energy_De1_index_1)*Subsector_Energy_De1_vals)) -> 2082.710763 | P8: =IF($C8="","",SUMPRODUCT(($C8=Subsector_Energy_De1_index_3)*(Subsector_Energy_De1_index_2='Subsector Elect Demand by Year'!$C$2)*("Electricity--GWh"=Subsector_Energy_De1_index_4)*(P$6=Subsector_Energy_De1_index_1)*Subsector_Energy_De1_vals)) -> 2084.418976 | Q8: =IF($C8="","",SUMPRODUCT(($C8=Subsector_Energy_De1_index_3)*(Subsector_Energy_De1_index_2='Subsector Elect Demand by Year'!$C$2)*("Electricity--GWh"=Subsector_Energy_De1_index_4)*(Q$6=Subsector_Energy_De1_index_1)*Subsector_Energy_De1_vals)) -> 2086.807873 | R8: =IF($C8="","",SUMPRODUCT(($C8=Subsector_Energy_De1_index_3)*(Subsector_Energy_De1_index_2='Subsector Elect Demand by Year'!$C$2)*("Electricity--GWh"=Subsector_Energy_De1_index_4)*(R$6=Subsector_Energy_De1_index_1)*Subsector_Energy_De1_vals)) -> 2090.308472 | S8: =IF($C8="","",SUMPRODUCT(($C8=Subsector_Energy_De1_index_3)*(Subsector_Energy_De1_index_2='Subsector Elect Demand by Year'!$C$2)*("Electricity--GWh"=Subsector_Energy_De1_index_4)*(S$6=Subsector_Energy_De1_index_1)*Subsector_Energy_De1_vals)) -> 2095.417229 | T8: =IF($C8="","",SUMPRODUCT(($C8=Subsector_Energy_De1_index_3)*(Subsector_Energy_De1_index_2='Subsector Elect Demand by Year'!$C$2)*("Electricity--GWh"=Subsector_Energy_De1_index_4)*(T$6=Subsector_Energy_De1_index_1)*Subsector_Energy_De1_vals)) -> 2102.769658 | U8: =IF($C8="","",SUMPRODUCT(($C8=Subsector_Energy_De1_index_3)*(Subsector_Energy_De1_index_2='Subsector Elect Demand by Year'!$C$2)*("Electricity--GWh"=Subsector_Energy_De1_index_4)*(U$6=Subsector_Energy_De1_index_1)*Subsector_Energy_De1_vals)) -> 2113.464448 | V8: =IF($C8="","",SUMPRODUCT(($C8=Subsector_Energy_De1_index_3)*(Subsector_Energy_De1_index_2='Subsector Elect Demand by Year'!$C$2)*("Electricity--GWh"=Subsector_Energy_De1_index_4)*(V$6=Subsector_Energy_De1_index_1)*Subsector_Energy_De1_vals)) -> 2130.224151 | W8: =IF($C8="","",SUMPRODUCT(($C8=Subsector_Energy_De1_index_3)*(Subsector_Energy_De1_index_2='Subsector Elect Demand by Year'!$C$2)*("Electricity--GWh"=Subsector_Energy_De1_index_4)*(W$6=Subsector_Energy_De1_index_1)*Subsector_Energy_De1_vals)) -> 2160.512943 | X8: =IF($C8="","",SUMPRODUCT(($C8=Subsector_Energy_De1_index_3)*(Subsector_Energy_De1_index_2='Subsector Elect Demand by Year'!$C$2)*("Electricity--GWh"=Subsector_Energy_De1_index_4)*(X$6=Subsector_Energy_De1_index_1)*Subsector_Energy_De1_vals)) -> 2222.521236 | Y8: =IF($C8="","",SUMPRODUCT(($C8=Subsector_Energy_De1_index_3)*(Subsector_Energy_De1_index_2='Subsector Elect Demand by Year'!$C$2)*("Electricity--GWh"=Subsector_Energy_De1_index_4)*(Y$6=Subsector_Energy_De1_index_1)*Subsector_Energy_De1_vals)) -> 2348.485156 | Z8: =IF($C8="","",SUMPRODUCT(($C8=Subsector_Energy_De1_index_3)*(Subsector_Energy_De1_index_2='Subsector Elect Demand by Year'!$C$2)*("Electricity--GWh"=Subsector_Energy_De1_index_4)*(Z$6=Subsector_Energy_De1_index_1)*Subsector_Energy_De1_vals)) -> 2568.835545 | AA8: =IF($C8="","",SUMPRODUCT(($C8=Subsector_Energy_De1_index_3)*(Subsector_Energy_De1_index_2='Subsector Elect Demand by Year'!$C$2)*("Electricity--GWh"=Subsector_Energy_De1_index_4)*(AA$6=Subsector_Energy_De1_index_1)*Subsector_Energy_De1_vals)) -> 2887.449672 | AB8: =IF($C8="","",SUMPRODUCT(($C8=Subsector_Energy_De1_index_3)*(Subsector_Energy_De1_index_2='Subsector Elect Demand by Year'!$C$2)*("Electricity--GWh"=Subsector_Energy_De1_index_4)*(AB$6=Subsector_Energy_De1_index_1)*Subsector_Energy_De1_vals)) -> 3288.528752 | AC8: =IF($C8="","",SUMPRODUCT(($C8=Subsector_Energy_De1_index_3)*(Subsector_Energy_De1_index_2='Subsector Elect Demand by Year'!$C$2)*("Electricity--GWh"=Subsector_Energy_De1_index_4)*(AC$6=Subsector_Energy_De1_index_1)*Subsector_Energy_De1_vals)) -> 3756.989003 | AD8: =IF($C8="","",SUMPRODUCT(($C8=Subsector_Energy_De1_index_3)*(Subsector_Energy_De1_index_2='Subsector Elect Demand by Year'!$C$2)*("Electricity--GWh"=Subsector_Energy_De1_index_4)*(AD$6=Subsector_Energy_De1_index_1)*Subsector_Energy_De1_vals)) -> 4284.228988 | AE8: =IF($C8="","",SUMPRODUCT(($C8=Subsector_Energy_De1_index_3)*(Subsector_Energy_De1_index_2='Subsector Elect Demand by Year'!$C$2)*("Electricity--GWh"=Subsector_Energy_De1_index_4)*(AE$6=Subsector_Energy_De1_index_1)*Subsector_Energy_De1_vals)) -> 4865.262338 | AF8: =IF($C8="","",SUMPRODUCT(($C8=Subsector_Energy_De1_index_3)*(Subsector_Energy_De1_index_2='Subsector Elect Demand by Year'!$C$2)*("Electricity--GWh"=Subsector_Energy_De1_index_4)*(AF$6=Subsector_Energy_De1_index_1)*Subsector_Energy_De1_vals)) -> 5494.810618 | AG8: =IF($C8="","",SUMPRODUCT(($C8=Subsector_Energy_De1_index_3)*(Subsector_Energy_De1_index_2='Subsector Elect Demand by Year'!$C$2)*("Electricity--GWh"=Subsector_Energy_De1_index_4)*(AG$6=Subsector_Energy_De1_index_1)*Subsector_Energy_De1_vals)) -> 6164.180441 | AH8: =IF($C8="","",SUMPRODUCT(($C8=Subsector_Energy_De1_index_3)*(Subsector_Energy_De1_index_2='Subsector Elect Demand by Year'!$C$2)*("Electricity--GWh"=Subsector_Energy_De1_index_4)*(AH$6=Subsector_Energy_De1_index_1)*Subsector_Energy_De1_vals)) -> 6859.270464 | AI8: =IF($C8="","",SUMPRODUCT(($C8=Subsector_Energy_De1_index_3)*(Subsector_Energy_De1_index_2='Subsector Elect Demand by Year'!$C$2)*("Electricity--GWh"=Subsector_Energy_De1_index_4)*(AI$6=Subsector_Energy_De1_index_1)*Subsector_Energy_De1_vals)) -> 7560.10117 | AJ8: =IF($C8="","",SUMPRODUCT(($C8=Subsector_Energy_De1_index_3)*(Subsector_Energy_De1_index_2='Subsector Elect Demand by Year'!$C$2)*("Electricity--GWh"=Subsector_Energy_De1_index_4)*(AJ$6=Subsector_Energy_De1_index_1)*Subsector_Energy_De1_vals)) -> 8242.440294 | AK8: =IF($C8="","",SUMPRODUCT(($C8=Subsector_Energy_De1_index_3)*(Subsector_Energy_De1_index_2='Subsector Elect Demand by Year'!$C$2)*("Electricity--GWh"=Subsector_Energy_De1_index_4)*(AK$6=Subsector_Energy_De1_index_1)*Subsector_Energy_De1_vals)) -> 8881.502685 | AL8: =IF($C8="","",SUMPRODUCT(($C8=Subsector_Energy_De1_index_3)*(Subsector_Energy_De1_index_2='Subsector Elect Demand by Year'!$C$2)*("Electricity--GWh"=Subsector_Energy_De1_index_4)*(AL$6=Subsector_Energy_De1_index_1)*Subsector_Energy_De1_vals)) -> 9456.553416 | AM8: =IF($C8="","",SUMPRODUCT(($C8=Subsector_Energy_De1_index_3)*(Subsector_Energy_De1_index_2='Subsector Elect Demand by Year'!$C$2)*("Electricity--GWh"=Subsector_Energy_De1_index_4)*(AM$6=Subsector_Energy_De1_index_1)*Subsector_Energy_De1_vals)) -> 9954.713931 | AN8: =IF($C8="","",SUMPRODUCT(($C8=Subsector_Energy_De1_index_3)*(Subsector_Energy_De1_index_2='Subsector Elect Demand by Year'!$C$2)*("Electricity--GWh"=Subsector_Energy_De1_index_4)*(AN$6=Subsector_Energy_De1_index_1)*Subsector_Energy_De1_vals)) -> 10372.59795
A9: =IF(A8>=MAX(Lists!$S$2:$S$61),"",A8+1) -> 3 | B9: =IF(A9="","",INDEX(Lists!$R$2:$R$62,MATCH($A9,Lists!$S$2:$S$62,0))) -> Commercial | C9: =IF($A9="","",INDEX(Lists!$Q$2:$Q$62,MATCH($A9,Lists!$S$2:$S$62,0))) -> Commercial Lighting | D9: Bldgs | E9: =IF($C9="","",SUMPRODUCT(($C9=Subsector_Energy_De1_index_3)*(Subsector_Energy_De1_index_2='Subsector Elect Demand by Year'!$C$2)*("Electricity--GWh"=Subsector_Energy_De1_index_4)*(E$6=Subsector_Energy_De1_index_1)*Subsector_Energy_De1_vals)) -> 37038.30924 | F9: =IF($C9="","",SUMPRODUCT(($C9=Subsector_Energy_De1_index_3)*(Subsector_Energy_De1_index_2='Subsector Elect Demand by Year'!$C$2)*("Electricity--GWh"=Subsector_Energy_De1_index_4)*(F$6=Subsector_Energy_De1_index_1)*Subsector_Energy_De1_vals)) -> 36550.66749 | G9: =IF($C9="","",SUMPRODUCT(($C9=Subsector_Energy_De1_index_3)*(Subsector_Energy_De1_index_2='Subsector Elect Demand by Year'!$C$2)*("Electricity--GWh"=Subsector_Energy_De1_index_4)*(G$6=Subsector_Energy_De1_index_1)*Subsector_Energy_De1_vals)) -> 36165.60152 | H9: =IF($C9="","",SUMPRODUCT(($C9=Subsector_Energy_De1_index_3)*(Subsector_Energy_De1_index_2='Subsector Elect Demand by Year'!$C$2)*("Electricity--GWh"=Subsector_Energy_De1_index_4)*(H$6=Subsector_Energy_De1_index_1)*Subsector_Energy_De1_vals)) -> 35786.7025 | I9: =IF($C9="","",SUMPRODUCT(($C9=Subsector_Energy_De1_index_3)*(Subsector_Energy_De1_index_2='Subsector Elect Demand by Year'!$C$2)*("Electricity--GWh"=Subsector_Energy_De1_index_4)*(I$6=Subsector_Energy_De1_index_1)*Subsector_Energy_De1_vals)) -> 35354.04604 | J9: =IF($C9="","",SUMPRODUCT(($C9=Subsector_Energy_De1_index_3)*(Subsector_Energy_De1_index_2='Subsector Elect Demand by Year'!$C$2)*("Electricity--GWh"=Subsector_Energy_De1_index_4)*(J$6=Subsector_Energy_De1_index_1)*Subsector_Energy_De1_vals)) -> 34792.81189 | K9: =IF($C9="","",SUMPRODUCT(($C9=Subsector_Energy_De1_index_3)*(Subsector_Energy_De1_index_2='Subsector Elect Demand by Year'!$C$2)*("Electricity--GWh"=Subsector_Energy_De1_index_4)*(K$6=Subsector_Energy_De1_index_1)*Subsector_Energy_De1_vals)) -> 34065.14744 | L9: =IF($C9="","",SUMPRODUCT(($C9=Subsector_Energy_De1_index_3)*(Subsector_Energy_De1_index_2='Subsector Elect Demand by Year'!$C$2)*("Electricity--GWh"=Subsector_Energy_De1_index_4)*(L$6=Subsector_Energy_De1_index_1)*Subsector_Energy_De1_vals)) -> 33061.94266 | M9: =IF($C9="","",SUMPRODUCT(($C9=Subsector_Energy_De1_index_3)*(Subsector_Energy_De1_index_2='Subsector Elect Demand by Year'!$C$2)*("Electricity--GWh"=Subsector_Energy_De1_index_4)*(M$6=Subsector_Energy_De1_index_1)*Subsector_Energy_De1_vals)) -> 31686.21295 | N9: =IF($C9="","",SUMPRODUCT(($C9=Subsector_Energy_De1_index_3)*(Subsector_Energy_De1_index_2='Subsector Elect Demand by Year'!$C$2)*("Electricity--GWh"=Subsector_Energy_De1_index_4)*(N$6=Subsector_Energy_De1_index_1)*Subsector_Energy_De1_vals)) -> 29900.15305 | O9: =IF($C9="","",SUMPRODUCT(($C9=Subsector_Energy_De1_index_3)*(Subsector_Energy_De1_index_2='Subsector Elect Demand by Year'!$C$2)*("Electricity--GWh"=Subsector_Energy_De1_index_4)*(O$6=Subsector_Energy_De1_index_1)*Subsector_Energy_De1_vals)) -> 27778.02954 | P9: =IF($C9="","",SUMPRODUCT(($C9=Subsector_Energy_De1_index_3)*(Subsector_Energy_De1_index_2='Subsector Elect Demand by Year'!$C$2)*("Electricity--GWh"=Subsector_Energy_De1_index_4)*(P$6=Subsector_Energy_De1_index_1)*Subsector_Energy_De1_vals)) -> 25488.30262 | Q9: =IF($C9="","",SUMPRODUCT(($C9=Subsector_Energy_De1_index_3)*(Subsector_Energy_De1_index_2='Subsector Elect Demand by Year'!$C$2)*("Electricity--GWh"=Subsector_Energy_De1_index_4)*(Q$6=Subsector_Energy_De1_index_1)*Subsector_Energy_De1_vals)) -> 23230.6901 | R9: =IF($C9="","",SUMPRODUCT(($C9=Subsector_Energy_De1_index_3)*(Subsector_Energy_De1_index_2='Subsector Elect Demand by Year'!$C$2)*("Electricity--GWh"=Subsector_Energy_De1_index_4)*(R$6=Subsector_Energy_De1_index_1)*Subsector_Energy_De1_vals)) -> 21167.51703 | S9: =IF($C9="","",SUMPRODUCT(($C9=Subsector_Energy_De1_index_3)*(Subsector_Energy_De1_index_2='Subsector Elect Demand by Year'!$C$2)*("Electricity--GWh"=Subsector_Energy_De1_index_4)*(S$6=Subsector_Energy_De1_index_1)*Subsector_Energy_De1_vals)) -> 19391.47634 | T9: =IF($C9="","",SUMPRODUCT(($C9=Subsector_Energy_De1_index_3)*(Subsector_Energy_De1_index_2='Subsector Elect Demand by Year'!$C$2)*("Electricity--GWh"=Subsector_Energy_De1_index_4)*(T$6=Subsector_Energy_De1_index_1)*Subsector_Energy_De1_vals)) -> 17931.33787 | U9: =IF($C9="","",SUMPRODUCT(($C9=Subsector_Energy_De1_index_3)*(Subsector_Energy_De1_index_2='Subsector Elect Demand by Year'!$C$2)*("Electricity--GWh"=Subsector_Energy_De1_index_4)*(U$6=Subsector_Energy_De1_index_1)*Subsector_Energy_De1_vals)) -> 16805.13875 | V9: =IF($C9="","",SUMPRODUCT(($C9=Subsector_Energy_De1_index_3)*(Subsector_Energy_De1_index_2='Subsector Elect Demand by Year'!$C$2)*("Electricity--GWh"=Subsector_Energy_De1_index_4)*(V$6=Subsector_Energy_De1_index_1)*Subsector_Energy_De1_vals)) -> 15962.50174 | W9: =IF($C9="","",SUMPRODUCT(($C9=Subsector_Energy_De1_index_3)*(Subsector_Energy_De1_index_2='Subsector Elect Demand by Year'!$C$2)*("Electricity--GWh"=Subsector_Energy_De1_index_4)*(W$6=Subsector_Energy_De1_index_1)*Subsector_Energy_De1_vals)) -> 15352.84372 | X9: =IF($C9="","",SUMPRODUCT(($C9=Subsector_Energy_De1_index_3)*(Subsector_Energy_De1_index_2='Subsector Elect Demand by Year'!$C$2)*("Electricity--GWh"=Subsector_Energy_De1_index_4)*(X$6=Subsector_Energy_De1_index_1)*Subsector_Energy_De1_vals)) -> 14929.86472 | Y9: =IF($C9="","",SUMPRODUCT(($C9=Subsector_Energy_De1_index_3)*(Subsector_Energy_De1_index_2='Subsector Elect Demand by Year'!$C$2)*("Electricity--GWh"=Subsector_Energy_De1_index_4)*(Y$6=Subsector_Energy_De1_index_1)*Subsector_Energy_De1_vals)) -> 14653.47025 | Z9: =IF($C9="","",SUMPRODUCT(($C9=Subsector_Energy_De1_index_3)*(Subsector_Energy_De1_index_2='Subsector Elect Demand by Year'!$C$2)*("Electricity--GWh"=Subsector_Energy_De1_index_4)*(Z$6=Subsector_Energy_De1_index_1)*Subsector_Energy_De1_vals)) -> 14490.13653 | AA9: =IF($C9="","",SUMPRODUCT(($C9=Subsector_Energy_De1_index_3)*(Subsector_Energy_De1_index_2='Subsector Elect Demand by Year'!$C$2)*("Electricity--GWh"=Subsector_Energy_De1_index_4)*(AA$6=Subsector_Energy_De1_index_1)*Subsector_Energy_De1_vals)) -> 14412.55134 | AB9: =IF($C9="","",SUMPRODUCT(($C9=Subsector_Energy_De1_index_3)*(Subsector_Energy_De1_index_2='Subsector Elect Demand by Year'!$C$2)*("Electricity--GWh"=Subsector_Energy_De1_index_4)*(AB$6=Subsector_Energy_De1_index_1)*Subsector_Energy_De1_vals)) -> 14399.05693 | AC9: =IF($C9="","",SUMPRODUCT(($C9=Subsector_Energy_De1_index_3)*(Subsector_Energy_De1_index_2='Subsector Elect Demand by Year'!$C$2)*("Electricity--GWh"=Subsector_Energy_De1_index_4)*(AC$6=Subsector_Energy_De1_index_1)*Subsector_Energy_De1_vals)) -> 14432.86068 | AD9: =IF($C9="","",SUMPRODUCT(($C9=Subsector_Energy_De1_index_3)*(Subsector_Energy_De1_index_2='Subsector Elect Demand by Year'!$C$2)*("Electricity--GWh"=Subsector_Energy_De1_index_4)*(AD$6=Subsector_Energy_De1_index_1)*Subsector_Energy_De1_vals)) -> 14501.16464 | AE9: =IF($C9="","",SUMPRODUCT(($C9=Subsector_Energy_De1_index_3)*(Subsector_Energy_De1_index_2='Subsector Elect Demand by Year'!$C$2)*("Electricity--GWh"=Subsector_Energy_De1_index_4)*(AE$6=Subsector_Energy_De1_index_1)*Subsector_Energy_De1_vals)) -> 14594.3061 | AF9: =IF($C9="","",SUMPRODUCT(($C9=Subsector_Energy_De1_index_3)*(Subsector_Energy_De1_index_2='Subsector Elect Demand by Year'!$C$2)*("Electricity--GWh"=Subsector_Energy_De1_index_4)*(AF$6=Subsector_Energy_De1_index_1)*Subsector_Energy_De1_vals)) -> 14705.0505 | AG9: =IF($C9="","",SUMPRODUCT(($C9=Subsector_Energy_De1_index_3)*(Subsector_Energy_De1_index_2='Subsector Elect Demand by Year'!$C$2)*("Electricity--GWh"=Subsector_Energy_De1_index_4)*(AG$6=Subsector_Energy_De1_index_1)*Subsector_Energy_De1_vals)) -> 14828.01759 | AH9: =IF($C9="","",SUMPRODUCT(($C9=Subsector_Energy_De1_index_3)*(Subsector_Energy_De1_index_2='Subsector Elect Demand by Year'!$C$2)*("Electricity--GWh"=Subsector_Energy_De1_index_4)*(AH$6=Subsector_Energy_De1_index_1)*Subsector_Energy_De1_vals)) -> 14959.24929 | AI9: =IF($C9="","",SUMPRODUCT(($C9=Subsector_Energy_De1_index_3)*(Subsector_Energy_De1_index_2='Subsector Elect Demand by Year'!$C$2)*("Electricity--GWh"=Subsector_Energy_De1_index_4)*(AI$6=Subsector_Energy_De1_index_1)*Subsector_Energy_De1_vals)) -> 15095.90304 | AJ9: =IF($C9="","",SUMPRODUCT(($C9=Subsector_Energy_De1_index_3)*(Subsector_Energy_De1_index_2='Subsector Elect Demand by Year'!$C$2)*("Electricity--GWh"=Subsector_Energy_De1_index_4)*(AJ$6=Subsector_Energy_De1_index_1)*Subsector_Energy_De1_vals)) -> 15236.0249 | AK9: =IF($C9="","",SUMPRODUCT(($C9=Subsector_Energy_De1_index_3)*(Subsector_Energy_De1_index_2='Subsector Elect Demand by Year'!$C$2)*("Electricity--GWh"=Subsector_Energy_De1_index_4)*(AK$6=Subsector_Energy_De1_index_1)*Subsector_Energy_De1_vals)) -> 15378.2778 | AL9: =IF($C9="","",SUMPRODUCT(($C9=Subsector_Energy_De1_index_3)*(Subsector_Energy_De1_index_2='Subsector Elect Demand by Year'!$C$2)*("Electricity--GWh"=Subsector_Energy_De1_index_4)*(AL$6=Subsector_Energy_De1_index_1)*Subsector_Energy_De1_vals)) -> 15521.83245 | AM9: =IF($C9="","",SUMPRODUCT(($C9=Subsector_Energy_De1_index_3)*(Subsector_Energy_De1_index_2='Subsector Elect Demand by Year'!$C$2)*("Electricity--GWh"=Subsector_Energy_De1_index_4)*(AM$6=Subsector_Energy_De1_index_1)*Subsector_Energy_De1_vals)) -> 15666.16673 | AN9: =IF($C9="","",SUMPRODUCT(($C9=Subsector_Energy_De1_index_3)*(Subsector_Energy_De1_index_2='Subsector Elect Demand by Year'!$C$2)*("Electricity--GWh"=Subsector_Energy_De1_index_4)*(AN$6=Subsector_Energy_De1_index_1)*Subsector_Energy_De1_vals)) -> 15810.97537
A10: =IF(A9>=MAX(Lists!$S$2:$S$61),"",A9+1) -> 4 | B10: =IF(A10="","",INDEX(Lists!$R$2:$R$62,MATCH($A10,Lists!$S$2:$S$62,0))) -> Commercial | C10: =IF($A10="","",INDEX(Lists!$Q$2:$Q$62,MATCH($A10,Lists!$S$2:$S$62,0))) -> Commercial Other | D10: Bldgs | E10: =IF($C10="","",SUMPRODUCT(($C10=Subsector_Energy_De1_index_3)*(Subsector_Energy_De1_index_2='Subsector Elect Demand by Year'!$C$2)*("Electricity--GWh"=Subsector_Energy_De1_index_4)*(E$6=Subsector_Energy_De1_index_1)*Subsector_Energy_De1_vals)) -> 23058.88627 | F10: =IF($C10="","",SUMPRODUCT(($C10=Subsector_Energy_De1_index_3)*(Subsector_Energy_De1_index_2='Subsector Elect Demand by Year'!$C$2)*("Electricity--GWh"=Subsector_Energy_De1_index_4)*(F$6=Subsector_Energy_De1_index_1)*Subsector_Energy_De1_vals)) -> 23306.58316 | G10: =IF($C10="","",SUMPRODUCT(($C10=Subsector_Energy_De1_index_3)*(Subsector_Energy_De1_index_2='Subsector Elect Demand by Year'!$C$2)*("Electricity--GWh"=Subsector_Energy_De1_index_4)*(G$6=Subsector_Energy_De1_index_1)*Subsector_Energy_De1_vals)) -> 23624.8558 | H10: =IF($C10="","",SUMPRODUCT(($C10=Subsector_Energy_De1_index_3)*(Subsector_Energy_De1_index_2='Subsector Elect Demand by Year'!$C$2)*("Electricity--GWh"=Subsector_Energy_De1_index_4)*(H$6=Subsector_Energy_De1_index_1)*Subsector_Energy_De1_vals)) -> 23971.96883 | I10: =IF($C10="","",SUMPRODUCT(($C10=Subsector_Energy_De1_index_3)*(Subsector_Energy_De1_index_2='Subsector Elect Demand by Year'!$C$2)*("Electricity--GWh"=Subsector_Energy_De1_index_4)*(I$6=Subsector_Energy_De1_index_1)*Subsector_Energy_De1_vals)) -> 24391.33509 | J10: =IF($C10="","",SUMPRODUCT(($C10=Subsector_Energy_De1_index_3)*(Subsector_Energy_De1_index_2='Subsector Elect Demand by Year'!$C$2)*("Electricity--GWh"=Subsector_Energy_De1_index_4)*(J$6=Subsector_Energy_De1_index_1)*Subsector_Energy_De1_vals)) -> 24863.98692 | K10: =IF($C10="","",SUMPRODUCT(($C10=Subsector_Energy_De1_index_3)*(Subsector_Energy_De1_index_2='Subsector Elect Demand by Year'!$C$2)*("Electricity--GWh"=Subsector_Energy_De1_index_4)*(K$6=Subsector_Energy_De1_index_1)*Subsector_Energy_De1_vals)) -> 25128.11799 | L10: =IF($C10="","",SUMPRODUCT(($C10=Subsector_Energy_De1_index_3)*(Subsector_Energy_De1_index_2='Subsector Elect Demand by Year'!$C$2)*("Electricity--GWh"=Subsector_Energy_De1_index_4)*(L$6=Subsector_Energy_De1_index_1)*Subsector_Energy_De1_vals)) -> 25380.34207 | M10: =IF($C10="","",SUMPRODUCT(($C10=Subsector_Energy_De1_index_3)*(Subsector_Energy_De1_index_2='Subsector Elect Demand by Year'!$C$2)*("Electricity--GWh"=Subsector_Energy_De1_index_4)*(M$6=Subsector_Energy_De1_index_1)*Subsector_Energy_De1_vals)) -> 25627.36198 | N10: =IF($C10="","",SUMPRODUCT(($C10=Subsector_Energy_De1_index_3)*(Subsector_Energy_De1_index_2='Subsector Elect Demand by Year'!$C$2)*("Electricity--GWh"=Subsector_Energy_De1_index_4)*(N$6=Subsector_Energy_De1_index_1)*Subsector_Energy_De1_vals)) -> 25866.07975 | O10: =IF($C10="","",SUMPRODUCT(($C10=Subsector_Energy_De1_index_3)*(Subsector_Energy_De1_index_2='Subsector Elect Demand by Year'!$C$2)*("Electricity--GWh"=Subsector_Energy_De1_index_4)*(O$6=Subsector_Energy_De1_index_1)*Subsector_Energy_De1_vals)) -> 26103.59712 | P10: =IF($C10="","",SUMPRODUCT(($C10=Subsector_Energy_De1_index_3)*(Subsector_Energy_De1_index_2='Subsector Elect Demand by Year'!$C$2)*("Electricity--GWh"=Subsector_Energy_De1_index_4)*(P$6=Subsector_Energy_De1_index_1)*Subsector_Energy_De1_vals)) -> 26334.44279 | Q10: =IF($C10="","",SUMPRODUCT(($C10=Subsector_Energy_De1_index_3)*(Subsector_Energy_De1_index_2='Subsector Elect Demand by Year'!$C$2)*("Electricity--GWh"=Subsector_Energy_De1_index_4)*(Q$6=Subsector_Energy_De1_index_1)*Subsector_Energy_De1_vals)) -> 26558.43279 | R10: =IF($C10="","",SUMPRODUCT(($C10=Subsector_Energy_De1_index_3)*(Subsector_Energy_De1_index_2='Subsector Elect Demand by Year'!$C$2)*("Electricity--GWh"=Subsector_Energy_De1_index_4)*(R$6=Subsector_Energy_De1_index_1)*Subsector_Energy_De1_vals)) -> 26775.38281 | S10: =IF($C10="","",SUMPRODUCT(($C10=Subsector_Energy_De1_index_3)*(Subsector_Energy_De1_index_2='Subsector Elect Demand by Year'!$C$2)*("Electricity--GWh"=Subsector_Energy_De1_index_4)*(S$6=Subsector_Energy_De1_index_1)*Subsector_Energy_De1_vals)) -> 26985.10818 | T10: =IF($C10="","",SUMPRODUCT(($C10=Subsector_Energy_De1_index_3)*(Subsector_Energy_De1_index_2='Subsector Elect Demand by Year'!$C$2)*("Electricity--GWh"=Subsector_Energy_De1_index_4)*(T$6=Subsector_Energy_De1_index_1)*Subsector_Energy_De1_vals)) -> 27187.42391 | U10: =IF($C10="","",SUMPRODUCT(($C10=Subsector_Energy_De1_index_3)*(Subsector_Energy_De1_index_2='Subsector Elect Demand by Year'!$C$2)*("Electricity--GWh"=Subsector_Energy_De1_index_4)*(U$6=Subsector_Energy_De1_index_1)*Subsector_Energy_De1_vals)) -> 27627.98994 | V10: =IF($C10="","",SUMPRODUCT(($C10=Subsector_Energy_De1_index_3)*(Subsector_Energy_De1_index_2='Subsector Elect Demand by Year'!$C$2)*("Electricity--GWh"=Subsector_Energy_De1_index_4)*(V$6=Subsector_Energy_De1_index_1)*Subsector_Energy_De1_vals)) -> 28078.57171 | W10: =IF($C10="","",SUMPRODUCT(($C10=Subsector_Energy_De1_index_3)*(Subsector_Energy_De1_index_2='Subsector Elect Demand by Year'!$C$2)*("Electricity--GWh"=Subsector_Energy_De1_index_4)*(W$6=Subsector_Energy_De1_index_1)*Subsector_Energy_De1_vals)) -> 28538.93161 | X10: =IF($C10="","",SUMPRODUCT(($C10=Subsector_Energy_De1_index_3)*(Subsector_Energy_De1_index_2='Subsector Elect Demand by Year'!$C$2)*("Electricity--GWh"=Subsector_Energy_De1_index_4)*(X$6=Subsector_Energy_De1_index_1)*Subsector_Energy_De1_vals)) -> 29008.83156 | Y10: =IF($C10="","",SUMPRODUCT(($C10=Subsector_Energy_De1_index_3)*(Subsector_Energy_De1_index_2='Subsector Elect Demand by Year'!$C$2)*("Electricity--GWh"=Subsector_Energy_De1_index_4)*(Y$6=Subsector_Energy_De1_index_1)*Subsector_Energy_De1_vals)) -> 29488.03303 | Z10: =IF($C10="","",SUMPRODUCT(($C10=Subsector_Energy_De1_index_3)*(Subsector_Energy_De1_index_2='Subsector Elect Demand by Year'!$C$2)*("Electricity--GWh"=Subsector_Energy_De1_index_4)*(Z$6=Subsector_Energy_De1_index_1)*Subsector_Energy_De1_vals)) -> 29976.29702 | AA10: =IF($C10="","",SUMPRODUCT(($C10=Subsector_Energy_De1_index_3)*(Subsector_Energy_De1_index_2='Subsector Elect Demand by Year'!$C$2)*("Electricity--GWh"=Subsector_Energy_De1_index_4)*(AA$6=Subsector_Energy_De1_index_1)*Subsector_Energy_De1_vals)) -> 30473.38411 | AB10: =IF($C10="","",SUMPRODUCT(($C10=Subsector_Energy_De1_index_3)*(Subsector_Energy_De1_index_2='Subsector Elect Demand by Year'!$C$2)*("Electricity--GWh"=Subsector_Energy_De1_index_4)*(AB$6=Subsector_Energy_De1_index_1)*Subsector_Energy_De1_vals)) -> 30979.05438 | AC10: =IF($C10="","",SUMPRODUCT(($C10=Subsector_Energy_De1_index_3)*(Subsector_Energy_De1_index_2='Subsector Elect Demand by Year'!$C$2)*("Electricity--GWh"=Subsector_Energy_De1_index_4)*(AC$6=Subsector_Energy_De1_index_1)*Subsector_Energy_De1_vals)) -> 31493.0675 | AD10: =IF($C10="","",SUMPRODUCT(($C10=Subsector_Energy_De1_index_3)*(Subsector_Energy_De1_index_2='Subsector Elect Demand by Year'!$C$2)*("Electricity--GWh"=Subsector_Energy_De1_index_4)*(AD$6=Subsector_Energy_De1_index_1)*Subsector_Energy_De1_vals)) -> 32015.18266 | AE10: =IF($C10="","",SUMPRODUCT(($C10=Subsector_Energy_De1_index_3)*(Subsector_Energy_De1_index_2='Subsector Elect Demand by Year'!$C$2)*("Electricity--GWh"=Subsector_Energy_De1_index_4)*(AE$6=Subsector_Energy_De1_index_1)*Subsector_Energy_De1_vals)) -> 32545.1586 | AF10: =IF($C10="","",SUMPRODUCT(($C10=Subsector_Energy_De1_index_3)*(Subsector_Energy_De1_index_2='Subsector Elect Demand by Year'!$C$2)*("Electricity--GWh"=Subsector_Energy_De1_index_4)*(AF$6=Subsector_Energy_De1_index_1)*Subsector_Energy_De1_vals)) -> 33082.75361 | AG10: =IF($C10="","",SUMPRODUCT(($C10=Subsector_Energy_De1_index_3)*(Subsector_Energy_De1_index_2='Subsector Elect Demand by Year'!$C$2)*("Electricity--GWh"=Subsector_Energy_De1_index_4)*(AG$6=Subsector_Energy_De1_index_1)*Subsector_Energy_De1_vals)) -> 33627.72553 | AH10: =IF($C10="","",SUMPRODUCT(($C10=Subsector_Energy_De1_index_3)*(Subsector_Energy_De1_index_2='Subsector Elect Demand by Year'!$C$2)*("Electricity--GWh"=Subsector_Energy_De1_index_4)*(AH$6=Subsector_Energy_De1_index_1)*Subsector_Energy_De1_vals)) -> 34179.83174 | AI10: =IF($C10="","",SUMPRODUCT(($C10=Subsector_Energy_De1_index_3)*(Subsector_Energy_De1_index_2='Subsector Elect Demand by Year'!$C$2)*("Electricity--GWh"=Subsector_Energy_De1_index_4)*(AI$6=Subsector_Energy_De1_index_1)*Subsector_Energy_De1_vals)) -> 34738.82917 | AJ10: =IF($C10="","",SUMPRODUCT(($C10=Subsector_Energy_De1_index_3)*(Subsector_Energy_De1_index_2='Subsector Elect Demand by Year'!$C$2)*("Electricity--GWh"=Subsector_Energy_De1_index_4)*(AJ$6=Subsector_Energy_De1_index_1)*Subsector_Energy_De1_vals)) -> 35304.47428 | AK10: =IF($C10="","",SUMPRODUCT(($C10=Subsector_Energy_De1_index_3)*(Subsector_Energy_De1_index_2='Subsector Elect Demand by Year'!$C$2)*("Electricity--GWh"=Subsector_Energy_De1_index_4)*(AK$6=Subsector_Energy_De1_index_1)*Subsector_Energy_De1_vals)) -> 35876.52311 | AL10: =IF($C10="","",SUMPRODUCT(($C10=Subsector_Energy_De1_index_3)*(Subsector_Energy_De1_index_2='Subsector Elect Demand by Year'!$C$2)*("Electricity--GWh"=Subsector_Energy_De1_index_4)*(AL$6=Subsector_Energy_De1_index_1)*Subsector_Energy_De1_vals)) -> 36454.7312 | AM10: =IF($C10="","",SUMPRODUCT(($C10=Subsector_Energy_De1_index_3)*(Subsector_Energy_De1_index_2='Subsector Elect Demand by Year'!$C$2)*("Electricity--GWh"=Subsector_Energy_De1_index_4)*(AM$6=Subsector_Energy_De1_index_1)*Subsector_Energy_De1_vals)) -> 37038.85368 | AN10: =IF($C10="","",SUMPRODUCT(($C10=Subsector_Energy_De1_index_3)*(Subsector_Energy_De1_index_2='Subsector Elect Demand by Year'!$C$2)*("Electricity--GWh"=Subsector_Energy_De1_index_4)*(AN$6=Subsector_Energy_De1_index_1)*Subsector_Energy_De1_vals)) -> 37628.6452
A11: =IF(A10>=MAX(Lists!$S$2:$S$61),"",A10+1) -> 5 | B11: =IF(A11="","",INDEX(Lists!$R$2:$R$62,MATCH($A11,Lists!$S$2:$S$62,0))) -> Commercial | C11: =IF($A11="","",INDEX(Lists!$Q$2:$Q$62,MATCH($A11,Lists!$S$2:$S$62,0))) -> Commercial Refrigeration | D11: Bldgs | E11: =IF($C11="","",SUMPRODUCT(($C11=Subsector_Energy_De1_index_3)*(Subsector_Energy_De1_index_2='Subsector Elect Demand by Year'!$C$2)*("Electricity--GWh"=Subsector_Energy_De1_index_4)*(E$6=Subsector_Energy_De1_index_1)*Subsector_Energy_De1_vals)) -> 8216.248989 | F11: =IF($C11="","",SUMPRODUCT(($C11=Subsector_Energy_De1_index_3)*(Subsector_Energy_De1_index_2='Subsector Elect Demand by Year'!$C$2)*("Electricity--GWh"=Subsector_Energy_De1_index_4)*(F$6=Subsector_Energy_De1_index_1)*Subsector_Energy_De1_vals)) -> 8343.717415 | G11: =IF($C11="","",SUMPRODUCT(($C11=Subsector_Energy_De1_index_3)*(Subsector_Energy_De1_index_2='Subsector Elect Demand by Year'!$C$2)*("Electricity--GWh"=Subsector_Energy_De1_index_4)*(G$6=Subsector_Energy_De1_index_1)*Subsector_Energy_De1_vals)) -> 8470.730126 | H11: =IF($C11="","",SUMPRODUCT(($C11=Subsector_Energy_De1_index_3)*(Subsector_Energy_De1_index_2='Subsector Elect Demand by Year'!$C$2)*("Electricity--GWh"=Subsector_Energy_De1_index_4)*(H$6=Subsector_Energy_De1_index_1)*Subsector_Energy_De1_vals)) -> 8577.109702 | I11: =IF($C11="","",SUMPRODUCT(($C11=Subsector_Energy_De1_index_3)*(Subsector_Energy_De1_index_2='Subsector Elect Demand by Year'!$C$2)*("Electricity--GWh"=Subsector_Energy_De1_index_4)*(I$6=Subsector_Energy_De1_index_1)*Subsector_Energy_De1_vals)) -> 8649.263611 | J11: =IF($C11="","",SUMPRODUCT(($C11=Subsector_Energy_De1_index_3)*(Subsector_Energy_De1_index_2='Subsector Elect Demand by Year'!$C$2)*("Electricity--GWh"=Subsector_Energy_De1_index_4)*(J$6=Subsector_Energy_De1_index_1)*Subsector_Energy_De1_vals)) -> 8669.231681 | K11: =IF($C11="","",SUMPRODUCT(($C11=Subsector_Energy_De1_index_3)*(Subsector_Energy_De1_index_2='Subsector Elect Demand by Year'!$C$2)*("Electricity--GWh"=Subsector_Energy_De1_index_4)*(K$6=Subsector_Energy_De1_index_1)*Subsector_Energy_De1_vals)) -> 8636.008618 | L11: =IF($C11="","",SUMPRODUCT(($C11=Subsector_Energy_De1_index_3)*(Subsector_Energy_De1_index_2='Subsector Elect Demand by Year'!$C$2)*("Electricity--GWh"=Subsector_Energy_De1_index_4)*(L$6=Subsector_Energy_De1_index_1)*Subsector_Energy_De1_vals)) -> 8564.465271 | M11: =IF($C11="","",SUMPRODUCT(($C11=Subsector_Energy_De1_index_3)*(Subsector_Energy_De1_index_2='Subsector Elect Demand by Year'!$C$2)*("Electricity--GWh"=Subsector_Energy_De1_index_4)*(M$6=Subsector_Energy_De1_index_1)*Subsector_Energy_De1_vals)) -> 8476.674428 | N11: =IF($C11="","",SUMPRODUCT(($C11=Subsector_Energy_De1_index_3)*(Subsector_Energy_De1_index_2='Subsector Elect Demand by Year'!$C$2)*("Electricity--GWh"=Subsector_Energy_De1_index_4)*(N$6=Subsector_Energy_De1_index_1)*Subsector_Energy_De1_vals)) -> 8385.689323 | O11: =IF($C11="","",SUMPRODUCT(($C11=Subsector_Energy_De1_index_3)*(Subsector_Energy_De1_index_2='Subsector Elect Demand by Year'!$C$2)*("Electricity--GWh"=Subsector_Energy_De1_index_4)*(O$6=Subsector_Energy_De1_index_1)*Subsector_Energy_De1_vals)) -> 8298.526977 | P11: =IF($C11="","",SUMPRODUCT(($C11=Subsector_Energy_De1_index_3)*(Subsector_Energy_De1_index_2='Subsector Elect Demand by Year'!$C$2)*("Electricity--GWh"=Subsector_Energy_De1_index_4)*(P$6=Subsector_Energy_De1_index_1)*Subsector_Energy_De1_vals)) -> 8217.770518 | Q11: =IF($C11="","",SUMPRODUCT(($C11=Subsector_Energy_De1_index_3)*(Subsector_Energy_De1_index_2='Subsector Elect Demand by Year'!$C$2)*("Electricity--GWh"=Subsector_Energy_De1_index_4)*(Q$6=Subsector_Energy_De1_index_1)*Subsector_Energy_De1_vals)) -> 8145.681465 | R11: =IF($C11="","",SUMPRODUCT(($C11=Subsector_Energy_De1_index_3)*(Subsector_Energy_De1_index_2='Subsector Elect Demand by Year'!$C$2)*("Electricity--GWh"=Subsector_Energy_De1_index_4)*(R$6=Subsector_Energy_De1_index_1)*Subsector_Energy_De1_vals)) -> 8084.50746 | S11: =IF($C11="","",SUMPRODUCT(($C11=Subsector_Energy_De1_index_3)*(Subsector_Energy_De1_index_2='Subsector Elect Demand by Year'!$C$2)*("Electricity--GWh"=Subsector_Energy_De1_index_4)*(S$6=Subsector_Energy_De1_index_1)*Subsector_Energy_De1_vals)) -> 8036.487291 | T11: =IF($C11="","",SUMPRODUCT(($C11=Subsector_Energy_De1_index_3)*(Subsector_Energy_De1_index_2='Subsector Elect Demand by Year'!$C$2)*("Electricity--GWh"=Subsector_Energy_De1_index_4)*(T$6=Subsector_Energy_De1_index_1)*Subsector_Energy_De1_vals)) -> 8003.601673 | U11: =IF($C11="","",SUMPRODUCT(($C11=Subsector_Energy_De1_index_3)*(Subsector_Energy_De1_index_2='Subsector Elect Demand by Year'!$C$2)*("Electricity--GWh"=Subsector_Energy_De1_index_4)*(U$6=Subsector_Energy_De1_index_1)*Subsector_Energy_De1_vals)) -> 7987.146972 | V11: =IF($C11="","",SUMPRODUCT(($C11=Subsector_Energy_De1_index_3)*(Subsector_Energy_De1_index_2='Subsector Elect Demand by Year'!$C$2)*("Electricity--GWh"=Subsector_Energy_De1_index_4)*(V$6=Subsector_Energy_De1_index_1)*Subsector_Energy_De1_vals)) -> 7987.524048 | W11: =IF($C11="","",SUMPRODUCT(($C11=Subsector_Energy_De1_index_3)*(Subsector_Energy_De1_index_2='Subsector Elect Demand by Year'!$C$2)*("Electricity--GWh"=Subsector_Energy_De1_index_4)*(W$6=Subsector_Energy_De1_index_1)*Subsector_Energy_De1_vals)) -> 8004.16462 | X11: =IF($C11="","",SUMPRODUCT(($C11=Subsector_Energy_De1_index_3)*(Subsector_Energy_De1_index_2='Subsector Elect Demand by Year'!$C$2)*("Electricity--GWh"=Subsector_Energy_De1_index_4)*(X$6=Subsector_Energy_De1_index_1)*Subsector_Energy_De1_vals)) -> 8035.664688 | Y11: =IF($C11="","",SUMPRODUCT(($C11=Subsector_Energy_De1_index_3)*(Subsector_Energy_De1_index_2='Subsector Elect Demand by Year'!$C$2)*("Electricity--GWh"=Subsector_Energy_De1_index_4)*(Y$6=Subsector_Energy_De1_index_1)*Subsector_Energy_De1_vals)) -> 8080.054584 | Z11: =IF($C11="","",SUMPRODUCT(($C11=Subsector_Energy_De1_index_3)*(Subsector_Energy_De1_index_2='Subsector Elect Demand by Year'!$C$2)*("Electricity--GWh"=Subsector_Energy_De1_index_4)*(Z$6=Subsector_Energy_De1_index_1)*Subsector_Energy_De1_vals)) -> 8135.086991 | AA11: =IF($C11="","",SUMPRODUCT(($C11=Subsector_Energy_De1_index_3)*(Subsector_Energy_De1_index_2='Subsector Elect Demand by Year'!$C$2)*("Electricity--GWh"=Subsector_Energy_De1_index_4)*(AA$6=Subsector_Energy_De1_index_1)*Subsector_Energy_De1_vals)) -> 8198.536827 | AB11: =IF($C11="","",SUMPRODUCT(($C11=Subsector_Energy_De1_index_3)*(Subsector_Energy_De1_index_2='Subsector Elect Demand by Year'!$C$2)*("Electricity--GWh"=Subsector_Energy_De1_index_4)*(AB$6=Subsector_Energy_De1_index_1)*Subsector_Energy_De1_vals)) -> 8268.402489 | AC11: =IF($C11="","",SUMPRODUCT(($C11=Subsector_Energy_De1_index_3)*(Subsector_Energy_De1_index_2='Subsector Elect Demand by Year'!$C$2)*("Electricity--GWh"=Subsector_Energy_De1_index_4)*(AC$6=Subsector_Energy_De1_index_1)*Subsector_Energy_De1_vals)) -> 8343.006703 | AD11: =IF($C11="","",SUMPRODUCT(($C11=Subsector_Energy_De1_index_3)*(Subsector_Energy_De1_index_2='Subsector Elect Demand by Year'!$C$2)*("Electricity--GWh"=Subsector_Energy_De1_index_4)*(AD$6=Subsector_Energy_De1_index_1)*Subsector_Energy_De1_vals)) -> 8421.01978 | AE11: =IF($C11="","",SUMPRODUCT(($C11=Subsector_Energy_De1_index_3)*(Subsector_Energy_De1_index_2='Subsector Elect Demand by Year'!$C$2)*("Electricity--GWh"=Subsector_Energy_De1_index_4)*(AE$6=Subsector_Energy_De1_index_1)*Subsector_Energy_De1_vals)) -> 8501.433684 | AF11: =IF($C11="","",SUMPRODUCT(($C11=Subsector_Energy_De1_index_3)*(Subsector_Energy_De1_index_2='Subsector Elect Demand by Year'!$C$2)*("Electricity--GWh"=Subsector_Energy_De1_index_4)*(AF$6=Subsector_Energy_De1_index_1)*Subsector_Energy_De1_vals)) -> 8583.511401 | AG11: =IF($C11="","",SUMPRODUCT(($C11=Subsector_Energy_De1_index_3)*(Subsector_Energy_De1_index_2='Subsector Elect Demand by Year'!$C$2)*("Electricity--GWh"=Subsector_Energy_De1_index_4)*(AG$6=Subsector_Energy_De1_index_1)*Subsector_Energy_De1_vals)) -> 8666.730861 | AH11: =IF($C11="","",SUMPRODUCT(($C11=Subsector_Energy_De1_index_3)*(Subsector_Energy_De1_index_2='Subsector Elect Demand by Year'!$C$2)*("Electricity--GWh"=Subsector_Energy_De1_index_4)*(AH$6=Subsector_Energy_De1_index_1)*Subsector_Energy_De1_vals)) -> 8750.736993 | AI11: =IF($C11="","",SUMPRODUCT(($C11=Subsector_Energy_De1_index_3)*(Subsector_Energy_De1_index_2='Subsector Elect Demand by Year'!$C$2)*("Electricity--GWh"=Subsector_Energy_De1_index_4)*(AI$6=Subsector_Energy_De1_index_1)*Subsector_Energy_De1_vals)) -> 8835.290277 | AJ11: =IF($C11="","",SUMPRODUCT(($C11=Subsector_Energy_De1_index_3)*(Subsector_Energy_De1_index_2='Subsector Elect Demand by Year'!$C$2)*("Electricity--GWh"=Subsector_Energy_De1_index_4)*(AJ$6=Subsector_Energy_De1_index_1)*Subsector_Energy_De1_vals)) -> 8920.223333 | AK11: =IF($C11="","",SUMPRODUCT(($C11=Subsector_Energy_De1_index_3)*(Subsector_Energy_De1_index_2='Subsector Elect Demand by Year'!$C$2)*("Electricity--GWh"=Subsector_Energy_De1_index_4)*(AK$6=Subsector_Energy_De1_index_1)*Subsector_Energy_De1_vals)) -> 9005.421586 | AL11: =IF($C11="","",SUMPRODUCT(($C11=Subsector_Energy_De1_index_3)*(Subsector_Energy_De1_index_2='Subsector Elect Demand by Year'!$C$2)*("Electricity--GWh"=Subsector_Energy_De1_index_4)*(AL$6=Subsector_Energy_De1_index_1)*Subsector_Energy_De1_vals)) -> 9090.811121 | AM11: =IF($C11="","",SUMPRODUCT(($C11=Subsector_Energy_De1_index_3)*(Subsector_Energy_De1_index_2='Subsector Elect Demand by Year'!$C$2)*("Electricity--GWh"=Subsector_Energy_De1_index_4)*(AM$6=Subsector_Energy_De1_index_1)*Subsector_Energy_De1_vals)) -> 9176.346189 | AN11: =IF($C11="","",SUMPRODUCT(($C11=Subsector_Energy_De1_index_3)*(Subsector_Energy_De1_index_2='Subsector Elect Demand by Year'!$C$2)*("Electricity--GWh"=Subsector_Energy_De1_index_4)*(AN$6=Subsector_Energy_De1_index_1)*Subsector_Energy_De1_vals)) -> 9261.999064
A12: =IF(A11>=MAX(Lists!$S$2:$S$61),"",A11+1) -> 6 | B12: =IF(A12="","",INDEX(Lists!$R$2:$R$62,MATCH($A12,Lists!$S$2:$S$62,0))) -> Commercial | C12: =IF($A12="","",INDEX(Lists!$Q$2:$Q$62,MATCH($A12,Lists!$S$2:$S$62,0))) -> Commercial Space Heating | D12: Bldgs SH | E12: =IF($C12="","",SUMPRODUCT(($C12=Subsector_Energy_De1_index_3)*(Subsector_Energy_De1_index_2='Subsector Elect Demand by Year'!$C$2)*("Electricity--GWh"=Subsector_Energy_De1_index_4)*(E$6=Subsector_Energy_De1_index_1)*Subsector_Energy_De1_vals)) -> 1435.204683 | F12: =IF($C12="","",SUMPRODUCT(($C12=Subsector_Energy_De1_index_3)*(Subsector_Energy_De1_index_2='Subsector Elect Demand by Year'!$C$2)*("Electricity--GWh"=Subsector_Energy_De1_index_4)*(F$6=Subsector_Energy_De1_index_1)*Subsector_Energy_De1_vals)) -> 1444.019736 | G12: =IF($C12="","",SUMPRODUCT(($C12=Subsector_Energy_De1_index_3)*(Subsector_Energy_De1_index_2='Subsector Elect Demand by Year'!$C$2)*("Electricity--GWh"=Subsector_Energy_De1_index_4)*(G$6=Subsector_Energy_De1_index_1)*Subsector_Energy_De1_vals)) -> 1451.404951 | H12: =IF($C12="","",SUMPRODUCT(($C12=Subsector_Energy_De1_index_3)*(Subsector_Energy_De1_index_2='Subsector Elect Demand by Year'!$C$2)*("Electricity--GWh"=Subsector_Energy_De1_index_4)*(H$6=Subsector_Energy_De1_index_1)*Subsector_Energy_De1_vals)) -> 1454.439887 | I12: =IF($C12="","",SUMPRODUCT(($C12=Subsector_Energy_De1_index_3)*(Subsector_Energy_De1_index_2='Subsector Elect Demand by Year'!$C$2)*("Electricity--GWh"=Subsector_Energy_De1_index_4)*(I$6=Subsector_Energy_De1_index_1)*Subsector_Energy_De1_vals)) -> 1452.079435 | J12: =IF($C12="","",SUMPRODUCT(($C12=Subsector_Energy_De1_index_3)*(Subsector_Energy_De1_index_2='Subsector Elect Demand by Year'!$C$2)*("Electricity--GWh"=Subsector_Energy_De1_index_4)*(J$6=Subsector_Energy_De1_index_1)*Subsector_Energy_De1_vals)) -> 1443.149769 | K12: =IF($C12="","",SUMPRODUCT(($C12=Subsector_Energy_De1_index_3)*(Subsector_Energy_De1_index_2='Subsector Elect Demand by Year'!$C$2)*("Electricity--GWh"=Subsector_Energy_De1_index_4)*(K$6=Subsector_Energy_De1_index_1)*Subsector_Energy_De1_vals)) -> 1426.981106 | L12: =IF($C12="","",SUMPRODUCT(($C12=Subsector_Energy_De1_index_3)*(Subsector_Energy_De1_index_2='Subsector Elect Demand by Year'!$C$2)*("Electricity--GWh"=Subsector_Energy_De1_index_4)*(L$6=Subsector_Energy_De1_index_1)*Subsector_Energy_De1_vals)) -> 1402.110425 | M12: =IF($C12="","",SUMPRODUCT(($C12=Subsector_Energy_De1_index_3)*(Subsector_Energy_De1_index_2='Subsector Elect Demand by Year'!$C$2)*("Electricity--GWh"=Subsector_Energy_De1_index_4)*(M$6=Subsector_Energy_De1_index_1)*Subsector_Energy_De1_vals)) -> 1367.954336 | N12: =IF($C12="","",SUMPRODUCT(($C12=Subsector_Energy_De1_index_3)*(Subsector_Energy_De1_index_2='Subsector Elect Demand by Year'!$C$2)*("Electricity--GWh"=Subsector_Energy_De1_index_4)*(N$6=Subsector_Energy_De1_index_1)*Subsector_Energy_De1_vals)) -> 1325.918409 | O12: =IF($C12="","",SUMPRODUCT(($C12=Subsector_Energy_De1_index_3)*(Subsector_Energy_De1_index_2='Subsector Elect Demand by Year'!$C$2)*("Electricity--GWh"=Subsector_Energy_De1_index_4)*(O$6=Subsector_Energy_De1_index_1)*Subsector_Energy_De1_vals)) -> 1286.356745 | P12: =IF($C12="","",SUMPRODUCT(($C12=Subsector_Energy_De1_index_3)*(Subsector_Energy_De1_index_2='Subsector Elect Demand by Year'!$C$2)*("Electricity--GWh"=Subsector_Energy_De1_index_4)*(P$6=Subsector_Energy_De1_index_1)*Subsector_Energy_De1_vals)) -> 1251.915071 | Q12: =IF($C12="","",SUMPRODUCT(($C12=Subsector_Energy_De1_index_3)*(Subsector_Energy_De1_index_2='Subsector Elect Demand by Year'!$C$2)*("Electricity--GWh"=Subsector_Energy_De1_index_4)*(Q$6=Subsector_Energy_De1_index_1)*Subsector_Energy_De1_vals)) -> 1233.626867 | R12: =IF($C12="","",SUMPRODUCT(($C12=Subsector_Energy_De1_index_3)*(Subsector_Energy_De1_index_2='Subsector Elect Demand by Year'!$C$2)*("Electricity--GWh"=Subsector_Energy_De1_index_4)*(R$6=Subsector_Energy_De1_index_1)*Subsector_Energy_De1_vals)) -> 1242.346722 | S12: =IF($C12="","",SUMPRODUCT(($C12=Subsector_Energy_De1_index_3)*(Subsector_Energy_De1_index_2='Subsector Elect Demand by Year'!$C$2)*("Electricity--GWh"=Subsector_Energy_De1_index_4)*(S$6=Subsector_Energy_De1_index_1)*Subsector_Energy_De1_vals)) -> 1285.979294 | T12: =IF($C12="","",SUMPRODUCT(($C12=Subsector_Energy_De1_index_3)*(Subsector_Energy_De1_index_2='Subsector Elect Demand by Year'!$C$2)*("Electricity--GWh"=Subsector_Energy_De1_index_4)*(T$6=Subsector_Energy_De1_index_1)*Subsector_Energy_De1_vals)) -> 1367.874773 | U12: =IF($C12="","",SUMPRODUCT(($C12=Subsector_Energy_De1_index_3)*(Subsector_Energy_De1_index_2='Subsector Elect Demand by Year'!$C$2)*("Electricity--GWh"=Subsector_Energy_De1_index_4)*(U$6=Subsector_Energy_De1_index_1)*Subsector_Energy_De1_vals)) -> 1486.817034 | V12: =IF($C12="","",SUMPRODUCT(($C12=Subsector_Energy_De1_index_3)*(Subsector_Energy_De1_index_2='Subsector Elect Demand by Year'!$C$2)*("Electricity--GWh"=Subsector_Energy_De1_index_4)*(V$6=Subsector_Energy_De1_index_1)*Subsector_Energy_De1_vals)) -> 1638.159351 | W12: =IF($C12="","",SUMPRODUCT(($C12=Subsector_Energy_De1_index_3)*(Subsector_Energy_De1_index_2='Subsector Elect Demand by Year'!$C$2)*("Electricity--GWh"=Subsector_Energy_De1_index_4)*(W$6=Subsector_Energy_De1_index_1)*Subsector_Energy_De1_vals)) -> 1815.61486 | X12: =IF($C12="","",SUMPRODUCT(($C12=Subsector_Energy_De1_index_3)*(Subsector_Energy_De1_index_2='Subsector Elect Demand by Year'!$C$2)*("Electricity--GWh"=Subsector_Energy_De1_index_4)*(X$6=Subsector_Energy_De1_index_1)*Subsector_Energy_De1_vals)) -> 2012.782173 | Y12: =IF($C12="","",SUMPRODUCT(($C12=Subsector_Energy_De1_index_3)*(Subsector_Energy_De1_index_2='Subsector Elect Demand by Year'!$C$2)*("Electricity--GWh"=Subsector_Energy_De1_index_4)*(Y$6=Subsector_Energy_De1_index_1)*Subsector_Energy_De1_vals)) -> 2224.121708 | Z12: =IF($C12="","",SUMPRODUCT(($C12=Subsector_Energy_De1_index_3)*(Subsector_Energy_De1_index_2='Subsector Elect Demand by Year'!$C$2)*("Electricity--GWh"=Subsector_Energy_De1_index_4)*(Z$6=Subsector_Energy_De1_index_1)*Subsector_Energy_De1_vals)) -> 2445.424431 | AA12: =IF($C12="","",SUMPRODUCT(($C12=Subsector_Energy_De1_index_3)*(Subsector_Energy_De1_index_2='Subsector Elect Demand by Year'!$C$2)*("Electricity--GWh"=Subsector_Energy_De1_index_4)*(AA$6=Subsector_Energy_De1_index_1)*Subsector_Energy_De1_vals)) -> 2673.657745 | AB12: =IF($C12="","",SUMPRODUCT(($C12=Subsector_Energy_De1_index_3)*(Subsector_Energy_De1_index_2='Subsector Elect Demand by Year'!$C$2)*("Electricity--GWh"=Subsector_Energy_De1_index_4)*(AB$6=Subsector_Energy_De1_index_1)*Subsector_Energy_De1_vals)) -> 2906.742044 | AC12: =IF($C12="","",SUMPRODUCT(($C12=Subsector_Energy_De1_index_3)*(Subsector_Energy_De1_index_2='Subsector Elect Demand by Year'!$C$2)*("Electricity--GWh"=Subsector_Energy_De1_index_4)*(AC$6=Subsector_Energy_De1_index_1)*Subsector_Energy_De1_vals)) -> 3143.239804 | AD12: =IF($C12="","",SUMPRODUCT(($C12=Subsector_Energy_De1_index_3)*(Subsector_Energy_De1_index_2='Subsector Elect Demand by Year'!$C$2)*("Electricity--GWh"=Subsector_Energy_De1_index_4)*(AD$6=Subsector_Energy_De1_index_1)*Subsector_Energy_De1_vals)) -> 3382.131064 | AE12: =IF($C12="","",SUMPRODUCT(($C12=Subsector_Energy_De1_index_3)*(Subsector_Energy_De1_index_2='Subsector Elect Demand by Year'!$C$2)*("Electricity--GWh"=Subsector_Energy_De1_index_4)*(AE$6=Subsector_Energy_De1_index_1)*Subsector_Energy_De1_vals)) -> 3622.556012 | AF12: =IF($C12="","",SUMPRODUCT(($C12=Subsector_Energy_De1_index_3)*(Subsector_Energy_De1_index_2='Subsector Elect Demand by Year'!$C$2)*("Electricity--GWh"=Subsector_Energy_De1_index_4)*(AF$6=Subsector_Energy_De1_index_1)*Subsector_Energy_De1_vals)) -> 3863.70154 | AG12: =IF($C12="","",SUMPRODUCT(($C12=Subsector_Energy_De1_index_3)*(Subsector_Energy_De1_index_2='Subsector Elect Demand by Year'!$C$2)*("Electricity--GWh"=Subsector_Energy_De1_index_4)*(AG$6=Subsector_Energy_De1_index_1)*Subsector_Energy_De1_vals)) -> 4104.683716 | AH12: =IF($C12="","",SUMPRODUCT(($C12=Subsector_Energy_De1_index_3)*(Subsector_Energy_De1_index_2='Subsector Elect Demand by Year'!$C$2)*("Electricity--GWh"=Subsector_Energy_De1_index_4)*(AH$6=Subsector_Energy_De1_index_1)*Subsector_Energy_De1_vals)) -> 4344.5723 | AI12: =IF($C12="","",SUMPRODUCT(($C12=Subsector_Energy_De1_index_3)*(Subsector_Energy_De1_index_2='Subsector Elect Demand by Year'!$C$2)*("Electricity--GWh"=Subsector_Energy_De1_index_4)*(AI$6=Subsector_Energy_De1_index_1)*Subsector_Energy_De1_vals)) -> 4582.24446 | AJ12: =IF($C12="","",SUMPRODUCT(($C12=Subsector_Energy_De1_index_3)*(Subsector_Energy_De1_index_2='Subsector Elect Demand by Year'!$C$2)*("Electricity--GWh"=Subsector_Energy_De1_index_4)*(AJ$6=Subsector_Energy_De1_index_1)*Subsector_Energy_De1_vals)) -> 4816.555741 | AK12: =IF($C12="","",SUMPRODUCT(($C12=Subsector_Energy_De1_index_3)*(Subsector_Energy_De1_index_2='Subsector Elect Demand by Year'!$C$2)*("Electricity--GWh"=Subsector_Energy_De1_index_4)*(AK$6=Subsector_Energy_De1_index_1)*Subsector_Energy_De1_vals)) -> 5046.219881 | AL12: =IF($C12="","",SUMPRODUCT(($C12=Subsector_Energy_De1_index_3)*(Subsector_Energy_De1_index_2='Subsector Elect Demand by Year'!$C$2)*("Electricity--GWh"=Subsector_Energy_De1_index_4)*(AL$6=Subsector_Energy_De1_index_1)*Subsector_Energy_De1_vals)) -> 5269.910572 | AM12: =IF($C12="","",SUMPRODUCT(($C12=Subsector_Energy_De1_index_3)*(Subsector_Energy_De1_index_2='Subsector Elect Demand by Year'!$C$2)*("Electricity--GWh"=Subsector_Energy_De1_index_4)*(AM$6=Subsector_Energy_De1_index_1)*Subsector_Energy_De1_vals)) -> 5486.276214 | AN12: =IF($C12="","",SUMPRODUCT(($C12=Subsector_Energy_De1_index_3)*(Subsector_Energy_De1_index_2='Subsector Elect Demand by Year'!$C$2)*("Electricity--GWh"=Subsector_Energy_De1_index_4)*(AN$6=Subsector_Energy_De1_index_1)*Subsector_Energy_De1_vals)) -> 5694.029242
A13: =IF(A12>=MAX(Lists!$S$2:$S$61),"",A12+1) -> 7 | B13: =IF(A13="","",INDEX(Lists!$R$2:$R$62,MATCH($A13,Lists!$S$2:$S$62,0))) -> Commercial | C13: =IF($A13="","",INDEX(Lists!$Q$2:$Q$62,MATCH($A13,Lists!$S$2:$S$62,0))) -> Commercial Ventilation | D13: Bldgs | E13: =IF($C13="","",SUMPRODUCT(($C13=Subsector_Energy_De1_index_3)*(Subsector_Energy_De1_index_2='Subsector Elect Demand by Year'!$C$2)*("Electricity--GWh"=Subsector_Energy_De1_index_4)*(E$6=Subsector_Energy_De1_index_1)*Subsector_Energy_De1_vals)) -> 10511.66925 | F13: =IF($C13="","",SUMPRODUCT(($C13=Subsector_Energy_De1_index_3)*(Subsector_Energy_De1_index_2='Subsector Elect Demand by Year'!$C$2)*("Electricity--GWh"=Subsector_Energy_De1_index_4)*(F$6=Subsector_Energy_De1_index_1)*Subsector_Energy_De1_vals)) -> 10586.69512 | G13: =IF($C13="","",SUMPRODUCT(($C13=Subsector_Energy_De1_index_3)*(Subsector_Energy_De1_index_2='Subsector Elect Demand by Year'!$C$2)*("Electricity--GWh"=Subsector_Energy_De1_index_4)*(G$6=Subsector_Energy_De1_index_1)*Subsector_Energy_De1_vals)) -> 10662.66822 | H13: =IF($C13="","",SUMPRODUCT(($C13=Subsector_Energy_De1_index_3)*(Subsector_Energy_De1_index_2='Subsector Elect Demand by Year'!$C$2)*("Electricity--GWh"=Subsector_Energy_De1_index_4)*(H$6=Subsector_Energy_De1_index_1)*Subsector_Energy_De1_vals)) -> 10720.96069 | I13: =IF($C13="","",SUMPRODUCT(($C13=Subsector_Energy_De1_index_3)*(Subsector_Energy_De1_index_2='Subsector Elect Demand by Year'!$C$2)*("Electricity--GWh"=Subsector_Energy_De1_index_4)*(I$6=Subsector_Energy_De1_index_1)*Subsector_Energy_De1_vals)) -> 10757.63616 | J13: =IF($C13="","",SUMPRODUCT(($C13=Subsector_Energy_De1_index_3)*(Subsector_Energy_De1_index_2='Subsector Elect Demand by Year'!$C$2)*("Electricity--GWh"=Subsector_Energy_De1_index_4)*(J$6=Subsector_Energy_De1_index_1)*Subsector_Energy_De1_vals)) -> 10765.86503 | K13: =IF($C13="","",SUMPRODUCT(($C13=Subsector_Energy_De1_index_3)*(Subsector_Energy_De1_index_2='Subsector Elect Demand by Year'!$C$2)*("Electricity--GWh"=Subsector_Energy_De1_index_4)*(K$6=Subsector_Energy_De1_index_1)*Subsector_Energy_De1_vals)) -> 10750.62394 | L13: =IF($C13="","",SUMPRODUCT(($C13=Subsector_Energy_De1_index_3)*(Subsector_Energy_De1_index_2='Subsector Elect Demand by Year'!$C$2)*("Electricity--GWh"=Subsector_Energy_De1_index_4)*(L$6=Subsector_Energy_De1_index_1)*Subsector_Energy_De1_vals)) -> 10718.10206 | M13: =IF($C13="","",SUMPRODUCT(($C13=Subsector_Energy_De1_index_3)*(Subsector_Energy_De1_index_2='Subsector Elect Demand by Year'!$C$2)*("Electricity--GWh"=Subsector_Energy_De1_index_4)*(M$6=Subsector_Energy_De1_index_1)*Subsector_Energy_De1_vals)) -> 10677.99051 | N13: =IF($C13="","",SUMPRODUCT(($C13=Subsector_Energy_De1_index_3)*(Subsector_Energy_De1_index_2='Subsector Elect Demand by Year'!$C$2)*("Electricity--GWh"=Subsector_Energy_De1_index_4)*(N$6=Subsector_Energy_De1_index_1)*Subsector_Energy_De1_vals)) -> 10635.4923 | O13: =IF($C13="","",SUMPRODUCT(($C13=Subsector_Energy_De1_index_3)*(Subsector_Energy_De1_index_2='Subsector Elect Demand by Year'!$C$2)*("Electricity--GWh"=Subsector_Energy_De1_index_4)*(O$6=Subsector_Energy_De1_index_1)*Subsector_Energy_De1_vals)) -> 10594.62732 | P13: =IF($C13="","",SUMPRODUCT(($C13=Subsector_Energy_De1_index_3)*(Subsector_Energy_De1_index_2='Subsector Elect Demand by Year'!$C$2)*("Electricity--GWh"=Subsector_Energy_De1_index_4)*(P$6=Subsector_Energy_De1_index_1)*Subsector_Energy_De1_vals)) -> 10556.75738 | Q13: =IF($C13="","",SUMPRODUCT(($C13=Subsector_Energy_De1_index_3)*(Subsector_Energy_De1_index_2='Subsector Elect Demand by Year'!$C$2)*("Electricity--GWh"=Subsector_Energy_De1_index_4)*(Q$6=Subsector_Energy_De1_index_1)*Subsector_Energy_De1_vals)) -> 10522.96579 | R13: =IF($C13="","",SUMPRODUCT(($C13=Subsector_Energy_De1_index_3)*(Subsector_Energy_De1_index_2='Subsector Elect Demand by Year'!$C$2)*("Electricity--GWh"=Subsector_Energy_De1_index_4)*(R$6=Subsector_Energy_De1_index_1)*Subsector_Energy_De1_vals)) -> 10493.85549 | S13: =IF($C13="","",SUMPRODUCT(($C13=Subsector_Energy_De1_index_3)*(Subsector_Energy_De1_index_2='Subsector Elect Demand by Year'!$C$2)*("Electricity--GWh"=Subsector_Energy_De1_index_4)*(S$6=Subsector_Energy_De1_index_1)*Subsector_Energy_De1_vals)) -> 10469.6786 | T13: =IF($C13="","",SUMPRODUCT(($C13=Subsector_Energy_De1_index_3)*(Subsector_Energy_De1_index_2='Subsector Elect Demand by Year'!$C$2)*("Electricity--GWh"=Subsector_Energy_De1_index_4)*(T$6=Subsector_Energy_De1_index_1)*Subsector_Energy_De1_vals)) -> 10450.39982 | U13: =IF($C13="","",SUMPRODUCT(($C13=Subsector_Energy_De1_index_3)*(Subsector_Energy_De1_index_2='Subsector Elect Demand by Year'!$C$2)*("Electricity--GWh"=Subsector_Energy_De1_index_4)*(U$6=Subsector_Energy_De1_index_1)*Subsector_Energy_De1_vals)) -> 10434.88946 | V13: =IF($C13="","",SUMPRODUCT(($C13=Subsector_Energy_De1_index_3)*(Subsector_Energy_De1_index_2='Subsector Elect Demand by Year'!$C$2)*("Electricity--GWh"=Subsector_Energy_De1_index_4)*(V$6=Subsector_Energy_De1_index_1)*Subsector_Energy_De1_vals)) -> 10422.73241 | W13: =IF($C13="","",SUMPRODUCT(($C13=Subsector_Energy_De1_index_3)*(Subsector_Energy_De1_index_2='Subsector Elect Demand by Year'!$C$2)*("Electricity--GWh"=Subsector_Energy_De1_index_4)*(W$6=Subsector_Energy_De1_index_1)*Subsector_Energy_De1_vals)) -> 10413.41563 | X13: =IF($C13="","",SUMPRODUCT(($C13=Subsector_Energy_De1_index_3)*(Subsector_Energy_De1_index_2='Subsector Elect Demand by Year'!$C$2)*("Electricity--GWh"=Subsector_Energy_De1_index_4)*(X$6=Subsector_Energy_De1_index_1)*Subsector_Energy_De1_vals)) -> 10406.41294 | Y13: =IF($C13="","",SUMPRODUCT(($C13=Subsector_Energy_De1_index_3)*(Subsector_Energy_De1_index_2='Subsector Elect Demand by Year'!$C$2)*("Electricity--GWh"=Subsector_Energy_De1_index_4)*(Y$6=Subsector_Energy_De1_index_1)*Subsector_Energy_De1_vals)) -> 10401.34175 | Z13: =IF($C13="","",SUMPRODUCT(($C13=Subsector_Energy_De1_index_3)*(Subsector_Energy_De1_index_2='Subsector Elect Demand by Year'!$C$2)*("Electricity--GWh"=Subsector_Energy_De1_index_4)*(Z$6=Subsector_Energy_De1_index_1)*Subsector_Energy_De1_vals)) -> 10397.98357 | AA13: =IF($C13="","",SUMPRODUCT(($C13=Subsector_Energy_De1_index_3)*(Subsector_Energy_De1_index_2='Subsector Elect Demand by Year'!$C$2)*("Electricity--GWh"=Subsector_Energy_De1_index_4)*(AA$6=Subsector_Energy_De1_index_1)*Subsector_Energy_De1_vals)) -> 10396.33248 | AB13: =IF($C13="","",SUMPRODUCT(($C13=Subsector_Energy_De1_index_3)*(Subsector_Energy_De1_index_2='Subsector Elect Demand by Year'!$C$2)*("Electricity--GWh"=Subsector_Energy_De1_index_4)*(AB$6=Subsector_Energy_De1_index_1)*Subsector_Energy_De1_vals)) -> 10396.55574 | AC13: =IF($C13="","",SUMPRODUCT(($C13=Subsector_Energy_De1_index_3)*(Subsector_Energy_De1_index_2='Subsector Elect Demand by Year'!$C$2)*("Electricity--GWh"=Subsector_Energy_De1_index_4)*(AC$6=Subsector_Energy_De1_index_1)*Subsector_Energy_De1_vals)) -> 10398.89458 | AD13: =IF($C13="","",SUMPRODUCT(($C13=Subsector_Energy_De1_index_3)*(Subsector_Energy_De1_index_2='Subsector Elect Demand by Year'!$C$2)*("Electricity--GWh"=Subsector_Energy_De1_index_4)*(AD$6=Subsector_Energy_De1_index_1)*Subsector_Energy_De1_vals)) -> 10403.64818 | AE13: =IF($C13="","",SUMPRODUCT(($C13=Subsector_Energy_De1_index_3)*(Subsector_Energy_De1_index_2='Subsector Elect Demand by Year'!$C$2)*("Electricity--GWh"=Subsector_Energy_De1_index_4)*(AE$6=Subsector_Energy_De1_index_1)*Subsector_Energy_De1_vals)) -> 10414.94688 | AF13: =IF($C13="","",SUMPRODUCT(($C13=Subsector_Energy_De1_index_3)*(Subsector_Energy_De1_index_2='Subsector Elect Demand by Year'!$C$2)*("Electricity--GWh"=Subsector_Energy_De1_index_4)*(AF$6=Subsector_Energy_De1_index_1)*Subsector_Energy_De1_vals)) -> 10432.83026 | AG13: =IF($C13="","",SUMPRODUCT(($C13=Subsector_Energy_De1_index_3)*(Subsector_Energy_De1_index_2='Subsector Elect Demand by Year'!$C$2)*("Electricity--GWh"=Subsector_Energy_De1_index_4)*(AG$6=Subsector_Energy_De1_index_1)*Subsector_Energy_De1_vals)) -> 10457.20783 | AH13: =IF($C13="","",SUMPRODUCT(($C13=Subsector_Energy_De1_index_3)*(Subsector_Energy_De1_index_2='Subsector Elect Demand by Year'!$C$2)*("Electricity--GWh"=Subsector_Energy_De1_index_4)*(AH$6=Subsector_Energy_De1_index_1)*Subsector_Energy_De1_vals)) -> 10487.88584 | AI13: =IF($C13="","",SUMPRODUCT(($C13=Subsector_Energy_De1_index_3)*(Subsector_Energy_De1_index_2='Subsector Elect Demand by Year'!$C$2)*("Electricity--GWh"=Subsector_Energy_De1_index_4)*(AI$6=Subsector_Energy_De1_index_1)*Subsector_Energy_De1_vals)) -> 10524.5172 | AJ13: =IF($C13="","",SUMPRODUCT(($C13=Subsector_Energy_De1_index_3)*(Subsector_Energy_De1_index_2='Subsector Elect Demand by Year'!$C$2)*("Electricity--GWh"=Subsector_Energy_De1_index_4)*(AJ$6=Subsector_Energy_De1_index_1)*Subsector_Energy_De1_vals)) -> 10566.73243 | AK13: =IF($C13="","",SUMPRODUCT(($C13=Subsector_Energy_De1_index_3)*(Subsector_Energy_De1_index_2='Subsector Elect Demand by Year'!$C$2)*("Electricity--GWh"=Subsector_Energy_De1_index_4)*(AK$6=Subsector_Energy_De1_index_1)*Subsector_Energy_De1_vals)) -> 10614.10268 | AL13: =IF($C13="","",SUMPRODUCT(($C13=Subsector_Energy_De1_index_3)*(Subsector_Energy_De1_index_2='Subsector Elect Demand by Year'!$C$2)*("Electricity--GWh"=Subsector_Energy_De1_index_4)*(AL$6=Subsector_Energy_De1_index_1)*Subsector_Energy_De1_vals)) -> 10666.19715 | AM13: =IF($C13="","",SUMPRODUCT(($C13=Subsector_Energy_De1_index_3)*(Subsector_Energy_De1_index_2='Subsector Elect Demand by Year'!$C$2)*("Electricity--GWh"=Subsector_Energy_De1_index_4)*(AM$6=Subsector_Energy_De1_index_1)*Subsector_Energy_De1_vals)) -> 10722.60972 | AN13: =IF($C13="","",SUMPRODUCT(($C13=Subsector_Energy_De1_index_3)*(Subsector_Energy_De1_index_2='Subsector Elect Demand by Year'!$C$2)*("Electricity--GWh"=Subsector_Energy_De1_index_4)*(AN$6=Subsector_Energy_De1_index_1)*Subsector_Energy_De1_vals)) -> 10783.00713
A14: =IF(A13>=MAX(Lists!$S$2:$S$61),"",A13+1) -> 8 | B14: =IF(A14="","",INDEX(Lists!$R$2:$R$62,MATCH($A14,Lists!$S$2:$S$62,0))) -> Commercial | C14: =IF($A14="","",INDEX(Lists!$Q$2:$Q$62,MATCH($A14,Lists!$S$2:$S$62,0))) -> Commercial Water Heating | D14: Bldgs WH | E14: =IF($C14="","",SUMPRODUCT(($C14=Subsector_Energy_De1_index_3)*(Subsector_Energy_De1_index_2='Subsector Elect Demand by Year'!$C$2)*("Electricity--GWh"=Subsector_Energy_De1_index_4)*(E$6=Subsector_Energy_De1_index_1)*Subsector_Energy_De1_vals)) -> 1324.310702 | F14: =IF($C14="","",SUMPRODUCT(($C14=Subsector_Energy_De1_index_3)*(Subsector_Energy_De1_index_2='Subsector Elect Demand by Year'!$C$2)*("Electricity--GWh"=Subsector_Energy_De1_index_4)*(F$6=Subsector_Energy_De1_index_1)*Subsector_Energy_De1_vals)) -> 1330.988085 | G14: =IF($C14="","",SUMPRODUCT(($C14=Subsector_Energy_De1_index_3)*(Subsector_Energy_De1_index_2='Subsector Elect Demand by Year'!$C$2)*("Electricity--GWh"=Subsector_Energy_De1_index_4)*(G$6=Subsector_Energy_De1_index_1)*Subsector_Energy_De1_vals)) -> 1337.194643 | H14: =IF($C14="","",SUMPRODUCT(($C14=Subsector_Energy_De1_index_3)*(Subsector_Energy_De1_index_2='Subsector Elect Demand by Year'!$C$2)*("Electricity--GWh"=Subsector_Energy_De1_index_4)*(H$6=Subsector_Energy_De1_index_1)*Subsector_Energy_De1_vals)) -> 1340.491785 | I14: =IF($C14="","",SUMPRODUCT(($C14=Subsector_Energy_De1_index_3)*(Subsector_Energy_De1_index_2='Subsector Elect Demand by Year'!$C$2)*("Electricity--GWh"=Subsector_Energy_De1_index_4)*(I$6=Subsector_Energy_De1_index_1)*Subsector_Energy_De1_vals)) -> 1340.497573 | J14: =IF($C14="","",SUMPRODUCT(($C14=Subsector_Energy_De1_index_3)*(Subsector_Energy_De1_index_2='Subsector Elect Demand by Year'!$C$2)*("Electricity--GWh"=Subsector_Energy_De1_index_4)*(J$6=Subsector_Energy_De1_index_1)*Subsector_Energy_De1_vals)) -> 1336.893565 | K14: =IF($C14="","",SUMPRODUCT(($C14=Subsector_Energy_De1_index_3)*(Subsector_Energy_De1_index_2='Subsector Elect Demand by Year'!$C$2)*("Electricity--GWh"=Subsector_Energy_De1_index_4)*(K$6=Subsector_Energy_De1_index_1)*Subsector_Energy_De1_vals)) -> 1330.484063 | L14: =IF($C14="","",SUMPRODUCT(($C14=Subsector_Energy_De1_index_3)*(Subsector_Energy_De1_index_2='Subsector Elect Demand by Year'!$C$2)*("Electricity--GWh"=Subsector_Energy_De1_index_4)*(L$6=Subsector_Energy_De1_index_1)*Subsector_Energy_De1_vals)) -> 1321.718119 | M14: =IF($C14="","",SUMPRODUCT(($C14=Subsector_Energy_De1_index_3)*(Subsector_Energy_De1_index_2='Subsector Elect Demand by Year'!$C$2)*("Electricity--GWh"=Subsector_Energy_De1_index_4)*(M$6=Subsector_Energy_De1_index_1)*Subsector_Energy_De1_vals)) -> 1312.377273 | N14: =IF($C14="","",SUMPRODUCT(($C14=Subsector_Energy_De1_index_3)*(Subsector_Energy_De1_index_2='Subsector Elect Demand by Year'!$C$2)*("Electricity--GWh"=Subsector_Energy_De1_index_4)*(N$6=Subsector_Energy_De1_index_1)*Subsector_Energy_De1_vals)) -> 1306.259382 | O14: =IF($C14="","",SUMPRODUCT(($C14=Subsector_Energy_De1_index_3)*(Subsector_Energy_De1_index_2='Subsector Elect Demand by Year'!$C$2)*("Electricity--GWh"=Subsector_Energy_De1_index_4)*(O$6=Subsector_Energy_De1_index_1)*Subsector_Energy_De1_vals)) -> 1325.448799 | P14: =IF($C14="","",SUMPRODUCT(($C14=Subsector_Energy_De1_index_3)*(Subsector_Energy_De1_index_2='Subsector Elect Demand by Year'!$C$2)*("Electricity--GWh"=Subsector_Energy_De1_index_4)*(P$6=Subsector_Energy_De1_index_1)*Subsector_Energy_De1_vals)) -> 1367.031158 | Q14: =IF($C14="","",SUMPRODUCT(($C14=Subsector_Energy_De1_index_3)*(Subsector_Energy_De1_index_2='Subsector Elect Demand by Year'!$C$2)*("Electricity--GWh"=Subsector_Energy_De1_index_4)*(Q$6=Subsector_Energy_De1_index_1)*Subsector_Energy_De1_vals)) -> 1445.814515 | R14: =IF($C14="","",SUMPRODUCT(($C14=Subsector_Energy_De1_index_3)*(Subsector_Energy_De1_index_2='Subsector Elect Demand by Year'!$C$2)*("Electricity--GWh"=Subsector_Energy_De1_index_4)*(R$6=Subsector_Energy_De1_index_1)*Subsector_Energy_De1_vals)) -> 1577.320867 | S14: =IF($C14="","",SUMPRODUCT(($C14=Subsector_Energy_De1_index_3)*(Subsector_Energy_De1_index_2='Subsector Elect Demand by Year'!$C$2)*("Electricity--GWh"=Subsector_Energy_De1_index_4)*(S$6=Subsector_Energy_De1_index_1)*Subsector_Energy_De1_vals)) -> 1774.366836 | T14: =IF($C14="","",SUMPRODUCT(($C14=Subsector_Energy_De1_index_3)*(Subsector_Energy_De1_index_2='Subsector Elect Demand by Year'!$C$2)*("Electricity--GWh"=Subsector_Energy_De1_index_4)*(T$6=Subsector_Energy_De1_index_1)*Subsector_Energy_De1_vals)) -> 2043.984724 | U14: =IF($C14="","",SUMPRODUCT(($C14=Subsector_Energy_De1_index_3)*(Subsector_Energy_De1_index_2='Subsector Elect Demand by Year'!$C$2)*("Electricity--GWh"=Subsector_Energy_De1_index_4)*(U$6=Subsector_Energy_De1_index_1)*Subsector_Energy_De1_vals)) -> 2385.715268 | V14: =IF($C14="","",SUMPRODUCT(($C14=Subsector_Energy_De1_index_3)*(Subsector_Energy_De1_index_2='Subsector Elect Demand by Year'!$C$2)*("Electricity--GWh"=Subsector_Energy_De1_index_4)*(V$6=Subsector_Energy_De1_index_1)*Subsector_Energy_De1_vals)) -> 2792.070873 | W14: =IF($C14="","",SUMPRODUCT(($C14=Subsector_Energy_De1_index_3)*(Subsector_Energy_De1_index_2='Subsector Elect Demand by Year'!$C$2)*("Electricity--GWh"=Subsector_Energy_De1_index_4)*(W$6=Subsector_Energy_De1_index_1)*Subsector_Energy_De1_vals)) -> 3250.900719 | X14: =IF($C14="","",SUMPRODUCT(($C14=Subsector_Energy_De1_index_3)*(Subsector_Energy_De1_index_2='Subsector Elect Demand by Year'!$C$2)*("Electricity--GWh"=Subsector_Energy_De1_index_4)*(X$6=Subsector_Energy_De1_index_1)*Subsector_Energy_De1_vals)) -> 3748.352482 | Y14: =IF($C14="","",SUMPRODUCT(($C14=Subsector_Energy_De1_index_3)*(Subsector_Energy_De1_index_2='Subsector Elect Demand by Year'!$C$2)*("Electricity--GWh"=Subsector_Energy_De1_index_4)*(Y$6=Subsector_Energy_De1_index_1)*Subsector_Energy_De1_vals)) -> 4271.061898 | Z14: =IF($C14="","",SUMPRODUCT(($C14=Subsector_Energy_De1_index_3)*(Subsector_Energy_De1_index_2='Subsector Elect Demand by Year'!$C$2)*("Electricity--GWh"=Subsector_Energy_De1_index_4)*(Z$6=Subsector_Energy_De1_index_1)*Subsector_Energy_De1_vals)) -> 4807.289045 | AA14: =IF($C14="","",SUMPRODUCT(($C14=Subsector_Energy_De1_index_3)*(Subsector_Energy_De1_index_2='Subsector Elect Demand by Year'!$C$2)*("Electricity--GWh"=Subsector_Energy_De1_index_4)*(AA$6=Subsector_Energy_De1_index_1)*Subsector_Energy_De1_vals)) -> 5346.85269 | AB14: =IF($C14="","",SUMPRODUCT(($C14=Subsector_Energy_De1_index_3)*(Subsector_Energy_De1_index_2='Subsector Elect Demand by Year'!$C$2)*("Electricity--GWh"=Subsector_Energy_De1_index_4)*(AB$6=Subsector_Energy_De1_index_1)*Subsector_Energy_De1_vals)) -> 5880.864967 | AC14: =IF($C14="","",SUMPRODUCT(($C14=Subsector_Energy_De1_index_3)*(Subsector_Energy_De1_index_2='Subsector Elect Demand by Year'!$C$2)*("Electricity--GWh"=Subsector_Energy_De1_index_4)*(AC$6=Subsector_Energy_De1_index_1)*Subsector_Energy_De1_vals)) -> 6401.251955 | AD14: =IF($C14="","",SUMPRODUCT(($C14=Subsector_Energy_De1_index_3)*(Subsector_Energy_De1_index_2='Subsector Elect Demand by Year'!$C$2)*("Electricity--GWh"=Subsector_Energy_De1_index_4)*(AD$6=Subsector_Energy_De1_index_1)*Subsector_Energy_De1_vals)) -> 6900.751339 | AE14: =IF($C14="","",SUMPRODUCT(($C14=Subsector_Energy_De1_index_3)*(Subsector_Energy_De1_index_2='Subsector Elect Demand by Year'!$C$2)*("Electricity--GWh"=Subsector_Energy_De1_index_4)*(AE$6=Subsector_Energy_De1_index_1)*Subsector_Energy_De1_vals)) -> 7372.771387 | AF14: =IF($C14="","",SUMPRODUCT(($C14=Subsector_Energy_De1_index_3)*(Subsector_Energy_De1_index_2='Subsector Elect Demand by Year'!$C$2)*("Electricity--GWh"=Subsector_Energy_De1_index_4)*(AF$6=Subsector_Energy_De1_index_1)*Subsector_Energy_De1_vals)) -> 7811.816854 | AG14: =IF($C14="","",SUMPRODUCT(($C14=Subsector_Energy_De1_index_3)*(Subsector_Energy_De1_index_2='Subsector Elect Demand by Year'!$C$2)*("Electricity--GWh"=Subsector_Energy_De1_index_4)*(AG$6=Subsector_Energy_De1_index_1)*Subsector_Energy_De1_vals)) -> 8213.76306 | AH14: =IF($C14="","",SUMPRODUCT(($C14=Subsector_Energy_De1_index_3)*(Subsector_Energy_De1_index_2='Subsector Elect Demand by Year'!$C$2)*("Electricity--GWh"=Subsector_Energy_De1_index_4)*(AH$6=Subsector_Energy_De1_index_1)*Subsector_Energy_De1_vals)) -> 8576.211082 | AI14: =IF($C14="","",SUMPRODUCT(($C14=Subsector_Energy_De1_index_3)*(Subsector_Energy_De1_index_2='Subsector Elect Demand by Year'!$C$2)*("Electricity--GWh"=Subsector_Energy_De1_index_4)*(AI$6=Subsector_Energy_De1_index_1)*Subsector_Energy_De1_vals)) -> 8898.588212 | AJ14: =IF($C14="","",SUMPRODUCT(($C14=Subsector_Energy_De1_index_3)*(Subsector_Energy_De1_index_2='Subsector Elect Demand by Year'!$C$2)*("Electricity--GWh"=Subsector_Energy_De1_index_4)*(AJ$6=Subsector_Energy_De1_index_1)*Subsector_Energy_De1_vals)) -> 9182.114721 | AK14: =IF($C14="","",SUMPRODUCT(($C14=Subsector_Energy_De1_index_3)*(Subsector_Energy_De1_index_2='Subsector Elect Demand by Year'!$C$2)*("Electricity--GWh"=Subsector_Energy_De1_index_4)*(AK$6=Subsector_Energy_De1_index_1)*Subsector_Energy_De1_vals)) -> 9429.521744 | AL14: =IF($C14="","",SUMPRODUCT(($C14=Subsector_Energy_De1_index_3)*(Subsector_Energy_De1_index_2='Subsector Elect Demand by Year'!$C$2)*("Electricity--GWh"=Subsector_Energy_De1_index_4)*(AL$6=Subsector_Energy_De1_index_1)*Subsector_Energy_De1_vals)) -> 9644.665774 | AM14: =IF($C14="","",SUMPRODUCT(($C14=Subsector_Energy_De1_index_3)*(Subsector_Energy_De1_index_2='Subsector Elect Demand by Year'!$C$2)*("Electricity--GWh"=Subsector_Energy_De1_index_4)*(AM$6=Subsector_Energy_De1_index_1)*Subsector_Energy_De1_vals)) -> 9832.048484 | AN14: =IF($C14="","",SUMPRODUCT(($C14=Subsector_Energy_De1_index_3)*(Subsector_Energy_De1_index_2='Subsector Elect Demand by Year'!$C$2)*("Electricity--GWh"=Subsector_Energy_De1_index_4)*(AN$6=Subsector_Energy_De1_index_1)*Subsector_Energy_De1_vals)) -> 9996.377574
A15: =IF(A14>=MAX(Lists!$S$2:$S$61),"",A14+1) -> 9 | B15: =IF(A15="","",INDEX(Lists!$R$2:$R$62,MATCH($A15,Lists!$S$2:$S$62,0))) -> Industrial & Ag | C15: =IF($A15="","",INDEX(Lists!$Q$2:$Q$62,MATCH($A15,Lists!$S$2:$S$62,0))) -> Agricultural Unspecified | D15: Ag & Other | E15: =IF($C15="","",SUMPRODUCT(($C15=Subsector_Energy_De1_index_3)*(Subsector_Energy_De1_index_2='Subsector Elect Demand by Year'!$C$2)*("Electricity--GWh"=Subsector_Energy_De1_index_4)*(E$6=Subsector_Energy_De1_index_1)*Subsector_Energy_De1_vals)) -> 22031.99197 | F15: =IF($C15="","",SUMPRODUCT(($C15=Subsector_Energy_De1_index_3)*(Subsector_Energy_De1_index_2='Subsector Elect Demand by Year'!$C$2)*("Electricity--GWh"=Subsector_Energy_De1_index_4)*(F$6=Subsector_Energy_De1_index_1)*Subsector_Energy_De1_vals)) -> 22274.89418 | G15: =IF($C15="","",SUMPRODUCT(($C15=Subsector_Energy_De1_index_3)*(Subsector_Energy_De1_index_2='Subsector Elect Demand by Year'!$C$2)*("Electricity--GWh"=Subsector_Energy_De1_index_4)*(G$6=Subsector_Energy_De1_index_1)*Subsector_Energy_De1_vals)) -> 22498.51349 | H15: =IF($C15="","",SUMPRODUCT(($C15=Subsector_Energy_De1_index_3)*(Subsector_Energy_De1_index_2='Subsector Elect Demand by Year'!$C$2)*("Electricity--GWh"=Subsector_Energy_De1_index_4)*(H$6=Subsector_Energy_De1_index_1)*Subsector_Energy_De1_vals)) -> 22714.14727 | I15: =IF($C15="","",SUMPRODUCT(($C15=Subsector_Energy_De1_index_3)*(Subsector_Energy_De1_index_2='Subsector Elect Demand by Year'!$C$2)*("Electricity--GWh"=Subsector_Energy_De1_index_4)*(I$6=Subsector_Energy_De1_index_1)*Subsector_Energy_De1_vals)) -> 22911.4011 | J15: =IF($C15="","",SUMPRODUCT(($C15=Subsector_Energy_De1_index_3)*(Subsector_Energy_De1_index_2='Subsector Elect Demand by Year'!$C$2)*("Electricity--GWh"=Subsector_Energy_De1_index_4)*(J$6=Subsector_Energy_De1_index_1)*Subsector_Energy_De1_vals)) -> 23021.27625 | K15: =IF($C15="","",SUMPRODUCT(($C15=Subsector_Energy_De1_index_3)*(Subsector_Energy_De1_index_2='Subsector Elect Demand by Year'!$C$2)*("Electricity--GWh"=Subsector_Energy_De1_index_4)*(K$6=Subsector_Energy_De1_index_1)*Subsector_Energy_De1_vals)) -> 23112.42304 | L15: =IF($C15="","",SUMPRODUCT(($C15=Subsector_Energy_De1_index_3)*(Subsector_Energy_De1_index_2='Subsector Elect Demand by Year'!$C$2)*("Electricity--GWh"=Subsector_Energy_De1_index_4)*(L$6=Subsector_Energy_De1_index_1)*Subsector_Energy_De1_vals)) -> 23183.06643 | M15: =IF($C15="","",SUMPRODUCT(($C15=Subsector_Energy_De1_index_3)*(Subsector_Energy_De1_index_2='Subsector Elect Demand by Year'!$C$2)*("Electricity--GWh"=Subsector_Energy_De1_index_4)*(M$6=Subsector_Energy_De1_index_1)*Subsector_Energy_De1_vals)) -> 23233.14833 | N15: =IF($C15="","",SUMPRODUCT(($C15=Subsector_Energy_De1_index_3)*(Subsector_Energy_De1_index_2='Subsector Elect Demand by Year'!$C$2)*("Electricity--GWh"=Subsector_Energy_De1_index_4)*(N$6=Subsector_Energy_De1_index_1)*Subsector_Energy_De1_vals)) -> 23262.00713 | O15: =IF($C15="","",SUMPRODUCT(($C15=Subsector_Energy_De1_index_3)*(Subsector_Energy_De1_index_2='Subsector Elect Demand by Year'!$C$2)*("Electricity--GWh"=Subsector_Energy_De1_index_4)*(O$6=Subsector_Energy_De1_index_1)*Subsector_Energy_De1_vals)) -> 23367.78136 | P15: =IF($C15="","",SUMPRODUCT(($C15=Subsector_Energy_De1_index_3)*(Subsector_Energy_De1_index_2='Subsector Elect Demand by Year'!$C$2)*("Electricity--GWh"=Subsector_Energy_De1_index_4)*(P$6=Subsector_Energy_De1_index_1)*Subsector_Energy_De1_vals)) -> 23471.70128 | Q15: =IF($C15="","",SUMPRODUCT(($C15=Subsector_Energy_De1_index_3)*(Subsector_Energy_De1_index_2='Subsector Elect Demand by Year'!$C$2)*("Electricity--GWh"=Subsector_Energy_De1_index_4)*(Q$6=Subsector_Energy_De1_index_1)*Subsector_Energy_De1_vals)) -> 23573.7669 | R15: =IF($C15="","",SUMPRODUCT(($C15=Subsector_Energy_De1_index_3)*(Subsector_Energy_De1_index_2='Subsector Elect Demand by Year'!$C$2)*("Electricity--GWh"=Subsector_Energy_De1_index_4)*(R$6=Subsector_Energy_De1_index_1)*Subsector_Energy_De1_vals)) -> 23673.97821 | S15: =IF($C15="","",SUMPRODUCT(($C15=Subsector_Energy_De1_index_3)*(Subsector_Energy_De1_index_2='Subsector Elect Demand by Year'!$C$2)*("Electricity--GWh"=Subsector_Energy_De1_index_4)*(S$6=Subsector_Energy_De1_index_1)*Subsector_Energy_De1_vals)) -> 23772.33521 | T15: =IF($C15="","",SUMPRODUCT(($C15=Subsector_Energy_De1_index_3)*(Subsector_Energy_De1_index_2='Subsector Elect Demand by Year'!$C$2)*("Electricity--GWh"=Subsector_Energy_De1_index_4)*(T$6=Subsector_Energy_De1_index_1)*Subsector_Energy_De1_vals)) -> 23868.83791 | U15: =IF($C15="","",SUMPRODUCT(($C15=Subsector_Energy_De1_index_3)*(Subsector_Energy_De1_index_2='Subsector Elect Demand by Year'!$C$2)*("Electricity--GWh"=Subsector_Energy_De1_index_4)*(U$6=Subsector_Energy_De1_index_1)*Subsector_Energy_De1_vals)) -> 24000.38662 | V15: =IF($C15="","",SUMPRODUCT(($C15=Subsector_Energy_De1_index_3)*(Subsector_Energy_De1_index_2='Subsector Elect Demand by Year'!$C$2)*("Electricity--GWh"=Subsector_Energy_De1_index_4)*(V$6=Subsector_Energy_De1_index_1)*Subsector_Energy_De1_vals)) -> 24130.21577 | W15: =IF($C15="","",SUMPRODUCT(($C15=Subsector_Energy_De1_index_3)*(Subsector_Energy_De1_index_2='Subsector Elect Demand by Year'!$C$2)*("Electricity--GWh"=Subsector_Energy_De1_index_4)*(W$6=Subsector_Energy_De1_index_1)*Subsector_Energy_De1_vals)) -> 24258.32538 | X15: =IF($C15="","",SUMPRODUCT(($C15=Subsector_Energy_De1_index_3)*(Subsector_Energy_De1_index_2='Subsector Elect Demand by Year'!$C$2)*("Electricity--GWh"=Subsector_Energy_De1_index_4)*(X$6=Subsector_Energy_De1_index_1)*Subsector_Energy_De1_vals)) -> 24384.71544 | Y15: =IF($C15="","",SUMPRODUCT(($C15=Subsector_Energy_De1_index_3)*(Subsector_Energy_De1_index_2='Subsector Elect Demand by Year'!$C$2)*("Electricity--GWh"=Subsector_Energy_De1_index_4)*(Y$6=Subsector_Energy_De1_index_1)*Subsector_Energy_De1_vals)) -> 24509.38595 | Z15: =IF($C15="","",SUMPRODUCT(($C15=Subsector_Energy_De1_index_3)*(Subsector_Energy_De1_index_2='Subsector Elect Demand by Year'!$C$2)*("Electricity--GWh"=Subsector_Energy_De1_index_4)*(Z$6=Subsector_Energy_De1_index_1)*Subsector_Energy_De1_vals)) -> 24545.3382 | AA15: =IF($C15="","",SUMPRODUCT(($C15=Subsector_Energy_De1_index_3)*(Subsector_Energy_De1_index_2='Subsector Elect Demand by Year'!$C$2)*("Electricity--GWh"=Subsector_Energy_De1_index_4)*(AA$6=Subsector_Energy_De1_index_1)*Subsector_Energy_De1_vals)) -> 24578.1561 | AB15: =IF($C15="","",SUMPRODUCT(($C15=Subsector_Energy_De1_index_3)*(Subsector_Energy_De1_index_2='Subsector Elect Demand by Year'!$C$2)*("Electricity--GWh"=Subsector_Energy_De1_index_4)*(AB$6=Subsector_Energy_De1_index_1)*Subsector_Energy_De1_vals)) -> 24607.83965 | AC15: =IF($C15="","",SUMPRODUCT(($C15=Subsector_Energy_De1_index_3)*(Subsector_Energy_De1_index_2='Subsector Elect Demand by Year'!$C$2)*("Electricity--GWh"=Subsector_Energy_De1_index_4)*(AC$6=Subsector_Energy_De1_index_1)*Subsector_Energy_De1_vals)) -> 24634.38883 | AD15: =IF($C15="","",SUMPRODUCT(($C15=Subsector_Energy_De1_index_3)*(Subsector_Energy_De1_index_2='Subsector Elect Demand by Year'!$C$2)*("Electricity--GWh"=Subsector_Energy_De1_index_4)*(AD$6=Subsector_Energy_De1_index_1)*Subsector_Energy_De1_vals)) -> 24657.80366 | AE15: =IF($C15="","",SUMPRODUCT(($C15=Subsector_Energy_De1_index_3)*(Subsector_Energy_De1_index_2='Subsector Elect Demand by Year'!$C$2)*("Electricity--GWh"=Subsector_Energy_De1_index_4)*(AE$6=Subsector_Energy_De1_index_1)*Subsector_Energy_De1_vals)) -> 24678.08413 | AF15: =IF($C15="","",SUMPRODUCT(($C15=Subsector_Energy_De1_index_3)*(Subsector_Energy_De1_index_2='Subsector Elect Demand by Year'!$C$2)*("Electricity--GWh"=Subsector_Energy_De1_index_4)*(AF$6=Subsector_Energy_De1_index_1)*Subsector_Energy_De1_vals)) -> 24695.23024 | AG15: =IF($C15="","",SUMPRODUCT(($C15=Subsector_Energy_De1_index_3)*(Subsector_Energy_De1_index_2='Subsector Elect Demand by Year'!$C$2)*("Electricity--GWh"=Subsector_Energy_De1_index_4)*(AG$6=Subsector_Energy_De1_index_1)*Subsector_Energy_De1_vals)) -> 24709.24199 | AH15: =IF($C15="","",SUMPRODUCT(($C15=Subsector_Energy_De1_index_3)*(Subsector_Energy_De1_index_2='Subsector Elect Demand by Year'!$C$2)*("Electricity--GWh"=Subsector_Energy_De1_index_4)*(AH$6=Subsector_Energy_De1_index_1)*Subsector_Energy_De1_vals)) -> 24720.11938 | AI15: =IF($C15="","",SUMPRODUCT(($C15=Subsector_Energy_De1_index_3)*(Subsector_Energy_De1_index_2='Subsector Elect Demand by Year'!$C$2)*("Electricity--GWh"=Subsector_Energy_De1_index_4)*(AI$6=Subsector_Energy_De1_index_1)*Subsector_Energy_De1_vals)) -> 24727.86242 | AJ15: =IF($C15="","",SUMPRODUCT(($C15=Subsector_Energy_De1_index_3)*(Subsector_Energy_De1_index_2='Subsector Elect Demand by Year'!$C$2)*("Electricity--GWh"=Subsector_Energy_De1_index_4)*(AJ$6=Subsector_Energy_De1_index_1)*Subsector_Energy_De1_vals)) -> 24732.4711 | AK15: =IF($C15="","",SUMPRODUCT(($C15=Subsector_Energy_De1_index_3)*(Subsector_Energy_De1_index_2='Subsector Elect Demand by Year'!$C$2)*("Electricity--GWh"=Subsector_Energy_De1_index_4)*(AK$6=Subsector_Energy_De1_index_1)*Subsector_Energy_De1_vals)) -> 24733.94542 | AL15: =IF($C15="","",SUMPRODUCT(($C15=Subsector_Energy_De1_index_3)*(Subsector_Energy_De1_index_2='Subsector Elect Demand by Year'!$C$2)*("Electricity--GWh"=Subsector_Energy_De1_index_4)*(AL$6=Subsector_Energy_De1_index_1)*Subsector_Energy_De1_vals)) -> 24732.28538 | AM15: =IF($C15="","",SUMPRODUCT(($C15=Subsector_Energy_De1_index_3)*(Subsector_Energy_De1_index_2='Subsector Elect Demand by Year'!$C$2)*("Electricity--GWh"=Subsector_Energy_De1_index_4)*(AM$6=Subsector_Energy_De1_index_1)*Subsector_Energy_De1_vals)) -> 24727.49098 | AN15: =IF($C15="","",SUMPRODUCT(($C15=Subsector_Energy_De1_index_3)*(Subsector_Energy_De1_index_2='Subsector Elect Demand by Year'!$C$2)*("Electricity--GWh"=Subsector_Energy_De1_index_4)*(AN$6=Subsector_Energy_De1_index_1)*Subsector_Energy_De1_vals)) -> 24719.56223
A16: =IF(A15>=MAX(Lists!$S$2:$S$61),"",A15+1) -> 10 | B16: =IF(A16="","",INDEX(Lists!$R$2:$R$62,MATCH($A16,Lists!$S$2:$S$62,0))) -> Industrial & Ag | C16: =IF($A16="","",INDEX(Lists!$Q$2:$Q$62,MATCH($A16,Lists!$S$2:$S$62,0))) -> Apparel & Leather | D16: Industrial | E16: =IF($C16="","",SUMPRODUCT(($C16=Subsector_Energy_De1_index_3)*(Subsector_Energy_De1_index_2='Subsector Elect Demand by Year'!$C$2)*("Electricity--GWh"=Subsector_Energy_De1_index_4)*(E$6=Subsector_Energy_De1_index_1)*Subsector_Energy_De1_vals)) -> 188.0439529 | F16: =IF($C16="","",SUMPRODUCT(($C16=Subsector_Energy_De1_index_3)*(Subsector_Energy_De1_index_2='Subsector Elect Demand by Year'!$C$2)*("Electricity--GWh"=Subsector_Energy_De1_index_4)*(F$6=Subsector_Energy_De1_index_1)*Subsector_Energy_De1_vals)) -> 186.4678055 | G16: =IF($C16="","",SUMPRODUCT(($C16=Subsector_Energy_De1_index_3)*(Subsector_Energy_De1_index_2='Subsector Elect Demand by Year'!$C$2)*("Electricity--GWh"=Subsector_Energy_De1_index_4)*(G$6=Subsector_Energy_De1_index_1)*Subsector_Energy_De1_vals)) -> 184.4524343 | H16: =IF($C16="","",SUMPRODUCT(($C16=Subsector_Energy_De1_index_3)*(Subsector_Energy_De1_index_2='Subsector Elect Demand by Year'!$C$2)*("Electricity--GWh"=Subsector_Energy_De1_index_4)*(H$6=Subsector_Energy_De1_index_1)*Subsector_Energy_De1_vals)) -> 182.0043323 | I16: =IF($C16="","",SUMPRODUCT(($C16=Subsector_Energy_De1_index_3)*(Subsector_Energy_De1_index_2='Subsector Elect Demand by Year'!$C$2)*("Electricity--GWh"=Subsector_Energy_De1_index_4)*(I$6=Subsector_Energy_De1_index_1)*Subsector_Energy_De1_vals)) -> 179.6449453 | J16: =IF($C16="","",SUMPRODUCT(($C16=Subsector_Energy_De1_index_3)*(Subsector_Energy_De1_index_2='Subsector Elect Demand by Year'!$C$2)*("Electricity--GWh"=Subsector_Energy_De1_index_4)*(J$6=Subsector_Energy_De1_index_1)*Subsector_Energy_De1_vals)) -> 173.3419821 | K16: =IF($C16="","",SUMPRODUCT(($C16=Subsector_Energy_De1_index_3)*(Subsector_Energy_De1_index_2='Subsector Elect Demand by Year'!$C$2)*("Electricity--GWh"=Subsector_Energy_De1_index_4)*(K$6=Subsector_Energy_De1_index_1)*Subsector_Energy_De1_vals)) -> 167.2944292 | L16: =IF($C16="","",SUMPRODUCT(($C16=Subsector_Energy_De1_index_3)*(Subsector_Energy_De1_index_2='Subsector Elect Demand by Year'!$C$2)*("Electricity--GWh"=Subsector_Energy_De1_index_4)*(L$6=Subsector_Energy_De1_index_1)*Subsector_Energy_De1_vals)) -> 161.2192399 | M16: =IF($C16="","",SUMPRODUCT(($C16=Subsector_Energy_De1_index_3)*(Subsector_Energy_De1_index_2='Subsector Elect Demand by Year'!$C$2)*("Electricity--GWh"=Subsector_Energy_De1_index_4)*(M$6=Subsector_Energy_De1_index_1)*Subsector_Energy_De1_vals)) -> 155.3241253 | N16: =IF($C16="","",SUMPRODUCT(($C16=Subsector_Energy_De1_index_3)*(Subsector_Energy_De1_index_2='Subsector Elect Demand by Year'!$C$2)*("Electricity--GWh"=Subsector_Energy_De1_index_4)*(N$6=Subsector_Energy_De1_index_1)*Subsector_Energy_De1_vals)) -> 149.4750615 | O16: =IF($C16="","",SUMPRODUCT(($C16=Subsector_Energy_De1_index_3)*(Subsector_Energy_De1_index_2='Subsector Elect Demand by Year'!$C$2)*("Electricity--GWh"=Subsector_Energy_De1_index_4)*(O$6=Subsector_Energy_De1_index_1)*Subsector_Energy_De1_vals)) -> 145.2728984 | P16: =IF($C16="","",SUMPRODUCT(($C16=Subsector_Energy_De1_index_3)*(Subsector_Energy_De1_index_2='Subsector Elect Demand by Year'!$C$2)*("Electricity--GWh"=Subsector_Energy_De1_index_4)*(P$6=Subsector_Energy_De1_index_1)*Subsector_Energy_De1_vals)) -> 140.5125976 | Q16: =IF($C16="","",SUMPRODUCT(($C16=Subsector_Energy_De1_index_3)*(Subsector_Energy_De1_index_2='Subsector Elect Demand by Year'!$C$2)*("Electricity--GWh"=Subsector_Energy_De1_index_4)*(Q$6=Subsector_Energy_De1_index_1)*Subsector_Energy_De1_vals)) -> 135.8029633 | R16: =IF($C16="","",SUMPRODUCT(($C16=Subsector_Energy_De1_index_3)*(Subsector_Energy_De1_index_2='Subsector Elect Demand by Year'!$C$2)*("Electricity--GWh"=Subsector_Energy_De1_index_4)*(R$6=Subsector_Energy_De1_index_1)*Subsector_Energy_De1_vals)) -> 131.1439955 | S16: =IF($C16="","",SUMPRODUCT(($C16=Subsector_Energy_De1_index_3)*(Subsector_Energy_De1_index_2='Subsector Elect Demand by Year'!$C$2)*("Electricity--GWh"=Subsector_Energy_De1_index_4)*(S$6=Subsector_Energy_De1_index_1)*Subsector_Energy_De1_vals)) -> 126.5356941 | T16: =IF($C16="","",SUMPRODUCT(($C16=Subsector_Energy_De1_index_3)*(Subsector_Energy_De1_index_2='Subsector Elect Demand by Year'!$C$2)*("Electricity--GWh"=Subsector_Energy_De1_index_4)*(T$6=Subsector_Energy_De1_index_1)*Subsector_Energy_De1_vals)) -> 121.9780592 | U16: =IF($C16="","",SUMPRODUCT(($C16=Subsector_Energy_De1_index_3)*(Subsector_Energy_De1_index_2='Subsector Elect Demand by Year'!$C$2)*("Electricity--GWh"=Subsector_Energy_De1_index_4)*(U$6=Subsector_Energy_De1_index_1)*Subsector_Energy_De1_vals)) -> 119.2194187 | V16: =IF($C16="","",SUMPRODUCT(($C16=Subsector_Energy_De1_index_3)*(Subsector_Energy_De1_index_2='Subsector Elect Demand by Year'!$C$2)*("Electricity--GWh"=Subsector_Energy_De1_index_4)*(V$6=Subsector_Energy_De1_index_1)*Subsector_Energy_De1_vals)) -> 116.4873143 | W16: =IF($C16="","",SUMPRODUCT(($C16=Subsector_Energy_De1_index_3)*(Subsector_Energy_De1_index_2='Subsector Elect Demand by Year'!$C$2)*("Electricity--GWh"=Subsector_Energy_De1_index_4)*(W$6=Subsector_Energy_De1_index_1)*Subsector_Energy_De1_vals)) -> 113.7817462 | X16: =IF($C16="","",SUMPRODUCT(($C16=Subsector_Energy_De1_index_3)*(Subsector_Energy_De1_index_2='Subsector Elect Demand by Year'!$C$2)*("Electricity--GWh"=Subsector_Energy_De1_index_4)*(X$6=Subsector_Energy_De1_index_1)*Subsector_Energy_De1_vals)) -> 111.1027142 | Y16: =IF($C16="","",SUMPRODUCT(($C16=Subsector_Energy_De1_index_3)*(Subsector_Energy_De1_index_2='Subsector Elect Demand by Year'!$C$2)*("Electricity--GWh"=Subsector_Energy_De1_index_4)*(Y$6=Subsector_Energy_De1_index_1)*Subsector_Energy_De1_vals)) -> 108.4502184 | Z16: =IF($C16="","",SUMPRODUCT(($C16=Subsector_Energy_De1_index_3)*(Subsector_Energy_De1_index_2='Subsector Elect Demand by Year'!$C$2)*("Electricity--GWh"=Subsector_Energy_De1_index_4)*(Z$6=Subsector_Energy_De1_index_1)*Subsector_Energy_De1_vals)) -> 105.8242588 | AA16: =IF($C16="","",SUMPRODUCT(($C16=Subsector_Energy_De1_index_3)*(Subsector_Energy_De1_index_2='Subsector Elect Demand by Year'!$C$2)*("Electricity--GWh"=Subsector_Energy_De1_index_4)*(AA$6=Subsector_Energy_De1_index_1)*Subsector_Energy_De1_vals)) -> 103.2248353 | AB16: =IF($C16="","",SUMPRODUCT(($C16=Subsector_Energy_De1_index_3)*(Subsector_Energy_De1_index_2='Subsector Elect Demand by Year'!$C$2)*("Electricity--GWh"=Subsector_Energy_De1_index_4)*(AB$6=Subsector_Energy_De1_index_1)*Subsector_Energy_De1_vals)) -> 100.6519481 | AC16: =IF($C16="","",SUMPRODUCT(($C16=Subsector_Energy_De1_index_3)*(Subsector_Energy_De1_index_2='Subsector Elect Demand by Year'!$C$2)*("Electricity--GWh"=Subsector_Energy_De1_index_4)*(AC$6=Subsector_Energy_De1_index_1)*Subsector_Energy_De1_vals)) -> 98.10559702 | AD16: =IF($C16="","",SUMPRODUCT(($C16=Subsector_Energy_De1_index_3)*(Subsector_Energy_De1_index_2='Subsector Elect Demand by Year'!$C$2)*("Electricity--GWh"=Subsector_Energy_De1_index_4)*(AD$6=Subsector_Energy_De1_index_1)*Subsector_Energy_De1_vals)) -> 95.58578215 | AE16: =IF($C16="","",SUMPRODUCT(($C16=Subsector_Energy_De1_index_3)*(Subsector_Energy_De1_index_2='Subsector Elect Demand by Year'!$C$2)*("Electricity--GWh"=Subsector_Energy_De1_index_4)*(AE$6=Subsector_Energy_De1_index_1)*Subsector_Energy_De1_vals)) -> 93.22068989 | AF16: =IF($C16="","",SUMPRODUCT(($C16=Subsector_Energy_De1_index_3)*(Subsector_Energy_De1_index_2='Subsector Elect Demand by Year'!$C$2)*("Electricity--GWh"=Subsector_Energy_De1_index_4)*(AF$6=Subsector_Energy_De1_index_1)*Subsector_Energy_De1_vals)) -> 90.88023346 | AG16: =IF($C16="","",SUMPRODUCT(($C16=Subsector_Energy_De1_index_3)*(Subsector_Energy_De1_index_2='Subsector Elect Demand by Year'!$C$2)*("Electricity--GWh"=Subsector_Energy_De1_index_4)*(AG$6=Subsector_Energy_De1_index_1)*Subsector_Energy_De1_vals)) -> 88.56441285 | AH16: =IF($C16="","",SUMPRODUCT(($C16=Subsector_Energy_De1_index_3)*(Subsector_Energy_De1_index_2='Subsector Elect Demand by Year'!$C$2)*("Electricity--GWh"=Subsector_Energy_De1_index_4)*(AH$6=Subsector_Energy_De1_index_1)*Subsector_Energy_De1_vals)) -> 86.27322806 | AI16: =IF($C16="","",SUMPRODUCT(($C16=Subsector_Energy_De1_index_3)*(Subsector_Energy_De1_index_2='Subsector Elect Demand by Year'!$C$2)*("Electricity--GWh"=Subsector_Energy_De1_index_4)*(AI$6=Subsector_Energy_De1_index_1)*Subsector_Energy_De1_vals)) -> 84.0066791 | AJ16: =IF($C16="","",SUMPRODUCT(($C16=Subsector_Energy_De1_index_3)*(Subsector_Energy_De1_index_2='Subsector Elect Demand by Year'!$C$2)*("Electricity--GWh"=Subsector_Energy_De1_index_4)*(AJ$6=Subsector_Energy_De1_index_1)*Subsector_Energy_De1_vals)) -> 81.76476595 | AK16: =IF($C16="","",SUMPRODUCT(($C16=Subsector_Energy_De1_index_3)*(Subsector_Energy_De1_index_2='Subsector Elect Demand by Year'!$C$2)*("Electricity--GWh"=Subsector_Energy_De1_index_4)*(AK$6=Subsector_Energy_De1_index_1)*Subsector_Energy_De1_vals)) -> 79.54748862 | AL16: =IF($C16="","",SUMPRODUCT(($C16=Subsector_Energy_De1_index_3)*(Subsector_Energy_De1_index_2='Subsector Elect Demand by Year'!$C$2)*("Electricity--GWh"=Subsector_Energy_De1_index_4)*(AL$6=Subsector_Energy_De1_index_1)*Subsector_Energy_De1_vals)) -> 77.35484712 | AM16: =IF($C16="","",SUMPRODUCT(($C16=Subsector_Energy_De1_index_3)*(Subsector_Energy_De1_index_2='Subsector Elect Demand by Year'!$C$2)*("Electricity--GWh"=Subsector_Energy_De1_index_4)*(AM$6=Subsector_Energy_De1_index_1)*Subsector_Energy_De1_vals)) -> 75.18684144 | AN16: =IF($C16="","",SUMPRODUCT(($C16=Subsector_Energy_De1_index_3)*(Subsector_Energy_De1_index_2='Subsector Elect Demand by Year'!$C$2)*("Electricity--GWh"=Subsector_Energy_De1_index_4)*(AN$6=Subsector_Energy_De1_index_1)*Subsector_Energy_De1_vals)) -> 73.04347158
A17: =IF(A16>=MAX(Lists!$S$2:$S$61),"",A16+1) -> 11 | B17: =IF(A17="","",INDEX(Lists!$R$2:$R$62,MATCH($A17,Lists!$S$2:$S$62,0))) -> Industrial & Ag | C17: =IF($A17="","",INDEX(Lists!$Q$2:$Q$62,MATCH($A17,Lists!$S$2:$S$62,0))) -> Cement | D17: Industrial | E17: =IF($C17="","",SUMPRODUCT(($C17=Subsector_Energy_De1_index_3)*(Subsector_Energy_De1_index_2='Subsector Elect Demand by Year'!$C$2)*("Electricity--GWh"=Subsector_Energy_De1_index_4)*(E$6=Subsector_Energy_De1_index_1)*Subsector_Energy_De1_vals)) -> 4384.191882 | F17: =IF($C17="","",SUMPRODUCT(($C17=Subsector_Energy_De1_index_3)*(Subsector_Energy_De1_index_2='Subsector Elect Demand by Year'!$C$2)*("Electricity--GWh"=Subsector_Energy_De1_index_4)*(F$6=Subsector_Energy_De1_index_1)*Subsector_Energy_De1_vals)) -> 4366.840121 | G17: =IF($C17="","",SUMPRODUCT(($C17=Subsector_Energy_De1_index_3)*(Subsector_Energy_De1_index_2='Subsector Elect Demand by Year'!$C$2)*("Electricity--GWh"=Subsector_Energy_De1_index_4)*(G$6=Subsector_Energy_De1_index_1)*Subsector_Energy_De1_vals)) -> 4353.166593 | H17: =IF($C17="","",SUMPRODUCT(($C17=Subsector_Energy_De1_index_3)*(Subsector_Energy_De1_index_2='Subsector Elect Demand by Year'!$C$2)*("Electricity--GWh"=Subsector_Energy_De1_index_4)*(H$6=Subsector_Energy_De1_index_1)*Subsector_Energy_De1_vals)) -> 4335.724651 | I17: =IF($C17="","",SUMPRODUCT(($C17=Subsector_Energy_De1_index_3)*(Subsector_Energy_De1_index_2='Subsector Elect Demand by Year'!$C$2)*("Electricity--GWh"=Subsector_Energy_De1_index_4)*(I$6=Subsector_Energy_De1_index_1)*Subsector_Energy_De1_vals)) -> 4318.246637 | J17: =IF($C17="","",SUMPRODUCT(($C17=Subsector_Energy_De1_index_3)*(Subsector_Energy_De1_index_2='Subsector Elect Demand by Year'!$C$2)*("Electricity--GWh"=Subsector_Energy_De1_index_4)*(J$6=Subsector_Energy_De1_index_1)*Subsector_Energy_De1_vals)) -> 4199.411618 | K17: =IF($C17="","",SUMPRODUCT(($C17=Subsector_Energy_De1_index_3)*(Subsector_Energy_De1_index_2='Subsector Elect Demand by Year'!$C$2)*("Electricity--GWh"=Subsector_Energy_De1_index_4)*(K$6=Subsector_Energy_De1_index_1)*Subsector_Energy_De1_vals)) -> 4088.492285 | L17: =IF($C17="","",SUMPRODUCT(($C17=Subsector_Energy_De1_index_3)*(Subsector_Energy_De1_index_2='Subsector Elect Demand by Year'!$C$2)*("Electricity--GWh"=Subsector_Energy_De1_index_4)*(L$6=Subsector_Energy_De1_index_1)*Subsector_Energy_De1_vals)) -> 3974.760062 | M17: =IF($C17="","",SUMPRODUCT(($C17=Subsector_Energy_De1_index_3)*(Subsector_Energy_De1_index_2='Subsector Elect Demand by Year'!$C$2)*("Electricity--GWh"=Subsector_Energy_De1_index_4)*(M$6=Subsector_Energy_De1_index_1)*Subsector_Energy_De1_vals)) -> 3865.072684 | N17: =IF($C17="","",SUMPRODUCT(($C17=Subsector_Energy_De1_index_3)*(Subsector_Energy_De1_index_2='Subsector Elect Demand by Year'!$C$2)*("Electricity--GWh"=Subsector_Energy_De1_index_4)*(N$6=Subsector_Energy_De1_index_1)*Subsector_Energy_De1_vals)) -> 3752.778139 | O17: =IF($C17="","",SUMPRODUCT(($C17=Subsector_Energy_De1_index_3)*(Subsector_Energy_De1_index_2='Subsector Elect Demand by Year'!$C$2)*("Electricity--GWh"=Subsector_Energy_De1_index_4)*(O$6=Subsector_Energy_De1_index_1)*Subsector_Energy_De1_vals)) -> 3652.143265 | P17: =IF($C17="","",SUMPRODUCT(($C17=Subsector_Energy_De1_index_3)*(Subsector_Energy_De1_index_2='Subsector Elect Demand by Year'!$C$2)*("Electricity--GWh"=Subsector_Energy_De1_index_4)*(P$6=Subsector_Energy_De1_index_1)*Subsector_Energy_De1_vals)) -> 3558.040191 | Q17: =IF($C17="","",SUMPRODUCT(($C17=Subsector_Energy_De1_index_3)*(Subsector_Energy_De1_index_2='Subsector Elect Demand by Year'!$C$2)*("Electricity--GWh"=Subsector_Energy_De1_index_4)*(Q$6=Subsector_Energy_De1_index_1)*Subsector_Energy_De1_vals)) -> 3463.828686 | R17: =IF($C17="","",SUMPRODUCT(($C17=Subsector_Energy_De1_index_3)*(Subsector_Energy_De1_index_2='Subsector Elect Demand by Year'!$C$2)*("Electricity--GWh"=Subsector_Energy_De1_index_4)*(R$6=Subsector_Energy_De1_index_1)*Subsector_Energy_De1_vals)) -> 3369.508751 | S17: =IF($C17="","",SUMPRODUCT(($C17=Subsector_Energy_De1_index_3)*(Subsector_Energy_De1_index_2='Subsector Elect Demand by Year'!$C$2)*("Electricity--GWh"=Subsector_Energy_De1_index_4)*(S$6=Subsector_Energy_De1_index_1)*Subsector_Energy_De1_vals)) -> 3275.080386 | T17: =IF($C17="","",SUMPRODUCT(($C17=Subsector_Energy_De1_index_3)*(Subsector_Energy_De1_index_2='Subsector Elect Demand by Year'!$C$2)*("Electricity--GWh"=Subsector_Energy_De1_index_4)*(T$6=Subsector_Energy_De1_index_1)*Subsector_Energy_De1_vals)) -> 3180.54359 | U17: =IF($C17="","",SUMPRODUCT(($C17=Subsector_Energy_De1_index_3)*(Subsector_Energy_De1_index_2='Subsector Elect Demand by Year'!$C$2)*("Electricity--GWh"=Subsector_Energy_De1_index_4)*(U$6=Subsector_Energy_De1_index_1)*Subsector_Energy_De1_vals)) -> 3131.825938 | V17: =IF($C17="","",SUMPRODUCT(($C17=Subsector_Energy_De1_index_3)*(Subsector_Energy_De1_index_2='Subsector Elect Demand by Year'!$C$2)*("Electricity--GWh"=Subsector_Energy_De1_index_4)*(V$6=Subsector_Energy_De1_index_1)*Subsector_Energy_De1_vals)) -> 3083.051497 | W17: =IF($C17="","",SUMPRODUCT(($C17=Subsector_Energy_De1_index_3)*(Subsector_Energy_De1_index_2='Subsector Elect Demand by Year'!$C$2)*("Electricity--GWh"=Subsector_Energy_De1_index_4)*(W$6=Subsector_Energy_De1_index_1)*Subsector_Energy_De1_vals)) -> 3034.220266 | X17: =IF($C17="","",SUMPRODUCT(($C17=Subsector_Energy_De1_index_3)*(Subsector_Energy_De1_index_2='Subsector Elect Demand by Year'!$C$2)*("Electricity--GWh"=Subsector_Energy_De1_index_4)*(X$6=Subsector_Energy_De1_index_1)*Subsector_Energy_De1_vals)) -> 2985.332245 | Y17: =IF($C17="","",SUMPRODUCT(($C17=Subsector_Energy_De1_index_3)*(Subsector_Energy_De1_index_2='Subsector Elect Demand by Year'!$C$2)*("Electricity--GWh"=Subsector_Energy_De1_index_4)*(Y$6=Subsector_Energy_De1_index_1)*Subsector_Energy_De1_vals)) -> 2936.387435 | Z17: =IF($C17="","",SUMPRODUCT(($C17=Subsector_Energy_De1_index_3)*(Subsector_Energy_De1_index_2='Subsector Elect Demand by Year'!$C$2)*("Electricity--GWh"=Subsector_Energy_De1_index_4)*(Z$6=Subsector_Energy_De1_index_1)*Subsector_Energy_De1_vals)) -> 2887.385835 | AA17: =IF($C17="","",SUMPRODUCT(($C17=Subsector_Energy_De1_index_3)*(Subsector_Energy_De1_index_2='Subsector Elect Demand by Year'!$C$2)*("Electricity--GWh"=Subsector_Energy_De1_index_4)*(AA$6=Subsector_Energy_De1_index_1)*Subsector_Energy_De1_vals)) -> 2838.327446 | AB17: =IF($C17="","",SUMPRODUCT(($C17=Subsector_Energy_De1_index_3)*(Subsector_Energy_De1_index_2='Subsector Elect Demand by Year'!$C$2)*("Electricity--GWh"=Subsector_Energy_De1_index_4)*(AB$6=Subsector_Energy_De1_index_1)*Subsector_Energy_De1_vals)) -> 2789.212268 | AC17: =IF($C17="","",SUMPRODUCT(($C17=Subsector_Energy_De1_index_3)*(Subsector_Energy_De1_index_2='Subsector Elect Demand by Year'!$C$2)*("Electricity--GWh"=Subsector_Energy_De1_index_4)*(AC$6=Subsector_Energy_De1_index_1)*Subsector_Energy_De1_vals)) -> 2740.0403 | AD17: =IF($C17="","",SUMPRODUCT(($C17=Subsector_Energy_De1_index_3)*(Subsector_Energy_De1_index_2='Subsector Elect Demand by Year'!$C$2)*("Electricity--GWh"=Subsector_Energy_De1_index_4)*(AD$6=Subsector_Energy_De1_index_1)*Subsector_Energy_De1_vals)) -> 2690.811542 | AE17: =IF($C17="","",SUMPRODUCT(($C17=Subsector_Energy_De1_index_3)*(Subsector_Energy_De1_index_2='Subsector Elect Demand by Year'!$C$2)*("Electricity--GWh"=Subsector_Energy_De1_index_4)*(AE$6=Subsector_Energy_De1_index_1)*Subsector_Energy_De1_vals)) -> 2645.163321 | AF17: =IF($C17="","",SUMPRODUCT(($C17=Subsector_Energy_De1_index_3)*(Subsector_Energy_De1_index_2='Subsector Elect Demand by Year'!$C$2)*("Electricity--GWh"=Subsector_Energy_De1_index_4)*(AF$6=Subsector_Energy_De1_index_1)*Subsector_Energy_De1_vals)) -> 2599.462378 | AG17: =IF($C17="","",SUMPRODUCT(($C17=Subsector_Energy_De1_index_3)*(Subsector_Energy_De1_index_2='Subsector Elect Demand by Year'!$C$2)*("Electricity--GWh"=Subsector_Energy_De1_index_4)*(AG$6=Subsector_Energy_De1_index_1)*Subsector_Energy_De1_vals)) -> 2553.708712 | AH17: =IF($C17="","",SUMPRODUCT(($C17=Subsector_Energy_De1_index_3)*(Subsector_Energy_De1_index_2='Subsector Elect Demand by Year'!$C$2)*("Electricity--GWh"=Subsector_Energy_De1_index_4)*(AH$6=Subsector_Energy_De1_index_1)*Subsector_Energy_De1_vals)) -> 2507.902323 | AI17: =IF($C17="","",SUMPRODUCT(($C17=Subsector_Energy_De1_index_3)*(Subsector_Energy_De1_index_2='Subsector Elect Demand by Year'!$C$2)*("Electricity--GWh"=Subsector_Energy_De1_index_4)*(AI$6=Subsector_Energy_De1_index_1)*Subsector_Energy_De1_vals)) -> 2462.043212 | AJ17: =IF($C17="","",SUMPRODUCT(($C17=Subsector_Energy_De1_index_3)*(Subsector_Energy_De1_index_2='Subsector Elect Demand by Year'!$C$2)*("Electricity--GWh"=Subsector_Energy_De1_index_4)*(AJ$6=Subsector_Energy_De1_index_1)*Subsector_Energy_De1_vals)) -> 2416.131379 | AK17: =IF($C17="","",SUMPRODUCT(($C17=Subsector_Energy_De1_index_3)*(Subsector_Energy_De1_index_2='Subsector Elect Demand by Year'!$C$2)*("Electricity--GWh"=Subsector_Energy_De1_index_4)*(AK$6=Subsector_Energy_De1_index_1)*Subsector_Energy_De1_vals)) -> 2370.166822 | AL17: =IF($C17="","",SUMPRODUCT(($C17=Subsector_Energy_De1_index_3)*(Subsector_Energy_De1_index_2='Subsector Elect Demand by Year'!$C$2)*("Electricity--GWh"=Subsector_Energy_De1_index_4)*(AL$6=Subsector_Energy_De1_index_1)*Subsector_Energy_De1_vals)) -> 2324.149544 | AM17: =IF($C17="","",SUMPRODUCT(($C17=Subsector_Energy_De1_index_3)*(Subsector_Energy_De1_index_2='Subsector Elect Demand by Year'!$C$2)*("Electricity--GWh"=Subsector_Energy_De1_index_4)*(AM$6=Subsector_Energy_De1_index_1)*Subsector_Energy_De1_vals)) -> 2278.079542 | AN17: =IF($C17="","",SUMPRODUCT(($C17=Subsector_Energy_De1_index_3)*(Subsector_Energy_De1_index_2='Subsector Elect Demand by Year'!$C$2)*("Electricity--GWh"=Subsector_Energy_De1_index_4)*(AN$6=Subsector_Energy_De1_index_1)*Subsector_Energy_De1_vals)) -> 2231.956818
A18: =IF(A17>=MAX(Lists!$S$2:$S$61),"",A17+1) -> 12 | B18: =IF(A18="","",INDEX(Lists!$R$2:$R$62,MATCH($A18,Lists!$S$2:$S$62,0))) -> Industrial & Ag | C18: =IF($A18="","",INDEX(Lists!$Q$2:$Q$62,MATCH($A18,Lists!$S$2:$S$62,0))) -> Chemical Manufacturing | D18: Industrial | E18: =IF($C18="","",SUMPRODUCT(($C18=Subsector_Energy_De1_index_3)*(Subsector_Energy_De1_index_2='Subsector Elect Demand by Year'!$C$2)*("Electricity--GWh"=Subsector_Energy_De1_index_4)*(E$6=Subsector_Energy_De1_index_1)*Subsector_Energy_De1_vals)) -> 2893.041589 | F18: =IF($C18="","",SUMPRODUCT(($C18=Subsector_Energy_De1_index_3)*(Subsector_Energy_De1_index_2='Subsector Elect Demand by Year'!$C$2)*("Electricity--GWh"=Subsector_Energy_De1_index_4)*(F$6=Subsector_Energy_De1_index_1)*Subsector_Energy_De1_vals)) -> 2891.237074 | G18: =IF($C18="","",SUMPRODUCT(($C18=Subsector_Energy_De1_index_3)*(Subsector_Energy_De1_index_2='Subsector Elect Demand by Year'!$C$2)*("Electricity--GWh"=Subsector_Energy_De1_index_4)*(G$6=Subsector_Energy_De1_index_1)*Subsector_Energy_De1_vals)) -> 2871.449621 | H18: =IF($C18="","",SUMPRODUCT(($C18=Subsector_Energy_De1_index_3)*(Subsector_Energy_De1_index_2='Subsector Elect Demand by Year'!$C$2)*("Electricity--GWh"=Subsector_Energy_De1_index_4)*(H$6=Subsector_Energy_De1_index_1)*Subsector_Energy_De1_vals)) -> 2847.265539 | I18: =IF($C18="","",SUMPRODUCT(($C18=Subsector_Energy_De1_index_3)*(Subsector_Energy_De1_index_2='Subsector Elect Demand by Year'!$C$2)*("Electricity--GWh"=Subsector_Energy_De1_index_4)*(I$6=Subsector_Energy_De1_index_1)*Subsector_Energy_De1_vals)) -> 2831.200148 | J18: =IF($C18="","",SUMPRODUCT(($C18=Subsector_Energy_De1_index_3)*(Subsector_Energy_De1_index_2='Subsector Elect Demand by Year'!$C$2)*("Electricity--GWh"=Subsector_Energy_De1_index_4)*(J$6=Subsector_Energy_De1_index_1)*Subsector_Energy_De1_vals)) -> 2753.256655 | K18: =IF($C18="","",SUMPRODUCT(($C18=Subsector_Energy_De1_index_3)*(Subsector_Energy_De1_index_2='Subsector Elect Demand by Year'!$C$2)*("Electricity--GWh"=Subsector_Energy_De1_index_4)*(K$6=Subsector_Energy_De1_index_1)*Subsector_Energy_De1_vals)) -> 2678.64738 | L18: =IF($C18="","",SUMPRODUCT(($C18=Subsector_Energy_De1_index_3)*(Subsector_Energy_De1_index_2='Subsector Elect Demand by Year'!$C$2)*("Electricity--GWh"=Subsector_Energy_De1_index_4)*(L$6=Subsector_Energy_De1_index_1)*Subsector_Energy_De1_vals)) -> 2603.785816 | M18: =IF($C18="","",SUMPRODUCT(($C18=Subsector_Energy_De1_index_3)*(Subsector_Energy_De1_index_2='Subsector Elect Demand by Year'!$C$2)*("Electricity--GWh"=Subsector_Energy_De1_index_4)*(M$6=Subsector_Energy_De1_index_1)*Subsector_Energy_De1_vals)) -> 2528.092592 | N18: =IF($C18="","",SUMPRODUCT(($C18=Subsector_Energy_De1_index_3)*(Subsector_Energy_De1_index_2='Subsector Elect Demand by Year'!$C$2)*("Electricity--GWh"=Subsector_Energy_De1_index_4)*(N$6=Subsector_Energy_De1_index_1)*Subsector_Energy_De1_vals)) -> 2452.950118 | O18: =IF($C18="","",SUMPRODUCT(($C18=Subsector_Energy_De1_index_3)*(Subsector_Energy_De1_index_2='Subsector Elect Demand by Year'!$C$2)*("Electricity--GWh"=Subsector_Energy_De1_index_4)*(O$6=Subsector_Energy_De1_index_1)*Subsector_Energy_De1_vals)) -> 2407.353095 | P18: =IF($C18="","",SUMPRODUCT(($C18=Subsector_Energy_De1_index_3)*(Subsector_Energy_De1_index_2='Subsector Elect Demand by Year'!$C$2)*("Electricity--GWh"=Subsector_Energy_De1_index_4)*(P$6=Subsector_Energy_De1_index_1)*Subsector_Energy_De1_vals)) -> 2350.919725 | Q18: =IF($C18="","",SUMPRODUCT(($C18=Subsector_Energy_De1_index_3)*(Subsector_Energy_De1_index_2='Subsector Elect Demand by Year'!$C$2)*("Electricity--GWh"=Subsector_Energy_De1_index_4)*(Q$6=Subsector_Energy_De1_index_1)*Subsector_Energy_De1_vals)) -> 2294.112408 | R18: =IF($C18="","",SUMPRODUCT(($C18=Subsector_Energy_De1_index_3)*(Subsector_Energy_De1_index_2='Subsector Elect Demand by Year'!$C$2)*("Electricity--GWh"=Subsector_Energy_De1_index_4)*(R$6=Subsector_Energy_De1_index_1)*Subsector_Energy_De1_vals)) -> 2236.931144 | S18: =IF($C18="","",SUMPRODUCT(($C18=Subsector_Energy_De1_index_3)*(Subsector_Energy_De1_index_2='Subsector Elect Demand by Year'!$C$2)*("Electricity--GWh"=Subsector_Energy_De1_index_4)*(S$6=Subsector_Energy_De1_index_1)*Subsector_Energy_De1_vals)) -> 2179.375932 | T18: =IF($C18="","",SUMPRODUCT(($C18=Subsector_Energy_De1_index_3)*(Subsector_Energy_De1_index_2='Subsector Elect Demand by Year'!$C$2)*("Electricity--GWh"=Subsector_Energy_De1_index_4)*(T$6=Subsector_Energy_De1_index_1)*Subsector_Energy_De1_vals)) -> 2121.446773 | U18: =IF($C18="","",SUMPRODUCT(($C18=Subsector_Energy_De1_index_3)*(Subsector_Energy_De1_index_2='Subsector Elect Demand by Year'!$C$2)*("Electricity--GWh"=Subsector_Energy_De1_index_4)*(U$6=Subsector_Energy_De1_index_1)*Subsector_Energy_De1_vals)) -> 2087.641708 | V18: =IF($C18="","",SUMPRODUCT(($C18=Subsector_Energy_De1_index_3)*(Subsector_Energy_De1_index_2='Subsector Elect Demand by Year'!$C$2)*("Electricity--GWh"=Subsector_Energy_De1_index_4)*(V$6=Subsector_Energy_De1_index_1)*Subsector_Energy_De1_vals)) -> 2053.604786 | W18: =IF($C18="","",SUMPRODUCT(($C18=Subsector_Energy_De1_index_3)*(Subsector_Energy_De1_index_2='Subsector Elect Demand by Year'!$C$2)*("Electricity--GWh"=Subsector_Energy_De1_index_4)*(W$6=Subsector_Energy_De1_index_1)*Subsector_Energy_De1_vals)) -> 2019.336007 | X18: =IF($C18="","",SUMPRODUCT(($C18=Subsector_Energy_De1_index_3)*(Subsector_Energy_De1_index_2='Subsector Elect Demand by Year'!$C$2)*("Electricity--GWh"=Subsector_Energy_De1_index_4)*(X$6=Subsector_Energy_De1_index_1)*Subsector_Energy_De1_vals)) -> 1984.835369 | Y18: =IF($C18="","",SUMPRODUCT(($C18=Subsector_Energy_De1_index_3)*(Subsector_Energy_De1_index_2='Subsector Elect Demand by Year'!$C$2)*("Electricity--GWh"=Subsector_Energy_De1_index_4)*(Y$6=Subsector_Energy_De1_index_1)*Subsector_Energy_De1_vals)) -> 1950.102874 | Z18: =IF($C18="","",SUMPRODUCT(($C18=Subsector_Energy_De1_index_3)*(Subsector_Energy_De1_index_2='Subsector Elect Demand by Year'!$C$2)*("Electricity--GWh"=Subsector_Energy_De1_index_4)*(Z$6=Subsector_Energy_De1_index_1)*Subsector_Energy_De1_vals)) -> 1915.138521 | AA18: =IF($C18="","",SUMPRODUCT(($C18=Subsector_Energy_De1_index_3)*(Subsector_Energy_De1_index_2='Subsector Elect Demand by Year'!$C$2)*("Electricity--GWh"=Subsector_Energy_De1_index_4)*(AA$6=Subsector_Energy_De1_index_1)*Subsector_Energy_De1_vals)) -> 1879.94231 | AB18: =IF($C18="","",SUMPRODUCT(($C18=Subsector_Energy_De1_index_3)*(Subsector_Energy_De1_index_2='Subsector Elect Demand by Year'!$C$2)*("Electricity--GWh"=Subsector_Energy_De1_index_4)*(AB$6=Subsector_Energy_De1_index_1)*Subsector_Energy_De1_vals)) -> 1844.514241 | AC18: =IF($C18="","",SUMPRODUCT(($C18=Subsector_Energy_De1_index_3)*(Subsector_Energy_De1_index_2='Subsector Elect Demand by Year'!$C$2)*("Electricity--GWh"=Subsector_Energy_De1_index_4)*(AC$6=Subsector_Energy_De1_index_1)*Subsector_Energy_De1_vals)) -> 1808.854315 | AD18: =IF($C18="","",SUMPRODUCT(($C18=Subsector_Energy_De1_index_3)*(Subsector_Energy_De1_index_2='Subsector Elect Demand by Year'!$C$2)*("Electricity--GWh"=Subsector_Energy_De1_index_4)*(AD$6=Subsector_Energy_De1_index_1)*Subsector_Energy_De1_vals)) -> 1772.962531 | AE18: =IF($C18="","",SUMPRODUCT(($C18=Subsector_Energy_De1_index_3)*(Subsector_Energy_De1_index_2='Subsector Elect Demand by Year'!$C$2)*("Electricity--GWh"=Subsector_Energy_De1_index_4)*(AE$6=Subsector_Energy_De1_index_1)*Subsector_Energy_De1_vals)) -> 1741.619118 | AF18: =IF($C18="","",SUMPRODUCT(($C18=Subsector_Energy_De1_index_3)*(Subsector_Energy_De1_index_2='Subsector Elect Demand by Year'!$C$2)*("Electricity--GWh"=Subsector_Energy_De1_index_4)*(AF$6=Subsector_Energy_De1_index_1)*Subsector_Energy_De1_vals)) -> 1710.070792 | AG18: =IF($C18="","",SUMPRODUCT(($C18=Subsector_Energy_De1_index_3)*(Subsector_Energy_De1_index_2='Subsector Elect Demand by Year'!$C$2)*("Electricity--GWh"=Subsector_Energy_De1_index_4)*(AG$6=Subsector_Energy_De1_index_1)*Subsector_Energy_De1_vals)) -> 1678.317553 | AH18: =IF($C18="","",SUMPRODUCT(($C18=Subsector_Energy_De1_index_3)*(Subsector_Energy_De1_index_2='Subsector Elect Demand by Year'!$C$2)*("Electricity--GWh"=Subsector_Energy_De1_index_4)*(AH$6=Subsector_Energy_De1_index_1)*Subsector_Energy_De1_vals)) -> 1646.359399 | AI18: =IF($C18="","",SUMPRODUCT(($C18=Subsector_Energy_De1_index_3)*(Subsector_Energy_De1_index_2='Subsector Elect Demand by Year'!$C$2)*("Electricity--GWh"=Subsector_Energy_De1_index_4)*(AI$6=Subsector_Energy_De1_index_1)*Subsector_Energy_De1_vals)) -> 1614.196332 | AJ18: =IF($C18="","",SUMPRODUCT(($C18=Subsector_Energy_De1_index_3)*(Subsector_Energy_De1_index_2='Subsector Elect Demand by Year'!$C$2)*("Electricity--GWh"=Subsector_Energy_De1_index_4)*(AJ$6=Subsector_Energy_De1_index_1)*Subsector_Energy_De1_vals)) -> 1581.828352 | AK18: =IF($C18="","",SUMPRODUCT(($C18=Subsector_Energy_De1_index_3)*(Subsector_Energy_De1_index_2='Subsector Elect Demand by Year'!$C$2)*("Electricity--GWh"=Subsector_Energy_De1_index_4)*(AK$6=Subsector_Energy_De1_index_1)*Subsector_Energy_De1_vals)) -> 1549.255457 | AL18: =IF($C18="","",SUMPRODUCT(($C18=Subsector_Energy_De1_index_3)*(Subsector_Energy_De1_index_2='Subsector Elect Demand by Year'!$C$2)*("Electricity--GWh"=Subsector_Energy_De1_index_4)*(AL$6=Subsector_Energy_De1_index_1)*Subsector_Energy_De1_vals)) -> 1516.47765 | AM18: =IF($C18="","",SUMPRODUCT(($C18=Subsector_Energy_De1_index_3)*(Subsector_Energy_De1_index_2='Subsector Elect Demand by Year'!$C$2)*("Electricity--GWh"=Subsector_Energy_De1_index_4)*(AM$6=Subsector_Energy_De1_index_1)*Subsector_Energy_De1_vals)) -> 1483.494928 | AN18: =IF($C18="","",SUMPRODUCT(($C18=Subsector_Energy_De1_index_3)*(Subsector_Energy_De1_index_2='Subsector Elect Demand by Year'!$C$2)*("Electricity--GWh"=Subsector_Energy_De1_index_4)*(AN$6=Subsector_Energy_De1_index_1)*Subsector_Energy_De1_vals)) -> 1450.307293
A19: =IF(A18>=MAX(Lists!$S$2:$S$61),"",A18+1) -> 13 | B19: =IF(A19="","",INDEX(Lists!$R$2:$R$62,MATCH($A19,Lists!$S$2:$S$62,0))) -> Industrial & Ag | C19: =IF($A19="","",INDEX(Lists!$Q$2:$Q$62,MATCH($A19,Lists!$S$2:$S$62,0))) -> Computer and Electronic | D19: Industrial | E19: =IF($C19="","",SUMPRODUCT(($C19=Subsector_Energy_De1_index_3)*(Subsector_Energy_De1_index_2='Subsector Elect Demand by Year'!$C$2)*("Electricity--GWh"=Subsector_Energy_De1_index_4)*(E$6=Subsector_Energy_De1_index_1)*Subsector_Energy_De1_vals)) -> 2352.001882 | F19: =IF($C19="","",SUMPRODUCT(($C19=Subsector_Energy_De1_index_3)*(Subsector_Energy_De1_index_2='Subsector Elect Demand by Year'!$C$2)*("Electricity--GWh"=Subsector_Energy_De1_index_4)*(F$6=Subsector_Energy_De1_index_1)*Subsector_Energy_De1_vals)) -> 2330.114569 | G19: =IF($C19="","",SUMPRODUCT(($C19=Subsector_Energy_De1_index_3)*(Subsector_Energy_De1_index_2='Subsector Elect Demand by Year'!$C$2)*("Electricity--GWh"=Subsector_Energy_De1_index_4)*(G$6=Subsector_Energy_De1_index_1)*Subsector_Energy_De1_vals)) -> 2310.557957 | H19: =IF($C19="","",SUMPRODUCT(($C19=Subsector_Energy_De1_index_3)*(Subsector_Energy_De1_index_2='Subsector Elect Demand by Year'!$C$2)*("Electricity--GWh"=Subsector_Energy_De1_index_4)*(H$6=Subsector_Energy_De1_index_1)*Subsector_Energy_De1_vals)) -> 2289.598183 | I19: =IF($C19="","",SUMPRODUCT(($C19=Subsector_Energy_De1_index_3)*(Subsector_Energy_De1_index_2='Subsector Elect Demand by Year'!$C$2)*("Electricity--GWh"=Subsector_Energy_De1_index_4)*(I$6=Subsector_Energy_De1_index_1)*Subsector_Energy_De1_vals)) -> 2269.469108 | J19: =IF($C19="","",SUMPRODUCT(($C19=Subsector_Energy_De1_index_3)*(Subsector_Energy_De1_index_2='Subsector Elect Demand by Year'!$C$2)*("Electricity--GWh"=Subsector_Energy_De1_index_4)*(J$6=Subsector_Energy_De1_index_1)*Subsector_Energy_De1_vals)) -> 2197.58298 | K19: =IF($C19="","",SUMPRODUCT(($C19=Subsector_Energy_De1_index_3)*(Subsector_Energy_De1_index_2='Subsector Elect Demand by Year'!$C$2)*("Electricity--GWh"=Subsector_Energy_De1_index_4)*(K$6=Subsector_Energy_De1_index_1)*Subsector_Energy_De1_vals)) -> 2127.429182 | L19: =IF($C19="","",SUMPRODUCT(($C19=Subsector_Energy_De1_index_3)*(Subsector_Energy_De1_index_2='Subsector Elect Demand by Year'!$C$2)*("Electricity--GWh"=Subsector_Energy_De1_index_4)*(L$6=Subsector_Energy_De1_index_1)*Subsector_Energy_De1_vals)) -> 2058.262604 | M19: =IF($C19="","",SUMPRODUCT(($C19=Subsector_Energy_De1_index_3)*(Subsector_Energy_De1_index_2='Subsector Elect Demand by Year'!$C$2)*("Electricity--GWh"=Subsector_Energy_De1_index_4)*(M$6=Subsector_Energy_De1_index_1)*Subsector_Energy_De1_vals)) -> 1990.077377 | N19: =IF($C19="","",SUMPRODUCT(($C19=Subsector_Energy_De1_index_3)*(Subsector_Energy_De1_index_2='Subsector Elect Demand by Year'!$C$2)*("Electricity--GWh"=Subsector_Energy_De1_index_4)*(N$6=Subsector_Energy_De1_index_1)*Subsector_Energy_De1_vals)) -> 1922.867632 | O19: =IF($C19="","",SUMPRODUCT(($C19=Subsector_Energy_De1_index_3)*(Subsector_Energy_De1_index_2='Subsector Elect Demand by Year'!$C$2)*("Electricity--GWh"=Subsector_Energy_De1_index_4)*(O$6=Subsector_Energy_De1_index_1)*Subsector_Energy_De1_vals)) -> 1861.460897 | P19: =IF($C19="","",SUMPRODUCT(($C19=Subsector_Energy_De1_index_3)*(Subsector_Energy_De1_index_2='Subsector Elect Demand by Year'!$C$2)*("Electricity--GWh"=Subsector_Energy_De1_index_4)*(P$6=Subsector_Energy_De1_index_1)*Subsector_Energy_De1_vals)) -> 1802.193468 | Q19: =IF($C19="","",SUMPRODUCT(($C19=Subsector_Energy_De1_index_3)*(Subsector_Energy_De1_index_2='Subsector Elect Demand by Year'!$C$2)*("Electricity--GWh"=Subsector_Energy_De1_index_4)*(Q$6=Subsector_Energy_De1_index_1)*Subsector_Energy_De1_vals)) -> 1743.481803 | R19: =IF($C19="","",SUMPRODUCT(($C19=Subsector_Energy_De1_index_3)*(Subsector_Energy_De1_index_2='Subsector Elect Demand by Year'!$C$2)*("Electricity--GWh"=Subsector_Energy_De1_index_4)*(R$6=Subsector_Energy_De1_index_1)*Subsector_Energy_De1_vals)) -> 1685.3259 | S19: =IF($C19="","",SUMPRODUCT(($C19=Subsector_Energy_De1_index_3)*(Subsector_Energy_De1_index_2='Subsector Elect Demand by Year'!$C$2)*("Electricity--GWh"=Subsector_Energy_De1_index_4)*(S$6=Subsector_Energy_De1_index_1)*Subsector_Energy_De1_vals)) -> 1627.725761 | T19: =IF($C19="","",SUMPRODUCT(($C19=Subsector_Energy_De1_index_3)*(Subsector_Energy_De1_index_2='Subsector Elect Demand by Year'!$C$2)*("Electricity--GWh"=Subsector_Energy_De1_index_4)*(T$6=Subsector_Energy_De1_index_1)*Subsector_Energy_De1_vals)) -> 1570.681384 | U19: =IF($C19="","",SUMPRODUCT(($C19=Subsector_Energy_De1_index_3)*(Subsector_Energy_De1_index_2='Subsector Elect Demand by Year'!$C$2)*("Electricity--GWh"=Subsector_Energy_De1_index_4)*(U$6=Subsector_Energy_De1_index_1)*Subsector_Energy_De1_vals)) -> 1543.193995 | V19: =IF($C19="","",SUMPRODUCT(($C19=Subsector_Energy_De1_index_3)*(Subsector_Energy_De1_index_2='Subsector Elect Demand by Year'!$C$2)*("Electricity--GWh"=Subsector_Energy_De1_index_4)*(V$6=Subsector_Energy_De1_index_1)*Subsector_Energy_De1_vals)) -> 1515.921745 | W19: =IF($C19="","",SUMPRODUCT(($C19=Subsector_Energy_De1_index_3)*(Subsector_Energy_De1_index_2='Subsector Elect Demand by Year'!$C$2)*("Electricity--GWh"=Subsector_Energy_De1_index_4)*(W$6=Subsector_Energy_De1_index_1)*Subsector_Energy_De1_vals)) -> 1488.864634 | X19: =IF($C19="","",SUMPRODUCT(($C19=Subsector_Energy_De1_index_3)*(Subsector_Energy_De1_index_2='Subsector Elect Demand by Year'!$C$2)*("Electricity--GWh"=Subsector_Energy_De1_index_4)*(X$6=Subsector_Energy_De1_index_1)*Subsector_Energy_De1_vals)) -> 1462.022663 | Y19: =IF($C19="","",SUMPRODUCT(($C19=Subsector_Energy_De1_index_3)*(Subsector_Energy_De1_index_2='Subsector Elect Demand by Year'!$C$2)*("Electricity--GWh"=Subsector_Energy_De1_index_4)*(Y$6=Subsector_Energy_De1_index_1)*Subsector_Energy_De1_vals)) -> 1435.395831 | Z19: =IF($C19="","",SUMPRODUCT(($C19=Subsector_Energy_De1_index_3)*(Subsector_Energy_De1_index_2='Subsector Elect Demand by Year'!$C$2)*("Electricity--GWh"=Subsector_Energy_De1_index_4)*(Z$6=Subsector_Energy_De1_index_1)*Subsector_Energy_De1_vals)) -> 1408.984139 | AA19: =IF($C19="","",SUMPRODUCT(($C19=Subsector_Energy_De1_index_3)*(Subsector_Energy_De1_index_2='Subsector Elect Demand by Year'!$C$2)*("Electricity--GWh"=Subsector_Energy_De1_index_4)*(AA$6=Subsector_Energy_De1_index_1)*Subsector_Energy_De1_vals)) -> 1382.787585 | AB19: =IF($C19="","",SUMPRODUCT(($C19=Subsector_Energy_De1_index_3)*(Subsector_Energy_De1_index_2='Subsector Elect Demand by Year'!$C$2)*("Electricity--GWh"=Subsector_Energy_De1_index_4)*(AB$6=Subsector_Energy_De1_index_1)*Subsector_Energy_De1_vals)) -> 1356.806172 | AC19: =IF($C19="","",SUMPRODUCT(($C19=Subsector_Energy_De1_index_3)*(Subsector_Energy_De1_index_2='Subsector Elect Demand by Year'!$C$2)*("Electricity--GWh"=Subsector_Energy_De1_index_4)*(AC$6=Subsector_Energy_De1_index_1)*Subsector_Energy_De1_vals)) -> 1331.039897 | AD19: =IF($C19="","",SUMPRODUCT(($C19=Subsector_Energy_De1_index_3)*(Subsector_Energy_De1_index_2='Subsector Elect Demand by Year'!$C$2)*("Electricity--GWh"=Subsector_Energy_De1_index_4)*(AD$6=Subsector_Energy_De1_index_1)*Subsector_Energy_De1_vals)) -> 1305.488762 | AE19: =IF($C19="","",SUMPRODUCT(($C19=Subsector_Energy_De1_index_3)*(Subsector_Energy_De1_index_2='Subsector Elect Demand by Year'!$C$2)*("Electricity--GWh"=Subsector_Energy_De1_index_4)*(AE$6=Subsector_Energy_De1_index_1)*Subsector_Energy_De1_vals)) -> 1284.534613 | AF19: =IF($C19="","",SUMPRODUCT(($C19=Subsector_Energy_De1_index_3)*(Subsector_Energy_De1_index_2='Subsector Elect Demand by Year'!$C$2)*("Electricity--GWh"=Subsector_Energy_De1_index_4)*(AF$6=Subsector_Energy_De1_index_1)*Subsector_Energy_De1_vals)) -> 1263.740927 | AG19: =IF($C19="","",SUMPRODUCT(($C19=Subsector_Energy_De1_index_3)*(Subsector_Energy_De1_index_2='Subsector Elect Demand by Year'!$C$2)*("Electricity--GWh"=Subsector_Energy_De1_index_4)*(AG$6=Subsector_Energy_De1_index_1)*Subsector_Energy_De1_vals)) -> 1243.107705 | AH19: =IF($C19="","",SUMPRODUCT(($C19=Subsector_Energy_De1_index_3)*(Subsector_Energy_De1_index_2='Subsector Elect Demand by Year'!$C$2)*("Electricity--GWh"=Subsector_Energy_De1_index_4)*(AH$6=Subsector_Energy_De1_index_1)*Subsector_Energy_De1_vals)) -> 1222.634945 | AI19: =IF($C19="","",SUMPRODUCT(($C19=Subsector_Energy_De1_index_3)*(Subsector_Energy_De1_index_2='Subsector Elect Demand by Year'!$C$2)*("Electricity--GWh"=Subsector_Energy_De1_index_4)*(AI$6=Subsector_Energy_De1_index_1)*Subsector_Energy_De1_vals)) -> 1202.322648 | AJ19: =IF($C19="","",SUMPRODUCT(($C19=Subsector_Energy_De1_index_3)*(Subsector_Energy_De1_index_2='Subsector Elect Demand by Year'!$C$2)*("Electricity--GWh"=Subsector_Energy_De1_index_4)*(AJ$6=Subsector_Energy_De1_index_1)*Subsector_Energy_De1_vals)) -> 1182.170815 | AK19: =IF($C19="","",SUMPRODUCT(($C19=Subsector_Energy_De1_index_3)*(Subsector_Energy_De1_index_2='Subsector Elect Demand by Year'!$C$2)*("Electricity--GWh"=Subsector_Energy_De1_index_4)*(AK$6=Subsector_Energy_De1_index_1)*Subsector_Energy_De1_vals)) -> 1162.179444 | AL19: =IF($C19="","",SUMPRODUCT(($C19=Subsector_Energy_De1_index_3)*(Subsector_Energy_De1_index_2='Subsector Elect Demand by Year'!$C$2)*("Electricity--GWh"=Subsector_Energy_De1_index_4)*(AL$6=Subsector_Energy_De1_index_1)*Subsector_Energy_De1_vals)) -> 1142.348537 | AM19: =IF($C19="","",SUMPRODUCT(($C19=Subsector_Energy_De1_index_3)*(Subsector_Energy_De1_index_2='Subsector Elect Demand by Year'!$C$2)*("Electricity--GWh"=Subsector_Energy_De1_index_4)*(AM$6=Subsector_Energy_De1_index_1)*Subsector_Energy_De1_vals)) -> 1122.678092 | AN19: =IF($C19="","",SUMPRODUCT(($C19=Subsector_Energy_De1_index_3)*(Subsector_Energy_De1_index_2='Subsector Elect Demand by Year'!$C$2)*("Electricity--GWh"=Subsector_Energy_De1_index_4)*(AN$6=Subsector_Energy_De1_index_1)*Subsector_Energy_De1_vals)) -> 1103.16811
A20: =IF(A19>=MAX(Lists!$S$2:$S$61),"",A19+1) -> 14 | B20: =IF(A20="","",INDEX(Lists!$R$2:$R$62,MATCH($A20,Lists!$S$2:$S$62,0))) -> Industrial & Ag | C20: =IF($A20="","",INDEX(Lists!$Q$2:$Q$62,MATCH($A20,Lists!$S$2:$S$62,0))) -> Construction | D20: Industrial | E20: =IF($C20="","",SUMPRODUCT(($C20=Subsector_Energy_De1_index_3)*(Subsector_Energy_De1_index_2='Subsector Elect Demand by Year'!$C$2)*("Electricity--GWh"=Subsector_Energy_De1_index_4)*(E$6=Subsector_Energy_De1_index_1)*Subsector_Energy_De1_vals)) -> 1122.113098 | F20: =IF($C20="","",SUMPRODUCT(($C20=Subsector_Energy_De1_index_3)*(Subsector_Energy_De1_index_2='Subsector Elect Demand by Year'!$C$2)*("Electricity--GWh"=Subsector_Energy_De1_index_4)*(F$6=Subsector_Energy_De1_index_1)*Subsector_Energy_De1_vals)) -> 1131.646089 | G20: =IF($C20="","",SUMPRODUCT(($C20=Subsector_Energy_De1_index_3)*(Subsector_Energy_De1_index_2='Subsector Elect Demand by Year'!$C$2)*("Electricity--GWh"=Subsector_Energy_De1_index_4)*(G$6=Subsector_Energy_De1_index_1)*Subsector_Energy_De1_vals)) -> 1133.606181 | H20: =IF($C20="","",SUMPRODUCT(($C20=Subsector_Energy_De1_index_3)*(Subsector_Energy_De1_index_2='Subsector Elect Demand by Year'!$C$2)*("Electricity--GWh"=Subsector_Energy_De1_index_4)*(H$6=Subsector_Energy_De1_index_1)*Subsector_Energy_De1_vals)) -> 1127.362335 | I20: =IF($C20="","",SUMPRODUCT(($C20=Subsector_Energy_De1_index_3)*(Subsector_Energy_De1_index_2='Subsector Elect Demand by Year'!$C$2)*("Electricity--GWh"=Subsector_Energy_De1_index_4)*(I$6=Subsector_Energy_De1_index_1)*Subsector_Energy_De1_vals)) -> 1120.390056 | J20: =IF($C20="","",SUMPRODUCT(($C20=Subsector_Energy_De1_index_3)*(Subsector_Energy_De1_index_2='Subsector Elect Demand by Year'!$C$2)*("Electricity--GWh"=Subsector_Energy_De1_index_4)*(J$6=Subsector_Energy_De1_index_1)*Subsector_Energy_De1_vals)) -> 1093.134745 | K20: =IF($C20="","",SUMPRODUCT(($C20=Subsector_Energy_De1_index_3)*(Subsector_Energy_De1_index_2='Subsector Elect Demand by Year'!$C$2)*("Electricity--GWh"=Subsector_Energy_De1_index_4)*(K$6=Subsector_Energy_De1_index_1)*Subsector_Energy_De1_vals)) -> 1062.451737 | L20: =IF($C20="","",SUMPRODUCT(($C20=Subsector_Energy_De1_index_3)*(Subsector_Energy_De1_index_2='Subsector Elect Demand by Year'!$C$2)*("Electricity--GWh"=Subsector_Energy_De1_index_4)*(L$6=Subsector_Energy_De1_index_1)*Subsector_Energy_De1_vals)) -> 1035.396291 | M20: =IF($C20="","",SUMPRODUCT(($C20=Subsector_Energy_De1_index_3)*(Subsector_Energy_De1_index_2='Subsector Elect Demand by Year'!$C$2)*("Electricity--GWh"=Subsector_Energy_De1_index_4)*(M$6=Subsector_Energy_De1_index_1)*Subsector_Energy_De1_vals)) -> 1007.738204 | N20: =IF($C20="","",SUMPRODUCT(($C20=Subsector_Energy_De1_index_3)*(Subsector_Energy_De1_index_2='Subsector Elect Demand by Year'!$C$2)*("Electricity--GWh"=Subsector_Energy_De1_index_4)*(N$6=Subsector_Energy_De1_index_1)*Subsector_Energy_De1_vals)) -> 978.9026367 | O20: =IF($C20="","",SUMPRODUCT(($C20=Subsector_Energy_De1_index_3)*(Subsector_Energy_De1_index_2='Subsector Elect Demand by Year'!$C$2)*("Electricity--GWh"=Subsector_Energy_De1_index_4)*(O$6=Subsector_Energy_De1_index_1)*Subsector_Energy_De1_vals)) -> 969.2249278 | P20: =IF($C20="","",SUMPRODUCT(($C20=Subsector_Energy_De1_index_3)*(Subsector_Energy_De1_index_2='Subsector Elect Demand by Year'!$C$2)*("Electricity--GWh"=Subsector_Energy_De1_index_4)*(P$6=Subsector_Energy_De1_index_1)*Subsector_Energy_De1_vals)) -> 948.5631502 | Q20: =IF($C20="","",SUMPRODUCT(($C20=Subsector_Energy_De1_index_3)*(Subsector_Energy_De1_index_2='Subsector Elect Demand by Year'!$C$2)*("Electricity--GWh"=Subsector_Energy_De1_index_4)*(Q$6=Subsector_Energy_De1_index_1)*Subsector_Energy_De1_vals)) -> 927.6395271 | R20: =IF($C20="","",SUMPRODUCT(($C20=Subsector_Energy_De1_index_3)*(Subsector_Energy_De1_index_2='Subsector Elect Demand by Year'!$C$2)*("Electricity--GWh"=Subsector_Energy_De1_index_4)*(R$6=Subsector_Energy_De1_index_1)*Subsector_Energy_De1_vals)) -> 906.4540585 | S20: =IF($C20="","",SUMPRODUCT(($C20=Subsector_Energy_De1_index_3)*(Subsector_Energy_De1_index_2='Subsector Elect Demand by Year'!$C$2)*("Electricity--GWh"=Subsector_Energy_De1_index_4)*(S$6=Subsector_Energy_De1_index_1)*Subsector_Energy_De1_vals)) -> 885.0067444 | T20: =IF($C20="","",SUMPRODUCT(($C20=Subsector_Energy_De1_index_3)*(Subsector_Energy_De1_index_2='Subsector Elect Demand by Year'!$C$2)*("Electricity--GWh"=Subsector_Energy_De1_index_4)*(T$6=Subsector_Energy_De1_index_1)*Subsector_Energy_De1_vals)) -> 863.2975848 | U20: =IF($C20="","",SUMPRODUCT(($C20=Subsector_Energy_De1_index_3)*(Subsector_Energy_De1_index_2='Subsector Elect Demand by Year'!$C$2)*("Electricity--GWh"=Subsector_Energy_De1_index_4)*(U$6=Subsector_Energy_De1_index_1)*Subsector_Energy_De1_vals)) -> 853.8480837 | V20: =IF($C20="","",SUMPRODUCT(($C20=Subsector_Energy_De1_index_3)*(Subsector_Energy_De1_index_2='Subsector Elect Demand by Year'!$C$2)*("Electricity--GWh"=Subsector_Energy_De1_index_4)*(V$6=Subsector_Energy_De1_index_1)*Subsector_Energy_De1_vals)) -> 844.2614429 | W20: =IF($C20="","",SUMPRODUCT(($C20=Subsector_Energy_De1_index_3)*(Subsector_Energy_De1_index_2='Subsector Elect Demand by Year'!$C$2)*("Electricity--GWh"=Subsector_Energy_De1_index_4)*(W$6=Subsector_Energy_De1_index_1)*Subsector_Energy_De1_vals)) -> 834.5376625 | X20: =IF($C20="","",SUMPRODUCT(($C20=Subsector_Energy_De1_index_3)*(Subsector_Energy_De1_index_2='Subsector Elect Demand by Year'!$C$2)*("Electricity--GWh"=Subsector_Energy_De1_index_4)*(X$6=Subsector_Energy_De1_index_1)*Subsector_Energy_De1_vals)) -> 824.6767425 | Y20: =IF($C20="","",SUMPRODUCT(($C20=Subsector_Energy_De1_index_3)*(Subsector_Energy_De1_index_2='Subsector Elect Demand by Year'!$C$2)*("Electricity--GWh"=Subsector_Energy_De1_index_4)*(Y$6=Subsector_Energy_De1_index_1)*Subsector_Energy_De1_vals)) -> 814.6786829 | Z20: =IF($C20="","",SUMPRODUCT(($C20=Subsector_Energy_De1_index_3)*(Subsector_Energy_De1_index_2='Subsector Elect Demand by Year'!$C$2)*("Electricity--GWh"=Subsector_Energy_De1_index_4)*(Z$6=Subsector_Energy_De1_index_1)*Subsector_Energy_De1_vals)) -> 804.5434837 | AA20: =IF($C20="","",SUMPRODUCT(($C20=Subsector_Energy_De1_index_3)*(Subsector_Energy_De1_index_2='Subsector Elect Demand by Year'!$C$2)*("Electricity--GWh"=Subsector_Energy_De1_index_4)*(AA$6=Subsector_Energy_De1_index_1)*Subsector_Energy_De1_vals)) -> 794.271145 | AB20: =IF($C20="","",SUMPRODUCT(($C20=Subsector_Energy_De1_index_3)*(Subsector_Energy_De1_index_2='Subsector Elect Demand by Year'!$C$2)*("Electricity--GWh"=Subsector_Energy_De1_index_4)*(AB$6=Subsector_Energy_De1_index_1)*Subsector_Energy_De1_vals)) -> 783.8616666 | AC20: =IF($C20="","",SUMPRODUCT(($C20=Subsector_Energy_De1_index_3)*(Subsector_Energy_De1_index_2='Subsector Elect Demand by Year'!$C$2)*("Electricity--GWh"=Subsector_Energy_De1_index_4)*(AC$6=Subsector_Energy_De1_index_1)*Subsector_Energy_De1_vals)) -> 773.3150486 | AD20: =IF($C20="","",SUMPRODUCT(($C20=Subsector_Energy_De1_index_3)*(Subsector_Energy_De1_index_2='Subsector Elect Demand by Year'!$C$2)*("Electricity--GWh"=Subsector_Energy_De1_index_4)*(AD$6=Subsector_Energy_De1_index_1)*Subsector_Energy_De1_vals)) -> 762.631291 | AE20: =IF($C20="","",SUMPRODUCT(($C20=Subsector_Energy_De1_index_3)*(Subsector_Energy_De1_index_2='Subsector Elect Demand by Year'!$C$2)*("Electricity--GWh"=Subsector_Energy_De1_index_4)*(AE$6=Subsector_Energy_De1_index_1)*Subsector_Energy_De1_vals)) -> 752.8456211 | AF20: =IF($C20="","",SUMPRODUCT(($C20=Subsector_Energy_De1_index_3)*(Subsector_Energy_De1_index_2='Subsector Elect Demand by Year'!$C$2)*("Electricity--GWh"=Subsector_Energy_De1_index_4)*(AF$6=Subsector_Energy_De1_index_1)*Subsector_Energy_De1_vals)) -> 742.9326326 | AG20: =IF($C20="","",SUMPRODUCT(($C20=Subsector_Energy_De1_index_3)*(Subsector_Energy_De1_index_2='Subsector Elect Demand by Year'!$C$2)*("Electricity--GWh"=Subsector_Energy_De1_index_4)*(AG$6=Subsector_Energy_De1_index_1)*Subsector_Energy_De1_vals)) -> 732.8923257 | AH20: =IF($C20="","",SUMPRODUCT(($C20=Subsector_Energy_De1_index_3)*(Subsector_Energy_De1_index_2='Subsector Elect Demand by Year'!$C$2)*("Electricity--GWh"=Subsector_Energy_De1_index_4)*(AH$6=Subsector_Energy_De1_index_1)*Subsector_Energy_De1_vals)) -> 722.7247004 | AI20: =IF($C20="","",SUMPRODUCT(($C20=Subsector_Energy_De1_index_3)*(Subsector_Energy_De1_index_2='Subsector Elect Demand by Year'!$C$2)*("Electricity--GWh"=Subsector_Energy_De1_index_4)*(AI$6=Subsector_Energy_De1_index_1)*Subsector_Energy_De1_vals)) -> 712.4297565 | AJ20: =IF($C20="","",SUMPRODUCT(($C20=Subsector_Energy_De1_index_3)*(Subsector_Energy_De1_index_2='Subsector Elect Demand by Year'!$C$2)*("Electricity--GWh"=Subsector_Energy_De1_index_4)*(AJ$6=Subsector_Energy_De1_index_1)*Subsector_Energy_De1_vals)) -> 702.0074942 | AK20: =IF($C20="","",SUMPRODUCT(($C20=Subsector_Energy_De1_index_3)*(Subsector_Energy_De1_index_2='Subsector Elect Demand by Year'!$C$2)*("Electricity--GWh"=Subsector_Energy_De1_index_4)*(AK$6=Subsector_Energy_De1_index_1)*Subsector_Energy_De1_vals)) -> 691.4579133 | AL20: =IF($C20="","",SUMPRODUCT(($C20=Subsector_Energy_De1_index_3)*(Subsector_Energy_De1_index_2='Subsector Elect Demand by Year'!$C$2)*("Electricity--GWh"=Subsector_Energy_De1_index_4)*(AL$6=Subsector_Energy_De1_index_1)*Subsector_Energy_De1_vals)) -> 680.781014 | AM20: =IF($C20="","",SUMPRODUCT(($C20=Subsector_Energy_De1_index_3)*(Subsector_Energy_De1_index_2='Subsector Elect Demand by Year'!$C$2)*("Electricity--GWh"=Subsector_Energy_De1_index_4)*(AM$6=Subsector_Energy_De1_index_1)*Subsector_Energy_De1_vals)) -> 669.9767962 | AN20: =IF($C20="","",SUMPRODUCT(($C20=Subsector_Energy_De1_index_3)*(Subsector_Energy_De1_index_2='Subsector Elect Demand by Year'!$C$2)*("Electricity--GWh"=Subsector_Energy_De1_index_4)*(AN$6=Subsector_Energy_De1_index_1)*Subsector_Energy_De1_vals)) -> 659.04526
A21: =IF(A20>=MAX(Lists!$S$2:$S$61),"",A20+1) -> 15 | B21: =IF(A21="","",INDEX(Lists!$R$2:$R$62,MATCH($A21,Lists!$S$2:$S$62,0))) -> Industrial & Ag | C21: =IF($A21="","",INDEX(Lists!$Q$2:$Q$62,MATCH($A21,Lists!$S$2:$S$62,0))) -> Electrical Equipment & Appliance | D21: Industrial | E21: =IF($C21="","",SUMPRODUCT(($C21=Subsector_Energy_De1_index_3)*(Subsector_Energy_De1_index_2='Subsector Elect Demand by Year'!$C$2)*("Electricity--GWh"=Subsector_Energy_De1_index_4)*(E$6=Subsector_Energy_De1_index_1)*Subsector_Energy_De1_vals)) -> 302.2502418 | F21: =IF($C21="","",SUMPRODUCT(($C21=Subsector_Energy_De1_index_3)*(Subsector_Energy_De1_index_2='Subsector Elect Demand by Year'!$C$2)*("Electricity--GWh"=Subsector_Energy_De1_index_4)*(F$6=Subsector_Energy_De1_index_1)*Subsector_Energy_De1_vals)) -> 312.1516535 | G21: =IF($C21="","",SUMPRODUCT(($C21=Subsector_Energy_De1_index_3)*(Subsector_Energy_De1_index_2='Subsector Elect Demand by Year'!$C$2)*("Electricity--GWh"=Subsector_Energy_De1_index_4)*(G$6=Subsector_Energy_De1_index_1)*Subsector_Energy_De1_vals)) -> 320.5592009 | H21: =IF($C21="","",SUMPRODUCT(($C21=Subsector_Energy_De1_index_3)*(Subsector_Energy_De1_index_2='Subsector Elect Demand by Year'!$C$2)*("Electricity--GWh"=Subsector_Energy_De1_index_4)*(H$6=Subsector_Energy_De1_index_1)*Subsector_Energy_De1_vals)) -> 325.1882318 | I21: =IF($C21="","",SUMPRODUCT(($C21=Subsector_Energy_De1_index_3)*(Subsector_Energy_De1_index_2='Subsector Elect Demand by Year'!$C$2)*("Electricity--GWh"=Subsector_Energy_De1_index_4)*(I$6=Subsector_Energy_De1_index_1)*Subsector_Energy_De1_vals)) -> 330.2927678 | J21: =IF($C21="","",SUMPRODUCT(($C21=Subsector_Energy_De1_index_3)*(Subsector_Energy_De1_index_2='Subsector Elect Demand by Year'!$C$2)*("Electricity--GWh"=Subsector_Energy_De1_index_4)*(J$6=Subsector_Energy_De1_index_1)*Subsector_Energy_De1_vals)) -> 328.9536265 | K21: =IF($C21="","",SUMPRODUCT(($C21=Subsector_Energy_De1_index_3)*(Subsector_Energy_De1_index_2='Subsector Elect Demand by Year'!$C$2)*("Electricity--GWh"=Subsector_Energy_De1_index_4)*(K$6=Subsector_Energy_De1_index_1)*Subsector_Energy_De1_vals)) -> 327.9056964 | L21: =IF($C21="","",SUMPRODUCT(($C21=Subsector_Energy_De1_index_3)*(Subsector_Energy_De1_index_2='Subsector Elect Demand by Year'!$C$2)*("Electricity--GWh"=Subsector_Energy_De1_index_4)*(L$6=Subsector_Energy_De1_index_1)*Subsector_Energy_De1_vals)) -> 326.3514688 | M21: =IF($C21="","",SUMPRODUCT(($C21=Subsector_Energy_De1_index_3)*(Subsector_Energy_De1_index_2='Subsector Elect Demand by Year'!$C$2)*("Electricity--GWh"=Subsector_Energy_De1_index_4)*(M$6=Subsector_Energy_De1_index_1)*Subsector_Energy_De1_vals)) -> 324.306453 | N21: =IF($C21="","",SUMPRODUCT(($C21=Subsector_Energy_De1_index_3)*(Subsector_Energy_De1_index_2='Subsector Elect Demand by Year'!$C$2)*("Electricity--GWh"=Subsector_Energy_De1_index_4)*(N$6=Subsector_Energy_De1_index_1)*Subsector_Energy_De1_vals)) -> 321.9146748 | O21: =IF($C21="","",SUMPRODUCT(($C21=Subsector_Energy_De1_index_3)*(Subsector_Energy_De1_index_2='Subsector Elect Demand by Year'!$C$2)*("Electricity--GWh"=Subsector_Energy_De1_index_4)*(O$6=Subsector_Energy_De1_index_1)*Subsector_Energy_De1_vals)) -> 321.0786195 | P21: =IF($C21="","",SUMPRODUCT(($C21=Subsector_Energy_De1_index_3)*(Subsector_Energy_De1_index_2='Subsector Elect Demand by Year'!$C$2)*("Electricity--GWh"=Subsector_Energy_De1_index_4)*(P$6=Subsector_Energy_De1_index_1)*Subsector_Energy_De1_vals)) -> 319.2699789 | Q21: =IF($C21="","",SUMPRODUCT(($C21=Subsector_Energy_De1_index_3)*(Subsector_Energy_De1_index_2='Subsector Elect Demand by Year'!$C$2)*("Electricity--GWh"=Subsector_Energy_De1_index_4)*(Q$6=Subsector_Energy_De1_index_1)*Subsector_Energy_De1_vals)) -> 317.1023764 | R21: =IF($C21="","",SUMPRODUCT(($C21=Subsector_Energy_De1_index_3)*(Subsector_Energy_De1_index_2='Subsector Elect Demand by Year'!$C$2)*("Electricity--GWh"=Subsector_Energy_De1_index_4)*(R$6=Subsector_Energy_De1_index_1)*Subsector_Energy_De1_vals)) -> 314.5758118 | S21: =IF($C21="","",SUMPRODUCT(($C21=Subsector_Energy_De1_index_3)*(Subsector_Energy_De1_index_2='Subsector Elect Demand by Year'!$C$2)*("Electricity--GWh"=Subsector_Energy_De1_index_4)*(S$6=Subsector_Energy_De1_index_1)*Subsector_Energy_De1_vals)) -> 311.6902853 | T21: =IF($C21="","",SUMPRODUCT(($C21=Subsector_Energy_De1_index_3)*(Subsector_Energy_De1_index_2='Subsector Elect Demand by Year'!$C$2)*("Electricity--GWh"=Subsector_Energy_De1_index_4)*(T$6=Subsector_Energy_De1_index_1)*Subsector_Energy_De1_vals)) -> 308.4457968 | U21: =IF($C21="","",SUMPRODUCT(($C21=Subsector_Energy_De1_index_3)*(Subsector_Energy_De1_index_2='Subsector Elect Demand by Year'!$C$2)*("Electricity--GWh"=Subsector_Energy_De1_index_4)*(U$6=Subsector_Energy_De1_index_1)*Subsector_Energy_De1_vals)) -> 310.6809695 | V21: =IF($C21="","",SUMPRODUCT(($C21=Subsector_Energy_De1_index_3)*(Subsector_Energy_De1_index_2='Subsector Elect Demand by Year'!$C$2)*("Electricity--GWh"=Subsector_Energy_De1_index_4)*(V$6=Subsector_Energy_De1_index_1)*Subsector_Energy_De1_vals)) -> 312.7771859 | W21: =IF($C21="","",SUMPRODUCT(($C21=Subsector_Energy_De1_index_3)*(Subsector_Energy_De1_index_2='Subsector Elect Demand by Year'!$C$2)*("Electricity--GWh"=Subsector_Energy_De1_index_4)*(W$6=Subsector_Energy_De1_index_1)*Subsector_Energy_De1_vals)) -> 314.7344457 | X21: =IF($C21="","",SUMPRODUCT(($C21=Subsector_Energy_De1_index_3)*(Subsector_Energy_De1_index_2='Subsector Elect Demand by Year'!$C$2)*("Electricity--GWh"=Subsector_Energy_De1_index_4)*(X$6=Subsector_Energy_De1_index_1)*Subsector_Energy_De1_vals)) -> 316.5527492 | Y21: =IF($C21="","",SUMPRODUCT(($C21=Subsector_Energy_De1_index_3)*(Subsector_Energy_De1_index_2='Subsector Elect Demand by Year'!$C$2)*("Electricity--GWh"=Subsector_Energy_De1_index_4)*(Y$6=Subsector_Energy_De1_index_1)*Subsector_Energy_De1_vals)) -> 318.2320961 | Z21: =IF($C21="","",SUMPRODUCT(($C21=Subsector_Energy_De1_index_3)*(Subsector_Energy_De1_index_2='Subsector Elect Demand by Year'!$C$2)*("Electricity--GWh"=Subsector_Energy_De1_index_4)*(Z$6=Subsector_Energy_De1_index_1)*Subsector_Energy_De1_vals)) -> 319.7724866 | AA21: =IF($C21="","",SUMPRODUCT(($C21=Subsector_Energy_De1_index_3)*(Subsector_Energy_De1_index_2='Subsector Elect Demand by Year'!$C$2)*("Electricity--GWh"=Subsector_Energy_De1_index_4)*(AA$6=Subsector_Energy_De1_index_1)*Subsector_Energy_De1_vals)) -> 321.1739207 | AB21: =IF($C21="","",SUMPRODUCT(($C21=Subsector_Energy_De1_index_3)*(Subsector_Energy_De1_index_2='Subsector Elect Demand by Year'!$C$2)*("Electricity--GWh"=Subsector_Energy_De1_index_4)*(AB$6=Subsector_Energy_De1_index_1)*Subsector_Energy_De1_vals)) -> 322.4363982 | AC21: =IF($C21="","",SUMPRODUCT(($C21=Subsector_Energy_De1_index_3)*(Subsector_Energy_De1_index_2='Subsector Elect Demand by Year'!$C$2)*("Electricity--GWh"=Subsector_Energy_De1_index_4)*(AC$6=Subsector_Energy_De1_index_1)*Subsector_Energy_De1_vals)) -> 323.5599194 | AD21: =IF($C21="","",SUMPRODUCT(($C21=Subsector_Energy_De1_index_3)*(Subsector_Energy_De1_index_2='Subsector Elect Demand by Year'!$C$2)*("Electricity--GWh"=Subsector_Energy_De1_index_4)*(AD$6=Subsector_Energy_De1_index_1)*Subsector_Energy_De1_vals)) -> 324.5444841 | AE21: =IF($C21="","",SUMPRODUCT(($C21=Subsector_Energy_De1_index_3)*(Subsector_Energy_De1_index_2='Subsector Elect Demand by Year'!$C$2)*("Electricity--GWh"=Subsector_Energy_De1_index_4)*(AE$6=Subsector_Energy_De1_index_1)*Subsector_Energy_De1_vals)) -> 326.5038731 | AF21: =IF($C21="","",SUMPRODUCT(($C21=Subsector_Energy_De1_index_3)*(Subsector_Energy_De1_index_2='Subsector Elect Demand by Year'!$C$2)*("Electricity--GWh"=Subsector_Energy_De1_index_4)*(AF$6=Subsector_Energy_De1_index_1)*Subsector_Energy_De1_vals)) -> 328.3596206 | AG21: =IF($C21="","",SUMPRODUCT(($C21=Subsector_Energy_De1_index_3)*(Subsector_Energy_De1_index_2='Subsector Elect Demand by Year'!$C$2)*("Electricity--GWh"=Subsector_Energy_De1_index_4)*(AG$6=Subsector_Energy_De1_index_1)*Subsector_Energy_De1_vals)) -> 330.1117265 | AH21: =IF($C21="","",SUMPRODUCT(($C21=Subsector_Energy_De1_index_3)*(Subsector_Energy_De1_index_2='Subsector Elect Demand by Year'!$C$2)*("Electricity--GWh"=Subsector_Energy_De1_index_4)*(AH$6=Subsector_Energy_De1_index_1)*Subsector_Energy_De1_vals)) -> 331.760191 | AI21: =IF($C21="","",SUMPRODUCT(($C21=Subsector_Energy_De1_index_3)*(Subsector_Energy_De1_index_2='Subsector Elect Demand by Year'!$C$2)*("Electricity--GWh"=Subsector_Energy_De1_index_4)*(AI$6=Subsector_Energy_De1_index_1)*Subsector_Energy_De1_vals)) -> 333.3050138 | AJ21: =IF($C21="","",SUMPRODUCT(($C21=Subsector_Energy_De1_index_3)*(Subsector_Energy_De1_index_2='Subsector Elect Demand by Year'!$C$2)*("Electricity--GWh"=Subsector_Energy_De1_index_4)*(AJ$6=Subsector_Energy_De1_index_1)*Subsector_Energy_De1_vals)) -> 334.7461952 | AK21: =IF($C21="","",SUMPRODUCT(($C21=Subsector_Energy_De1_index_3)*(Subsector_Energy_De1_index_2='Subsector Elect Demand by Year'!$C$2)*("Electricity--GWh"=Subsector_Energy_De1_index_4)*(AK$6=Subsector_Energy_De1_index_1)*Subsector_Energy_De1_vals)) -> 336.083735 | AL21: =IF($C21="","",SUMPRODUCT(($C21=Subsector_Energy_De1_index_3)*(Subsector_Energy_De1_index_2='Subsector Elect Demand by Year'!$C$2)*("Electricity--GWh"=Subsector_Energy_De1_index_4)*(AL$6=Subsector_Energy_De1_index_1)*Subsector_Energy_De1_vals)) -> 337.3176333 | AM21: =IF($C21="","",SUMPRODUCT(($C21=Subsector_Energy_De1_index_3)*(Subsector_Energy_De1_index_2='Subsector Elect Demand by Year'!$C$2)*("Electricity--GWh"=Subsector_Energy_De1_index_4)*(AM$6=Subsector_Energy_De1_index_1)*Subsector_Energy_De1_vals)) -> 338.4478901 | AN21: =IF($C21="","",SUMPRODUCT(($C21=Subsector_Energy_De1_index_3)*(Subsector_Energy_De1_index_2='Subsector Elect Demand by Year'!$C$2)*("Electricity--GWh"=Subsector_Energy_De1_index_4)*(AN$6=Subsector_Energy_De1_index_1)*Subsector_Energy_De1_vals)) -> 339.4745053
A22: =IF(A21>=MAX(Lists!$S$2:$S$61),"",A21+1) -> 16 | B22: =IF(A22="","",INDEX(Lists!$R$2:$R$62,MATCH($A22,Lists!$S$2:$S$62,0))) -> Industrial & Ag | C22: =IF($A22="","",INDEX(Lists!$Q$2:$Q$62,MATCH($A22,Lists!$S$2:$S$62,0))) -> Fabricated Metal | D22: Industrial | E22: =IF($C22="","",SUMPRODUCT(($C22=Subsector_Energy_De1_index_3)*(Subsector_Energy_De1_index_2='Subsector Elect Demand by Year'!$C$2)*("Electricity--GWh"=Subsector_Energy_De1_index_4)*(E$6=Subsector_Energy_De1_index_1)*Subsector_Energy_De1_vals)) -> 1709.593218 | F22: =IF($C22="","",SUMPRODUCT(($C22=Subsector_Energy_De1_index_3)*(Subsector_Energy_De1_index_2='Subsector Elect Demand by Year'!$C$2)*("Electricity--GWh"=Subsector_Energy_De1_index_4)*(F$6=Subsector_Energy_De1_index_1)*Subsector_Energy_De1_vals)) -> 1725.871337 | G22: =IF($C22="","",SUMPRODUCT(($C22=Subsector_Energy_De1_index_3)*(Subsector_Energy_De1_index_2='Subsector Elect Demand by Year'!$C$2)*("Electricity--GWh"=Subsector_Energy_De1_index_4)*(G$6=Subsector_Energy_De1_index_1)*Subsector_Energy_De1_vals)) -> 1737.425159 | H22: =IF($C22="","",SUMPRODUCT(($C22=Subsector_Energy_De1_index_3)*(Subsector_Energy_De1_index_2='Subsector Elect Demand by Year'!$C$2)*("Electricity--GWh"=Subsector_Energy_De1_index_4)*(H$6=Subsector_Energy_De1_index_1)*Subsector_Energy_De1_vals)) -> 1740.635572 | I22: =IF($C22="","",SUMPRODUCT(($C22=Subsector_Energy_De1_index_3)*(Subsector_Energy_De1_index_2='Subsector Elect Demand by Year'!$C$2)*("Electricity--GWh"=Subsector_Energy_De1_index_4)*(I$6=Subsector_Energy_De1_index_1)*Subsector_Energy_De1_vals)) -> 1744.444547 | J22: =IF($C22="","",SUMPRODUCT(($C22=Subsector_Energy_De1_index_3)*(Subsector_Energy_De1_index_2='Subsector Elect Demand by Year'!$C$2)*("Electricity--GWh"=Subsector_Energy_De1_index_4)*(J$6=Subsector_Energy_De1_index_1)*Subsector_Energy_De1_vals)) -> 1709.093749 | K22: =IF($C22="","",SUMPRODUCT(($C22=Subsector_Energy_De1_index_3)*(Subsector_Energy_De1_index_2='Subsector Elect Demand by Year'!$C$2)*("Electricity--GWh"=Subsector_Energy_De1_index_4)*(K$6=Subsector_Energy_De1_index_1)*Subsector_Energy_De1_vals)) -> 1675.47807 | L22: =IF($C22="","",SUMPRODUCT(($C22=Subsector_Energy_De1_index_3)*(Subsector_Energy_De1_index_2='Subsector Elect Demand by Year'!$C$2)*("Electricity--GWh"=Subsector_Energy_De1_index_4)*(L$6=Subsector_Energy_De1_index_1)*Subsector_Energy_De1_vals)) -> 1642.079881 | M22: =IF($C22="","",SUMPRODUCT(($C22=Subsector_Energy_De1_index_3)*(Subsector_Energy_De1_index_2='Subsector Elect Demand by Year'!$C$2)*("Electricity--GWh"=Subsector_Energy_De1_index_4)*(M$6=Subsector_Energy_De1_index_1)*Subsector_Energy_De1_vals)) -> 1606.892198 | N22: =IF($C22="","",SUMPRODUCT(($C22=Subsector_Energy_De1_index_3)*(Subsector_Energy_De1_index_2='Subsector Elect Demand by Year'!$C$2)*("Electricity--GWh"=Subsector_Energy_De1_index_4)*(N$6=Subsector_Energy_De1_index_1)*Subsector_Energy_De1_vals)) -> 1570.679772 | O22: =IF($C22="","",SUMPRODUCT(($C22=Subsector_Energy_De1_index_3)*(Subsector_Energy_De1_index_2='Subsector Elect Demand by Year'!$C$2)*("Electricity--GWh"=Subsector_Energy_De1_index_4)*(O$6=Subsector_Energy_De1_index_1)*Subsector_Energy_De1_vals)) -> 1552.826073 | P22: =IF($C22="","",SUMPRODUCT(($C22=Subsector_Energy_De1_index_3)*(Subsector_Energy_De1_index_2='Subsector Elect Demand by Year'!$C$2)*("Electricity--GWh"=Subsector_Energy_De1_index_4)*(P$6=Subsector_Energy_De1_index_1)*Subsector_Energy_De1_vals)) -> 1526.71696 | Q22: =IF($C22="","",SUMPRODUCT(($C22=Subsector_Energy_De1_index_3)*(Subsector_Energy_De1_index_2='Subsector Elect Demand by Year'!$C$2)*("Electricity--GWh"=Subsector_Energy_De1_index_4)*(Q$6=Subsector_Energy_De1_index_1)*Subsector_Energy_De1_vals)) -> 1499.810293 | R22: =IF($C22="","",SUMPRODUCT(($C22=Subsector_Energy_De1_index_3)*(Subsector_Energy_De1_index_2='Subsector Elect Demand by Year'!$C$2)*("Electricity--GWh"=Subsector_Energy_De1_index_4)*(R$6=Subsector_Energy_De1_index_1)*Subsector_Energy_De1_vals)) -> 1472.106074 | S22: =IF($C22="","",SUMPRODUCT(($C22=Subsector_Energy_De1_index_3)*(Subsector_Energy_De1_index_2='Subsector Elect Demand by Year'!$C$2)*("Electricity--GWh"=Subsector_Energy_De1_index_4)*(S$6=Subsector_Energy_De1_index_1)*Subsector_Energy_De1_vals)) -> 1443.604301 | T22: =IF($C22="","",SUMPRODUCT(($C22=Subsector_Energy_De1_index_3)*(Subsector_Energy_De1_index_2='Subsector Elect Demand by Year'!$C$2)*("Electricity--GWh"=Subsector_Energy_De1_index_4)*(T$6=Subsector_Energy_De1_index_1)*Subsector_Energy_De1_vals)) -> 1414.304976 | U22: =IF($C22="","",SUMPRODUCT(($C22=Subsector_Energy_De1_index_3)*(Subsector_Energy_De1_index_2='Subsector Elect Demand by Year'!$C$2)*("Electricity--GWh"=Subsector_Energy_De1_index_4)*(U$6=Subsector_Energy_De1_index_1)*Subsector_Energy_De1_vals)) -> 1404.10399 | V22: =IF($C22="","",SUMPRODUCT(($C22=Subsector_Energy_De1_index_3)*(Subsector_Energy_De1_index_2='Subsector Elect Demand by Year'!$C$2)*("Electricity--GWh"=Subsector_Energy_De1_index_4)*(V$6=Subsector_Energy_De1_index_1)*Subsector_Energy_De1_vals)) -> 1393.472286 | W22: =IF($C22="","",SUMPRODUCT(($C22=Subsector_Energy_De1_index_3)*(Subsector_Energy_De1_index_2='Subsector Elect Demand by Year'!$C$2)*("Electricity--GWh"=Subsector_Energy_De1_index_4)*(W$6=Subsector_Energy_De1_index_1)*Subsector_Energy_De1_vals)) -> 1382.409865 | X22: =IF($C22="","",SUMPRODUCT(($C22=Subsector_Energy_De1_index_3)*(Subsector_Energy_De1_index_2='Subsector Elect Demand by Year'!$C$2)*("Electricity--GWh"=Subsector_Energy_De1_index_4)*(X$6=Subsector_Energy_De1_index_1)*Subsector_Energy_De1_vals)) -> 1370.916727 | Y22: =IF($C22="","",SUMPRODUCT(($C22=Subsector_Energy_De1_index_3)*(Subsector_Energy_De1_index_2='Subsector Elect Demand by Year'!$C$2)*("Electricity--GWh"=Subsector_Energy_De1_index_4)*(Y$6=Subsector_Energy_De1_index_1)*Subsector_Energy_De1_vals)) -> 1358.992871 | Z22: =IF($C22="","",SUMPRODUCT(($C22=Subsector_Energy_De1_index_3)*(Subsector_Energy_De1_index_2='Subsector Elect Demand by Year'!$C$2)*("Electricity--GWh"=Subsector_Energy_De1_index_4)*(Z$6=Subsector_Energy_De1_index_1)*Subsector_Energy_De1_vals)) -> 1346.638299 | AA22: =IF($C22="","",SUMPRODUCT(($C22=Subsector_Energy_De1_index_3)*(Subsector_Energy_De1_index_2='Subsector Elect Demand by Year'!$C$2)*("Electricity--GWh"=Subsector_Energy_De1_index_4)*(AA$6=Subsector_Energy_De1_index_1)*Subsector_Energy_De1_vals)) -> 1333.853008 | AB22: =IF($C22="","",SUMPRODUCT(($C22=Subsector_Energy_De1_index_3)*(Subsector_Energy_De1_index_2='Subsector Elect Demand by Year'!$C$2)*("Electricity--GWh"=Subsector_Energy_De1_index_4)*(AB$6=Subsector_Energy_De1_index_1)*Subsector_Energy_De1_vals)) -> 1320.637001 | AC22: =IF($C22="","",SUMPRODUCT(($C22=Subsector_Energy_De1_index_3)*(Subsector_Energy_De1_index_2='Subsector Elect Demand by Year'!$C$2)*("Electricity--GWh"=Subsector_Energy_De1_index_4)*(AC$6=Subsector_Energy_De1_index_1)*Subsector_Energy_De1_vals)) -> 1306.990276 | AD22: =IF($C22="","",SUMPRODUCT(($C22=Subsector_Energy_De1_index_3)*(Subsector_Energy_De1_index_2='Subsector Elect Demand by Year'!$C$2)*("Electricity--GWh"=Subsector_Energy_De1_index_4)*(AD$6=Subsector_Energy_De1_index_1)*Subsector_Energy_De1_vals)) -> 1292.912834 | AE22: =IF($C22="","",SUMPRODUCT(($C22=Subsector_Energy_De1_index_3)*(Subsector_Energy_De1_index_2='Subsector Elect Demand by Year'!$C$2)*("Electricity--GWh"=Subsector_Energy_De1_index_4)*(AE$6=Subsector_Energy_De1_index_1)*Subsector_Energy_De1_vals)) -> 1279.980385 | AF22: =IF($C22="","",SUMPRODUCT(($C22=Subsector_Energy_De1_index_3)*(Subsector_Energy_De1_index_2='Subsector Elect Demand by Year'!$C$2)*("Electricity--GWh"=Subsector_Energy_De1_index_4)*(AF$6=Subsector_Energy_De1_index_1)*Subsector_Energy_De1_vals)) -> 1266.643819 | AG22: =IF($C22="","",SUMPRODUCT(($C22=Subsector_Energy_De1_index_3)*(Subsector_Energy_De1_index_2='Subsector Elect Demand by Year'!$C$2)*("Electricity--GWh"=Subsector_Energy_De1_index_4)*(AG$6=Subsector_Energy_De1_index_1)*Subsector_Energy_De1_vals)) -> 1252.903136 | AH22: =IF($C22="","",SUMPRODUCT(($C22=Subsector_Energy_De1_index_3)*(Subsector_Energy_De1_index_2='Subsector Elect Demand by Year'!$C$2)*("Electricity--GWh"=Subsector_Energy_De1_index_4)*(AH$6=Subsector_Energy_De1_index_1)*Subsector_Energy_De1_vals)) -> 1238.758336 | AI22: =IF($C22="","",SUMPRODUCT(($C22=Subsector_Energy_De1_index_3)*(Subsector_Energy_De1_index_2='Subsector Elect Demand by Year'!$C$2)*("Electricity--GWh"=Subsector_Energy_De1_index_4)*(AI$6=Subsector_Energy_De1_index_1)*Subsector_Energy_De1_vals)) -> 1224.209419 | AJ22: =IF($C22="","",SUMPRODUCT(($C22=Subsector_Energy_De1_index_3)*(Subsector_Energy_De1_index_2='Subsector Elect Demand by Year'!$C$2)*("Electricity--GWh"=Subsector_Energy_De1_index_4)*(AJ$6=Subsector_Energy_De1_index_1)*Subsector_Energy_De1_vals)) -> 1209.256385 | AK22: =IF($C22="","",SUMPRODUCT(($C22=Subsector_Energy_De1_index_3)*(Subsector_Energy_De1_index_2='Subsector Elect Demand by Year'!$C$2)*("Electricity--GWh"=Subsector_Energy_De1_index_4)*(AK$6=Subsector_Energy_De1_index_1)*Subsector_Energy_De1_vals)) -> 1193.899234 | AL22: =IF($C22="","",SUMPRODUCT(($C22=Subsector_Energy_De1_index_3)*(Subsector_Energy_De1_index_2='Subsector Elect Demand by Year'!$C$2)*("Electricity--GWh"=Subsector_Energy_De1_index_4)*(AL$6=Subsector_Energy_De1_index_1)*Subsector_Energy_De1_vals)) -> 1178.137966 | AM22: =IF($C22="","",SUMPRODUCT(($C22=Subsector_Energy_De1_index_3)*(Subsector_Energy_De1_index_2='Subsector Elect Demand by Year'!$C$2)*("Electricity--GWh"=Subsector_Energy_De1_index_4)*(AM$6=Subsector_Energy_De1_index_1)*Subsector_Energy_De1_vals)) -> 1161.972581 | AN22: =IF($C22="","",SUMPRODUCT(($C22=Subsector_Energy_De1_index_3)*(Subsector_Energy_De1_index_2='Subsector Elect Demand by Year'!$C$2)*("Electricity--GWh"=Subsector_Energy_De1_index_4)*(AN$6=Subsector_Energy_De1_index_1)*Subsector_Energy_De1_vals)) -> 1145.403079
A23: =IF(A22>=MAX(Lists!$S$2:$S$61),"",A22+1) -> 17 | B23: =IF(A23="","",INDEX(Lists!$R$2:$R$62,MATCH($A23,Lists!$S$2:$S$62,0))) -> Industrial & Ag | C23: =IF($A23="","",INDEX(Lists!$Q$2:$Q$62,MATCH($A23,Lists!$S$2:$S$62,0))) -> Food & Beverage | D23: Industrial | E23: =IF($C23="","",SUMPRODUCT(($C23=Subsector_Energy_De1_index_3)*(Subsector_Energy_De1_index_2='Subsector Elect Demand by Year'!$C$2)*("Electricity--GWh"=Subsector_Energy_De1_index_4)*(E$6=Subsector_Energy_De1_index_1)*Subsector_Energy_De1_vals)) -> 4143.753315 | F23: =IF($C23="","",SUMPRODUCT(($C23=Subsector_Energy_De1_index_3)*(Subsector_Energy_De1_index_2='Subsector Elect Demand by Year'!$C$2)*("Electricity--GWh"=Subsector_Energy_De1_index_4)*(F$6=Subsector_Energy_De1_index_1)*Subsector_Energy_De1_vals)) -> 4129.517051 | G23: =IF($C23="","",SUMPRODUCT(($C23=Subsector_Energy_De1_index_3)*(Subsector_Energy_De1_index_2='Subsector Elect Demand by Year'!$C$2)*("Electricity--GWh"=Subsector_Energy_De1_index_4)*(G$6=Subsector_Energy_De1_index_1)*Subsector_Energy_De1_vals)) -> 4108.530781 | H23: =IF($C23="","",SUMPRODUCT(($C23=Subsector_Energy_De1_index_3)*(Subsector_Energy_De1_index_2='Subsector Elect Demand by Year'!$C$2)*("Electricity--GWh"=Subsector_Energy_De1_index_4)*(H$6=Subsector_Energy_De1_index_1)*Subsector_Energy_De1_vals)) -> 4074.249282 | I23: =IF($C23="","",SUMPRODUCT(($C23=Subsector_Energy_De1_index_3)*(Subsector_Energy_De1_index_2='Subsector Elect Demand by Year'!$C$2)*("Electricity--GWh"=Subsector_Energy_De1_index_4)*(I$6=Subsector_Energy_De1_index_1)*Subsector_Energy_De1_vals)) -> 4039.369472 | J23: =IF($C23="","",SUMPRODUCT(($C23=Subsector_Energy_De1_index_3)*(Subsector_Energy_De1_index_2='Subsector Elect Demand by Year'!$C$2)*("Electricity--GWh"=Subsector_Energy_De1_index_4)*(J$6=Subsector_Energy_De1_index_1)*Subsector_Energy_De1_vals)) -> 3912.904938 | K23: =IF($C23="","",SUMPRODUCT(($C23=Subsector_Energy_De1_index_3)*(Subsector_Energy_De1_index_2='Subsector Elect Demand by Year'!$C$2)*("Electricity--GWh"=Subsector_Energy_De1_index_4)*(K$6=Subsector_Energy_De1_index_1)*Subsector_Energy_De1_vals)) -> 3789.585705 | L23: =IF($C23="","",SUMPRODUCT(($C23=Subsector_Energy_De1_index_3)*(Subsector_Energy_De1_index_2='Subsector Elect Demand by Year'!$C$2)*("Electricity--GWh"=Subsector_Energy_De1_index_4)*(L$6=Subsector_Energy_De1_index_1)*Subsector_Energy_De1_vals)) -> 3666.584543 | M23: =IF($C23="","",SUMPRODUCT(($C23=Subsector_Energy_De1_index_3)*(Subsector_Energy_De1_index_2='Subsector Elect Demand by Year'!$C$2)*("Electricity--GWh"=Subsector_Energy_De1_index_4)*(M$6=Subsector_Energy_De1_index_1)*Subsector_Energy_De1_vals)) -> 3544.011484 | N23: =IF($C23="","",SUMPRODUCT(($C23=Subsector_Energy_De1_index_3)*(Subsector_Energy_De1_index_2='Subsector Elect Demand by Year'!$C$2)*("Electricity--GWh"=Subsector_Energy_De1_index_4)*(N$6=Subsector_Energy_De1_index_1)*Subsector_Energy_De1_vals)) -> 3422.609008 | O23: =IF($C23="","",SUMPRODUCT(($C23=Subsector_Energy_De1_index_3)*(Subsector_Energy_De1_index_2='Subsector Elect Demand by Year'!$C$2)*("Electricity--GWh"=Subsector_Energy_De1_index_4)*(O$6=Subsector_Energy_De1_index_1)*Subsector_Energy_De1_vals)) -> 3350.068307 | P23: =IF($C23="","",SUMPRODUCT(($C23=Subsector_Energy_De1_index_3)*(Subsector_Energy_De1_index_2='Subsector Elect Demand by Year'!$C$2)*("Electricity--GWh"=Subsector_Energy_De1_index_4)*(P$6=Subsector_Energy_De1_index_1)*Subsector_Energy_De1_vals)) -> 3256.199709 | Q23: =IF($C23="","",SUMPRODUCT(($C23=Subsector_Energy_De1_index_3)*(Subsector_Energy_De1_index_2='Subsector Elect Demand by Year'!$C$2)*("Electricity--GWh"=Subsector_Energy_De1_index_4)*(Q$6=Subsector_Energy_De1_index_1)*Subsector_Energy_De1_vals)) -> 3162.639701 | R23: =IF($C23="","",SUMPRODUCT(($C23=Subsector_Energy_De1_index_3)*(Subsector_Energy_De1_index_2='Subsector Elect Demand by Year'!$C$2)*("Electricity--GWh"=Subsector_Energy_De1_index_4)*(R$6=Subsector_Energy_De1_index_1)*Subsector_Energy_De1_vals)) -> 3069.388282 | S23: =IF($C23="","",SUMPRODUCT(($C23=Subsector_Energy_De1_index_3)*(Subsector_Energy_De1_index_2='Subsector Elect Demand by Year'!$C$2)*("Electricity--GWh"=Subsector_Energy_De1_index_4)*(S$6=Subsector_Energy_De1_index_1)*Subsector_Energy_De1_vals)) -> 2976.445452 | T23: =IF($C23="","",SUMPRODUCT(($C23=Subsector_Energy_De1_index_3)*(Subsector_Energy_De1_index_2='Subsector Elect Demand by Year'!$C$2)*("Electricity--GWh"=Subsector_Energy_De1_index_4)*(T$6=Subsector_Energy_De1_index_1)*Subsector_Energy_De1_vals)) -> 2883.811212 | U23: =IF($C23="","",SUMPRODUCT(($C23=Subsector_Energy_De1_index_3)*(Subsector_Energy_De1_index_2='Subsector Elect Demand by Year'!$C$2)*("Electricity--GWh"=Subsector_Energy_De1_index_4)*(U$6=Subsector_Energy_De1_index_1)*Subsector_Energy_De1_vals)) -> 2820.261015 | V23: =IF($C23="","",SUMPRODUCT(($C23=Subsector_Energy_De1_index_3)*(Subsector_Energy_De1_index_2='Subsector Elect Demand by Year'!$C$2)*("Electricity--GWh"=Subsector_Energy_De1_index_4)*(V$6=Subsector_Energy_De1_index_1)*Subsector_Energy_De1_vals)) -> 2756.917614 | W23: =IF($C23="","",SUMPRODUCT(($C23=Subsector_Energy_De1_index_3)*(Subsector_Energy_De1_index_2='Subsector Elect Demand by Year'!$C$2)*("Electricity--GWh"=Subsector_Energy_De1_index_4)*(W$6=Subsector_Energy_De1_index_1)*Subsector_Energy_De1_vals)) -> 2693.78101 | X23: =IF($C23="","",SUMPRODUCT(($C23=Subsector_Energy_De1_index_3)*(Subsector_Energy_De1_index_2='Subsector Elect Demand by Year'!$C$2)*("Electricity--GWh"=Subsector_Energy_De1_index_4)*(X$6=Subsector_Energy_De1_index_1)*Subsector_Energy_De1_vals)) -> 2630.851203 | Y23: =IF($C23="","",SUMPRODUCT(($C23=Subsector_Energy_De1_index_3)*(Subsector_Energy_De1_index_2='Subsector Elect Demand by Year'!$C$2)*("Electricity--GWh"=Subsector_Energy_De1_index_4)*(Y$6=Subsector_Energy_De1_index_1)*Subsector_Energy_De1_vals)) -> 2568.128192 | Z23: =IF($C23="","",SUMPRODUCT(($C23=Subsector_Energy_De1_index_3)*(Subsector_Energy_De1_index_2='Subsector Elect Demand by Year'!$C$2)*("Electricity--GWh"=Subsector_Energy_De1_index_4)*(Z$6=Subsector_Energy_De1_index_1)*Subsector_Energy_De1_vals)) -> 2505.611977 | AA23: =IF($C23="","",SUMPRODUCT(($C23=Subsector_Energy_De1_index_3)*(Subsector_Energy_De1_index_2='Subsector Elect Demand by Year'!$C$2)*("Electricity--GWh"=Subsector_Energy_De1_index_4)*(AA$6=Subsector_Energy_De1_index_1)*Subsector_Energy_De1_vals)) -> 2443.302559 | AB23: =IF($C23="","",SUMPRODUCT(($C23=Subsector_Energy_De1_index_3)*(Subsector_Energy_De1_index_2='Subsector Elect Demand by Year'!$C$2)*("Electricity--GWh"=Subsector_Energy_De1_index_4)*(AB$6=Subsector_Energy_De1_index_1)*Subsector_Energy_De1_vals)) -> 2381.199937 | AC23: =IF($C23="","",SUMPRODUCT(($C23=Subsector_Energy_De1_index_3)*(Subsector_Energy_De1_index_2='Subsector Elect Demand by Year'!$C$2)*("Electricity--GWh"=Subsector_Energy_De1_index_4)*(AC$6=Subsector_Energy_De1_index_1)*Subsector_Energy_De1_vals)) -> 2319.304112 | AD23: =IF($C23="","",SUMPRODUCT(($C23=Subsector_Energy_De1_index_3)*(Subsector_Energy_De1_index_2='Subsector Elect Demand by Year'!$C$2)*("Electricity--GWh"=Subsector_Energy_De1_index_4)*(AD$6=Subsector_Energy_De1_index_1)*Subsector_Energy_De1_vals)) -> 2257.615083 | AE23: =IF($C23="","",SUMPRODUCT(($C23=Subsector_Energy_De1_index_3)*(Subsector_Energy_De1_index_2='Subsector Elect Demand by Year'!$C$2)*("Electricity--GWh"=Subsector_Energy_De1_index_4)*(AE$6=Subsector_Energy_De1_index_1)*Subsector_Energy_De1_vals)) -> 2217.471135 | AF23: =IF($C23="","",SUMPRODUCT(($C23=Subsector_Energy_De1_index_3)*(Subsector_Energy_De1_index_2='Subsector Elect Demand by Year'!$C$2)*("Electricity--GWh"=Subsector_Energy_De1_index_4)*(AF$6=Subsector_Energy_De1_index_1)*Subsector_Energy_De1_vals)) -> 2177.45714 | AG23: =IF($C23="","",SUMPRODUCT(($C23=Subsector_Energy_De1_index_3)*(Subsector_Energy_De1_index_2='Subsector Elect Demand by Year'!$C$2)*("Electricity--GWh"=Subsector_Energy_De1_index_4)*(AG$6=Subsector_Energy_De1_index_1)*Subsector_Energy_De1_vals)) -> 2137.573099 | AH23: =IF($C23="","",SUMPRODUCT(($C23=Subsector_Energy_De1_index_3)*(Subsector_Energy_De1_index_2='Subsector Elect Demand by Year'!$C$2)*("Electricity--GWh"=Subsector_Energy_De1_index_4)*(AH$6=Subsector_Energy_De1_index_1)*Subsector_Energy_De1_vals)) -> 2097.819011 | AI23: =IF($C23="","",SUMPRODUCT(($C23=Subsector_Energy_De1_index_3)*(Subsector_Energy_De1_index_2='Subsector Elect Demand by Year'!$C$2)*("Electricity--GWh"=Subsector_Energy_De1_index_4)*(AI$6=Subsector_Energy_De1_index_1)*Subsector_Energy_De1_vals)) -> 2058.194876 | AJ23: =IF($C23="","",SUMPRODUCT(($C23=Subsector_Energy_De1_index_3)*(Subsector_Energy_De1_index_2='Subsector Elect Demand by Year'!$C$2)*("Electricity--GWh"=Subsector_Energy_De1_index_4)*(AJ$6=Subsector_Energy_De1_index_1)*Subsector_Energy_De1_vals)) -> 2018.700694 | AK23: =IF($C23="","",SUMPRODUCT(($C23=Subsector_Energy_De1_index_3)*(Subsector_Energy_De1_index_2='Subsector Elect Demand by Year'!$C$2)*("Electricity--GWh"=Subsector_Energy_De1_index_4)*(AK$6=Subsector_Energy_De1_index_1)*Subsector_Energy_De1_vals)) -> 1979.336465 | AL23: =IF($C23="","",SUMPRODUCT(($C23=Subsector_Energy_De1_index_3)*(Subsector_Energy_De1_index_2='Subsector Elect Demand by Year'!$C$2)*("Electricity--GWh"=Subsector_Energy_De1_index_4)*(AL$6=Subsector_Energy_De1_index_1)*Subsector_Energy_De1_vals)) -> 1940.10219 | AM23: =IF($C23="","",SUMPRODUCT(($C23=Subsector_Energy_De1_index_3)*(Subsector_Energy_De1_index_2='Subsector Elect Demand by Year'!$C$2)*("Electricity--GWh"=Subsector_Energy_De1_index_4)*(AM$6=Subsector_Energy_De1_index_1)*Subsector_Energy_De1_vals)) -> 1900.997868 | AN23: =IF($C23="","",SUMPRODUCT(($C23=Subsector_Energy_De1_index_3)*(Subsector_Energy_De1_index_2='Subsector Elect Demand by Year'!$C$2)*("Electricity--GWh"=Subsector_Energy_De1_index_4)*(AN$6=Subsector_Energy_De1_index_1)*Subsector_Energy_De1_vals)) -> 1862.0235
A24: =IF(A23>=MAX(Lists!$S$2:$S$61),"",A23+1) -> 18 | B24: =IF(A24="","",INDEX(Lists!$R$2:$R$62,MATCH($A24,Lists!$S$2:$S$62,0))) -> Industrial & Ag | C24: =IF($A24="","",INDEX(Lists!$Q$2:$Q$62,MATCH($A24,Lists!$S$2:$S$62,0))) -> Food Processing | D24: Industrial | E24: =IF($C24="","",SUMPRODUCT(($C24=Subsector_Energy_De1_index_3)*(Subsector_Energy_De1_index_2='Subsector Elect Demand by Year'!$C$2)*("Electricity--GWh"=Subsector_Energy_De1_index_4)*(E$6=Subsector_Energy_De1_index_1)*Subsector_Energy_De1_vals)) -> 1085.250868 | F24: =IF($C24="","",SUMPRODUCT(($C24=Subsector_Energy_De1_index_3)*(Subsector_Energy_De1_index_2='Subsector Elect Demand by Year'!$C$2)*("Electricity--GWh"=Subsector_Energy_De1_index_4)*(F$6=Subsector_Energy_De1_index_1)*Subsector_Energy_De1_vals)) -> 1084.986952 | G24: =IF($C24="","",SUMPRODUCT(($C24=Subsector_Energy_De1_index_3)*(Subsector_Energy_De1_index_2='Subsector Elect Demand by Year'!$C$2)*("Electricity--GWh"=Subsector_Energy_De1_index_4)*(G$6=Subsector_Energy_De1_index_1)*Subsector_Energy_De1_vals)) -> 1080.957864 | H24: =IF($C24="","",SUMPRODUCT(($C24=Subsector_Energy_De1_index_3)*(Subsector_Energy_De1_index_2='Subsector Elect Demand by Year'!$C$2)*("Electricity--GWh"=Subsector_Energy_De1_index_4)*(H$6=Subsector_Energy_De1_index_1)*Subsector_Energy_De1_vals)) -> 1072.481863 | I24: =IF($C24="","",SUMPRODUCT(($C24=Subsector_Energy_De1_index_3)*(Subsector_Energy_De1_index_2='Subsector Elect Demand by Year'!$C$2)*("Electricity--GWh"=Subsector_Energy_De1_index_4)*(I$6=Subsector_Energy_De1_index_1)*Subsector_Energy_De1_vals)) -> 1064.036201 | J24: =IF($C24="","",SUMPRODUCT(($C24=Subsector_Energy_De1_index_3)*(Subsector_Energy_De1_index_2='Subsector Elect Demand by Year'!$C$2)*("Electricity--GWh"=Subsector_Energy_De1_index_4)*(J$6=Subsector_Energy_De1_index_1)*Subsector_Energy_De1_vals)) -> 1031.629492 | K24: =IF($C24="","",SUMPRODUCT(($C24=Subsector_Energy_De1_index_3)*(Subsector_Energy_De1_index_2='Subsector Elect Demand by Year'!$C$2)*("Electricity--GWh"=Subsector_Energy_De1_index_4)*(K$6=Subsector_Energy_De1_index_1)*Subsector_Energy_De1_vals)) -> 999.634258 | L24: =IF($C24="","",SUMPRODUCT(($C24=Subsector_Energy_De1_index_3)*(Subsector_Energy_De1_index_2='Subsector Elect Demand by Year'!$C$2)*("Electricity--GWh"=Subsector_Energy_De1_index_4)*(L$6=Subsector_Energy_De1_index_1)*Subsector_Energy_De1_vals)) -> 968.0484288 | M24: =IF($C24="","",SUMPRODUCT(($C24=Subsector_Energy_De1_index_3)*(Subsector_Energy_De1_index_2='Subsector Elect Demand by Year'!$C$2)*("Electricity--GWh"=Subsector_Energy_De1_index_4)*(M$6=Subsector_Energy_De1_index_1)*Subsector_Energy_De1_vals)) -> 936.2156975 | N24: =IF($C24="","",SUMPRODUCT(($C24=Subsector_Energy_De1_index_3)*(Subsector_Energy_De1_index_2='Subsector Elect Demand by Year'!$C$2)*("Electricity--GWh"=Subsector_Energy_De1_index_4)*(N$6=Subsector_Energy_De1_index_1)*Subsector_Energy_De1_vals)) -> 904.8276689 | O24: =IF($C24="","",SUMPRODUCT(($C24=Subsector_Energy_De1_index_3)*(Subsector_Energy_De1_index_2='Subsector Elect Demand by Year'!$C$2)*("Electricity--GWh"=Subsector_Energy_De1_index_4)*(O$6=Subsector_Energy_De1_index_1)*Subsector_Energy_De1_vals)) -> 890.4013782 | P24: =IF($C24="","",SUMPRODUCT(($C24=Subsector_Energy_De1_index_3)*(Subsector_Energy_De1_index_2='Subsector Elect Demand by Year'!$C$2)*("Electricity--GWh"=Subsector_Energy_De1_index_4)*(P$6=Subsector_Energy_De1_index_1)*Subsector_Energy_De1_vals)) -> 867.0127617 | Q24: =IF($C24="","",SUMPRODUCT(($C24=Subsector_Energy_De1_index_3)*(Subsector_Energy_De1_index_2='Subsector Elect Demand by Year'!$C$2)*("Electricity--GWh"=Subsector_Energy_De1_index_4)*(Q$6=Subsector_Energy_De1_index_1)*Subsector_Energy_De1_vals)) -> 843.6218209 | R24: =IF($C24="","",SUMPRODUCT(($C24=Subsector_Energy_De1_index_3)*(Subsector_Energy_De1_index_2='Subsector Elect Demand by Year'!$C$2)*("Electricity--GWh"=Subsector_Energy_De1_index_4)*(R$6=Subsector_Energy_De1_index_1)*Subsector_Energy_De1_vals)) -> 820.2285559 | S24: =IF($C24="","",SUMPRODUCT(($C24=Subsector_Energy_De1_index_3)*(Subsector_Energy_De1_index_2='Subsector Elect Demand by Year'!$C$2)*("Electricity--GWh"=Subsector_Energy_De1_index_4)*(S$6=Subsector_Energy_De1_index_1)*Subsector_Energy_De1_vals)) -> 796.8329666 | T24: =IF($C24="","",SUMPRODUCT(($C24=Subsector_Energy_De1_index_3)*(Subsector_Energy_De1_index_2='Subsector Elect Demand by Year'!$C$2)*("Electricity--GWh"=Subsector_Energy_De1_index_4)*(T$6=Subsector_Energy_De1_index_1)*Subsector_Energy_De1_vals)) -> 773.4350531 | U24: =IF($C24="","",SUMPRODUCT(($C24=Subsector_Energy_De1_index_3)*(Subsector_Energy_De1_index_2='Subsector Elect Demand by Year'!$C$2)*("Electricity--GWh"=Subsector_Energy_De1_index_4)*(U$6=Subsector_Energy_De1_index_1)*Subsector_Energy_De1_vals)) -> 757.7663946 | V24: =IF($C24="","",SUMPRODUCT(($C24=Subsector_Energy_De1_index_3)*(Subsector_Energy_De1_index_2='Subsector Elect Demand by Year'!$C$2)*("Electricity--GWh"=Subsector_Energy_De1_index_4)*(V$6=Subsector_Energy_De1_index_1)*Subsector_Energy_De1_vals)) -> 742.0961785 | W24: =IF($C24="","",SUMPRODUCT(($C24=Subsector_Energy_De1_index_3)*(Subsector_Energy_De1_index_2='Subsector Elect Demand by Year'!$C$2)*("Electricity--GWh"=Subsector_Energy_De1_index_4)*(W$6=Subsector_Energy_De1_index_1)*Subsector_Energy_De1_vals)) -> 726.4244048 | X24: =IF($C24="","",SUMPRODUCT(($C24=Subsector_Energy_De1_index_3)*(Subsector_Energy_De1_index_2='Subsector Elect Demand by Year'!$C$2)*("Electricity--GWh"=Subsector_Energy_De1_index_4)*(X$6=Subsector_Energy_De1_index_1)*Subsector_Energy_De1_vals)) -> 710.7510736 | Y24: =IF($C24="","",SUMPRODUCT(($C24=Subsector_Energy_De1_index_3)*(Subsector_Energy_De1_index_2='Subsector Elect Demand by Year'!$C$2)*("Electricity--GWh"=Subsector_Energy_De1_index_4)*(Y$6=Subsector_Energy_De1_index_1)*Subsector_Energy_De1_vals)) -> 695.0761848 | Z24: =IF($C24="","",SUMPRODUCT(($C24=Subsector_Energy_De1_index_3)*(Subsector_Energy_De1_index_2='Subsector Elect Demand by Year'!$C$2)*("Electricity--GWh"=Subsector_Energy_De1_index_4)*(Z$6=Subsector_Energy_De1_index_1)*Subsector_Energy_De1_vals)) -> 679.3997385 | AA24: =IF($C24="","",SUMPRODUCT(($C24=Subsector_Energy_De1_index_3)*(Subsector_Energy_De1_index_2='Subsector Elect Demand by Year'!$C$2)*("Electricity--GWh"=Subsector_Energy_De1_index_4)*(AA$6=Subsector_Energy_De1_index_1)*Subsector_Energy_De1_vals)) -> 663.7217346 | AB24: =IF($C24="","",SUMPRODUCT(($C24=Subsector_Energy_De1_index_3)*(Subsector_Energy_De1_index_2='Subsector Elect Demand by Year'!$C$2)*("Electricity--GWh"=Subsector_Energy_De1_index_4)*(AB$6=Subsector_Energy_De1_index_1)*Subsector_Energy_De1_vals)) -> 648.0421731 | AC24: =IF($C24="","",SUMPRODUCT(($C24=Subsector_Energy_De1_index_3)*(Subsector_Energy_De1_index_2='Subsector Elect Demand by Year'!$C$2)*("Electricity--GWh"=Subsector_Energy_De1_index_4)*(AC$6=Subsector_Energy_De1_index_1)*Subsector_Energy_De1_vals)) -> 632.361054 | AD24: =IF($C24="","",SUMPRODUCT(($C24=Subsector_Energy_De1_index_3)*(Subsector_Energy_De1_index_2='Subsector Elect Demand by Year'!$C$2)*("Electricity--GWh"=Subsector_Energy_De1_index_4)*(AD$6=Subsector_Energy_De1_index_1)*Subsector_Energy_De1_vals)) -> 616.6783774 | AE24: =IF($C24="","",SUMPRODUCT(($C24=Subsector_Energy_De1_index_3)*(Subsector_Energy_De1_index_2='Subsector Elect Demand by Year'!$C$2)*("Electricity--GWh"=Subsector_Energy_De1_index_4)*(AE$6=Subsector_Energy_De1_index_1)*Subsector_Energy_De1_vals)) -> 606.8335822 | AF24: =IF($C24="","",SUMPRODUCT(($C24=Subsector_Energy_De1_index_3)*(Subsector_Energy_De1_index_2='Subsector Elect Demand by Year'!$C$2)*("Electricity--GWh"=Subsector_Energy_De1_index_4)*(AF$6=Subsector_Energy_De1_index_1)*Subsector_Energy_De1_vals)) -> 596.9878083 | AG24: =IF($C24="","",SUMPRODUCT(($C24=Subsector_Energy_De1_index_3)*(Subsector_Energy_De1_index_2='Subsector Elect Demand by Year'!$C$2)*("Electricity--GWh"=Subsector_Energy_De1_index_4)*(AG$6=Subsector_Energy_De1_index_1)*Subsector_Energy_De1_vals)) -> 587.1410555 | AH24: =IF($C24="","",SUMPRODUCT(($C24=Subsector_Energy_De1_index_3)*(Subsector_Energy_De1_index_2='Subsector Elect Demand by Year'!$C$2)*("Electricity--GWh"=Subsector_Energy_De1_index_4)*(AH$6=Subsector_Energy_De1_index_1)*Subsector_Energy_De1_vals)) -> 577.2933239 | AI24: =IF($C24="","",SUMPRODUCT(($C24=Subsector_Energy_De1_index_3)*(Subsector_Energy_De1_index_2='Subsector Elect Demand by Year'!$C$2)*("Electricity--GWh"=Subsector_Energy_De1_index_4)*(AI$6=Subsector_Energy_De1_index_1)*Subsector_Energy_De1_vals)) -> 567.4446135 | AJ24: =IF($C24="","",SUMPRODUCT(($C24=Subsector_Energy_De1_index_3)*(Subsector_Energy_De1_index_2='Subsector Elect Demand by Year'!$C$2)*("Electricity--GWh"=Subsector_Energy_De1_index_4)*(AJ$6=Subsector_Energy_De1_index_1)*Subsector_Energy_De1_vals)) -> 557.5949244 | AK24: =IF($C24="","",SUMPRODUCT(($C24=Subsector_Energy_De1_index_3)*(Subsector_Energy_De1_index_2='Subsector Elect Demand by Year'!$C$2)*("Electricity--GWh"=Subsector_Energy_De1_index_4)*(AK$6=Subsector_Energy_De1_index_1)*Subsector_Energy_De1_vals)) -> 547.7442565 | AL24: =IF($C24="","",SUMPRODUCT(($C24=Subsector_Energy_De1_index_3)*(Subsector_Energy_De1_index_2='Subsector Elect Demand by Year'!$C$2)*("Electricity--GWh"=Subsector_Energy_De1_index_4)*(AL$6=Subsector_Energy_De1_index_1)*Subsector_Energy_De1_vals)) -> 537.8926097 | AM24: =IF($C24="","",SUMPRODUCT(($C24=Subsector_Energy_De1_index_3)*(Subsector_Energy_De1_index_2='Subsector Elect Demand by Year'!$C$2)*("Electricity--GWh"=Subsector_Energy_De1_index_4)*(AM$6=Subsector_Energy_De1_index_1)*Subsector_Energy_De1_vals)) -> 528.0399842 | AN24: =IF($C24="","",SUMPRODUCT(($C24=Subsector_Energy_De1_index_3)*(Subsector_Energy_De1_index_2='Subsector Elect Demand by Year'!$C$2)*("Electricity--GWh"=Subsector_Energy_De1_index_4)*(AN$6=Subsector_Energy_De1_index_1)*Subsector_Energy_De1_vals)) -> 518.1863799
A25: =IF(A24>=MAX(Lists!$S$2:$S$61),"",A24+1) -> 19 | B25: =IF(A25="","",INDEX(Lists!$R$2:$R$62,MATCH($A25,Lists!$S$2:$S$62,0))) -> Industrial & Ag | C25: =IF($A25="","",INDEX(Lists!$Q$2:$Q$62,MATCH($A25,Lists!$S$2:$S$62,0))) -> Furniture | D25: Industrial | E25: =IF($C25="","",SUMPRODUCT(($C25=Subsector_Energy_De1_index_3)*(Subsector_Energy_De1_index_2='Subsector Elect Demand by Year'!$C$2)*("Electricity--GWh"=Subsector_Energy_De1_index_4)*(E$6=Subsector_Energy_De1_index_1)*Subsector_Energy_De1_vals)) -> 186.8251495 | F25: =IF($C25="","",SUMPRODUCT(($C25=Subsector_Energy_De1_index_3)*(Subsector_Energy_De1_index_2='Subsector Elect Demand by Year'!$C$2)*("Electricity--GWh"=Subsector_Energy_De1_index_4)*(F$6=Subsector_Energy_De1_index_1)*Subsector_Energy_De1_vals)) -> 184.77821 | G25: =IF($C25="","",SUMPRODUCT(($C25=Subsector_Energy_De1_index_3)*(Subsector_Energy_De1_index_2='Subsector Elect Demand by Year'!$C$2)*("Electricity--GWh"=Subsector_Energy_De1_index_4)*(G$6=Subsector_Energy_De1_index_1)*Subsector_Energy_De1_vals)) -> 181.850433 | H25: =IF($C25="","",SUMPRODUCT(($C25=Subsector_Energy_De1_index_3)*(Subsector_Energy_De1_index_2='Subsector Elect Demand by Year'!$C$2)*("Electricity--GWh"=Subsector_Energy_De1_index_4)*(H$6=Subsector_Energy_De1_index_1)*Subsector_Energy_De1_vals)) -> 176.9445353 | I25: =IF($C25="","",SUMPRODUCT(($C25=Subsector_Energy_De1_index_3)*(Subsector_Energy_De1_index_2='Subsector Elect Demand by Year'!$C$2)*("Electricity--GWh"=Subsector_Energy_De1_index_4)*(I$6=Subsector_Energy_De1_index_1)*Subsector_Energy_De1_vals)) -> 172.4444357 | J25: =IF($C25="","",SUMPRODUCT(($C25=Subsector_Energy_De1_index_3)*(Subsector_Energy_De1_index_2='Subsector Elect Demand by Year'!$C$2)*("Electricity--GWh"=Subsector_Energy_De1_index_4)*(J$6=Subsector_Energy_De1_index_1)*Subsector_Energy_De1_vals)) -> 164.8054721 | K25: =IF($C25="","",SUMPRODUCT(($C25=Subsector_Energy_De1_index_3)*(Subsector_Energy_De1_index_2='Subsector Elect Demand by Year'!$C$2)*("Electricity--GWh"=Subsector_Energy_De1_index_4)*(K$6=Subsector_Energy_De1_index_1)*Subsector_Energy_De1_vals)) -> 157.5751992 | L25: =IF($C25="","",SUMPRODUCT(($C25=Subsector_Energy_De1_index_3)*(Subsector_Energy_De1_index_2='Subsector Elect Demand by Year'!$C$2)*("Electricity--GWh"=Subsector_Energy_De1_index_4)*(L$6=Subsector_Energy_De1_index_1)*Subsector_Energy_De1_vals)) -> 150.3279868 | M25: =IF($C25="","",SUMPRODUCT(($C25=Subsector_Energy_De1_index_3)*(Subsector_Energy_De1_index_2='Subsector Elect Demand by Year'!$C$2)*("Electricity--GWh"=Subsector_Energy_De1_index_4)*(M$6=Subsector_Energy_De1_index_1)*Subsector_Energy_De1_vals)) -> 142.81694 | N25: =IF($C25="","",SUMPRODUCT(($C25=Subsector_Energy_De1_index_3)*(Subsector_Energy_De1_index_2='Subsector Elect Demand by Year'!$C$2)*("Electricity--GWh"=Subsector_Energy_De1_index_4)*(N$6=Subsector_Energy_De1_index_1)*Subsector_Energy_De1_vals)) -> 135.335994 | O25: =IF($C25="","",SUMPRODUCT(($C25=Subsector_Energy_De1_index_3)*(Subsector_Energy_De1_index_2='Subsector Elect Demand by Year'!$C$2)*("Electricity--GWh"=Subsector_Energy_De1_index_4)*(O$6=Subsector_Energy_De1_index_1)*Subsector_Energy_De1_vals)) -> 132.2122396 | P25: =IF($C25="","",SUMPRODUCT(($C25=Subsector_Energy_De1_index_3)*(Subsector_Energy_De1_index_2='Subsector Elect Demand by Year'!$C$2)*("Electricity--GWh"=Subsector_Energy_De1_index_4)*(P$6=Subsector_Energy_De1_index_1)*Subsector_Energy_De1_vals)) -> 126.7142536 | Q25: =IF($C25="","",SUMPRODUCT(($C25=Subsector_Energy_De1_index_3)*(Subsector_Energy_De1_index_2='Subsector Elect Demand by Year'!$C$2)*("Electricity--GWh"=Subsector_Energy_De1_index_4)*(Q$6=Subsector_Energy_De1_index_1)*Subsector_Energy_De1_vals)) -> 121.3253875 | R25: =IF($C25="","",SUMPRODUCT(($C25=Subsector_Energy_De1_index_3)*(Subsector_Energy_De1_index_2='Subsector Elect Demand by Year'!$C$2)*("Electricity--GWh"=Subsector_Energy_De1_index_4)*(R$6=Subsector_Energy_De1_index_1)*Subsector_Energy_De1_vals)) -> 116.0456411 | S25: =IF($C25="","",SUMPRODUCT(($C25=Subsector_Energy_De1_index_3)*(Subsector_Energy_De1_index_2='Subsector Elect Demand by Year'!$C$2)*("Electricity--GWh"=Subsector_Energy_De1_index_4)*(S$6=Subsector_Energy_De1_index_1)*Subsector_Energy_De1_vals)) -> 110.8750146 | T25: =IF($C25="","",SUMPRODUCT(($C25=Subsector_Energy_De1_index_3)*(Subsector_Energy_De1_index_2='Subsector Elect Demand by Year'!$C$2)*("Electricity--GWh"=Subsector_Energy_De1_index_4)*(T$6=Subsector_Energy_De1_index_1)*Subsector_Energy_De1_vals)) -> 105.8135079 | U25: =IF($C25="","",SUMPRODUCT(($C25=Subsector_Energy_De1_index_3)*(Subsector_Energy_De1_index_2='Subsector Elect Demand by Year'!$C$2)*("Electricity--GWh"=Subsector_Energy_De1_index_4)*(U$6=Subsector_Energy_De1_index_1)*Subsector_Energy_De1_vals)) -> 102.4301166 | V25: =IF($C25="","",SUMPRODUCT(($C25=Subsector_Energy_De1_index_3)*(Subsector_Energy_De1_index_2='Subsector Elect Demand by Year'!$C$2)*("Electricity--GWh"=Subsector_Energy_De1_index_4)*(V$6=Subsector_Energy_De1_index_1)*Subsector_Energy_De1_vals)) -> 99.1015261 | W25: =IF($C25="","",SUMPRODUCT(($C25=Subsector_Energy_De1_index_3)*(Subsector_Energy_De1_index_2='Subsector Elect Demand by Year'!$C$2)*("Electricity--GWh"=Subsector_Energy_De1_index_4)*(W$6=Subsector_Energy_De1_index_1)*Subsector_Energy_De1_vals)) -> 95.82773649 | X25: =IF($C25="","",SUMPRODUCT(($C25=Subsector_Energy_De1_index_3)*(Subsector_Energy_De1_index_2='Subsector Elect Demand by Year'!$C$2)*("Electricity--GWh"=Subsector_Energy_De1_index_4)*(X$6=Subsector_Energy_De1_index_1)*Subsector_Energy_De1_vals)) -> 92.60874772 | Y25: =IF($C25="","",SUMPRODUCT(($C25=Subsector_Energy_De1_index_3)*(Subsector_Energy_De1_index_2='Subsector Elect Demand by Year'!$C$2)*("Electricity--GWh"=Subsector_Energy_De1_index_4)*(Y$6=Subsector_Energy_De1_index_1)*Subsector_Energy_De1_vals)) -> 89.44455979 | Z25: =IF($C25="","",SUMPRODUCT(($C25=Subsector_Energy_De1_index_3)*(Subsector_Energy_De1_index_2='Subsector Elect Demand by Year'!$C$2)*("Electricity--GWh"=Subsector_Energy_De1_index_4)*(Z$6=Subsector_Energy_De1_index_1)*Subsector_Energy_De1_vals)) -> 86.3351727 | AA25: =IF($C25="","",SUMPRODUCT(($C25=Subsector_Energy_De1_index_3)*(Subsector_Energy_De1_index_2='Subsector Elect Demand by Year'!$C$2)*("Electricity--GWh"=Subsector_Energy_De1_index_4)*(AA$6=Subsector_Energy_De1_index_1)*Subsector_Energy_De1_vals)) -> 83.28058645 | AB25: =IF($C25="","",SUMPRODUCT(($C25=Subsector_Energy_De1_index_3)*(Subsector_Energy_De1_index_2='Subsector Elect Demand by Year'!$C$2)*("Electricity--GWh"=Subsector_Energy_De1_index_4)*(AB$6=Subsector_Energy_De1_index_1)*Subsector_Energy_De1_vals)) -> 80.28080105 | AC25: =IF($C25="","",SUMPRODUCT(($C25=Subsector_Energy_De1_index_3)*(Subsector_Energy_De1_index_2='Subsector Elect Demand by Year'!$C$2)*("Electricity--GWh"=Subsector_Energy_De1_index_4)*(AC$6=Subsector_Energy_De1_index_1)*Subsector_Energy_De1_vals)) -> 77.33581649 | AD25: =IF($C25="","",SUMPRODUCT(($C25=Subsector_Energy_De1_index_3)*(Subsector_Energy_De1_index_2='Subsector Elect Demand by Year'!$C$2)*("Electricity--GWh"=Subsector_Energy_De1_index_4)*(AD$6=Subsector_Energy_De1_index_1)*Subsector_Energy_De1_vals)) -> 74.44563276 | AE25: =IF($C25="","",SUMPRODUCT(($C25=Subsector_Energy_De1_index_3)*(Subsector_Energy_De1_index_2='Subsector Elect Demand by Year'!$C$2)*("Electricity--GWh"=Subsector_Energy_De1_index_4)*(AE$6=Subsector_Energy_De1_index_1)*Subsector_Energy_De1_vals)) -> 71.72236402 | AF25: =IF($C25="","",SUMPRODUCT(($C25=Subsector_Energy_De1_index_3)*(Subsector_Energy_De1_index_2='Subsector Elect Demand by Year'!$C$2)*("Electricity--GWh"=Subsector_Energy_De1_index_4)*(AF$6=Subsector_Energy_De1_index_1)*Subsector_Energy_De1_vals)) -> 69.04920219 | AG25: =IF($C25="","",SUMPRODUCT(($C25=Subsector_Energy_De1_index_3)*(Subsector_Energy_De1_index_2='Subsector Elect Demand by Year'!$C$2)*("Electricity--GWh"=Subsector_Energy_De1_index_4)*(AG$6=Subsector_Energy_De1_index_1)*Subsector_Energy_De1_vals)) -> 66.42614725 | AH25: =IF($C25="","",SUMPRODUCT(($C25=Subsector_Energy_De1_index_3)*(Subsector_Energy_De1_index_2='Subsector Elect Demand by Year'!$C$2)*("Electricity--GWh"=Subsector_Energy_De1_index_4)*(AH$6=Subsector_Energy_De1_index_1)*Subsector_Energy_De1_vals)) -> 63.8531992 | AI25: =IF($C25="","",SUMPRODUCT(($C25=Subsector_Energy_De1_index_3)*(Subsector_Energy_De1_index_2='Subsector Elect Demand by Year'!$C$2)*("Electricity--GWh"=Subsector_Energy_De1_index_4)*(AI$6=Subsector_Energy_De1_index_1)*Subsector_Energy_De1_vals)) -> 61.33035806 | AJ25: =IF($C25="","",SUMPRODUCT(($C25=Subsector_Energy_De1_index_3)*(Subsector_Energy_De1_index_2='Subsector Elect Demand by Year'!$C$2)*("Electricity--GWh"=Subsector_Energy_De1_index_4)*(AJ$6=Subsector_Energy_De1_index_1)*Subsector_Energy_De1_vals)) -> 58.85762382 | AK25: =IF($C25="","",SUMPRODUCT(($C25=Subsector_Energy_De1_index_3)*(Subsector_Energy_De1_index_2='Subsector Elect Demand by Year'!$C$2)*("Electricity--GWh"=Subsector_Energy_De1_index_4)*(AK$6=Subsector_Energy_De1_index_1)*Subsector_Energy_De1_vals)) -> 56.43499647 | AL25: =IF($C25="","",SUMPRODUCT(($C25=Subsector_Energy_De1_index_3)*(Subsector_Energy_De1_index_2='Subsector Elect Demand by Year'!$C$2)*("Electricity--GWh"=Subsector_Energy_De1_index_4)*(AL$6=Subsector_Energy_De1_index_1)*Subsector_Energy_De1_vals)) -> 54.06247603 | AM25: =IF($C25="","",SUMPRODUCT(($C25=Subsector_Energy_De1_index_3)*(Subsector_Energy_De1_index_2='Subsector Elect Demand by Year'!$C$2)*("Electricity--GWh"=Subsector_Energy_De1_index_4)*(AM$6=Subsector_Energy_De1_index_1)*Subsector_Energy_De1_vals)) -> 51.74006248 | AN25: =IF($C25="","",SUMPRODUCT(($C25=Subsector_Energy_De1_index_3)*(Subsector_Energy_De1_index_2='Subsector Elect Demand by Year'!$C$2)*("Electricity--GWh"=Subsector_Energy_De1_index_4)*(AN$6=Subsector_Energy_De1_index_1)*Subsector_Energy_De1_vals)) -> 49.46775583
A26: =IF(A25>=MAX(Lists!$S$2:$S$61),"",A25+1) -> 20 | B26: =IF(A26="","",INDEX(Lists!$R$2:$R$62,MATCH($A26,Lists!$S$2:$S$62,0))) -> Industrial & Ag | C26: =IF($A26="","",INDEX(Lists!$Q$2:$Q$62,MATCH($A26,Lists!$S$2:$S$62,0))) -> Glass | D26: Industrial | E26: =IF($C26="","",SUMPRODUCT(($C26=Subsector_Energy_De1_index_3)*(Subsector_Energy_De1_index_2='Subsector Elect Demand by Year'!$C$2)*("Electricity--GWh"=Subsector_Energy_De1_index_4)*(E$6=Subsector_Energy_De1_index_1)*Subsector_Energy_De1_vals)) -> 3587.25287 | F26: =IF($C26="","",SUMPRODUCT(($C26=Subsector_Energy_De1_index_3)*(Subsector_Energy_De1_index_2='Subsector Elect Demand by Year'!$C$2)*("Electricity--GWh"=Subsector_Energy_De1_index_4)*(F$6=Subsector_Energy_De1_index_1)*Subsector_Energy_De1_vals)) -> 3655.503067 | G26: =IF($C26="","",SUMPRODUCT(($C26=Subsector_Energy_De1_index_3)*(Subsector_Energy_De1_index_2='Subsector Elect Demand by Year'!$C$2)*("Electricity--GWh"=Subsector_Energy_De1_index_4)*(G$6=Subsector_Energy_De1_index_1)*Subsector_Energy_De1_vals)) -> 3732.223463 | H26: =IF($C26="","",SUMPRODUCT(($C26=Subsector_Energy_De1_index_3)*(Subsector_Energy_De1_index_2='Subsector Elect Demand by Year'!$C$2)*("Electricity--GWh"=Subsector_Energy_De1_index_4)*(H$6=Subsector_Energy_De1_index_1)*Subsector_Energy_De1_vals)) -> 3796.627342 | I26: =IF($C26="","",SUMPRODUCT(($C26=Subsector_Energy_De1_index_3)*(Subsector_Energy_De1_index_2='Subsector Elect Demand by Year'!$C$2)*("Electricity--GWh"=Subsector_Energy_De1_index_4)*(I$6=Subsector_Energy_De1_index_1)*Subsector_Energy_De1_vals)) -> 3848.928005 | J26: =IF($C26="","",SUMPRODUCT(($C26=Subsector_Energy_De1_index_3)*(Subsector_Energy_De1_index_2='Subsector Elect Demand by Year'!$C$2)*("Electricity--GWh"=Subsector_Energy_De1_index_4)*(J$6=Subsector_Energy_De1_index_1)*Subsector_Energy_De1_vals)) -> 3818.689531 | K26: =IF($C26="","",SUMPRODUCT(($C26=Subsector_Energy_De1_index_3)*(Subsector_Energy_De1_index_2='Subsector Elect Demand by Year'!$C$2)*("Electricity--GWh"=Subsector_Energy_De1_index_4)*(K$6=Subsector_Energy_De1_index_1)*Subsector_Energy_De1_vals)) -> 3791.635833 | L26: =IF($C26="","",SUMPRODUCT(($C26=Subsector_Energy_De1_index_3)*(Subsector_Energy_De1_index_2='Subsector Elect Demand by Year'!$C$2)*("Electricity--GWh"=Subsector_Energy_De1_index_4)*(L$6=Subsector_Energy_De1_index_1)*Subsector_Energy_De1_vals)) -> 3763.877032 | M26: =IF($C26="","",SUMPRODUCT(($C26=Subsector_Energy_De1_index_3)*(Subsector_Energy_De1_index_2='Subsector Elect Demand by Year'!$C$2)*("Electricity--GWh"=Subsector_Energy_De1_index_4)*(M$6=Subsector_Energy_De1_index_1)*Subsector_Energy_De1_vals)) -> 3731.948188 | N26: =IF($C26="","",SUMPRODUCT(($C26=Subsector_Energy_De1_index_3)*(Subsector_Energy_De1_index_2='Subsector Elect Demand by Year'!$C$2)*("Electricity--GWh"=Subsector_Energy_De1_index_4)*(N$6=Subsector_Energy_De1_index_1)*Subsector_Energy_De1_vals)) -> 3695.93333 | O26: =IF($C26="","",SUMPRODUCT(($C26=Subsector_Energy_De1_index_3)*(Subsector_Energy_De1_index_2='Subsector Elect Demand by Year'!$C$2)*("Electricity--GWh"=Subsector_Energy_De1_index_4)*(O$6=Subsector_Energy_De1_index_1)*Subsector_Energy_De1_vals)) -> 3662.712451 | P26: =IF($C26="","",SUMPRODUCT(($C26=Subsector_Energy_De1_index_3)*(Subsector_Energy_De1_index_2='Subsector Elect Demand by Year'!$C$2)*("Electricity--GWh"=Subsector_Energy_De1_index_4)*(P$6=Subsector_Energy_De1_index_1)*Subsector_Energy_De1_vals)) -> 3637.713784 | Q26: =IF($C26="","",SUMPRODUCT(($C26=Subsector_Energy_De1_index_3)*(Subsector_Energy_De1_index_2='Subsector Elect Demand by Year'!$C$2)*("Electricity--GWh"=Subsector_Energy_De1_index_4)*(Q$6=Subsector_Energy_De1_index_1)*Subsector_Energy_De1_vals)) -> 3608.85628 | R26: =IF($C26="","",SUMPRODUCT(($C26=Subsector_Energy_De1_index_3)*(Subsector_Energy_De1_index_2='Subsector Elect Demand by Year'!$C$2)*("Electricity--GWh"=Subsector_Energy_De1_index_4)*(R$6=Subsector_Energy_De1_index_1)*Subsector_Energy_De1_vals)) -> 3576.139937 | S26: =IF($C26="","",SUMPRODUCT(($C26=Subsector_Energy_De1_index_3)*(Subsector_Energy_De1_index_2='Subsector Elect Demand by Year'!$C$2)*("Electricity--GWh"=Subsector_Energy_De1_index_4)*(S$6=Subsector_Energy_De1_index_1)*Subsector_Energy_De1_vals)) -> 3539.564756 | T26: =IF($C26="","",SUMPRODUCT(($C26=Subsector_Energy_De1_index_3)*(Subsector_Energy_De1_index_2='Subsector Elect Demand by Year'!$C$2)*("Electricity--GWh"=Subsector_Energy_De1_index_4)*(T$6=Subsector_Energy_De1_index_1)*Subsector_Energy_De1_vals)) -> 3499.130737 | U26: =IF($C26="","",SUMPRODUCT(($C26=Subsector_Energy_De1_index_3)*(Subsector_Energy_De1_index_2='Subsector Elect Demand by Year'!$C$2)*("Electricity--GWh"=Subsector_Energy_De1_index_4)*(U$6=Subsector_Energy_De1_index_1)*Subsector_Energy_De1_vals)) -> 3499.956166 | V26: =IF($C26="","",SUMPRODUCT(($C26=Subsector_Energy_De1_index_3)*(Subsector_Energy_De1_index_2='Subsector Elect Demand by Year'!$C$2)*("Electricity--GWh"=Subsector_Energy_De1_index_4)*(V$6=Subsector_Energy_De1_index_1)*Subsector_Energy_De1_vals)) -> 3498.535375 | W26: =IF($C26="","",SUMPRODUCT(($C26=Subsector_Energy_De1_index_3)*(Subsector_Energy_De1_index_2='Subsector Elect Demand by Year'!$C$2)*("Electricity--GWh"=Subsector_Energy_De1_index_4)*(W$6=Subsector_Energy_De1_index_1)*Subsector_Energy_De1_vals)) -> 3494.868364 | X26: =IF($C26="","",SUMPRODUCT(($C26=Subsector_Energy_De1_index_3)*(Subsector_Energy_De1_index_2='Subsector Elect Demand by Year'!$C$2)*("Electricity--GWh"=Subsector_Energy_De1_index_4)*(X$6=Subsector_Energy_De1_index_1)*Subsector_Energy_De1_vals)) -> 3488.955132 | Y26: =IF($C26="","",SUMPRODUCT(($C26=Subsector_Energy_De1_index_3)*(Subsector_Energy_De1_index_2='Subsector Elect Demand by Year'!$C$2)*("Electricity--GWh"=Subsector_Energy_De1_index_4)*(Y$6=Subsector_Energy_De1_index_1)*Subsector_Energy_De1_vals)) -> 3480.79568 | Z26: =IF($C26="","",SUMPRODUCT(($C26=Subsector_Energy_De1_index_3)*(Subsector_Energy_De1_index_2='Subsector Elect Demand by Year'!$C$2)*("Electricity--GWh"=Subsector_Energy_De1_index_4)*(Z$6=Subsector_Energy_De1_index_1)*Subsector_Energy_De1_vals)) -> 3470.390008 | AA26: =IF($C26="","",SUMPRODUCT(($C26=Subsector_Energy_De1_index_3)*(Subsector_Energy_De1_index_2='Subsector Elect Demand by Year'!$C$2)*("Electricity--GWh"=Subsector_Energy_De1_index_4)*(AA$6=Subsector_Energy_De1_index_1)*Subsector_Energy_De1_vals)) -> 3457.738116 | AB26: =IF($C26="","",SUMPRODUCT(($C26=Subsector_Energy_De1_index_3)*(Subsector_Energy_De1_index_2='Subsector Elect Demand by Year'!$C$2)*("Electricity--GWh"=Subsector_Energy_De1_index_4)*(AB$6=Subsector_Energy_De1_index_1)*Subsector_Energy_De1_vals)) -> 3442.840003 | AC26: =IF($C26="","",SUMPRODUCT(($C26=Subsector_Energy_De1_index_3)*(Subsector_Energy_De1_index_2='Subsector Elect Demand by Year'!$C$2)*("Electricity--GWh"=Subsector_Energy_De1_index_4)*(AC$6=Subsector_Energy_De1_index_1)*Subsector_Energy_De1_vals)) -> 3425.69567 | AD26: =IF($C26="","",SUMPRODUCT(($C26=Subsector_Energy_De1_index_3)*(Subsector_Energy_De1_index_2='Subsector Elect Demand by Year'!$C$2)*("Electricity--GWh"=Subsector_Energy_De1_index_4)*(AD$6=Subsector_Energy_De1_index_1)*Subsector_Energy_De1_vals)) -> 3406.305117 | AE26: =IF($C26="","",SUMPRODUCT(($C26=Subsector_Energy_De1_index_3)*(Subsector_Energy_De1_index_2='Subsector Elect Demand by Year'!$C$2)*("Electricity--GWh"=Subsector_Energy_De1_index_4)*(AE$6=Subsector_Energy_De1_index_1)*Subsector_Energy_De1_vals)) -> 3384.668344 | AF26: =IF($C26="","",SUMPRODUCT(($C26=Subsector_Energy_De1_index_3)*(Subsector_Energy_De1_index_2='Subsector Elect Demand by Year'!$C$2)*("Electricity--GWh"=Subsector_Energy_De1_index_4)*(AF$6=Subsector_Energy_De1_index_1)*Subsector_Energy_De1_vals)) -> 3360.78535 | AG26: =IF($C26="","",SUMPRODUCT(($C26=Subsector_Energy_De1_index_3)*(Subsector_Energy_De1_index_2='Subsector Elect Demand by Year'!$C$2)*("Electricity--GWh"=Subsector_Energy_De1_index_4)*(AG$6=Subsector_Energy_De1_index_1)*Subsector_Energy_De1_vals)) -> 3334.656137 | AH26: =IF($C26="","",SUMPRODUCT(($C26=Subsector_Energy_De1_index_3)*(Subsector_Energy_De1_index_2='Subsector Elect Demand by Year'!$C$2)*("Electricity--GWh"=Subsector_Energy_De1_index_4)*(AH$6=Subsector_Energy_De1_index_1)*Subsector_Energy_De1_vals)) -> 3306.280703 | AI26: =IF($C26="","",SUMPRODUCT(($C26=Subsector_Energy_De1_index_3)*(Subsector_Energy_De1_index_2='Subsector Elect Demand by Year'!$C$2)*("Electricity--GWh"=Subsector_Energy_De1_index_4)*(AI$6=Subsector_Energy_De1_index_1)*Subsector_Energy_De1_vals)) -> 3275.659048 | AJ26: =IF($C26="","",SUMPRODUCT(($C26=Subsector_Energy_De1_index_3)*(Subsector_Energy_De1_index_2='Subsector Elect Demand by Year'!$C$2)*("Electricity--GWh"=Subsector_Energy_De1_index_4)*(AJ$6=Subsector_Energy_De1_index_1)*Subsector_Energy_De1_vals)) -> 3242.791174 | AK26: =IF($C26="","",SUMPRODUCT(($C26=Subsector_Energy_De1_index_3)*(Subsector_Energy_De1_index_2='Subsector Elect Demand by Year'!$C$2)*("Electricity--GWh"=Subsector_Energy_De1_index_4)*(AK$6=Subsector_Energy_De1_index_1)*Subsector_Energy_De1_vals)) -> 3207.677079 | AL26: =IF($C26="","",SUMPRODUCT(($C26=Subsector_Energy_De1_index_3)*(Subsector_Energy_De1_index_2='Subsector Elect Demand by Year'!$C$2)*("Electricity--GWh"=Subsector_Energy_De1_index_4)*(AL$6=Subsector_Energy_De1_index_1)*Subsector_Energy_De1_vals)) -> 3170.316765 | AM26: =IF($C26="","",SUMPRODUCT(($C26=Subsector_Energy_De1_index_3)*(Subsector_Energy_De1_index_2='Subsector Elect Demand by Year'!$C$2)*("Electricity--GWh"=Subsector_Energy_De1_index_4)*(AM$6=Subsector_Energy_De1_index_1)*Subsector_Energy_De1_vals)) -> 3130.71023 | AN26: =IF($C26="","",SUMPRODUCT(($C26=Subsector_Energy_De1_index_3)*(Subsector_Energy_De1_index_2='Subsector Elect Demand by Year'!$C$2)*("Electricity--GWh"=Subsector_Energy_De1_index_4)*(AN$6=Subsector_Energy_De1_index_1)*Subsector_Energy_De1_vals)) -> 3088.857474
A27: =IF(A26>=MAX(Lists!$S$2:$S$61),"",A26+1) -> 21 | B27: =IF(A27="","",INDEX(Lists!$R$2:$R$62,MATCH($A27,Lists!$S$2:$S$62,0))) -> Industrial & Ag | C27: =IF($A27="","",INDEX(Lists!$Q$2:$Q$62,MATCH($A27,Lists!$S$2:$S$62,0))) -> Logging & Wood | D27: Industrial | E27: =IF($C27="","",SUMPRODUCT(($C27=Subsector_Energy_De1_index_3)*(Subsector_Energy_De1_index_2='Subsector Elect Demand by Year'!$C$2)*("Electricity--GWh"=Subsector_Energy_De1_index_4)*(E$6=Subsector_Energy_De1_index_1)*Subsector_Energy_De1_vals)) -> 436.6503493 | F27: =IF($C27="","",SUMPRODUCT(($C27=Subsector_Energy_De1_index_3)*(Subsector_Energy_De1_index_2='Subsector Elect Demand by Year'!$C$2)*("Electricity--GWh"=Subsector_Energy_De1_index_4)*(F$6=Subsector_Energy_De1_index_1)*Subsector_Energy_De1_vals)) -> 435.7779442 | G27: =IF($C27="","",SUMPRODUCT(($C27=Subsector_Energy_De1_index_3)*(Subsector_Energy_De1_index_2='Subsector Elect Demand by Year'!$C$2)*("Electricity--GWh"=Subsector_Energy_De1_index_4)*(G$6=Subsector_Energy_De1_index_1)*Subsector_Energy_De1_vals)) -> 430.8822273 | H27: =IF($C27="","",SUMPRODUCT(($C27=Subsector_Energy_De1_index_3)*(Subsector_Energy_De1_index_2='Subsector Elect Demand by Year'!$C$2)*("Electricity--GWh"=Subsector_Energy_De1_index_4)*(H$6=Subsector_Energy_De1_index_1)*Subsector_Energy_De1_vals)) -> 422.092608 | I27: =IF($C27="","",SUMPRODUCT(($C27=Subsector_Energy_De1_index_3)*(Subsector_Energy_De1_index_2='Subsector Elect Demand by Year'!$C$2)*("Electricity--GWh"=Subsector_Energy_De1_index_4)*(I$6=Subsector_Energy_De1_index_1)*Subsector_Energy_De1_vals)) -> 413.9550032 | J27: =IF($C27="","",SUMPRODUCT(($C27=Subsector_Energy_De1_index_3)*(Subsector_Energy_De1_index_2='Subsector Elect Demand by Year'!$C$2)*("Electricity--GWh"=Subsector_Energy_De1_index_4)*(J$6=Subsector_Energy_De1_index_1)*Subsector_Energy_De1_vals)) -> 397.5815626 | K27: =IF($C27="","",SUMPRODUCT(($C27=Subsector_Energy_De1_index_3)*(Subsector_Energy_De1_index_2='Subsector Elect Demand by Year'!$C$2)*("Electricity--GWh"=Subsector_Energy_De1_index_4)*(K$6=Subsector_Energy_De1_index_1)*Subsector_Energy_De1_vals)) -> 381.6481072 | L27: =IF($C27="","",SUMPRODUCT(($C27=Subsector_Energy_De1_index_3)*(Subsector_Energy_De1_index_2='Subsector Elect Demand by Year'!$C$2)*("Electricity--GWh"=Subsector_Energy_De1_index_4)*(L$6=Subsector_Energy_De1_index_1)*Subsector_Energy_De1_vals)) -> 366.010085 | M27: =IF($C27="","",SUMPRODUCT(($C27=Subsector_Energy_De1_index_3)*(Subsector_Energy_De1_index_2='Subsector Elect Demand by Year'!$C$2)*("Electricity--GWh"=Subsector_Energy_De1_index_4)*(M$6=Subsector_Energy_De1_index_1)*Subsector_Energy_De1_vals)) -> 350.4073404 | N27: =IF($C27="","",SUMPRODUCT(($C27=Subsector_Energy_De1_index_3)*(Subsector_Energy_De1_index_2='Subsector Elect Demand by Year'!$C$2)*("Electricity--GWh"=Subsector_Energy_De1_index_4)*(N$6=Subsector_Energy_De1_index_1)*Subsector_Energy_De1_vals)) -> 335.0569875 | O27: =IF($C27="","",SUMPRODUCT(($C27=Subsector_Energy_De1_index_3)*(Subsector_Energy_De1_index_2='Subsector Elect Demand by Year'!$C$2)*("Electricity--GWh"=Subsector_Energy_De1_index_4)*(O$6=Subsector_Energy_De1_index_1)*Subsector_Energy_De1_vals)) -> 330.8256356 | P27: =IF($C27="","",SUMPRODUCT(($C27=Subsector_Energy_De1_index_3)*(Subsector_Energy_De1_index_2='Subsector Elect Demand by Year'!$C$2)*("Electricity--GWh"=Subsector_Energy_De1_index_4)*(P$6=Subsector_Energy_De1_index_1)*Subsector_Energy_De1_vals)) -> 319.6729802 | Q27: =IF($C27="","",SUMPRODUCT(($C27=Subsector_Energy_De1_index_3)*(Subsector_Energy_De1_index_2='Subsector Elect Demand by Year'!$C$2)*("Electricity--GWh"=Subsector_Energy_De1_index_4)*(Q$6=Subsector_Energy_De1_index_1)*Subsector_Energy_De1_vals)) -> 308.6525798 | R27: =IF($C27="","",SUMPRODUCT(($C27=Subsector_Energy_De1_index_3)*(Subsector_Energy_De1_index_2='Subsector Elect Demand by Year'!$C$2)*("Electricity--GWh"=Subsector_Energy_De1_index_4)*(R$6=Subsector_Energy_De1_index_1)*Subsector_Energy_De1_vals)) -> 297.7644344 | S27: =IF($C27="","",SUMPRODUCT(($C27=Subsector_Energy_De1_index_3)*(Subsector_Energy_De1_index_2='Subsector Elect Demand by Year'!$C$2)*("Electricity--GWh"=Subsector_Energy_De1_index_4)*(S$6=Subsector_Energy_De1_index_1)*Subsector_Energy_De1_vals)) -> 287.008544 | T27: =IF($C27="","",SUMPRODUCT(($C27=Subsector_Energy_De1_index_3)*(Subsector_Energy_De1_index_2='Subsector Elect Demand by Year'!$C$2)*("Electricity--GWh"=Subsector_Energy_De1_index_4)*(T$6=Subsector_Energy_De1_index_1)*Subsector_Energy_De1_vals)) -> 276.3849086 | U27: =IF($C27="","",SUMPRODUCT(($C27=Subsector_Energy_De1_index_3)*(Subsector_Energy_De1_index_2='Subsector Elect Demand by Year'!$C$2)*("Electricity--GWh"=Subsector_Energy_De1_index_4)*(U$6=Subsector_Energy_De1_index_1)*Subsector_Energy_De1_vals)) -> 270.029768 | V27: =IF($C27="","",SUMPRODUCT(($C27=Subsector_Energy_De1_index_3)*(Subsector_Energy_De1_index_2='Subsector Elect Demand by Year'!$C$2)*("Electricity--GWh"=Subsector_Energy_De1_index_4)*(V$6=Subsector_Energy_De1_index_1)*Subsector_Energy_De1_vals)) -> 263.7410469 | W27: =IF($C27="","",SUMPRODUCT(($C27=Subsector_Energy_De1_index_3)*(Subsector_Energy_De1_index_2='Subsector Elect Demand by Year'!$C$2)*("Electricity--GWh"=Subsector_Energy_De1_index_4)*(W$6=Subsector_Energy_De1_index_1)*Subsector_Energy_De1_vals)) -> 257.5187454 | X27: =IF($C27="","",SUMPRODUCT(($C27=Subsector_Energy_De1_index_3)*(Subsector_Energy_De1_index_2='Subsector Elect Demand by Year'!$C$2)*("Electricity--GWh"=Subsector_Energy_De1_index_4)*(X$6=Subsector_Energy_De1_index_1)*Subsector_Energy_De1_vals)) -> 251.3628633 | Y27: =IF($C27="","",SUMPRODUCT(($C27=Subsector_Energy_De1_index_3)*(Subsector_Energy_De1_index_2='Subsector Elect Demand by Year'!$C$2)*("Electricity--GWh"=Subsector_Energy_De1_index_4)*(Y$6=Subsector_Energy_De1_index_1)*Subsector_Energy_De1_vals)) -> 245.2734008 | Z27: =IF($C27="","",SUMPRODUCT(($C27=Subsector_Energy_De1_index_3)*(Subsector_Energy_De1_index_2='Subsector Elect Demand by Year'!$C$2)*("Electricity--GWh"=Subsector_Energy_De1_index_4)*(Z$6=Subsector_Energy_De1_index_1)*Subsector_Energy_De1_vals)) -> 239.2503578 | AA27: =IF($C27="","",SUMPRODUCT(($C27=Subsector_Energy_De1_index_3)*(Subsector_Energy_De1_index_2='Subsector Elect Demand by Year'!$C$2)*("Electricity--GWh"=Subsector_Energy_De1_index_4)*(AA$6=Subsector_Energy_De1_index_1)*Subsector_Energy_De1_vals)) -> 233.2937344 | AB27: =IF($C27="","",SUMPRODUCT(($C27=Subsector_Energy_De1_index_3)*(Subsector_Energy_De1_index_2='Subsector Elect Demand by Year'!$C$2)*("Electricity--GWh"=Subsector_Energy_De1_index_4)*(AB$6=Subsector_Energy_De1_index_1)*Subsector_Energy_De1_vals)) -> 227.4035304 | AC27: =IF($C27="","",SUMPRODUCT(($C27=Subsector_Energy_De1_index_3)*(Subsector_Energy_De1_index_2='Subsector Elect Demand by Year'!$C$2)*("Electricity--GWh"=Subsector_Energy_De1_index_4)*(AC$6=Subsector_Energy_De1_index_1)*Subsector_Energy_De1_vals)) -> 221.579746 | AD27: =IF($C27="","",SUMPRODUCT(($C27=Subsector_Energy_De1_index_3)*(Subsector_Energy_De1_index_2='Subsector Elect Demand by Year'!$C$2)*("Electricity--GWh"=Subsector_Energy_De1_index_4)*(AD$6=Subsector_Energy_De1_index_1)*Subsector_Energy_De1_vals)) -> 215.8223811 | AE27: =IF($C27="","",SUMPRODUCT(($C27=Subsector_Energy_De1_index_3)*(Subsector_Energy_De1_index_2='Subsector Elect Demand by Year'!$C$2)*("Electricity--GWh"=Subsector_Energy_De1_index_4)*(AE$6=Subsector_Energy_De1_index_1)*Subsector_Energy_De1_vals)) -> 210.4604208 | AF27: =IF($C27="","",SUMPRODUCT(($C27=Subsector_Energy_De1_index_3)*(Subsector_Energy_De1_index_2='Subsector Elect Demand by Year'!$C$2)*("Electricity--GWh"=Subsector_Energy_De1_index_4)*(AF$6=Subsector_Energy_De1_index_1)*Subsector_Energy_De1_vals)) -> 205.159191 | AG27: =IF($C27="","",SUMPRODUCT(($C27=Subsector_Energy_De1_index_3)*(Subsector_Energy_De1_index_2='Subsector Elect Demand by Year'!$C$2)*("Electricity--GWh"=Subsector_Energy_De1_index_4)*(AG$6=Subsector_Energy_De1_index_1)*Subsector_Energy_De1_vals)) -> 199.9186915 | AH27: =IF($C27="","",SUMPRODUCT(($C27=Subsector_Energy_De1_index_3)*(Subsector_Energy_De1_index_2='Subsector Elect Demand by Year'!$C$2)*("Electricity--GWh"=Subsector_Energy_De1_index_4)*(AH$6=Subsector_Energy_De1_index_1)*Subsector_Energy_De1_vals)) -> 194.7389223 | AI27: =IF($C27="","",SUMPRODUCT(($C27=Subsector_Energy_De1_index_3)*(Subsector_Energy_De1_index_2='Subsector Elect Demand by Year'!$C$2)*("Electricity--GWh"=Subsector_Energy_De1_index_4)*(AI$6=Subsector_Energy_De1_index_1)*Subsector_Energy_De1_vals)) -> 189.6198836 | AJ27: =IF($C27="","",SUMPRODUCT(($C27=Subsector_Energy_De1_index_3)*(Subsector_Energy_De1_index_2='Subsector Elect Demand by Year'!$C$2)*("Electricity--GWh"=Subsector_Energy_De1_index_4)*(AJ$6=Subsector_Energy_De1_index_1)*Subsector_Energy_De1_vals)) -> 184.5615753 | AK27: =IF($C27="","",SUMPRODUCT(($C27=Subsector_Energy_De1_index_3)*(Subsector_Energy_De1_index_2='Subsector Elect Demand by Year'!$C$2)*("Electricity--GWh"=Subsector_Energy_De1_index_4)*(AK$6=Subsector_Energy_De1_index_1)*Subsector_Energy_De1_vals)) -> 179.5639973 | AL27: =IF($C27="","",SUMPRODUCT(($C27=Subsector_Energy_De1_index_3)*(Subsector_Energy_De1_index_2='Subsector Elect Demand by Year'!$C$2)*("Electricity--GWh"=Subsector_Energy_De1_index_4)*(AL$6=Subsector_Energy_De1_index_1)*Subsector_Energy_De1_vals)) -> 174.6271498 | AM27: =IF($C27="","",SUMPRODUCT(($C27=Subsector_Energy_De1_index_3)*(Subsector_Energy_De1_index_2='Subsector Elect Demand by Year'!$C$2)*("Electricity--GWh"=Subsector_Energy_De1_index_4)*(AM$6=Subsector_Energy_De1_index_1)*Subsector_Energy_De1_vals)) -> 169.7510326 | AN27: =IF($C27="","",SUMPRODUCT(($C27=Subsector_Energy_De1_index_3)*(Subsector_Energy_De1_index_2='Subsector Elect Demand by Year'!$C$2)*("Electricity--GWh"=Subsector_Energy_De1_index_4)*(AN$6=Subsector_Energy_De1_index_1)*Subsector_Energy_De1_vals)) -> 164.9356458
A28: =IF(A27>=MAX(Lists!$S$2:$S$61),"",A27+1) -> 22 | B28: =IF(A28="","",INDEX(Lists!$R$2:$R$62,MATCH($A28,Lists!$S$2:$S$62,0))) -> Industrial & Ag | C28: =IF($A28="","",INDEX(Lists!$Q$2:$Q$62,MATCH($A28,Lists!$S$2:$S$62,0))) -> Machinery | D28: Industrial | E28: =IF($C28="","",SUMPRODUCT(($C28=Subsector_Energy_De1_index_3)*(Subsector_Energy_De1_index_2='Subsector Elect Demand by Year'!$C$2)*("Electricity--GWh"=Subsector_Energy_De1_index_4)*(E$6=Subsector_Energy_De1_index_1)*Subsector_Energy_De1_vals)) -> 872.3379229 | F28: =IF($C28="","",SUMPRODUCT(($C28=Subsector_Energy_De1_index_3)*(Subsector_Energy_De1_index_2='Subsector Elect Demand by Year'!$C$2)*("Electricity--GWh"=Subsector_Energy_De1_index_4)*(F$6=Subsector_Energy_De1_index_1)*Subsector_Energy_De1_vals)) -> 863.720822 | G28: =IF($C28="","",SUMPRODUCT(($C28=Subsector_Energy_De1_index_3)*(Subsector_Energy_De1_index_2='Subsector Elect Demand by Year'!$C$2)*("Electricity--GWh"=Subsector_Energy_De1_index_4)*(G$6=Subsector_Energy_De1_index_1)*Subsector_Energy_De1_vals)) -> 855.1464176 | H28: =IF($C28="","",SUMPRODUCT(($C28=Subsector_Energy_De1_index_3)*(Subsector_Energy_De1_index_2='Subsector Elect Demand by Year'!$C$2)*("Electricity--GWh"=Subsector_Energy_De1_index_4)*(H$6=Subsector_Energy_De1_index_1)*Subsector_Energy_De1_vals)) -> 845.875308 | I28: =IF($C28="","",SUMPRODUCT(($C28=Subsector_Energy_De1_index_3)*(Subsector_Energy_De1_index_2='Subsector Elect Demand by Year'!$C$2)*("Electricity--GWh"=Subsector_Energy_De1_index_4)*(I$6=Subsector_Energy_De1_index_1)*Subsector_Energy_De1_vals)) -> 836.654011 | J28: =IF($C28="","",SUMPRODUCT(($C28=Subsector_Energy_De1_index_3)*(Subsector_Energy_De1_index_2='Subsector Elect Demand by Year'!$C$2)*("Electricity--GWh"=Subsector_Energy_De1_index_4)*(J$6=Subsector_Energy_De1_index_1)*Subsector_Energy_De1_vals)) -> 808.6761055 | K28: =IF($C28="","",SUMPRODUCT(($C28=Subsector_Energy_De1_index_3)*(Subsector_Energy_De1_index_2='Subsector Elect Demand by Year'!$C$2)*("Electricity--GWh"=Subsector_Energy_De1_index_4)*(K$6=Subsector_Energy_De1_index_1)*Subsector_Energy_De1_vals)) -> 781.8582373 | L28: =IF($C28="","",SUMPRODUCT(($C28=Subsector_Energy_De1_index_3)*(Subsector_Energy_De1_index_2='Subsector Elect Demand by Year'!$C$2)*("Electricity--GWh"=Subsector_Energy_De1_index_4)*(L$6=Subsector_Energy_De1_index_1)*Subsector_Energy_De1_vals)) -> 755.4616519 | M28: =IF($C28="","",SUMPRODUCT(($C28=Subsector_Energy_De1_index_3)*(Subsector_Energy_De1_index_2='Subsector Elect Demand by Year'!$C$2)*("Electricity--GWh"=Subsector_Energy_De1_index_4)*(M$6=Subsector_Energy_De1_index_1)*Subsector_Energy_De1_vals)) -> 728.8274278 | N28: =IF($C28="","",SUMPRODUCT(($C28=Subsector_Energy_De1_index_3)*(Subsector_Energy_De1_index_2='Subsector Elect Demand by Year'!$C$2)*("Electricity--GWh"=Subsector_Energy_De1_index_4)*(N$6=Subsector_Energy_De1_index_1)*Subsector_Energy_De1_vals)) -> 703.2842286 | O28: =IF($C28="","",SUMPRODUCT(($C28=Subsector_Energy_De1_index_3)*(Subsector_Energy_De1_index_2='Subsector Elect Demand by Year'!$C$2)*("Electricity--GWh"=Subsector_Energy_De1_index_4)*(O$6=Subsector_Energy_De1_index_1)*Subsector_Energy_De1_vals)) -> 681.125004 | P28: =IF($C28="","",SUMPRODUCT(($C28=Subsector_Energy_De1_index_3)*(Subsector_Energy_De1_index_2='Subsector Elect Demand by Year'!$C$2)*("Electricity--GWh"=Subsector_Energy_De1_index_4)*(P$6=Subsector_Energy_De1_index_1)*Subsector_Energy_De1_vals)) -> 659.3023893 | Q28: =IF($C28="","",SUMPRODUCT(($C28=Subsector_Energy_De1_index_3)*(Subsector_Energy_De1_index_2='Subsector Elect Demand by Year'!$C$2)*("Electricity--GWh"=Subsector_Energy_De1_index_4)*(Q$6=Subsector_Energy_De1_index_1)*Subsector_Energy_De1_vals)) -> 637.690492 | R28: =IF($C28="","",SUMPRODUCT(($C28=Subsector_Energy_De1_index_3)*(Subsector_Energy_De1_index_2='Subsector Elect Demand by Year'!$C$2)*("Electricity--GWh"=Subsector_Energy_De1_index_4)*(R$6=Subsector_Energy_De1_index_1)*Subsector_Energy_De1_vals)) -> 616.2893121 | S28: =IF($C28="","",SUMPRODUCT(($C28=Subsector_Energy_De1_index_3)*(Subsector_Energy_De1_index_2='Subsector Elect Demand by Year'!$C$2)*("Electricity--GWh"=Subsector_Energy_De1_index_4)*(S$6=Subsector_Energy_De1_index_1)*Subsector_Energy_De1_vals)) -> 595.0988497 | T28: =IF($C28="","",SUMPRODUCT(($C28=Subsector_Energy_De1_index_3)*(Subsector_Energy_De1_index_2='Subsector Elect Demand by Year'!$C$2)*("Electricity--GWh"=Subsector_Energy_De1_index_4)*(T$6=Subsector_Energy_De1_index_1)*Subsector_Energy_De1_vals)) -> 574.1191047 | U28: =IF($C28="","",SUMPRODUCT(($C28=Subsector_Energy_De1_index_3)*(Subsector_Energy_De1_index_2='Subsector Elect Demand by Year'!$C$2)*("Electricity--GWh"=Subsector_Energy_De1_index_4)*(U$6=Subsector_Energy_De1_index_1)*Subsector_Energy_De1_vals)) -> 561.1123995 | V28: =IF($C28="","",SUMPRODUCT(($C28=Subsector_Energy_De1_index_3)*(Subsector_Energy_De1_index_2='Subsector Elect Demand by Year'!$C$2)*("Electricity--GWh"=Subsector_Energy_De1_index_4)*(V$6=Subsector_Energy_De1_index_1)*Subsector_Energy_De1_vals)) -> 548.2218223 | W28: =IF($C28="","",SUMPRODUCT(($C28=Subsector_Energy_De1_index_3)*(Subsector_Energy_De1_index_2='Subsector Elect Demand by Year'!$C$2)*("Electricity--GWh"=Subsector_Energy_De1_index_4)*(W$6=Subsector_Energy_De1_index_1)*Subsector_Energy_De1_vals)) -> 535.4473733 | X28: =IF($C28="","",SUMPRODUCT(($C28=Subsector_Energy_De1_index_3)*(Subsector_Energy_De1_index_2='Subsector Elect Demand by Year'!$C$2)*("Electricity--GWh"=Subsector_Energy_De1_index_4)*(X$6=Subsector_Energy_De1_index_1)*Subsector_Energy_De1_vals)) -> 522.7890524 | Y28: =IF($C28="","",SUMPRODUCT(($C28=Subsector_Energy_De1_index_3)*(Subsector_Energy_De1_index_2='Subsector Elect Demand by Year'!$C$2)*("Electricity--GWh"=Subsector_Energy_De1_index_4)*(Y$6=Subsector_Energy_De1_index_1)*Subsector_Energy_De1_vals)) -> 510.2468596 | Z28: =IF($C28="","",SUMPRODUCT(($C28=Subsector_Energy_De1_index_3)*(Subsector_Energy_De1_index_2='Subsector Elect Demand by Year'!$C$2)*("Electricity--GWh"=Subsector_Energy_De1_index_4)*(Z$6=Subsector_Energy_De1_index_1)*Subsector_Energy_De1_vals)) -> 497.8207949 | AA28: =IF($C28="","",SUMPRODUCT(($C28=Subsector_Energy_De1_index_3)*(Subsector_Energy_De1_index_2='Subsector Elect Demand by Year'!$C$2)*("Electricity--GWh"=Subsector_Energy_De1_index_4)*(AA$6=Subsector_Energy_De1_index_1)*Subsector_Energy_De1_vals)) -> 485.5108583 | AB28: =IF($C28="","",SUMPRODUCT(($C28=Subsector_Energy_De1_index_3)*(Subsector_Energy_De1_index_2='Subsector Elect Demand by Year'!$C$2)*("Electricity--GWh"=Subsector_Energy_De1_index_4)*(AB$6=Subsector_Energy_De1_index_1)*Subsector_Energy_De1_vals)) -> 473.3170498 | AC28: =IF($C28="","",SUMPRODUCT(($C28=Subsector_Energy_De1_index_3)*(Subsector_Energy_De1_index_2='Subsector Elect Demand by Year'!$C$2)*("Electricity--GWh"=Subsector_Energy_De1_index_4)*(AC$6=Subsector_Energy_De1_index_1)*Subsector_Energy_De1_vals)) -> 461.2393694 | AD28: =IF($C28="","",SUMPRODUCT(($C28=Subsector_Energy_De1_index_3)*(Subsector_Energy_De1_index_2='Subsector Elect Demand by Year'!$C$2)*("Electricity--GWh"=Subsector_Energy_De1_index_4)*(AD$6=Subsector_Energy_De1_index_1)*Subsector_Energy_De1_vals)) -> 449.2778171 | AE28: =IF($C28="","",SUMPRODUCT(($C28=Subsector_Energy_De1_index_3)*(Subsector_Energy_De1_index_2='Subsector Elect Demand by Year'!$C$2)*("Electricity--GWh"=Subsector_Energy_De1_index_4)*(AE$6=Subsector_Energy_De1_index_1)*Subsector_Energy_De1_vals)) -> 438.4692663 | AF28: =IF($C28="","",SUMPRODUCT(($C28=Subsector_Energy_De1_index_3)*(Subsector_Energy_De1_index_2='Subsector Elect Demand by Year'!$C$2)*("Electricity--GWh"=Subsector_Energy_De1_index_4)*(AF$6=Subsector_Energy_De1_index_1)*Subsector_Energy_De1_vals)) -> 427.7633889 | AG28: =IF($C28="","",SUMPRODUCT(($C28=Subsector_Energy_De1_index_3)*(Subsector_Energy_De1_index_2='Subsector Elect Demand by Year'!$C$2)*("Electricity--GWh"=Subsector_Energy_De1_index_4)*(AG$6=Subsector_Energy_De1_index_1)*Subsector_Energy_De1_vals)) -> 417.1601848 | AH28: =IF($C28="","",SUMPRODUCT(($C28=Subsector_Energy_De1_index_3)*(Subsector_Energy_De1_index_2='Subsector Elect Demand by Year'!$C$2)*("Electricity--GWh"=Subsector_Energy_De1_index_4)*(AH$6=Subsector_Energy_De1_index_1)*Subsector_Energy_De1_vals)) -> 406.6596539 | AI28: =IF($C28="","",SUMPRODUCT(($C28=Subsector_Energy_De1_index_3)*(Subsector_Energy_De1_index_2='Subsector Elect Demand by Year'!$C$2)*("Electricity--GWh"=Subsector_Energy_De1_index_4)*(AI$6=Subsector_Energy_De1_index_1)*Subsector_Energy_De1_vals)) -> 396.2617964 | AJ28: =IF($C28="","",SUMPRODUCT(($C28=Subsector_Energy_De1_index_3)*(Subsector_Energy_De1_index_2='Subsector Elect Demand by Year'!$C$2)*("Electricity--GWh"=Subsector_Energy_De1_index_4)*(AJ$6=Subsector_Energy_De1_index_1)*Subsector_Energy_De1_vals)) -> 385.9666121 | AK28: =IF($C28="","",SUMPRODUCT(($C28=Subsector_Energy_De1_index_3)*(Subsector_Energy_De1_index_2='Subsector Elect Demand by Year'!$C$2)*("Electricity--GWh"=Subsector_Energy_De1_index_4)*(AK$6=Subsector_Energy_De1_index_1)*Subsector_Energy_De1_vals)) -> 375.7741011 | AL28: =IF($C28="","",SUMPRODUCT(($C28=Subsector_Energy_De1_index_3)*(Subsector_Energy_De1_index_2='Subsector Elect Demand by Year'!$C$2)*("Electricity--GWh"=Subsector_Energy_De1_index_4)*(AL$6=Subsector_Energy_De1_index_1)*Subsector_Energy_De1_vals)) -> 365.6842635 | AM28: =IF($C28="","",SUMPRODUCT(($C28=Subsector_Energy_De1_index_3)*(Subsector_Energy_De1_index_2='Subsector Elect Demand by Year'!$C$2)*("Electricity--GWh"=Subsector_Energy_De1_index_4)*(AM$6=Subsector_Energy_De1_index_1)*Subsector_Energy_De1_vals)) -> 355.6970991 | AN28: =IF($C28="","",SUMPRODUCT(($C28=Subsector_Energy_De1_index_3)*(Subsector_Energy_De1_index_2='Subsector Elect Demand by Year'!$C$2)*("Electricity--GWh"=Subsector_Energy_De1_index_4)*(AN$6=Subsector_Energy_De1_index_1)*Subsector_Energy_De1_vals)) -> 345.812608
A29: =IF(A28>=MAX(Lists!$S$2:$S$61),"",A28+1) -> 23 | B29: =IF(A29="","",INDEX(Lists!$R$2:$R$62,MATCH($A29,Lists!$S$2:$S$62,0))) -> Industrial & Ag | C29: =IF($A29="","",INDEX(Lists!$Q$2:$Q$62,MATCH($A29,Lists!$S$2:$S$62,0))) -> Mining | D29: Industrial | E29: =IF($C29="","",SUMPRODUCT(($C29=Subsector_Energy_De1_index_3)*(Subsector_Energy_De1_index_2='Subsector Elect Demand by Year'!$C$2)*("Electricity--GWh"=Subsector_Energy_De1_index_4)*(E$6=Subsector_Energy_De1_index_1)*Subsector_Energy_De1_vals)) -> 399.5652722 | F29: =IF($C29="","",SUMPRODUCT(($C29=Subsector_Energy_De1_index_3)*(Subsector_Energy_De1_index_2='Subsector Elect Demand by Year'!$C$2)*("Electricity--GWh"=Subsector_Energy_De1_index_4)*(F$6=Subsector_Energy_De1_index_1)*Subsector_Energy_De1_vals)) -> 393.9860198 | G29: =IF($C29="","",SUMPRODUCT(($C29=Subsector_Energy_De1_index_3)*(Subsector_Energy_De1_index_2='Subsector Elect Demand by Year'!$C$2)*("Electricity--GWh"=Subsector_Energy_De1_index_4)*(G$6=Subsector_Energy_De1_index_1)*Subsector_Energy_De1_vals)) -> 387.1049678 | H29: =IF($C29="","",SUMPRODUCT(($C29=Subsector_Energy_De1_index_3)*(Subsector_Energy_De1_index_2='Subsector Elect Demand by Year'!$C$2)*("Electricity--GWh"=Subsector_Energy_De1_index_4)*(H$6=Subsector_Energy_De1_index_1)*Subsector_Energy_De1_vals)) -> 378.2762667 | I29: =IF($C29="","",SUMPRODUCT(($C29=Subsector_Energy_De1_index_3)*(Subsector_Energy_De1_index_2='Subsector Elect Demand by Year'!$C$2)*("Electricity--GWh"=Subsector_Energy_De1_index_4)*(I$6=Subsector_Energy_De1_index_1)*Subsector_Energy_De1_vals)) -> 369.8096396 | J29: =IF($C29="","",SUMPRODUCT(($C29=Subsector_Energy_De1_index_3)*(Subsector_Energy_De1_index_2='Subsector Elect Demand by Year'!$C$2)*("Electricity--GWh"=Subsector_Energy_De1_index_4)*(J$6=Subsector_Energy_De1_index_1)*Subsector_Energy_De1_vals)) -> 354.0526082 | K29: =IF($C29="","",SUMPRODUCT(($C29=Subsector_Energy_De1_index_3)*(Subsector_Energy_De1_index_2='Subsector Elect Demand by Year'!$C$2)*("Electricity--GWh"=Subsector_Energy_De1_index_4)*(K$6=Subsector_Energy_De1_index_1)*Subsector_Energy_De1_vals)) -> 337.5787422 | L29: =IF($C29="","",SUMPRODUCT(($C29=Subsector_Energy_De1_index_3)*(Subsector_Energy_De1_index_2='Subsector Elect Demand by Year'!$C$2)*("Electricity--GWh"=Subsector_Energy_De1_index_4)*(L$6=Subsector_Energy_De1_index_1)*Subsector_Energy_De1_vals)) -> 322.4384798 | M29: =IF($C29="","",SUMPRODUCT(($C29=Subsector_Energy_De1_index_3)*(Subsector_Energy_De1_index_2='Subsector Elect Demand by Year'!$C$2)*("Electricity--GWh"=Subsector_Energy_De1_index_4)*(M$6=Subsector_Energy_De1_index_1)*Subsector_Energy_De1_vals)) -> 307.7633787 | N29: =IF($C29="","",SUMPRODUCT(($C29=Subsector_Energy_De1_index_3)*(Subsector_Energy_De1_index_2='Subsector Elect Demand by Year'!$C$2)*("Electricity--GWh"=Subsector_Energy_De1_index_4)*(N$6=Subsector_Energy_De1_index_1)*Subsector_Energy_De1_vals)) -> 293.7980038 | O29: =IF($C29="","",SUMPRODUCT(($C29=Subsector_Energy_De1_index_3)*(Subsector_Energy_De1_index_2='Subsector Elect Demand by Year'!$C$2)*("Electricity--GWh"=Subsector_Energy_De1_index_4)*(O$6=Subsector_Energy_De1_index_1)*Subsector_Energy_De1_vals)) -> 282.2100954 | P29: =IF($C29="","",SUMPRODUCT(($C29=Subsector_Energy_De1_index_3)*(Subsector_Energy_De1_index_2='Subsector Elect Demand by Year'!$C$2)*("Electricity--GWh"=Subsector_Energy_De1_index_4)*(P$6=Subsector_Energy_De1_index_1)*Subsector_Energy_De1_vals)) -> 270.1134432 | Q29: =IF($C29="","",SUMPRODUCT(($C29=Subsector_Energy_De1_index_3)*(Subsector_Energy_De1_index_2='Subsector Elect Demand by Year'!$C$2)*("Electricity--GWh"=Subsector_Energy_De1_index_4)*(Q$6=Subsector_Energy_De1_index_1)*Subsector_Energy_De1_vals)) -> 258.2692272 | R29: =IF($C29="","",SUMPRODUCT(($C29=Subsector_Energy_De1_index_3)*(Subsector_Energy_De1_index_2='Subsector Elect Demand by Year'!$C$2)*("Electricity--GWh"=Subsector_Energy_De1_index_4)*(R$6=Subsector_Energy_De1_index_1)*Subsector_Energy_De1_vals)) -> 246.6774476 | S29: =IF($C29="","",SUMPRODUCT(($C29=Subsector_Energy_De1_index_3)*(Subsector_Energy_De1_index_2='Subsector Elect Demand by Year'!$C$2)*("Electricity--GWh"=Subsector_Energy_De1_index_4)*(S$6=Subsector_Energy_De1_index_1)*Subsector_Energy_De1_vals)) -> 235.3381041 | T29: =IF($C29="","",SUMPRODUCT(($C29=Subsector_Energy_De1_index_3)*(Subsector_Energy_De1_index_2='Subsector Elect Demand by Year'!$C$2)*("Electricity--GWh"=Subsector_Energy_De1_index_4)*(T$6=Subsector_Energy_De1_index_1)*Subsector_Energy_De1_vals)) -> 224.251197 | U29: =IF($C29="","",SUMPRODUCT(($C29=Subsector_Energy_De1_index_3)*(Subsector_Energy_De1_index_2='Subsector Elect Demand by Year'!$C$2)*("Electricity--GWh"=Subsector_Energy_De1_index_4)*(U$6=Subsector_Energy_De1_index_1)*Subsector_Energy_De1_vals)) -> 216.5930174 | V29: =IF($C29="","",SUMPRODUCT(($C29=Subsector_Energy_De1_index_3)*(Subsector_Energy_De1_index_2='Subsector Elect Demand by Year'!$C$2)*("Electricity--GWh"=Subsector_Energy_De1_index_4)*(V$6=Subsector_Energy_De1_index_1)*Subsector_Energy_De1_vals)) -> 209.0670495 | W29: =IF($C29="","",SUMPRODUCT(($C29=Subsector_Energy_De1_index_3)*(Subsector_Energy_De1_index_2='Subsector Elect Demand by Year'!$C$2)*("Electricity--GWh"=Subsector_Energy_De1_index_4)*(W$6=Subsector_Energy_De1_index_1)*Subsector_Energy_De1_vals)) -> 201.6732931 | X29: =IF($C29="","",SUMPRODUCT(($C29=Subsector_Energy_De1_index_3)*(Subsector_Energy_De1_index_2='Subsector Elect Demand by Year'!$C$2)*("Electricity--GWh"=Subsector_Energy_De1_index_4)*(X$6=Subsector_Energy_De1_index_1)*Subsector_Energy_De1_vals)) -> 194.4117484 | Y29: =IF($C29="","",SUMPRODUCT(($C29=Subsector_Energy_De1_index_3)*(Subsector_Energy_De1_index_2='Subsector Elect Demand by Year'!$C$2)*("Electricity--GWh"=Subsector_Energy_De1_index_4)*(Y$6=Subsector_Energy_De1_index_1)*Subsector_Energy_De1_vals)) -> 187.2824152 | Z29: =IF($C29="","",SUMPRODUCT(($C29=Subsector_Energy_De1_index_3)*(Subsector_Energy_De1_index_2='Subsector Elect Demand by Year'!$C$2)*("Electricity--GWh"=Subsector_Energy_De1_index_4)*(Z$6=Subsector_Energy_De1_index_1)*Subsector_Energy_De1_vals)) -> 180.2852936 | AA29: =IF($C29="","",SUMPRODUCT(($C29=Subsector_Energy_De1_index_3)*(Subsector_Energy_De1_index_2='Subsector Elect Demand by Year'!$C$2)*("Electricity--GWh"=Subsector_Energy_De1_index_4)*(AA$6=Subsector_Energy_De1_index_1)*Subsector_Energy_De1_vals)) -> 173.4203836 | AB29: =IF($C29="","",SUMPRODUCT(($C29=Subsector_Energy_De1_index_3)*(Subsector_Energy_De1_index_2='Subsector Elect Demand by Year'!$C$2)*("Electricity--GWh"=Subsector_Energy_De1_index_4)*(AB$6=Subsector_Energy_De1_index_1)*Subsector_Energy_De1_vals)) -> 166.6876851 | AC29: =IF($C29="","",SUMPRODUCT(($C29=Subsector_Energy_De1_index_3)*(Subsector_Energy_De1_index_2='Subsector Elect Demand by Year'!$C$2)*("Electricity--GWh"=Subsector_Energy_De1_index_4)*(AC$6=Subsector_Energy_De1_index_1)*Subsector_Energy_De1_vals)) -> 160.0871983 | AD29: =IF($C29="","",SUMPRODUCT(($C29=Subsector_Energy_De1_index_3)*(Subsector_Energy_De1_index_2='Subsector Elect Demand by Year'!$C$2)*("Electricity--GWh"=Subsector_Energy_De1_index_4)*(AD$6=Subsector_Energy_De1_index_1)*Subsector_Energy_De1_vals)) -> 153.618923 | AE29: =IF($C29="","",SUMPRODUCT(($C29=Subsector_Energy_De1_index_3)*(Subsector_Energy_De1_index_2='Subsector Elect Demand by Year'!$C$2)*("Electricity--GWh"=Subsector_Energy_De1_index_4)*(AE$6=Subsector_Energy_De1_index_1)*Subsector_Energy_De1_vals)) -> 147.4856648 | AF29: =IF($C29="","",SUMPRODUCT(($C29=Subsector_Energy_De1_index_3)*(Subsector_Energy_De1_index_2='Subsector Elect Demand by Year'!$C$2)*("Electricity--GWh"=Subsector_Energy_De1_index_4)*(AF$6=Subsector_Energy_De1_index_1)*Subsector_Energy_De1_vals)) -> 141.4751499 | AG29: =IF($C29="","",SUMPRODUCT(($C29=Subsector_Energy_De1_index_3)*(Subsector_Energy_De1_index_2='Subsector Elect Demand by Year'!$C$2)*("Electricity--GWh"=Subsector_Energy_De1_index_4)*(AG$6=Subsector_Energy_De1_index_1)*Subsector_Energy_De1_vals)) -> 135.5873785 | AH29: =IF($C29="","",SUMPRODUCT(($C29=Subsector_Energy_De1_index_3)*(Subsector_Energy_De1_index_2='Subsector Elect Demand by Year'!$C$2)*("Electricity--GWh"=Subsector_Energy_De1_index_4)*(AH$6=Subsector_Energy_De1_index_1)*Subsector_Energy_De1_vals)) -> 129.8223504 | AI29: =IF($C29="","",SUMPRODUCT(($C29=Subsector_Energy_De1_index_3)*(Subsector_Energy_De1_index_2='Subsector Elect Demand by Year'!$C$2)*("Electricity--GWh"=Subsector_Energy_De1_index_4)*(AI$6=Subsector_Energy_De1_index_1)*Subsector_Energy_De1_vals)) -> 124.1800657 | AJ29: =IF($C29="","",SUMPRODUCT(($C29=Subsector_Energy_De1_index_3)*(Subsector_Energy_De1_index_2='Subsector Elect Demand by Year'!$C$2)*("Electricity--GWh"=Subsector_Energy_De1_index_4)*(AJ$6=Subsector_Energy_De1_index_1)*Subsector_Energy_De1_vals)) -> 118.6605244 | AK29: =IF($C29="","",SUMPRODUCT(($C29=Subsector_Energy_De1_index_3)*(Subsector_Energy_De1_index_2='Subsector Elect Demand by Year'!$C$2)*("Electricity--GWh"=Subsector_Energy_De1_index_4)*(AK$6=Subsector_Energy_De1_index_1)*Subsector_Energy_De1_vals)) -> 113.2637264 | AL29: =IF($C29="","",SUMPRODUCT(($C29=Subsector_Energy_De1_index_3)*(Subsector_Energy_De1_index_2='Subsector Elect Demand by Year'!$C$2)*("Electricity--GWh"=Subsector_Energy_De1_index_4)*(AL$6=Subsector_Energy_De1_index_1)*Subsector_Energy_De1_vals)) -> 107.9896719 | AM29: =IF($C29="","",SUMPRODUCT(($C29=Subsector_Energy_De1_index_3)*(Subsector_Energy_De1_index_2='Subsector Elect Demand by Year'!$C$2)*("Electricity--GWh"=Subsector_Energy_De1_index_4)*(AM$6=Subsector_Energy_De1_index_1)*Subsector_Energy_De1_vals)) -> 102.8383607 | AN29: =IF($C29="","",SUMPRODUCT(($C29=Subsector_Energy_De1_index_3)*(Subsector_Energy_De1_index_2='Subsector Elect Demand by Year'!$C$2)*("Electricity--GWh"=Subsector_Energy_De1_index_4)*(AN$6=Subsector_Energy_De1_index_1)*Subsector_Energy_De1_vals)) -> 97.80979289
A30: =IF(A29>=MAX(Lists!$S$2:$S$61),"",A29+1) -> 24 | B30: =IF(A30="","",INDEX(Lists!$R$2:$R$62,MATCH($A30,Lists!$S$2:$S$62,0))) -> Industrial & Ag | C30: =IF($A30="","",INDEX(Lists!$Q$2:$Q$62,MATCH($A30,Lists!$S$2:$S$62,0))) -> Miscellaneous | D30: Industrial | E30: =IF($C30="","",SUMPRODUCT(($C30=Subsector_Energy_De1_index_3)*(Subsector_Energy_De1_index_2='Subsector Elect Demand by Year'!$C$2)*("Electricity--GWh"=Subsector_Energy_De1_index_4)*(E$6=Subsector_Energy_De1_index_1)*Subsector_Energy_De1_vals)) -> 3631.866055 | F30: =IF($C30="","",SUMPRODUCT(($C30=Subsector_Energy_De1_index_3)*(Subsector_Energy_De1_index_2='Subsector Elect Demand by Year'!$C$2)*("Electricity--GWh"=Subsector_Energy_De1_index_4)*(F$6=Subsector_Energy_De1_index_1)*Subsector_Energy_De1_vals)) -> 3608.42823 | G30: =IF($C30="","",SUMPRODUCT(($C30=Subsector_Energy_De1_index_3)*(Subsector_Energy_De1_index_2='Subsector Elect Demand by Year'!$C$2)*("Electricity--GWh"=Subsector_Energy_De1_index_4)*(G$6=Subsector_Energy_De1_index_1)*Subsector_Energy_De1_vals)) -> 3589.133856 | H30: =IF($C30="","",SUMPRODUCT(($C30=Subsector_Energy_De1_index_3)*(Subsector_Energy_De1_index_2='Subsector Elect Demand by Year'!$C$2)*("Electricity--GWh"=Subsector_Energy_De1_index_4)*(H$6=Subsector_Energy_De1_index_1)*Subsector_Energy_De1_vals)) -> 3568.009383 | I30: =IF($C30="","",SUMPRODUCT(($C30=Subsector_Energy_De1_index_3)*(Subsector_Energy_De1_index_2='Subsector Elect Demand by Year'!$C$2)*("Electricity--GWh"=Subsector_Energy_De1_index_4)*(I$6=Subsector_Energy_De1_index_1)*Subsector_Energy_De1_vals)) -> 3546.920982 | J30: =IF($C30="","",SUMPRODUCT(($C30=Subsector_Energy_De1_index_3)*(Subsector_Energy_De1_index_2='Subsector Elect Demand by Year'!$C$2)*("Electricity--GWh"=Subsector_Energy_De1_index_4)*(J$6=Subsector_Energy_De1_index_1)*Subsector_Energy_De1_vals)) -> 3443.231366 | K30: =IF($C30="","",SUMPRODUCT(($C30=Subsector_Energy_De1_index_3)*(Subsector_Energy_De1_index_2='Subsector Elect Demand by Year'!$C$2)*("Electricity--GWh"=Subsector_Energy_De1_index_4)*(K$6=Subsector_Energy_De1_index_1)*Subsector_Energy_De1_vals)) -> 3339.283027 | L30: =IF($C30="","",SUMPRODUCT(($C30=Subsector_Energy_De1_index_3)*(Subsector_Energy_De1_index_2='Subsector Elect Demand by Year'!$C$2)*("Electricity--GWh"=Subsector_Energy_De1_index_4)*(L$6=Subsector_Energy_De1_index_1)*Subsector_Energy_De1_vals)) -> 3233.840472 | M30: =IF($C30="","",SUMPRODUCT(($C30=Subsector_Energy_De1_index_3)*(Subsector_Energy_De1_index_2='Subsector Elect Demand by Year'!$C$2)*("Electricity--GWh"=Subsector_Energy_De1_index_4)*(M$6=Subsector_Energy_De1_index_1)*Subsector_Energy_De1_vals)) -> 3128.446872 | N30: =IF($C30="","",SUMPRODUCT(($C30=Subsector_Energy_De1_index_3)*(Subsector_Energy_De1_index_2='Subsector Elect Demand by Year'!$C$2)*("Electricity--GWh"=Subsector_Energy_De1_index_4)*(N$6=Subsector_Energy_De1_index_1)*Subsector_Energy_De1_vals)) -> 3023.530659 | O30: =IF($C30="","",SUMPRODUCT(($C30=Subsector_Energy_De1_index_3)*(Subsector_Energy_De1_index_2='Subsector Elect Demand by Year'!$C$2)*("Electricity--GWh"=Subsector_Energy_De1_index_4)*(O$6=Subsector_Energy_De1_index_1)*Subsector_Energy_De1_vals)) -> 2973.035073 | P30: =IF($C30="","",SUMPRODUCT(($C30=Subsector_Energy_De1_index_3)*(Subsector_Energy_De1_index_2='Subsector Elect Demand by Year'!$C$2)*("Electricity--GWh"=Subsector_Energy_De1_index_4)*(P$6=Subsector_Energy_De1_index_1)*Subsector_Energy_De1_vals)) -> 2894.681261 | Q30: =IF($C30="","",SUMPRODUCT(($C30=Subsector_Energy_De1_index_3)*(Subsector_Energy_De1_index_2='Subsector Elect Demand by Year'!$C$2)*("Electricity--GWh"=Subsector_Energy_De1_index_4)*(Q$6=Subsector_Energy_De1_index_1)*Subsector_Energy_De1_vals)) -> 2816.333722 | R30: =IF($C30="","",SUMPRODUCT(($C30=Subsector_Energy_De1_index_3)*(Subsector_Energy_De1_index_2='Subsector Elect Demand by Year'!$C$2)*("Electricity--GWh"=Subsector_Energy_De1_index_4)*(R$6=Subsector_Energy_De1_index_1)*Subsector_Energy_De1_vals)) -> 2737.992455 | S30: =IF($C30="","",SUMPRODUCT(($C30=Subsector_Energy_De1_index_3)*(Subsector_Energy_De1_index_2='Subsector Elect Demand by Year'!$C$2)*("Electricity--GWh"=Subsector_Energy_De1_index_4)*(S$6=Subsector_Energy_De1_index_1)*Subsector_Energy_De1_vals)) -> 2659.657461 | T30: =IF($C30="","",SUMPRODUCT(($C30=Subsector_Energy_De1_index_3)*(Subsector_Energy_De1_index_2='Subsector Elect Demand by Year'!$C$2)*("Electricity--GWh"=Subsector_Energy_De1_index_4)*(T$6=Subsector_Energy_De1_index_1)*Subsector_Energy_De1_vals)) -> 2581.32874 | U30: =IF($C30="","",SUMPRODUCT(($C30=Subsector_Energy_De1_index_3)*(Subsector_Energy_De1_index_2='Subsector Elect Demand by Year'!$C$2)*("Electricity--GWh"=Subsector_Energy_De1_index_4)*(U$6=Subsector_Energy_De1_index_1)*Subsector_Energy_De1_vals)) -> 2540.258655 | V30: =IF($C30="","",SUMPRODUCT(($C30=Subsector_Energy_De1_index_3)*(Subsector_Energy_De1_index_2='Subsector Elect Demand by Year'!$C$2)*("Electricity--GWh"=Subsector_Energy_De1_index_4)*(V$6=Subsector_Energy_De1_index_1)*Subsector_Energy_De1_vals)) -> 2499.191855 | W30: =IF($C30="","",SUMPRODUCT(($C30=Subsector_Energy_De1_index_3)*(Subsector_Energy_De1_index_2='Subsector Elect Demand by Year'!$C$2)*("Electricity--GWh"=Subsector_Energy_De1_index_4)*(W$6=Subsector_Energy_De1_index_1)*Subsector_Energy_De1_vals)) -> 2458.12834 | X30: =IF($C30="","",SUMPRODUCT(($C30=Subsector_Energy_De1_index_3)*(Subsector_Energy_De1_index_2='Subsector Elect Demand by Year'!$C$2)*("Electricity--GWh"=Subsector_Energy_De1_index_4)*(X$6=Subsector_Energy_De1_index_1)*Subsector_Energy_De1_vals)) -> 2417.068111 | Y30: =IF($C30="","",SUMPRODUCT(($C30=Subsector_Energy_De1_index_3)*(Subsector_Energy_De1_index_2='Subsector Elect Demand by Year'!$C$2)*("Electricity--GWh"=Subsector_Energy_De1_index_4)*(Y$6=Subsector_Energy_De1_index_1)*Subsector_Energy_De1_vals)) -> 2376.011167 | Z30: =IF($C30="","",SUMPRODUCT(($C30=Subsector_Energy_De1_index_3)*(Subsector_Energy_De1_index_2='Subsector Elect Demand by Year'!$C$2)*("Electricity--GWh"=Subsector_Energy_De1_index_4)*(Z$6=Subsector_Energy_De1_index_1)*Subsector_Energy_De1_vals)) -> 2334.957508 | AA30: =IF($C30="","",SUMPRODUCT(($C30=Subsector_Energy_De1_index_3)*(Subsector_Energy_De1_index_2='Subsector Elect Demand by Year'!$C$2)*("Electricity--GWh"=Subsector_Energy_De1_index_4)*(AA$6=Subsector_Energy_De1_index_1)*Subsector_Energy_De1_vals)) -> 2293.907135 | AB30: =IF($C30="","",SUMPRODUCT(($C30=Subsector_Energy_De1_index_3)*(Subsector_Energy_De1_index_2='Subsector Elect Demand by Year'!$C$2)*("Electricity--GWh"=Subsector_Energy_De1_index_4)*(AB$6=Subsector_Energy_De1_index_1)*Subsector_Energy_De1_vals)) -> 2252.860047 | AC30: =IF($C30="","",SUMPRODUCT(($C30=Subsector_Energy_De1_index_3)*(Subsector_Energy_De1_index_2='Subsector Elect Demand by Year'!$C$2)*("Electricity--GWh"=Subsector_Energy_De1_index_4)*(AC$6=Subsector_Energy_De1_index_1)*Subsector_Energy_De1_vals)) -> 2211.816244 | AD30: =IF($C30="","",SUMPRODUCT(($C30=Subsector_Energy_De1_index_3)*(Subsector_Energy_De1_index_2='Subsector Elect Demand by Year'!$C$2)*("Electricity--GWh"=Subsector_Energy_De1_index_4)*(AD$6=Subsector_Energy_De1_index_1)*Subsector_Energy_De1_vals)) -> 2170.775727 | AE30: =IF($C30="","",SUMPRODUCT(($C30=Subsector_Energy_De1_index_3)*(Subsector_Energy_De1_index_2='Subsector Elect Demand by Year'!$C$2)*("Electricity--GWh"=Subsector_Energy_De1_index_4)*(AE$6=Subsector_Energy_De1_index_1)*Subsector_Energy_De1_vals)) -> 2132.671101 | AF30: =IF($C30="","",SUMPRODUCT(($C30=Subsector_Energy_De1_index_3)*(Subsector_Energy_De1_index_2='Subsector Elect Demand by Year'!$C$2)*("Electricity--GWh"=Subsector_Energy_De1_index_4)*(AF$6=Subsector_Energy_De1_index_1)*Subsector_Energy_De1_vals)) -> 2094.569525 | AG30: =IF($C30="","",SUMPRODUCT(($C30=Subsector_Energy_De1_index_3)*(Subsector_Energy_De1_index_2='Subsector Elect Demand by Year'!$C$2)*("Electricity--GWh"=Subsector_Energy_De1_index_4)*(AG$6=Subsector_Energy_De1_index_1)*Subsector_Energy_De1_vals)) -> 2056.470998 | AH30: =IF($C30="","",SUMPRODUCT(($C30=Subsector_Energy_De1_index_3)*(Subsector_Energy_De1_index_2='Subsector Elect Demand by Year'!$C$2)*("Electricity--GWh"=Subsector_Energy_De1_index_4)*(AH$6=Subsector_Energy_De1_index_1)*Subsector_Energy_De1_vals)) -> 2018.375522 | AI30: =IF($C30="","",SUMPRODUCT(($C30=Subsector_Energy_De1_index_3)*(Subsector_Energy_De1_index_2='Subsector Elect Demand by Year'!$C$2)*("Electricity--GWh"=Subsector_Energy_De1_index_4)*(AI$6=Subsector_Energy_De1_index_1)*Subsector_Energy_De1_vals)) -> 1980.283096 | AJ30: =IF($C30="","",SUMPRODUCT(($C30=Subsector_Energy_De1_index_3)*(Subsector_Energy_De1_index_2='Subsector Elect Demand by Year'!$C$2)*("Electricity--GWh"=Subsector_Energy_De1_index_4)*(AJ$6=Subsector_Energy_De1_index_1)*Subsector_Energy_De1_vals)) -> 1942.19372 | AK30: =IF($C30="","",SUMPRODUCT(($C30=Subsector_Energy_De1_index_3)*(Subsector_Energy_De1_index_2='Subsector Elect Demand by Year'!$C$2)*("Electricity--GWh"=Subsector_Energy_De1_index_4)*(AK$6=Subsector_Energy_De1_index_1)*Subsector_Energy_De1_vals)) -> 1904.107394 | AL30: =IF($C30="","",SUMPRODUCT(($C30=Subsector_Energy_De1_index_3)*(Subsector_Energy_De1_index_2='Subsector Elect Demand by Year'!$C$2)*("Electricity--GWh"=Subsector_Energy_De1_index_4)*(AL$6=Subsector_Energy_De1_index_1)*Subsector_Energy_De1_vals)) -> 1866.024118 | AM30: =IF($C30="","",SUMPRODUCT(($C30=Subsector_Energy_De1_index_3)*(Subsector_Energy_De1_index_2='Subsector Elect Demand by Year'!$C$2)*("Electricity--GWh"=Subsector_Energy_De1_index_4)*(AM$6=Subsector_Energy_De1_index_1)*Subsector_Energy_De1_vals)) -> 1827.943892 | AN30: =IF($C30="","",SUMPRODUCT(($C30=Subsector_Energy_De1_index_3)*(Subsector_Energy_De1_index_2='Subsector Elect Demand by Year'!$C$2)*("Electricity--GWh"=Subsector_Energy_De1_index_4)*(AN$6=Subsector_Energy_De1_index_1)*Subsector_Energy_De1_vals)) -> 1789.866717
A31: =IF(A30>=MAX(Lists!$S$2:$S$61),"",A30+1) -> 25 | B31: =IF(A31="","",INDEX(Lists!$R$2:$R$62,MATCH($A31,Lists!$S$2:$S$62,0))) -> Industrial & Ag | C31: =IF($A31="","",INDEX(Lists!$Q$2:$Q$62,MATCH($A31,Lists!$S$2:$S$62,0))) -> Nonmetallic Mineral | D31: Industrial | E31: =IF($C31="","",SUMPRODUCT(($C31=Subsector_Energy_De1_index_3)*(Subsector_Energy_De1_index_2='Subsector Elect Demand by Year'!$C$2)*("Electricity--GWh"=Subsector_Energy_De1_index_4)*(E$6=Subsector_Energy_De1_index_1)*Subsector_Energy_De1_vals)) -> 437.7441202 | F31: =IF($C31="","",SUMPRODUCT(($C31=Subsector_Energy_De1_index_3)*(Subsector_Energy_De1_index_2='Subsector Elect Demand by Year'!$C$2)*("Electricity--GWh"=Subsector_Energy_De1_index_4)*(F$6=Subsector_Energy_De1_index_1)*Subsector_Energy_De1_vals)) -> 434.8178411 | G31: =IF($C31="","",SUMPRODUCT(($C31=Subsector_Energy_De1_index_3)*(Subsector_Energy_De1_index_2='Subsector Elect Demand by Year'!$C$2)*("Electricity--GWh"=Subsector_Energy_De1_index_4)*(G$6=Subsector_Energy_De1_index_1)*Subsector_Energy_De1_vals)) -> 432.4937868 | H31: =IF($C31="","",SUMPRODUCT(($C31=Subsector_Energy_De1_index_3)*(Subsector_Energy_De1_index_2='Subsector Elect Demand by Year'!$C$2)*("Electricity--GWh"=Subsector_Energy_De1_index_4)*(H$6=Subsector_Energy_De1_index_1)*Subsector_Energy_De1_vals)) -> 429.5804936 | I31: =IF($C31="","",SUMPRODUCT(($C31=Subsector_Energy_De1_index_3)*(Subsector_Energy_De1_index_2='Subsector Elect Demand by Year'!$C$2)*("Electricity--GWh"=Subsector_Energy_De1_index_4)*(I$6=Subsector_Energy_De1_index_1)*Subsector_Energy_De1_vals)) -> 426.7487009 | J31: =IF($C31="","",SUMPRODUCT(($C31=Subsector_Energy_De1_index_3)*(Subsector_Energy_De1_index_2='Subsector Elect Demand by Year'!$C$2)*("Electricity--GWh"=Subsector_Energy_De1_index_4)*(J$6=Subsector_Energy_De1_index_1)*Subsector_Energy_De1_vals)) -> 414.2179433 | K31: =IF($C31="","",SUMPRODUCT(($C31=Subsector_Energy_De1_index_3)*(Subsector_Energy_De1_index_2='Subsector Elect Demand by Year'!$C$2)*("Electricity--GWh"=Subsector_Energy_De1_index_4)*(K$6=Subsector_Energy_De1_index_1)*Subsector_Energy_De1_vals)) -> 402.0350747 | L31: =IF($C31="","",SUMPRODUCT(($C31=Subsector_Energy_De1_index_3)*(Subsector_Energy_De1_index_2='Subsector Elect Demand by Year'!$C$2)*("Electricity--GWh"=Subsector_Energy_De1_index_4)*(L$6=Subsector_Energy_De1_index_1)*Subsector_Energy_De1_vals)) -> 389.9114671 | M31: =IF($C31="","",SUMPRODUCT(($C31=Subsector_Energy_De1_index_3)*(Subsector_Energy_De1_index_2='Subsector Elect Demand by Year'!$C$2)*("Electricity--GWh"=Subsector_Energy_De1_index_4)*(M$6=Subsector_Energy_De1_index_1)*Subsector_Energy_De1_vals)) -> 377.9182179 | N31: =IF($C31="","",SUMPRODUCT(($C31=Subsector_Energy_De1_index_3)*(Subsector_Energy_De1_index_2='Subsector Elect Demand by Year'!$C$2)*("Electricity--GWh"=Subsector_Energy_De1_index_4)*(N$6=Subsector_Energy_De1_index_1)*Subsector_Energy_De1_vals)) -> 365.9912782 | O31: =IF($C31="","",SUMPRODUCT(($C31=Subsector_Energy_De1_index_3)*(Subsector_Energy_De1_index_2='Subsector Elect Demand by Year'!$C$2)*("Electricity--GWh"=Subsector_Energy_De1_index_4)*(O$6=Subsector_Energy_De1_index_1)*Subsector_Energy_De1_vals)) -> 355.8512624 | P31: =IF($C31="","",SUMPRODUCT(($C31=Subsector_Energy_De1_index_3)*(Subsector_Energy_De1_index_2='Subsector Elect Demand by Year'!$C$2)*("Electricity--GWh"=Subsector_Energy_De1_index_4)*(P$6=Subsector_Energy_De1_index_1)*Subsector_Energy_De1_vals)) -> 345.885631 | Q31: =IF($C31="","",SUMPRODUCT(($C31=Subsector_Energy_De1_index_3)*(Subsector_Energy_De1_index_2='Subsector Elect Demand by Year'!$C$2)*("Electricity--GWh"=Subsector_Energy_De1_index_4)*(Q$6=Subsector_Energy_De1_index_1)*Subsector_Energy_De1_vals)) -> 335.9524928 | R31: =IF($C31="","",SUMPRODUCT(($C31=Subsector_Energy_De1_index_3)*(Subsector_Energy_De1_index_2='Subsector Elect Demand by Year'!$C$2)*("Electricity--GWh"=Subsector_Energy_De1_index_4)*(R$6=Subsector_Energy_De1_index_1)*Subsector_Energy_De1_vals)) -> 326.0518479 | S31: =IF($C31="","",SUMPRODUCT(($C31=Subsector_Energy_De1_index_3)*(Subsector_Energy_De1_index_2='Subsector Elect Demand by Year'!$C$2)*("Electricity--GWh"=Subsector_Energy_De1_index_4)*(S$6=Subsector_Energy_De1_index_1)*Subsector_Energy_De1_vals)) -> 316.1836962 | T31: =IF($C31="","",SUMPRODUCT(($C31=Subsector_Energy_De1_index_3)*(Subsector_Energy_De1_index_2='Subsector Elect Demand by Year'!$C$2)*("Electricity--GWh"=Subsector_Energy_De1_index_4)*(T$6=Subsector_Energy_De1_index_1)*Subsector_Energy_De1_vals)) -> 306.3480376 | U31: =IF($C31="","",SUMPRODUCT(($C31=Subsector_Energy_De1_index_3)*(Subsector_Energy_De1_index_2='Subsector Elect Demand by Year'!$C$2)*("Electricity--GWh"=Subsector_Energy_De1_index_4)*(U$6=Subsector_Energy_De1_index_1)*Subsector_Energy_De1_vals)) -> 300.9583639 | V31: =IF($C31="","",SUMPRODUCT(($C31=Subsector_Energy_De1_index_3)*(Subsector_Energy_De1_index_2='Subsector Elect Demand by Year'!$C$2)*("Electricity--GWh"=Subsector_Energy_De1_index_4)*(V$6=Subsector_Energy_De1_index_1)*Subsector_Energy_De1_vals)) -> 295.5857082 | W31: =IF($C31="","",SUMPRODUCT(($C31=Subsector_Energy_De1_index_3)*(Subsector_Energy_De1_index_2='Subsector Elect Demand by Year'!$C$2)*("Electricity--GWh"=Subsector_Energy_De1_index_4)*(W$6=Subsector_Energy_De1_index_1)*Subsector_Energy_De1_vals)) -> 290.2300707 | X31: =IF($C31="","",SUMPRODUCT(($C31=Subsector_Energy_De1_index_3)*(Subsector_Energy_De1_index_2='Subsector Elect Demand by Year'!$C$2)*("Electricity--GWh"=Subsector_Energy_De1_index_4)*(X$6=Subsector_Energy_De1_index_1)*Subsector_Energy_De1_vals)) -> 284.8914512 | Y31: =IF($C31="","",SUMPRODUCT(($C31=Subsector_Energy_De1_index_3)*(Subsector_Energy_De1_index_2='Subsector Elect Demand by Year'!$C$2)*("Electricity--GWh"=Subsector_Energy_De1_index_4)*(Y$6=Subsector_Energy_De1_index_1)*Subsector_Energy_De1_vals)) -> 279.5698497 | Z31: =IF($C31="","",SUMPRODUCT(($C31=Subsector_Energy_De1_index_3)*(Subsector_Energy_De1_index_2='Subsector Elect Demand by Year'!$C$2)*("Electricity--GWh"=Subsector_Energy_De1_index_4)*(Z$6=Subsector_Energy_De1_index_1)*Subsector_Energy_De1_vals)) -> 274.2652664 | AA31: =IF($C31="","",SUMPRODUCT(($C31=Subsector_Energy_De1_index_3)*(Subsector_Energy_De1_index_2='Subsector Elect Demand by Year'!$C$2)*("Electricity--GWh"=Subsector_Energy_De1_index_4)*(AA$6=Subsector_Energy_De1_index_1)*Subsector_Energy_De1_vals)) -> 268.9777011 | AB31: =IF($C31="","",SUMPRODUCT(($C31=Subsector_Energy_De1_index_3)*(Subsector_Energy_De1_index_2='Subsector Elect Demand by Year'!$C$2)*("Electricity--GWh"=Subsector_Energy_De1_index_4)*(AB$6=Subsector_Energy_De1_index_1)*Subsector_Energy_De1_vals)) -> 263.7071539 | AC31: =IF($C31="","",SUMPRODUCT(($C31=Subsector_Energy_De1_index_3)*(Subsector_Energy_De1_index_2='Subsector Elect Demand by Year'!$C$2)*("Electricity--GWh"=Subsector_Energy_De1_index_4)*(AC$6=Subsector_Energy_De1_index_1)*Subsector_Energy_De1_vals)) -> 258.4536248 | AD31: =IF($C31="","",SUMPRODUCT(($C31=Subsector_Energy_De1_index_3)*(Subsector_Energy_De1_index_2='Subsector Elect Demand by Year'!$C$2)*("Electricity--GWh"=Subsector_Energy_De1_index_4)*(AD$6=Subsector_Energy_De1_index_1)*Subsector_Energy_De1_vals)) -> 253.2171137 | AE31: =IF($C31="","",SUMPRODUCT(($C31=Subsector_Energy_De1_index_3)*(Subsector_Energy_De1_index_2='Subsector Elect Demand by Year'!$C$2)*("Electricity--GWh"=Subsector_Energy_De1_index_4)*(AE$6=Subsector_Energy_De1_index_1)*Subsector_Energy_De1_vals)) -> 248.3391083 | AF31: =IF($C31="","",SUMPRODUCT(($C31=Subsector_Energy_De1_index_3)*(Subsector_Energy_De1_index_2='Subsector Elect Demand by Year'!$C$2)*("Electricity--GWh"=Subsector_Energy_De1_index_4)*(AF$6=Subsector_Energy_De1_index_1)*Subsector_Energy_De1_vals)) -> 243.4769023 | AG31: =IF($C31="","",SUMPRODUCT(($C31=Subsector_Energy_De1_index_3)*(Subsector_Energy_De1_index_2='Subsector Elect Demand by Year'!$C$2)*("Electricity--GWh"=Subsector_Energy_De1_index_4)*(AG$6=Subsector_Energy_De1_index_1)*Subsector_Energy_De1_vals)) -> 238.6304955 | AH31: =IF($C31="","",SUMPRODUCT(($C31=Subsector_Energy_De1_index_3)*(Subsector_Energy_De1_index_2='Subsector Elect Demand by Year'!$C$2)*("Electricity--GWh"=Subsector_Energy_De1_index_4)*(AH$6=Subsector_Energy_De1_index_1)*Subsector_Energy_De1_vals)) -> 233.7998882 | AI31: =IF($C31="","",SUMPRODUCT(($C31=Subsector_Energy_De1_index_3)*(Subsector_Energy_De1_index_2='Subsector Elect Demand by Year'!$C$2)*("Electricity--GWh"=Subsector_Energy_De1_index_4)*(AI$6=Subsector_Energy_De1_index_1)*Subsector_Energy_De1_vals)) -> 228.9850801 | AJ31: =IF($C31="","",SUMPRODUCT(($C31=Subsector_Energy_De1_index_3)*(Subsector_Energy_De1_index_2='Subsector Elect Demand by Year'!$C$2)*("Electricity--GWh"=Subsector_Energy_De1_index_4)*(AJ$6=Subsector_Energy_De1_index_1)*Subsector_Energy_De1_vals)) -> 224.1860714 | AK31: =IF($C31="","",SUMPRODUCT(($C31=Subsector_Energy_De1_index_3)*(Subsector_Energy_De1_index_2='Subsector Elect Demand by Year'!$C$2)*("Electricity--GWh"=Subsector_Energy_De1_index_4)*(AK$6=Subsector_Energy_De1_index_1)*Subsector_Energy_De1_vals)) -> 219.4028621 | AL31: =IF($C31="","",SUMPRODUCT(($C31=Subsector_Energy_De1_index_3)*(Subsector_Energy_De1_index_2='Subsector Elect Demand by Year'!$C$2)*("Electricity--GWh"=Subsector_Energy_De1_index_4)*(AL$6=Subsector_Energy_De1_index_1)*Subsector_Energy_De1_vals)) -> 214.6354521 | AM31: =IF($C31="","",SUMPRODUCT(($C31=Subsector_Energy_De1_index_3)*(Subsector_Energy_De1_index_2='Subsector Elect Demand by Year'!$C$2)*("Electricity--GWh"=Subsector_Energy_De1_index_4)*(AM$6=Subsector_Energy_De1_index_1)*Subsector_Energy_De1_vals)) -> 209.8838414 | AN31: =IF($C31="","",SUMPRODUCT(($C31=Subsector_Energy_De1_index_3)*(Subsector_Energy_De1_index_2='Subsector Elect Demand by Year'!$C$2)*("Electricity--GWh"=Subsector_Energy_De1_index_4)*(AN$6=Subsector_Energy_De1_index_1)*Subsector_Energy_De1_vals)) -> 205.1480301
A32: =IF(A31>=MAX(Lists!$S$2:$S$61),"",A31+1) -> 26 | B32: =IF(A32="","",INDEX(Lists!$R$2:$R$62,MATCH($A32,Lists!$S$2:$S$62,0))) -> Industrial & Ag | C32: =IF($A32="","",INDEX(Lists!$Q$2:$Q$62,MATCH($A32,Lists!$S$2:$S$62,0))) -> OGE Unspecified | D32: Industrial | E32: =IF($C32="","",SUMPRODUCT(($C32=Subsector_Energy_De1_index_3)*(Subsector_Energy_De1_index_2='Subsector Elect Demand by Year'!$C$2)*("Electricity--GWh"=Subsector_Energy_De1_index_4)*(E$6=Subsector_Energy_De1_index_1)*Subsector_Energy_De1_vals)) -> 5832.52446 | F32: =IF($C32="","",SUMPRODUCT(($C32=Subsector_Energy_De1_index_3)*(Subsector_Energy_De1_index_2='Subsector Elect Demand by Year'!$C$2)*("Electricity--GWh"=Subsector_Energy_De1_index_4)*(F$6=Subsector_Energy_De1_index_1)*Subsector_Energy_De1_vals)) -> 5824.85481 | G32: =IF($C32="","",SUMPRODUCT(($C32=Subsector_Energy_De1_index_3)*(Subsector_Energy_De1_index_2='Subsector Elect Demand by Year'!$C$2)*("Electricity--GWh"=Subsector_Energy_De1_index_4)*(G$6=Subsector_Energy_De1_index_1)*Subsector_Energy_De1_vals)) -> 5816.685099 | H32: =IF($C32="","",SUMPRODUCT(($C32=Subsector_Energy_De1_index_3)*(Subsector_Energy_De1_index_2='Subsector Elect Demand by Year'!$C$2)*("Electricity--GWh"=Subsector_Energy_De1_index_4)*(H$6=Subsector_Energy_De1_index_1)*Subsector_Energy_De1_vals)) -> 5809.179828 | I32: =IF($C32="","",SUMPRODUCT(($C32=Subsector_Energy_De1_index_3)*(Subsector_Energy_De1_index_2='Subsector Elect Demand by Year'!$C$2)*("Electricity--GWh"=Subsector_Energy_De1_index_4)*(I$6=Subsector_Energy_De1_index_1)*Subsector_Energy_De1_vals)) -> 5801.67307 | J32: =IF($C32="","",SUMPRODUCT(($C32=Subsector_Energy_De1_index_3)*(Subsector_Energy_De1_index_2='Subsector Elect Demand by Year'!$C$2)*("Electricity--GWh"=Subsector_Energy_De1_index_4)*(J$6=Subsector_Energy_De1_index_1)*Subsector_Energy_De1_vals)) -> 5794.164838 | K32: =IF($C32="","",SUMPRODUCT(($C32=Subsector_Energy_De1_index_3)*(Subsector_Energy_De1_index_2='Subsector Elect Demand by Year'!$C$2)*("Electricity--GWh"=Subsector_Energy_De1_index_4)*(K$6=Subsector_Energy_De1_index_1)*Subsector_Energy_De1_vals)) -> 5641.078462 | L32: =IF($C32="","",SUMPRODUCT(($C32=Subsector_Energy_De1_index_3)*(Subsector_Energy_De1_index_2='Subsector Elect Demand by Year'!$C$2)*("Electricity--GWh"=Subsector_Energy_De1_index_4)*(L$6=Subsector_Energy_De1_index_1)*Subsector_Energy_De1_vals)) -> 5488.5129 | M32: =IF($C32="","",SUMPRODUCT(($C32=Subsector_Energy_De1_index_3)*(Subsector_Energy_De1_index_2='Subsector Elect Demand by Year'!$C$2)*("Electricity--GWh"=Subsector_Energy_De1_index_4)*(M$6=Subsector_Energy_De1_index_1)*Subsector_Energy_De1_vals)) -> 5336.368366 | N32: =IF($C32="","",SUMPRODUCT(($C32=Subsector_Energy_De1_index_3)*(Subsector_Energy_De1_index_2='Subsector Elect Demand by Year'!$C$2)*("Electricity--GWh"=Subsector_Energy_De1_index_4)*(N$6=Subsector_Energy_De1_index_1)*Subsector_Energy_De1_vals)) -> 5184.841815 | O32: =IF($C32="","",SUMPRODUCT(($C32=Subsector_Energy_De1_index_3)*(Subsector_Energy_De1_index_2='Subsector Elect Demand by Year'!$C$2)*("Electricity--GWh"=Subsector_Energy_De1_index_4)*(O$6=Subsector_Energy_De1_index_1)*Subsector_Energy_De1_vals)) -> 5084.837904 | P32: =IF($C32="","",SUMPRODUCT(($C32=Subsector_Energy_De1_index_3)*(Subsector_Energy_De1_index_2='Subsector Elect Demand by Year'!$C$2)*("Electricity--GWh"=Subsector_Energy_De1_index_4)*(P$6=Subsector_Energy_De1_index_1)*Subsector_Energy_De1_vals)) -> 4982.318596 | Q32: =IF($C32="","",SUMPRODUCT(($C32=Subsector_Energy_De1_index_3)*(Subsector_Energy_De1_index_2='Subsector Elect Demand by Year'!$C$2)*("Electricity--GWh"=Subsector_Energy_De1_index_4)*(Q$6=Subsector_Energy_De1_index_1)*Subsector_Energy_De1_vals)) -> 4877.283889 | R32: =IF($C32="","",SUMPRODUCT(($C32=Subsector_Energy_De1_index_3)*(Subsector_Energy_De1_index_2='Subsector Elect Demand by Year'!$C$2)*("Electricity--GWh"=Subsector_Energy_De1_index_4)*(R$6=Subsector_Energy_De1_index_1)*Subsector_Energy_De1_vals)) -> 4769.733783 | S32: =IF($C32="","",SUMPRODUCT(($C32=Subsector_Energy_De1_index_3)*(Subsector_Energy_De1_index_2='Subsector Elect Demand by Year'!$C$2)*("Electricity--GWh"=Subsector_Energy_De1_index_4)*(S$6=Subsector_Energy_De1_index_1)*Subsector_Energy_De1_vals)) -> 4659.668279 | T32: =IF($C32="","",SUMPRODUCT(($C32=Subsector_Energy_De1_index_3)*(Subsector_Energy_De1_index_2='Subsector Elect Demand by Year'!$C$2)*("Electricity--GWh"=Subsector_Energy_De1_index_4)*(T$6=Subsector_Energy_De1_index_1)*Subsector_Energy_De1_vals)) -> 4547.087376 | U32: =IF($C32="","",SUMPRODUCT(($C32=Subsector_Energy_De1_index_3)*(Subsector_Energy_De1_index_2='Subsector Elect Demand by Year'!$C$2)*("Electricity--GWh"=Subsector_Energy_De1_index_4)*(U$6=Subsector_Energy_De1_index_1)*Subsector_Energy_De1_vals)) -> 4386.142891 | V32: =IF($C32="","",SUMPRODUCT(($C32=Subsector_Energy_De1_index_3)*(Subsector_Energy_De1_index_2='Subsector Elect Demand by Year'!$C$2)*("Electricity--GWh"=Subsector_Energy_De1_index_4)*(V$6=Subsector_Energy_De1_index_1)*Subsector_Energy_De1_vals)) -> 4221.928389 | W32: =IF($C32="","",SUMPRODUCT(($C32=Subsector_Energy_De1_index_3)*(Subsector_Energy_De1_index_2='Subsector Elect Demand by Year'!$C$2)*("Electricity--GWh"=Subsector_Energy_De1_index_4)*(W$6=Subsector_Energy_De1_index_1)*Subsector_Energy_De1_vals)) -> 4054.443868 | X32: =IF($C32="","",SUMPRODUCT(($C32=Subsector_Energy_De1_index_3)*(Subsector_Energy_De1_index_2='Subsector Elect Demand by Year'!$C$2)*("Electricity--GWh"=Subsector_Energy_De1_index_4)*(X$6=Subsector_Energy_De1_index_1)*Subsector_Energy_De1_vals)) -> 3883.689329 | Y32: =IF($C32="","",SUMPRODUCT(($C32=Subsector_Energy_De1_index_3)*(Subsector_Energy_De1_index_2='Subsector Elect Demand by Year'!$C$2)*("Electricity--GWh"=Subsector_Energy_De1_index_4)*(Y$6=Subsector_Energy_De1_index_1)*Subsector_Energy_De1_vals)) -> 3709.664773 | Z32: =IF($C32="","",SUMPRODUCT(($C32=Subsector_Energy_De1_index_3)*(Subsector_Energy_De1_index_2='Subsector Elect Demand by Year'!$C$2)*("Electricity--GWh"=Subsector_Energy_De1_index_4)*(Z$6=Subsector_Energy_De1_index_1)*Subsector_Energy_De1_vals)) -> 3532.370198 | AA32: =IF($C32="","",SUMPRODUCT(($C32=Subsector_Energy_De1_index_3)*(Subsector_Energy_De1_index_2='Subsector Elect Demand by Year'!$C$2)*("Electricity--GWh"=Subsector_Energy_De1_index_4)*(AA$6=Subsector_Energy_De1_index_1)*Subsector_Energy_De1_vals)) -> 3351.805605 | AB32: =IF($C32="","",SUMPRODUCT(($C32=Subsector_Energy_De1_index_3)*(Subsector_Energy_De1_index_2='Subsector Elect Demand by Year'!$C$2)*("Electricity--GWh"=Subsector_Energy_De1_index_4)*(AB$6=Subsector_Energy_De1_index_1)*Subsector_Energy_De1_vals)) -> 3167.970994 | AC32: =IF($C32="","",SUMPRODUCT(($C32=Subsector_Energy_De1_index_3)*(Subsector_Energy_De1_index_2='Subsector Elect Demand by Year'!$C$2)*("Electricity--GWh"=Subsector_Energy_De1_index_4)*(AC$6=Subsector_Energy_De1_index_1)*Subsector_Energy_De1_vals)) -> 2980.866365 | AD32: =IF($C32="","",SUMPRODUCT(($C32=Subsector_Energy_De1_index_3)*(Subsector_Energy_De1_index_2='Subsector Elect Demand by Year'!$C$2)*("Electricity--GWh"=Subsector_Energy_De1_index_4)*(AD$6=Subsector_Energy_De1_index_1)*Subsector_Energy_De1_vals)) -> 2790.491718 | AE32: =IF($C32="","",SUMPRODUCT(($C32=Subsector_Energy_De1_index_3)*(Subsector_Energy_De1_index_2='Subsector Elect Demand by Year'!$C$2)*("Electricity--GWh"=Subsector_Energy_De1_index_4)*(AE$6=Subsector_Energy_De1_index_1)*Subsector_Energy_De1_vals)) -> 2596.847053 | AF32: =IF($C32="","",SUMPRODUCT(($C32=Subsector_Energy_De1_index_3)*(Subsector_Energy_De1_index_2='Subsector Elect Demand by Year'!$C$2)*("Electricity--GWh"=Subsector_Energy_De1_index_4)*(AF$6=Subsector_Energy_De1_index_1)*Subsector_Energy_De1_vals)) -> 2399.93237 | AG32: =IF($C32="","",SUMPRODUCT(($C32=Subsector_Energy_De1_index_3)*(Subsector_Energy_De1_index_2='Subsector Elect Demand by Year'!$C$2)*("Electricity--GWh"=Subsector_Energy_De1_index_4)*(AG$6=Subsector_Energy_De1_index_1)*Subsector_Energy_De1_vals)) -> 2199.747669 | AH32: =IF($C32="","",SUMPRODUCT(($C32=Subsector_Energy_De1_index_3)*(Subsector_Energy_De1_index_2='Subsector Elect Demand by Year'!$C$2)*("Electricity--GWh"=Subsector_Energy_De1_index_4)*(AH$6=Subsector_Energy_De1_index_1)*Subsector_Energy_De1_vals)) -> 1996.29295 | AI32: =IF($C32="","",SUMPRODUCT(($C32=Subsector_Energy_De1_index_3)*(Subsector_Energy_De1_index_2='Subsector Elect Demand by Year'!$C$2)*("Electricity--GWh"=Subsector_Energy_De1_index_4)*(AI$6=Subsector_Energy_De1_index_1)*Subsector_Energy_De1_vals)) -> 1789.568213 | AJ32: =IF($C32="","",SUMPRODUCT(($C32=Subsector_Energy_De1_index_3)*(Subsector_Energy_De1_index_2='Subsector Elect Demand by Year'!$C$2)*("Electricity--GWh"=Subsector_Energy_De1_index_4)*(AJ$6=Subsector_Energy_De1_index_1)*Subsector_Energy_De1_vals)) -> 1579.573457 | AK32: =IF($C32="","",SUMPRODUCT(($C32=Subsector_Energy_De1_index_3)*(Subsector_Energy_De1_index_2='Subsector Elect Demand by Year'!$C$2)*("Electricity--GWh"=Subsector_Energy_De1_index_4)*(AK$6=Subsector_Energy_De1_index_1)*Subsector_Energy_De1_vals)) -> 1366.308684 | AL32: =IF($C32="","",SUMPRODUCT(($C32=Subsector_Energy_De1_index_3)*(Subsector_Energy_De1_index_2='Subsector Elect Demand by Year'!$C$2)*("Electricity--GWh"=Subsector_Energy_De1_index_4)*(AL$6=Subsector_Energy_De1_index_1)*Subsector_Energy_De1_vals)) -> 1149.773893 | AM32: =IF($C32="","",SUMPRODUCT(($C32=Subsector_Energy_De1_index_3)*(Subsector_Energy_De1_index_2='Subsector Elect Demand by Year'!$C$2)*("Electricity--GWh"=Subsector_Energy_De1_index_4)*(AM$6=Subsector_Energy_De1_index_1)*Subsector_Energy_De1_vals)) -> 929.9690837 | AN32: =IF($C32="","",SUMPRODUCT(($C32=Subsector_Energy_De1_index_3)*(Subsector_Energy_De1_index_2='Subsector Elect Demand by Year'!$C$2)*("Electricity--GWh"=Subsector_Energy_De1_index_4)*(AN$6=Subsector_Energy_De1_index_1)*Subsector_Energy_De1_vals)) -> 706.8942564
A33: =IF(A32>=MAX(Lists!$S$2:$S$61),"",A32+1) -> 27 | B33: =IF(A33="","",INDEX(Lists!$R$2:$R$62,MATCH($A33,Lists!$S$2:$S$62,0))) -> Industrial & Ag | C33: =IF($A33="","",INDEX(Lists!$Q$2:$Q$62,MATCH($A33,Lists!$S$2:$S$62,0))) -> Paper | D33: Industrial | E33: =IF($C33="","",SUMPRODUCT(($C33=Subsector_Energy_De1_index_3)*(Subsector_Energy_De1_index_2='Subsector Elect Demand by Year'!$C$2)*("Electricity--GWh"=Subsector_Energy_De1_index_4)*(E$6=Subsector_Energy_De1_index_1)*Subsector_Energy_De1_vals)) -> 532.7254262 | F33: =IF($C33="","",SUMPRODUCT(($C33=Subsector_Energy_De1_index_3)*(Subsector_Energy_De1_index_2='Subsector Elect Demand by Year'!$C$2)*("Electricity--GWh"=Subsector_Energy_De1_index_4)*(F$6=Subsector_Energy_De1_index_1)*Subsector_Energy_De1_vals)) -> 523.6116333 | G33: =IF($C33="","",SUMPRODUCT(($C33=Subsector_Energy_De1_index_3)*(Subsector_Energy_De1_index_2='Subsector Elect Demand by Year'!$C$2)*("Electricity--GWh"=Subsector_Energy_De1_index_4)*(G$6=Subsector_Energy_De1_index_1)*Subsector_Energy_De1_vals)) -> 516.6434858 | H33: =IF($C33="","",SUMPRODUCT(($C33=Subsector_Energy_De1_index_3)*(Subsector_Energy_De1_index_2='Subsector Elect Demand by Year'!$C$2)*("Electricity--GWh"=Subsector_Energy_De1_index_4)*(H$6=Subsector_Energy_De1_index_1)*Subsector_Energy_De1_vals)) -> 509.0613862 | I33: =IF($C33="","",SUMPRODUCT(($C33=Subsector_Energy_De1_index_3)*(Subsector_Energy_De1_index_2='Subsector Elect Demand by Year'!$C$2)*("Electricity--GWh"=Subsector_Energy_De1_index_4)*(I$6=Subsector_Energy_De1_index_1)*Subsector_Energy_De1_vals)) -> 501.5352 | J33: =IF($C33="","",SUMPRODUCT(($C33=Subsector_Energy_De1_index_3)*(Subsector_Energy_De1_index_2='Subsector Elect Demand by Year'!$C$2)*("Electricity--GWh"=Subsector_Energy_De1_index_4)*(J$6=Subsector_Energy_De1_index_1)*Subsector_Energy_De1_vals)) -> 483.1182094 | K33: =IF($C33="","",SUMPRODUCT(($C33=Subsector_Energy_De1_index_3)*(Subsector_Energy_De1_index_2='Subsector Elect Demand by Year'!$C$2)*("Electricity--GWh"=Subsector_Energy_De1_index_4)*(K$6=Subsector_Energy_De1_index_1)*Subsector_Energy_De1_vals)) -> 465.0083508 | L33: =IF($C33="","",SUMPRODUCT(($C33=Subsector_Energy_De1_index_3)*(Subsector_Energy_De1_index_2='Subsector Elect Demand by Year'!$C$2)*("Electricity--GWh"=Subsector_Energy_De1_index_4)*(L$6=Subsector_Energy_De1_index_1)*Subsector_Energy_De1_vals)) -> 447.0762683 | M33: =IF($C33="","",SUMPRODUCT(($C33=Subsector_Energy_De1_index_3)*(Subsector_Energy_De1_index_2='Subsector Elect Demand by Year'!$C$2)*("Electricity--GWh"=Subsector_Energy_De1_index_4)*(M$6=Subsector_Energy_De1_index_1)*Subsector_Energy_De1_vals)) -> 429.2095104 | N33: =IF($C33="","",SUMPRODUCT(($C33=Subsector_Energy_De1_index_3)*(Subsector_Energy_De1_index_2='Subsector Elect Demand by Year'!$C$2)*("Electricity--GWh"=Subsector_Energy_De1_index_4)*(N$6=Subsector_Energy_De1_index_1)*Subsector_Energy_De1_vals)) -> 411.5597144 | O33: =IF($C33="","",SUMPRODUCT(($C33=Subsector_Energy_De1_index_3)*(Subsector_Energy_De1_index_2='Subsector Elect Demand by Year'!$C$2)*("Electricity--GWh"=Subsector_Energy_De1_index_4)*(O$6=Subsector_Energy_De1_index_1)*Subsector_Energy_De1_vals)) -> 397.6720618 | P33: =IF($C33="","",SUMPRODUCT(($C33=Subsector_Energy_De1_index_3)*(Subsector_Energy_De1_index_2='Subsector Elect Demand by Year'!$C$2)*("Electricity--GWh"=Subsector_Energy_De1_index_4)*(P$6=Subsector_Energy_De1_index_1)*Subsector_Energy_De1_vals)) -> 384.1381145 | Q33: =IF($C33="","",SUMPRODUCT(($C33=Subsector_Energy_De1_index_3)*(Subsector_Energy_De1_index_2='Subsector Elect Demand by Year'!$C$2)*("Electricity--GWh"=Subsector_Energy_De1_index_4)*(Q$6=Subsector_Energy_De1_index_1)*Subsector_Energy_De1_vals)) -> 370.7700534 | R33: =IF($C33="","",SUMPRODUCT(($C33=Subsector_Energy_De1_index_3)*(Subsector_Energy_De1_index_2='Subsector Elect Demand by Year'!$C$2)*("Electricity--GWh"=Subsector_Energy_De1_index_4)*(R$6=Subsector_Energy_De1_index_1)*Subsector_Energy_De1_vals)) -> 357.5678784 | S33: =IF($C33="","",SUMPRODUCT(($C33=Subsector_Energy_De1_index_3)*(Subsector_Energy_De1_index_2='Subsector Elect Demand by Year'!$C$2)*("Electricity--GWh"=Subsector_Energy_De1_index_4)*(S$6=Subsector_Energy_De1_index_1)*Subsector_Energy_De1_vals)) -> 344.5315895 | T33: =IF($C33="","",SUMPRODUCT(($C33=Subsector_Energy_De1_index_3)*(Subsector_Energy_De1_index_2='Subsector Elect Demand by Year'!$C$2)*("Electricity--GWh"=Subsector_Energy_De1_index_4)*(T$6=Subsector_Energy_De1_index_1)*Subsector_Energy_De1_vals)) -> 331.6611867 | U33: =IF($C33="","",SUMPRODUCT(($C33=Subsector_Energy_De1_index_3)*(Subsector_Energy_De1_index_2='Subsector Elect Demand by Year'!$C$2)*("Electricity--GWh"=Subsector_Energy_De1_index_4)*(U$6=Subsector_Energy_De1_index_1)*Subsector_Energy_De1_vals)) -> 321.6329216 | V33: =IF($C33="","",SUMPRODUCT(($C33=Subsector_Energy_De1_index_3)*(Subsector_Energy_De1_index_2='Subsector Elect Demand by Year'!$C$2)*("Electricity--GWh"=Subsector_Energy_De1_index_4)*(V$6=Subsector_Energy_De1_index_1)*Subsector_Energy_De1_vals)) -> 311.7260021 | W33: =IF($C33="","",SUMPRODUCT(($C33=Subsector_Energy_De1_index_3)*(Subsector_Energy_De1_index_2='Subsector Elect Demand by Year'!$C$2)*("Electricity--GWh"=Subsector_Energy_De1_index_4)*(W$6=Subsector_Energy_De1_index_1)*Subsector_Energy_De1_vals)) -> 301.9404282 | X33: =IF($C33="","",SUMPRODUCT(($C33=Subsector_Energy_De1_index_3)*(Subsector_Energy_De1_index_2='Subsector Elect Demand by Year'!$C$2)*("Electricity--GWh"=Subsector_Energy_De1_index_4)*(X$6=Subsector_Energy_De1_index_1)*Subsector_Energy_De1_vals)) -> 292.2761998 | Y33: =IF($C33="","",SUMPRODUCT(($C33=Subsector_Energy_De1_index_3)*(Subsector_Energy_De1_index_2='Subsector Elect Demand by Year'!$C$2)*("Electricity--GWh"=Subsector_Energy_De1_index_4)*(Y$6=Subsector_Energy_De1_index_1)*Subsector_Energy_De1_vals)) -> 282.7333171 | Z33: =IF($C33="","",SUMPRODUCT(($C33=Subsector_Energy_De1_index_3)*(Subsector_Energy_De1_index_2='Subsector Elect Demand by Year'!$C$2)*("Electricity--GWh"=Subsector_Energy_De1_index_4)*(Z$6=Subsector_Energy_De1_index_1)*Subsector_Energy_De1_vals)) -> 273.31178 | AA33: =IF($C33="","",SUMPRODUCT(($C33=Subsector_Energy_De1_index_3)*(Subsector_Energy_De1_index_2='Subsector Elect Demand by Year'!$C$2)*("Electricity--GWh"=Subsector_Energy_De1_index_4)*(AA$6=Subsector_Energy_De1_index_1)*Subsector_Energy_De1_vals)) -> 264.0115884 | AB33: =IF($C33="","",SUMPRODUCT(($C33=Subsector_Energy_De1_index_3)*(Subsector_Energy_De1_index_2='Subsector Elect Demand by Year'!$C$2)*("Electricity--GWh"=Subsector_Energy_De1_index_4)*(AB$6=Subsector_Energy_De1_index_1)*Subsector_Energy_De1_vals)) -> 254.8327425 | AC33: =IF($C33="","",SUMPRODUCT(($C33=Subsector_Energy_De1_index_3)*(Subsector_Energy_De1_index_2='Subsector Elect Demand by Year'!$C$2)*("Electricity--GWh"=Subsector_Energy_De1_index_4)*(AC$6=Subsector_Energy_De1_index_1)*Subsector_Energy_De1_vals)) -> 245.7752421 | AD33: =IF($C33="","",SUMPRODUCT(($C33=Subsector_Energy_De1_index_3)*(Subsector_Energy_De1_index_2='Subsector Elect Demand by Year'!$C$2)*("Electricity--GWh"=Subsector_Energy_De1_index_4)*(AD$6=Subsector_Energy_De1_index_1)*Subsector_Energy_De1_vals)) -> 236.8390873 | AE33: =IF($C33="","",SUMPRODUCT(($C33=Subsector_Energy_De1_index_3)*(Subsector_Energy_De1_index_2='Subsector Elect Demand by Year'!$C$2)*("Electricity--GWh"=Subsector_Energy_De1_index_4)*(AE$6=Subsector_Energy_De1_index_1)*Subsector_Energy_De1_vals)) -> 228.2266008 | AF33: =IF($C33="","",SUMPRODUCT(($C33=Subsector_Energy_De1_index_3)*(Subsector_Energy_De1_index_2='Subsector Elect Demand by Year'!$C$2)*("Electricity--GWh"=Subsector_Energy_De1_index_4)*(AF$6=Subsector_Energy_De1_index_1)*Subsector_Energy_De1_vals)) -> 219.7317869 | AG33: =IF($C33="","",SUMPRODUCT(($C33=Subsector_Energy_De1_index_3)*(Subsector_Energy_De1_index_2='Subsector Elect Demand by Year'!$C$2)*("Electricity--GWh"=Subsector_Energy_De1_index_4)*(AG$6=Subsector_Energy_De1_index_1)*Subsector_Energy_De1_vals)) -> 211.3546458 | AH33: =IF($C33="","",SUMPRODUCT(($C33=Subsector_Energy_De1_index_3)*(Subsector_Energy_De1_index_2='Subsector Elect Demand by Year'!$C$2)*("Electricity--GWh"=Subsector_Energy_De1_index_4)*(AH$6=Subsector_Energy_De1_index_1)*Subsector_Energy_De1_vals)) -> 203.0951775 | AI33: =IF($C33="","",SUMPRODUCT(($C33=Subsector_Energy_De1_index_3)*(Subsector_Energy_De1_index_2='Subsector Elect Demand by Year'!$C$2)*("Electricity--GWh"=Subsector_Energy_De1_index_4)*(AI$6=Subsector_Energy_De1_index_1)*Subsector_Energy_De1_vals)) -> 194.9533818 | AJ33: =IF($C33="","",SUMPRODUCT(($C33=Subsector_Energy_De1_index_3)*(Subsector_Energy_De1_index_2='Subsector Elect Demand by Year'!$C$2)*("Electricity--GWh"=Subsector_Energy_De1_index_4)*(AJ$6=Subsector_Energy_De1_index_1)*Subsector_Energy_De1_vals)) -> 186.9292589 | AK33: =IF($C33="","",SUMPRODUCT(($C33=Subsector_Energy_De1_index_3)*(Subsector_Energy_De1_index_2='Subsector Elect Demand by Year'!$C$2)*("Electricity--GWh"=Subsector_Energy_De1_index_4)*(AK$6=Subsector_Energy_De1_index_1)*Subsector_Energy_De1_vals)) -> 179.0228087 | AL33: =IF($C33="","",SUMPRODUCT(($C33=Subsector_Energy_De1_index_3)*(Subsector_Energy_De1_index_2='Subsector Elect Demand by Year'!$C$2)*("Electricity--GWh"=Subsector_Energy_De1_index_4)*(AL$6=Subsector_Energy_De1_index_1)*Subsector_Energy_De1_vals)) -> 171.2340313 | AM33: =IF($C33="","",SUMPRODUCT(($C33=Subsector_Energy_De1_index_3)*(Subsector_Energy_De1_index_2='Subsector Elect Demand by Year'!$C$2)*("Electricity--GWh"=Subsector_Energy_De1_index_4)*(AM$6=Subsector_Energy_De1_index_1)*Subsector_Energy_De1_vals)) -> 163.5629265 | AN33: =IF($C33="","",SUMPRODUCT(($C33=Subsector_Energy_De1_index_3)*(Subsector_Energy_De1_index_2='Subsector Elect Demand by Year'!$C$2)*("Electricity--GWh"=Subsector_Energy_De1_index_4)*(AN$6=Subsector_Energy_De1_index_1)*Subsector_Energy_De1_vals)) -> 156.0094945
